Workbook

Sheet Menu
B2: Delayed transfer of care improvement tool
B6: Latest data: | C6: =Pivots!A33 -> 2020-02-01
B8: Introduction to the Delayed transfers of care improvement tool This tool has been developed to enable trusts, CCGs and local authorities to easily understand what their most common reasons for delayed transfers of care are so that interventions can be focused on the areas which will have the biggest impact. The Pareto chart at the top of the tool ranks the reasons in descending order with the ability to change the time period that this covers. The filters on the right of the tool allow you to view the reasons for delay in different ways and the service to which they are attributed (NHS, social care or both). Data can be viewed at regional, trust and local authority level. The tool also tracks data over time and uses a technique called statistical process control (SPC) to: • identify when interventions result in an improvement • highlight when activities are not resulting in change, indicating that a change of approach is required SPC is one of the best ways to look at data as it identifies change that is statistically significant rather than due to chance. Four charts are displayed underneath the Pareto chart. These show you the top four reasons over time using SPC charts, with the option to select a fifth chart. If you have any comments or feedback on the tool please email: nhsi.improvementanalyticsteam@nhs.net Source: Unify2 Data Collection - MSitDT Published: 9 April 2020
B16: Navigation

Sheet DTOC_Tool
B2: Delayed transfer of care (NHS) By reason (number of delayed days)
AE3: Click on button to go to:
B8: Region | K8: Type | N8: Source | Q8: Provider | AD8: To view England overview remove filters from 'Region' and 'Provider name'
B9: =IF(DTOC_Charts!$G$11=1,"England",DTOC_Charts!C11) -> England | K9: =DTOC_Charts!C13 -> (All) | N9: =DTOC_Charts!C14 -> (All) | Q9: =IF(DTOC_Charts!$G$12=1,"All",DTOC_Charts!C12) -> All
AD36: Key:
T39: Additional comments: The five charts displaying the reasons will change from SPC charts to run charts if more than 5 data points are 0. The Pareto chart will display the number of delayed days for the period selected and will rank them in descending order. The four charts underneath will display the last 25 months of data for each of the top four reasons. The user can select to display a fifth chart and the reason it displays.
AF48: `
A54: `

Sheet DTOC_Charts (hidden)
B1: Source | D1: Unify: pivot tables linked to excel extracts
B2: Earliest week | D2: =MIN(Pivots!A8:A38) -> 2018-02-01 | F2: =MONTH(D2) -> 2 | G2: =YEAR(D2) -> 2018
B3: Last date | D3: =MAX(Pivots!A9:A39) -> 2020-02-01 | F3: =MONTH(D3) -> 2 | G3: =YEAR(D3) -> 2020
B4: Rows of data
B8: Start month | D8: =D2 -> 2018-02-01
G10: IF = all put 1 else 0 | S10: Chart title | T10: =IF(U14=1,T11,T12) -> Pareto chart showing delayed days by reason for 6 months
B11: Region ref | C11: =Pivots!$B$5 -> (All) | G11: =IF(AND(C11="(All)"),1,0) -> 1 | Q11: date end date plus offset | T11: ="Pareto chart showing delayed days by reason for" &" "&U14&" "&"month" -> Pareto chart showing delayed days by reason for 6 month
B12: Provider name | C12: =Pivots!B1 -> (All) | G12: =IF(AND(C12="(All)"),1,0) -> 1 | T12: ="Pareto chart showing delayed days by reason for" &" "&U14&" "&"months" -> Pareto chart showing delayed days by reason for 6 months
B13: Type | C13: =Pivots!B3 -> (All)
B14: Source | C14: =Pivots!B4 -> (All) | T14: Total months | U14: =COUNT(V17:V41) -> 6
V15: 1 | W15: 2 | X15: 3 | Y15: 4 | Z15: 5 | AA15: 6 | AB15: 7 | AC15: 8 | AD15: 9 | AE15: 10 | AF15: 11
B16: Chart number | C16: Title | J16: Chart look-up ref | P16: Delayed reasons adjust date range calculations | U16: Region | V16: A) Awaiting completion of assessment | W16: B) Awaiting public funding | X16: C) Awaiting further non-acute NHS care (including intermediate care, rehabilitation services etc) | Y16: Di) Awaiting residential home placement or availability | Z16: Dii) Awaiting nursing home placement or availability | AA16: E) Awaiting care package in own home | AB16: F) Awaiting community equipment and adaptations | AC16: G) Patient or family choice | AD16: H) Disputes | AE16: I) Housing – patients not covered by NHS Care Act | AF16: O) Other
B17: 1 | C17: =C13&" "&"Delayed Reasons" -> (All) Delayed Reasons | P17: From Drop down | Q17: Date start | R17: 20 | S17: 1 | T17: =B50 -> 2018-02-01 | U17: =$C$11 -> (All) | V17: =IFERROR(IF(AND($T17>=$R$24,$T17<=$R$25),(GETPIVOTDATA("Value",Pivots!$A$6,"Month",$T17,"Delay reason",V$16)),""),0) ->  | W17: =IFERROR(IF(AND($T17>=$R$24,$T17<=$R$25),(GETPIVOTDATA("Value",Pivots!$A$6,"Month",$T17,"Delay reason",W$16)),""),0) ->  | X17: =IFERROR(IF(AND($T17>=$R$24,$T17<=$R$25),(GETPIVOTDATA("Value",Pivots!$A$6,"Month",$T17,"Delay reason",X$16)),""),0) ->  | Y17: =IFERROR(IF(AND($T17>=$R$24,$T17<=$R$25),(GETPIVOTDATA("Value",Pivots!$A$6,"Month",$T17,"Delay reason",Y$16)),""),0) ->  | Z17: =IFERROR(IF(AND($T17>=$R$24,$T17<=$R$25),(GETPIVOTDATA("Value",Pivots!$A$6,"Month",$T17,"Delay reason",Z$16)),""),0) ->  | AA17: =IFERROR(IF(AND($T17>=$R$24,$T17<=$R$25),(GETPIVOTDATA("Value",Pivots!$A$6,"Month",$T17,"Delay reason",AA$16)),""),0) ->  | AB17: =IFERROR(IF(AND($T17>=$R$24,$T17<=$R$25),(GETPIVOTDATA("Value",Pivots!$A$6,"Month",$T17,"Delay reason",AB$16)),""),0) ->  | AC17: =IFERROR(IF(AND($T17>=$R$24,$T17<=$R$25),(GETPIVOTDATA("Value",Pivots!$A$6,"Month",$T17,"Delay reason",AC$16)),""),0) ->  | AD17: =IFERROR(IF(AND($T17>=$R$24,$T17<=$R$25),(GETPIVOTDATA("Value",Pivots!$A$6,"Month",$T17,"Delay reason",AD$16)),""),0) ->  | AE17: =IFERROR(IF(AND($T17>=$R$24,$T17<=$R$25),(GETPIVOTDATA("Value",Pivots!$A$6,"Month",$T17,"Delay reason",AE$16)),""),0) ->  | AF17: =IFERROR(IF(AND($T17>=$R$24,$T17<=$R$25),(GETPIVOTDATA("Value",Pivots!$A$6,"Month",$T17,"Delay reason",AF$16)),""),0) ->  | AG17: =COUNT(V17:AF17) -> 0
C18: Top 4 Reasons + self selected reason | P18: From Drop down | Q18: Date end | R18: 25 | S18: 2 | T18: =B51 -> 2018-03-01 | U18: =$C$11 -> (All) | V18: =IFERROR(IF(AND($T18>=$R$24,$T18<=$R$25),(GETPIVOTDATA("Value",Pivots!$A$6,"Month",$T18,"Delay reason",V$16)),""),0) ->  | W18: =IFERROR(IF(AND($T18>=$R$24,$T18<=$R$25),(GETPIVOTDATA("Value",Pivots!$A$6,"Month",$T18,"Delay reason",W$16)),""),0) ->  | X18: =IFERROR(IF(AND($T18>=$R$24,$T18<=$R$25),(GETPIVOTDATA("Value",Pivots!$A$6,"Month",$T18,"Delay reason",X$16)),""),0) ->  | Y18: =IFERROR(IF(AND($T18>=$R$24,$T18<=$R$25),(GETPIVOTDATA("Value",Pivots!$A$6,"Month",$T18,"Delay reason",Y$16)),""),0) ->  | Z18: =IFERROR(IF(AND($T18>=$R$24,$T18<=$R$25),(GETPIVOTDATA("Value",Pivots!$A$6,"Month",$T18,"Delay reason",Z$16)),""),0) ->  | AA18: =IFERROR(IF(AND($T18>=$R$24,$T18<=$R$25),(GETPIVOTDATA("Value",Pivots!$A$6,"Month",$T18,"Delay reason",AA$16)),""),0) ->  | AB18: =IFERROR(IF(AND($T18>=$R$24,$T18<=$R$25),(GETPIVOTDATA("Value",Pivots!$A$6,"Month",$T18,"Delay reason",AB$16)),""),0) ->  | AC18: =IFERROR(IF(AND($T18>=$R$24,$T18<=$R$25),(GETPIVOTDATA("Value",Pivots!$A$6,"Month",$T18,"Delay reason",AC$16)),""),0) ->  | AD18: =IFERROR(IF(AND($T18>=$R$24,$T18<=$R$25),(GETPIVOTDATA("Value",Pivots!$A$6,"Month",$T18,"Delay reason",AD$16)),""),0) ->  | AE18: =IFERROR(IF(AND($T18>=$R$24,$T18<=$R$25),(GETPIVOTDATA("Value",Pivots!$A$6,"Month",$T18,"Delay reason",AE$16)),""),0) ->  | AF18: =IFERROR(IF(AND($T18>=$R$24,$T18<=$R$25),(GETPIVOTDATA("Value",Pivots!$A$6,"Month",$T18,"Delay reason",AF$16)),""),0) ->  | AG18: =COUNT(V18:AF18) -> 0
B19: 3 | C19: =J33 -> E) Awaiting care package in own home | J19: =VLOOKUP(C19,ReferenceSheet!$B$2:$C$12,2,0) -> 6 | S19: 3 | T19: 2018-04-01 | U19: =$C$11 -> (All) | V19: =IFERROR(IF(AND($T19>=$R$24,$T19<=$R$25),(GETPIVOTDATA("Value",Pivots!$A$6,"Month",$T19,"Delay reason",V$16)),""),0) ->  | W19: =IFERROR(IF(AND($T19>=$R$24,$T19<=$R$25),(GETPIVOTDATA("Value",Pivots!$A$6,"Month",$T19,"Delay reason",W$16)),""),0) ->  | X19: =IFERROR(IF(AND($T19>=$R$24,$T19<=$R$25),(GETPIVOTDATA("Value",Pivots!$A$6,"Month",$T19,"Delay reason",X$16)),""),0) ->  | Y19: =IFERROR(IF(AND($T19>=$R$24,$T19<=$R$25),(GETPIVOTDATA("Value",Pivots!$A$6,"Month",$T19,"Delay reason",Y$16)),""),0) ->  | Z19: =IFERROR(IF(AND($T19>=$R$24,$T19<=$R$25),(GETPIVOTDATA("Value",Pivots!$A$6,"Month",$T19,"Delay reason",Z$16)),""),0) ->  | AA19: =IFERROR(IF(AND($T19>=$R$24,$T19<=$R$25),(GETPIVOTDATA("Value",Pivots!$A$6,"Month",$T19,"Delay reason",AA$16)),""),0) ->  | AB19: =IFERROR(IF(AND($T19>=$R$24,$T19<=$R$25),(GETPIVOTDATA("Value",Pivots!$A$6,"Month",$T19,"Delay reason",AB$16)),""),0) ->  | AC19: =IFERROR(IF(AND($T19>=$R$24,$T19<=$R$25),(GETPIVOTDATA("Value",Pivots!$A$6,"Month",$T19,"Delay reason",AC$16)),""),0) ->  | AD19: =IFERROR(IF(AND($T19>=$R$24,$T19<=$R$25),(GETPIVOTDATA("Value",Pivots!$A$6,"Month",$T19,"Delay reason",AD$16)),""),0) ->  | AE19: =IFERROR(IF(AND($T19>=$R$24,$T19<=$R$25),(GETPIVOTDATA("Value",Pivots!$A$6,"Month",$T19,"Delay reason",AE$16)),""),0) ->  | AF19: =IFERROR(IF(AND($T19>=$R$24,$T19<=$R$25),(GETPIVOTDATA("Value",Pivots!$A$6,"Month",$T19,"Delay reason",AF$16)),""),0) ->  | AG19: 0
B20: 4 | C20: =J34 -> C) Awaiting further non-acute NHS care (including intermediate care, rehabilitation services etc) | J20: =VLOOKUP(C20,ReferenceSheet!$B$2:$C$12,2,0) ->  | Q20: Offset end date | R20: =R17-1 -> 19 | S20: 4 | T20: 2018-05-01 | U20: =$C$11 -> (All) | V20: =IFERROR(IF(AND($T20>=$R$24,$T20<=$R$25),(GETPIVOTDATA("Value",Pivots!$A$6,"Month",$T20,"Delay reason",V$16)),""),0) ->  | W20: =IFERROR(IF(AND($T20>=$R$24,$T20<=$R$25),(GETPIVOTDATA("Value",Pivots!$A$6,"Month",$T20,"Delay reason",W$16)),""),0) ->  | X20: =IFERROR(IF(AND($T20>=$R$24,$T20<=$R$25),(GETPIVOTDATA("Value",Pivots!$A$6,"Month",$T20,"Delay reason",X$16)),""),0) ->  | Y20: =IFERROR(IF(AND($T20>=$R$24,$T20<=$R$25),(GETPIVOTDATA("Value",Pivots!$A$6,"Month",$T20,"Delay reason",Y$16)),""),0) ->  | Z20: =IFERROR(IF(AND($T20>=$R$24,$T20<=$R$25),(GETPIVOTDATA("Value",Pivots!$A$6,"Month",$T20,"Delay reason",Z$16)),""),0) ->  | AA20: =IFERROR(IF(AND($T20>=$R$24,$T20<=$R$25),(GETPIVOTDATA("Value",Pivots!$A$6,"Month",$T20,"Delay reason",AA$16)),""),0) ->  | AB20: =IFERROR(IF(AND($T20>=$R$24,$T20<=$R$25),(GETPIVOTDATA("Value",Pivots!$A$6,"Month",$T20,"Delay reason",AB$16)),""),0) ->  | AC20: =IFERROR(IF(AND($T20>=$R$24,$T20<=$R$25),(GETPIVOTDATA("Value",Pivots!$A$6,"Month",$T20,"Delay reason",AC$16)),""),0) ->  | AD20: =IFERROR(IF(AND($T20>=$R$24,$T20<=$R$25),(GETPIVOTDATA("Value",Pivots!$A$6,"Month",$T20,"Delay reason",AD$16)),""),0) ->  | AE20: =IFERROR(IF(AND($T20>=$R$24,$T20<=$R$25),(GETPIVOTDATA("Value",Pivots!$A$6,"Month",$T20,"Delay reason",AE$16)),""),0) ->  | AF20: =IFERROR(IF(AND($T20>=$R$24,$T20<=$R$25),(GETPIVOTDATA("Value",Pivots!$A$6,"Month",$T20,"Delay reason",AF$16)),""),0) ->  | AG20: 0
B21: 5 | C21: =J35 -> Dii) Awaiting nursing home placement or availability | J21: =VLOOKUP(C21,ReferenceSheet!$B$2:$C$12,2,0) -> 5 | Q21: Count | R21: 26 | S21: 5 | T21: 2018-06-01 | U21: =$C$11 -> (All) | V21: =IFERROR(IF(AND($T21>=$R$24,$T21<=$R$25),(GETPIVOTDATA("Value",Pivots!$A$6,"Month",$T21,"Delay reason",V$16)),""),0) ->  | W21: =IFERROR(IF(AND($T21>=$R$24,$T21<=$R$25),(GETPIVOTDATA("Value",Pivots!$A$6,"Month",$T21,"Delay reason",W$16)),""),0) ->  | X21: =IFERROR(IF(AND($T21>=$R$24,$T21<=$R$25),(GETPIVOTDATA("Value",Pivots!$A$6,"Month",$T21,"Delay reason",X$16)),""),0) ->  | Y21: =IFERROR(IF(AND($T21>=$R$24,$T21<=$R$25),(GETPIVOTDATA("Value",Pivots!$A$6,"Month",$T21,"Delay reason",Y$16)),""),0) ->  | Z21: =IFERROR(IF(AND($T21>=$R$24,$T21<=$R$25),(GETPIVOTDATA("Value",Pivots!$A$6,"Month",$T21,"Delay reason",Z$16)),""),0) ->  | AA21: =IFERROR(IF(AND($T21>=$R$24,$T21<=$R$25),(GETPIVOTDATA("Value",Pivots!$A$6,"Month",$T21,"Delay reason",AA$16)),""),0) ->  | AB21: =IFERROR(IF(AND($T21>=$R$24,$T21<=$R$25),(GETPIVOTDATA("Value",Pivots!$A$6,"Month",$T21,"Delay reason",AB$16)),""),0) ->  | AC21: =IFERROR(IF(AND($T21>=$R$24,$T21<=$R$25),(GETPIVOTDATA("Value",Pivots!$A$6,"Month",$T21,"Delay reason",AC$16)),""),0) ->  | AD21: =IFERROR(IF(AND($T21>=$R$24,$T21<=$R$25),(GETPIVOTDATA("Value",Pivots!$A$6,"Month",$T21,"Delay reason",AD$16)),""),0) ->  | AE21: =IFERROR(IF(AND($T21>=$R$24,$T21<=$R$25),(GETPIVOTDATA("Value",Pivots!$A$6,"Month",$T21,"Delay reason",AE$16)),""),0) ->  | AF21: =IFERROR(IF(AND($T21>=$R$24,$T21<=$R$25),(GETPIVOTDATA("Value",Pivots!$A$6,"Month",$T21,"Delay reason",AF$16)),""),0) ->  | AG21: 0
B22: 6 | C22: =J36 -> A) Awaiting completion of assessment | J22: =VLOOKUP(C22,ReferenceSheet!$B$2:$C$12,2,0) -> 1 | Q22: Height | R22: =R21-R17 -> 6 | S22: 6 | T22: 2018-07-01 | U22: (All) | V22: =IFERROR(IF(AND($T22>=$R$24,$T22<=$R$25),(GETPIVOTDATA("Value",Pivots!$A$6,"Month",$T22,"Delay reason",V$16)),""),0) ->  | W22: =IFERROR(IF(AND($T22>=$R$24,$T22<=$R$25),(GETPIVOTDATA("Value",Pivots!$A$6,"Month",$T22,"Delay reason",W$16)),""),0) ->  | X22: =IFERROR(IF(AND($T22>=$R$24,$T22<=$R$25),(GETPIVOTDATA("Value",Pivots!$A$6,"Month",$T22,"Delay reason",X$16)),""),0) ->  | Y22: =IFERROR(IF(AND($T22>=$R$24,$T22<=$R$25),(GETPIVOTDATA("Value",Pivots!$A$6,"Month",$T22,"Delay reason",Y$16)),""),0) ->  | Z22: =IFERROR(IF(AND($T22>=$R$24,$T22<=$R$25),(GETPIVOTDATA("Value",Pivots!$A$6,"Month",$T22,"Delay reason",Z$16)),""),0) ->  | AA22: =IFERROR(IF(AND($T22>=$R$24,$T22<=$R$25),(GETPIVOTDATA("Value",Pivots!$A$6,"Month",$T22,"Delay reason",AA$16)),""),0) ->  | AB22: =IFERROR(IF(AND($T22>=$R$24,$T22<=$R$25),(GETPIVOTDATA("Value",Pivots!$A$6,"Month",$T22,"Delay reason",AB$16)),""),0) ->  | AC22: =IFERROR(IF(AND($T22>=$R$24,$T22<=$R$25),(GETPIVOTDATA("Value",Pivots!$A$6,"Month",$T22,"Delay reason",AC$16)),""),0) ->  | AD22: =IFERROR(IF(AND($T22>=$R$24,$T22<=$R$25),(GETPIVOTDATA("Value",Pivots!$A$6,"Month",$T22,"Delay reason",AD$16)),""),0) ->  | AE22: =IFERROR(IF(AND($T22>=$R$24,$T22<=$R$25),(GETPIVOTDATA("Value",Pivots!$A$6,"Month",$T22,"Delay reason",AE$16)),""),0) ->  | AF22: =IFERROR(IF(AND($T22>=$R$24,$T22<=$R$25),(GETPIVOTDATA("Value",Pivots!$A$6,"Month",$T22,"Delay reason",AF$16)),""),0) ->  | AG22: 0
B23: 7 | C23: =HLOOKUP(J23,V15:AF42,2,0) -> E) Awaiting care package in own home | J23: 6 | S23: 7 | T23: 2018-08-01 | U23: (All) | V23: =IFERROR(IF(AND($T23>=$R$24,$T23<=$R$25),(GETPIVOTDATA("Value",Pivots!$A$6,"Month",$T23,"Delay reason",V$16)),""),0) ->  | W23: =IFERROR(IF(AND($T23>=$R$24,$T23<=$R$25),(GETPIVOTDATA("Value",Pivots!$A$6,"Month",$T23,"Delay reason",W$16)),""),0) ->  | X23: =IFERROR(IF(AND($T23>=$R$24,$T23<=$R$25),(GETPIVOTDATA("Value",Pivots!$A$6,"Month",$T23,"Delay reason",X$16)),""),0) ->  | Y23: =IFERROR(IF(AND($T23>=$R$24,$T23<=$R$25),(GETPIVOTDATA("Value",Pivots!$A$6,"Month",$T23,"Delay reason",Y$16)),""),0) ->  | Z23: =IFERROR(IF(AND($T23>=$R$24,$T23<=$R$25),(GETPIVOTDATA("Value",Pivots!$A$6,"Month",$T23,"Delay reason",Z$16)),""),0) ->  | AA23: =IFERROR(IF(AND($T23>=$R$24,$T23<=$R$25),(GETPIVOTDATA("Value",Pivots!$A$6,"Month",$T23,"Delay reason",AA$16)),""),0) ->  | AB23: =IFERROR(IF(AND($T23>=$R$24,$T23<=$R$25),(GETPIVOTDATA("Value",Pivots!$A$6,"Month",$T23,"Delay reason",AB$16)),""),0) ->  | AC23: =IFERROR(IF(AND($T23>=$R$24,$T23<=$R$25),(GETPIVOTDATA("Value",Pivots!$A$6,"Month",$T23,"Delay reason",AC$16)),""),0) ->  | AD23: =IFERROR(IF(AND($T23>=$R$24,$T23<=$R$25),(GETPIVOTDATA("Value",Pivots!$A$6,"Month",$T23,"Delay reason",AD$16)),""),0) ->  | AE23: =IFERROR(IF(AND($T23>=$R$24,$T23<=$R$25),(GETPIVOTDATA("Value",Pivots!$A$6,"Month",$T23,"Delay reason",AE$16)),""),0) ->  | AF23: =IFERROR(IF(AND($T23>=$R$24,$T23<=$R$25),(GETPIVOTDATA("Value",Pivots!$A$6,"Month",$T23,"Delay reason",AF$16)),""),0) ->  | AG23: 0
P24: =R17 -> 20 | Q24: Start date | R24: =VLOOKUP(P24,S17:T41,2,0) -> 2019-09-01 | S24: 8 | T24: 2018-09-01 | U24: (All) | V24: =IFERROR(IF(AND($T24>=$R$24,$T24<=$R$25),(GETPIVOTDATA("Value",Pivots!$A$6,"Month",$T24,"Delay reason",V$16)),""),0) ->  | W24: =IFERROR(IF(AND($T24>=$R$24,$T24<=$R$25),(GETPIVOTDATA("Value",Pivots!$A$6,"Month",$T24,"Delay reason",W$16)),""),0) ->  | X24: =IFERROR(IF(AND($T24>=$R$24,$T24<=$R$25),(GETPIVOTDATA("Value",Pivots!$A$6,"Month",$T24,"Delay reason",X$16)),""),0) ->  | Y24: =IFERROR(IF(AND($T24>=$R$24,$T24<=$R$25),(GETPIVOTDATA("Value",Pivots!$A$6,"Month",$T24,"Delay reason",Y$16)),""),0) ->  | Z24: =IFERROR(IF(AND($T24>=$R$24,$T24<=$R$25),(GETPIVOTDATA("Value",Pivots!$A$6,"Month",$T24,"Delay reason",Z$16)),""),0) ->  | AA24: =IFERROR(IF(AND($T24>=$R$24,$T24<=$R$25),(GETPIVOTDATA("Value",Pivots!$A$6,"Month",$T24,"Delay reason",AA$16)),""),0) ->  | AB24: =IFERROR(IF(AND($T24>=$R$24,$T24<=$R$25),(GETPIVOTDATA("Value",Pivots!$A$6,"Month",$T24,"Delay reason",AB$16)),""),0) ->  | AC24: =IFERROR(IF(AND($T24>=$R$24,$T24<=$R$25),(GETPIVOTDATA("Value",Pivots!$A$6,"Month",$T24,"Delay reason",AC$16)),""),0) ->  | AD24: =IFERROR(IF(AND($T24>=$R$24,$T24<=$R$25),(GETPIVOTDATA("Value",Pivots!$A$6,"Month",$T24,"Delay reason",AD$16)),""),0) ->  | AE24: =IFERROR(IF(AND($T24>=$R$24,$T24<=$R$25),(GETPIVOTDATA("Value",Pivots!$A$6,"Month",$T24,"Delay reason",AE$16)),""),0) ->  | AF24: =IFERROR(IF(AND($T24>=$R$24,$T24<=$R$25),(GETPIVOTDATA("Value",Pivots!$A$6,"Month",$T24,"Delay reason",AF$16)),""),0) ->  | AG24: 0
C25: Reasons 6 month summary pareto chart | P25: =IF((R18+R20)>25,25,(R18+R20)) -> 25 | Q25: End date | R25: =VLOOKUP(P25,S17:T41,2,0) -> 2020-02-01 | S25: 9 | T25: 2018-10-01 | U25: (All) | V25: =IFERROR(IF(AND($T25>=$R$24,$T25<=$R$25),(GETPIVOTDATA("Value",Pivots!$A$6,"Month",$T25,"Delay reason",V$16)),""),0) ->  | W25: =IFERROR(IF(AND($T25>=$R$24,$T25<=$R$25),(GETPIVOTDATA("Value",Pivots!$A$6,"Month",$T25,"Delay reason",W$16)),""),0) ->  | X25: =IFERROR(IF(AND($T25>=$R$24,$T25<=$R$25),(GETPIVOTDATA("Value",Pivots!$A$6,"Month",$T25,"Delay reason",X$16)),""),0) ->  | Y25: =IFERROR(IF(AND($T25>=$R$24,$T25<=$R$25),(GETPIVOTDATA("Value",Pivots!$A$6,"Month",$T25,"Delay reason",Y$16)),""),0) ->  | Z25: =IFERROR(IF(AND($T25>=$R$24,$T25<=$R$25),(GETPIVOTDATA("Value",Pivots!$A$6,"Month",$T25,"Delay reason",Z$16)),""),0) ->  | AA25: =IFERROR(IF(AND($T25>=$R$24,$T25<=$R$25),(GETPIVOTDATA("Value",Pivots!$A$6,"Month",$T25,"Delay reason",AA$16)),""),0) ->  | AB25: =IFERROR(IF(AND($T25>=$R$24,$T25<=$R$25),(GETPIVOTDATA("Value",Pivots!$A$6,"Month",$T25,"Delay reason",AB$16)),""),0) ->  | AC25: =IFERROR(IF(AND($T25>=$R$24,$T25<=$R$25),(GETPIVOTDATA("Value",Pivots!$A$6,"Month",$T25,"Delay reason",AC$16)),""),0) ->  | AD25: =IFERROR(IF(AND($T25>=$R$24,$T25<=$R$25),(GETPIVOTDATA("Value",Pivots!$A$6,"Month",$T25,"Delay reason",AD$16)),""),0) ->  | AE25: =IFERROR(IF(AND($T25>=$R$24,$T25<=$R$25),(GETPIVOTDATA("Value",Pivots!$A$6,"Month",$T25,"Delay reason",AE$16)),""),0) ->  | AF25: =IFERROR(IF(AND($T25>=$R$24,$T25<=$R$25),(GETPIVOTDATA("Value",Pivots!$A$6,"Month",$T25,"Delay reason",AF$16)),""),0) ->  | AG25: 0
S26: 10 | T26: 2018-11-01 | U26: (All) | V26: =IFERROR(IF(AND($T26>=$R$24,$T26<=$R$25),(GETPIVOTDATA("Value",Pivots!$A$6,"Month",$T26,"Delay reason",V$16)),""),0) ->  | W26: =IFERROR(IF(AND($T26>=$R$24,$T26<=$R$25),(GETPIVOTDATA("Value",Pivots!$A$6,"Month",$T26,"Delay reason",W$16)),""),0) ->  | X26: =IFERROR(IF(AND($T26>=$R$24,$T26<=$R$25),(GETPIVOTDATA("Value",Pivots!$A$6,"Month",$T26,"Delay reason",X$16)),""),0) ->  | Y26: =IFERROR(IF(AND($T26>=$R$24,$T26<=$R$25),(GETPIVOTDATA("Value",Pivots!$A$6,"Month",$T26,"Delay reason",Y$16)),""),0) ->  | Z26: =IFERROR(IF(AND($T26>=$R$24,$T26<=$R$25),(GETPIVOTDATA("Value",Pivots!$A$6,"Month",$T26,"Delay reason",Z$16)),""),0) ->  | AA26: =IFERROR(IF(AND($T26>=$R$24,$T26<=$R$25),(GETPIVOTDATA("Value",Pivots!$A$6,"Month",$T26,"Delay reason",AA$16)),""),0) ->  | AB26: =IFERROR(IF(AND($T26>=$R$24,$T26<=$R$25),(GETPIVOTDATA("Value",Pivots!$A$6,"Month",$T26,"Delay reason",AB$16)),""),0) ->  | AC26: =IFERROR(IF(AND($T26>=$R$24,$T26<=$R$25),(GETPIVOTDATA("Value",Pivots!$A$6,"Month",$T26,"Delay reason",AC$16)),""),0) ->  | AD26: =IFERROR(IF(AND($T26>=$R$24,$T26<=$R$25),(GETPIVOTDATA("Value",Pivots!$A$6,"Month",$T26,"Delay reason",AD$16)),""),0) ->  | AE26: =IFERROR(IF(AND($T26>=$R$24,$T26<=$R$25),(GETPIVOTDATA("Value",Pivots!$A$6,"Month",$T26,"Delay reason",AE$16)),""),0) ->  | AF26: =IFERROR(IF(AND($T26>=$R$24,$T26<=$R$25),(GETPIVOTDATA("Value",Pivots!$A$6,"Month",$T26,"Delay reason",AF$16)),""),0) ->  | AG26: 0
S27: 11 | T27: 2018-12-01 | U27: (All) | V27: =IFERROR(IF(AND($T27>=$R$24,$T27<=$R$25),(GETPIVOTDATA("Value",Pivots!$A$6,"Month",$T27,"Delay reason",V$16)),""),0) ->  | W27: =IFERROR(IF(AND($T27>=$R$24,$T27<=$R$25),(GETPIVOTDATA("Value",Pivots!$A$6,"Month",$T27,"Delay reason",W$16)),""),0) ->  | X27: =IFERROR(IF(AND($T27>=$R$24,$T27<=$R$25),(GETPIVOTDATA("Value",Pivots!$A$6,"Month",$T27,"Delay reason",X$16)),""),0) ->  | Y27: =IFERROR(IF(AND($T27>=$R$24,$T27<=$R$25),(GETPIVOTDATA("Value",Pivots!$A$6,"Month",$T27,"Delay reason",Y$16)),""),0) ->  | Z27: =IFERROR(IF(AND($T27>=$R$24,$T27<=$R$25),(GETPIVOTDATA("Value",Pivots!$A$6,"Month",$T27,"Delay reason",Z$16)),""),0) ->  | AA27: =IFERROR(IF(AND($T27>=$R$24,$T27<=$R$25),(GETPIVOTDATA("Value",Pivots!$A$6,"Month",$T27,"Delay reason",AA$16)),""),0) ->  | AB27: =IFERROR(IF(AND($T27>=$R$24,$T27<=$R$25),(GETPIVOTDATA("Value",Pivots!$A$6,"Month",$T27,"Delay reason",AB$16)),""),0) ->  | AC27: =IFERROR(IF(AND($T27>=$R$24,$T27<=$R$25),(GETPIVOTDATA("Value",Pivots!$A$6,"Month",$T27,"Delay reason",AC$16)),""),0) ->  | AD27: =IFERROR(IF(AND($T27>=$R$24,$T27<=$R$25),(GETPIVOTDATA("Value",Pivots!$A$6,"Month",$T27,"Delay reason",AD$16)),""),0) ->  | AE27: =IFERROR(IF(AND($T27>=$R$24,$T27<=$R$25),(GETPIVOTDATA("Value",Pivots!$A$6,"Month",$T27,"Delay reason",AE$16)),""),0) ->  | AF27: =IFERROR(IF(AND($T27>=$R$24,$T27<=$R$25),(GETPIVOTDATA("Value",Pivots!$A$6,"Month",$T27,"Delay reason",AF$16)),""),0) ->  | AG27: 0
S28: 12 | T28: 2019-01-01 | U28: (All) | V28: =IFERROR(IF(AND($T28>=$R$24,$T28<=$R$25),(GETPIVOTDATA("Value",Pivots!$A$6,"Month",$T28,"Delay reason",V$16)),""),0) ->  | W28: =IFERROR(IF(AND($T28>=$R$24,$T28<=$R$25),(GETPIVOTDATA("Value",Pivots!$A$6,"Month",$T28,"Delay reason",W$16)),""),0) ->  | X28: =IFERROR(IF(AND($T28>=$R$24,$T28<=$R$25),(GETPIVOTDATA("Value",Pivots!$A$6,"Month",$T28,"Delay reason",X$16)),""),0) ->  | Y28: =IFERROR(IF(AND($T28>=$R$24,$T28<=$R$25),(GETPIVOTDATA("Value",Pivots!$A$6,"Month",$T28,"Delay reason",Y$16)),""),0) ->  | Z28: =IFERROR(IF(AND($T28>=$R$24,$T28<=$R$25),(GETPIVOTDATA("Value",Pivots!$A$6,"Month",$T28,"Delay reason",Z$16)),""),0) ->  | AA28: =IFERROR(IF(AND($T28>=$R$24,$T28<=$R$25),(GETPIVOTDATA("Value",Pivots!$A$6,"Month",$T28,"Delay reason",AA$16)),""),0) ->  | AB28: =IFERROR(IF(AND($T28>=$R$24,$T28<=$R$25),(GETPIVOTDATA("Value",Pivots!$A$6,"Month",$T28,"Delay reason",AB$16)),""),0) ->  | AC28: =IFERROR(IF(AND($T28>=$R$24,$T28<=$R$25),(GETPIVOTDATA("Value",Pivots!$A$6,"Month",$T28,"Delay reason",AC$16)),""),0) ->  | AD28: =IFERROR(IF(AND($T28>=$R$24,$T28<=$R$25),(GETPIVOTDATA("Value",Pivots!$A$6,"Month",$T28,"Delay reason",AD$16)),""),0) ->  | AE28: =IFERROR(IF(AND($T28>=$R$24,$T28<=$R$25),(GETPIVOTDATA("Value",Pivots!$A$6,"Month",$T28,"Delay reason",AE$16)),""),0) ->  | AF28: =IFERROR(IF(AND($T28>=$R$24,$T28<=$R$25),(GETPIVOTDATA("Value",Pivots!$A$6,"Month",$T28,"Delay reason",AF$16)),""),0) ->  | AG28: 0
S29: 13 | T29: 2019-02-01 | U29: (All) | V29: =IFERROR(IF(AND($T29>=$R$24,$T29<=$R$25),(GETPIVOTDATA("Value",Pivots!$A$6,"Month",$T29,"Delay reason",V$16)),""),0) ->  | W29: =IFERROR(IF(AND($T29>=$R$24,$T29<=$R$25),(GETPIVOTDATA("Value",Pivots!$A$6,"Month",$T29,"Delay reason",W$16)),""),0) ->  | X29: =IFERROR(IF(AND($T29>=$R$24,$T29<=$R$25),(GETPIVOTDATA("Value",Pivots!$A$6,"Month",$T29,"Delay reason",X$16)),""),0) ->  | Y29: =IFERROR(IF(AND($T29>=$R$24,$T29<=$R$25),(GETPIVOTDATA("Value",Pivots!$A$6,"Month",$T29,"Delay reason",Y$16)),""),0) ->  | Z29: =IFERROR(IF(AND($T29>=$R$24,$T29<=$R$25),(GETPIVOTDATA("Value",Pivots!$A$6,"Month",$T29,"Delay reason",Z$16)),""),0) ->  | AA29: =IFERROR(IF(AND($T29>=$R$24,$T29<=$R$25),(GETPIVOTDATA("Value",Pivots!$A$6,"Month",$T29,"Delay reason",AA$16)),""),0) ->  | AB29: =IFERROR(IF(AND($T29>=$R$24,$T29<=$R$25),(GETPIVOTDATA("Value",Pivots!$A$6,"Month",$T29,"Delay reason",AB$16)),""),0) ->  | AC29: =IFERROR(IF(AND($T29>=$R$24,$T29<=$R$25),(GETPIVOTDATA("Value",Pivots!$A$6,"Month",$T29,"Delay reason",AC$16)),""),0) ->  | AD29: =IFERROR(IF(AND($T29>=$R$24,$T29<=$R$25),(GETPIVOTDATA("Value",Pivots!$A$6,"Month",$T29,"Delay reason",AD$16)),""),0) ->  | AE29: =IFERROR(IF(AND($T29>=$R$24,$T29<=$R$25),(GETPIVOTDATA("Value",Pivots!$A$6,"Month",$T29,"Delay reason",AE$16)),""),0) ->  | AF29: =IFERROR(IF(AND($T29>=$R$24,$T29<=$R$25),(GETPIVOTDATA("Value",Pivots!$A$6,"Month",$T29,"Delay reason",AF$16)),""),0) ->  | AG29: 0
B30: =C17 -> (All) Delayed Reasons | S30: 14 | T30: 2019-03-01 | U30: (All) | V30: =IFERROR(IF(AND($T30>=$R$24,$T30<=$R$25),(GETPIVOTDATA("Value",Pivots!$A$6,"Month",$T30,"Delay reason",V$16)),""),0) ->  | W30: =IFERROR(IF(AND($T30>=$R$24,$T30<=$R$25),(GETPIVOTDATA("Value",Pivots!$A$6,"Month",$T30,"Delay reason",W$16)),""),0) ->  | X30: =IFERROR(IF(AND($T30>=$R$24,$T30<=$R$25),(GETPIVOTDATA("Value",Pivots!$A$6,"Month",$T30,"Delay reason",X$16)),""),0) ->  | Y30: =IFERROR(IF(AND($T30>=$R$24,$T30<=$R$25),(GETPIVOTDATA("Value",Pivots!$A$6,"Month",$T30,"Delay reason",Y$16)),""),0) ->  | Z30: =IFERROR(IF(AND($T30>=$R$24,$T30<=$R$25),(GETPIVOTDATA("Value",Pivots!$A$6,"Month",$T30,"Delay reason",Z$16)),""),0) ->  | AA30: =IFERROR(IF(AND($T30>=$R$24,$T30<=$R$25),(GETPIVOTDATA("Value",Pivots!$A$6,"Month",$T30,"Delay reason",AA$16)),""),0) ->  | AB30: =IFERROR(IF(AND($T30>=$R$24,$T30<=$R$25),(GETPIVOTDATA("Value",Pivots!$A$6,"Month",$T30,"Delay reason",AB$16)),""),0) ->  | AC30: =IFERROR(IF(AND($T30>=$R$24,$T30<=$R$25),(GETPIVOTDATA("Value",Pivots!$A$6,"Month",$T30,"Delay reason",AC$16)),""),0) ->  | AD30: =IFERROR(IF(AND($T30>=$R$24,$T30<=$R$25),(GETPIVOTDATA("Value",Pivots!$A$6,"Month",$T30,"Delay reason",AD$16)),""),0) ->  | AE30: =IFERROR(IF(AND($T30>=$R$24,$T30<=$R$25),(GETPIVOTDATA("Value",Pivots!$A$6,"Month",$T30,"Delay reason",AE$16)),""),0) ->  | AF30: =IFERROR(IF(AND($T30>=$R$24,$T30<=$R$25),(GETPIVOTDATA("Value",Pivots!$A$6,"Month",$T30,"Delay reason",AF$16)),""),0) ->  | AG30: 0
B31: 1 | C31: =ROW() -> 31 | F31: Table to rank data | Q31: Chart set up | S31: 15 | T31: 2019-04-01 | U31: (All) | V31: =IFERROR(IF(AND($T31>=$R$24,$T31<=$R$25),(GETPIVOTDATA("Value",Pivots!$A$6,"Month",$T31,"Delay reason",V$16)),""),0) ->  | W31: =IFERROR(IF(AND($T31>=$R$24,$T31<=$R$25),(GETPIVOTDATA("Value",Pivots!$A$6,"Month",$T31,"Delay reason",W$16)),""),0) ->  | X31: =IFERROR(IF(AND($T31>=$R$24,$T31<=$R$25),(GETPIVOTDATA("Value",Pivots!$A$6,"Month",$T31,"Delay reason",X$16)),""),0) ->  | Y31: =IFERROR(IF(AND($T31>=$R$24,$T31<=$R$25),(GETPIVOTDATA("Value",Pivots!$A$6,"Month",$T31,"Delay reason",Y$16)),""),0) ->  | Z31: =IFERROR(IF(AND($T31>=$R$24,$T31<=$R$25),(GETPIVOTDATA("Value",Pivots!$A$6,"Month",$T31,"Delay reason",Z$16)),""),0) ->  | AA31: =IFERROR(IF(AND($T31>=$R$24,$T31<=$R$25),(GETPIVOTDATA("Value",Pivots!$A$6,"Month",$T31,"Delay reason",AA$16)),""),0) ->  | AB31: =IFERROR(IF(AND($T31>=$R$24,$T31<=$R$25),(GETPIVOTDATA("Value",Pivots!$A$6,"Month",$T31,"Delay reason",AB$16)),""),0) ->  | AC31: =IFERROR(IF(AND($T31>=$R$24,$T31<=$R$25),(GETPIVOTDATA("Value",Pivots!$A$6,"Month",$T31,"Delay reason",AC$16)),""),0) ->  | AD31: =IFERROR(IF(AND($T31>=$R$24,$T31<=$R$25),(GETPIVOTDATA("Value",Pivots!$A$6,"Month",$T31,"Delay reason",AD$16)),""),0) ->  | AE31: =IFERROR(IF(AND($T31>=$R$24,$T31<=$R$25),(GETPIVOTDATA("Value",Pivots!$A$6,"Month",$T31,"Delay reason",AE$16)),""),0) ->  | AF31: =IFERROR(IF(AND($T31>=$R$24,$T31<=$R$25),(GETPIVOTDATA("Value",Pivots!$A$6,"Month",$T31,"Delay reason",AF$16)),""),0) ->  | AG31: 0
B32: Month | F32: Summed days by action | G32: equal rank | H32: Adjusted score | I32: Final Rank | J32: Ranked Actions | K32: ranked delay | N32: Cuml total | O32: Culm % | S32: 16 | T32: 2019-05-01 | U32: (All) | V32: =IFERROR(IF(AND($T32>=$R$24,$T32<=$R$25),(GETPIVOTDATA("Value",Pivots!$A$6,"Month",$T32,"Delay reason",V$16)),""),0) ->  | W32: =IFERROR(IF(AND($T32>=$R$24,$T32<=$R$25),(GETPIVOTDATA("Value",Pivots!$A$6,"Month",$T32,"Delay reason",W$16)),""),0) ->  | X32: =IFERROR(IF(AND($T32>=$R$24,$T32<=$R$25),(GETPIVOTDATA("Value",Pivots!$A$6,"Month",$T32,"Delay reason",X$16)),""),0) ->  | Y32: =IFERROR(IF(AND($T32>=$R$24,$T32<=$R$25),(GETPIVOTDATA("Value",Pivots!$A$6,"Month",$T32,"Delay reason",Y$16)),""),0) ->  | Z32: =IFERROR(IF(AND($T32>=$R$24,$T32<=$R$25),(GETPIVOTDATA("Value",Pivots!$A$6,"Month",$T32,"Delay reason",Z$16)),""),0) ->  | AA32: =IFERROR(IF(AND($T32>=$R$24,$T32<=$R$25),(GETPIVOTDATA("Value",Pivots!$A$6,"Month",$T32,"Delay reason",AA$16)),""),0) ->  | AB32: =IFERROR(IF(AND($T32>=$R$24,$T32<=$R$25),(GETPIVOTDATA("Value",Pivots!$A$6,"Month",$T32,"Delay reason",AB$16)),""),0) ->  | AC32: =IFERROR(IF(AND($T32>=$R$24,$T32<=$R$25),(GETPIVOTDATA("Value",Pivots!$A$6,"Month",$T32,"Delay reason",AC$16)),""),0) ->  | AD32: =IFERROR(IF(AND($T32>=$R$24,$T32<=$R$25),(GETPIVOTDATA("Value",Pivots!$A$6,"Month",$T32,"Delay reason",AD$16)),""),0) ->  | AE32: =IFERROR(IF(AND($T32>=$R$24,$T32<=$R$25),(GETPIVOTDATA("Value",Pivots!$A$6,"Month",$T32,"Delay reason",AE$16)),""),0) ->  | AF32: =IFERROR(IF(AND($T32>=$R$24,$T32<=$R$25),(GETPIVOTDATA("Value",Pivots!$A$6,"Month",$T32,"Delay reason",AF$16)),""),0) ->  | AG32: 0
B33: 1 | C33: A) Awaiting completion of assessment | D33: =HLOOKUP(C33,$V$16:$AF$42,27,0) -> 115600 | F33: 1 | G33: =COUNTIF($D$33:$D$43,$D33) -> 1 | H33: =IF(G33>1,D33+ROW()*0.001,D33) -> 115600 | I33: =RANK(H33,H$33:H$43) -> 4 | J33: =INDEX($C$33:$C$43,MATCH($F33,$I$33:$I$43,0)) -> E) Awaiting care package in own home | K33: =INDEX($D$33:$D$43,MATCH($F33,$I$33:$I$43,0)) -> 192356 | N33: =K33 -> 192356 | O33: =N33/$N$43 -> 0.2108618703 | Q33: Maximum | R33: =MAX(D33:D43) -> 192356 | S33: 17 | T33: 2019-06-01 | U33: (All) | V33: =IFERROR(IF(AND($T33>=$R$24,$T33<=$R$25),(GETPIVOTDATA("Value",Pivots!$A$6,"Month",$T33,"Delay reason",V$16)),""),0) ->  | W33: =IFERROR(IF(AND($T33>=$R$24,$T33<=$R$25),(GETPIVOTDATA("Value",Pivots!$A$6,"Month",$T33,"Delay reason",W$16)),""),0) ->  | X33: =IFERROR(IF(AND($T33>=$R$24,$T33<=$R$25),(GETPIVOTDATA("Value",Pivots!$A$6,"Month",$T33,"Delay reason",X$16)),""),0) ->  | Y33: =IFERROR(IF(AND($T33>=$R$24,$T33<=$R$25),(GETPIVOTDATA("Value",Pivots!$A$6,"Month",$T33,"Delay reason",Y$16)),""),0) ->  | Z33: =IFERROR(IF(AND($T33>=$R$24,$T33<=$R$25),(GETPIVOTDATA("Value",Pivots!$A$6,"Month",$T33,"Delay reason",Z$16)),""),0) ->  | AA33: =IFERROR(IF(AND($T33>=$R$24,$T33<=$R$25),(GETPIVOTDATA("Value",Pivots!$A$6,"Month",$T33,"Delay reason",AA$16)),""),0) ->  | AB33: =IFERROR(IF(AND($T33>=$R$24,$T33<=$R$25),(GETPIVOTDATA("Value",Pivots!$A$6,"Month",$T33,"Delay reason",AB$16)),""),0) ->  | AC33: =IFERROR(IF(AND($T33>=$R$24,$T33<=$R$25),(GETPIVOTDATA("Value",Pivots!$A$6,"Month",$T33,"Delay reason",AC$16)),""),0) ->  | AD33: =IFERROR(IF(AND($T33>=$R$24,$T33<=$R$25),(GETPIVOTDATA("Value",Pivots!$A$6,"Month",$T33,"Delay reason",AD$16)),""),0) ->  | AE33: =IFERROR(IF(AND($T33>=$R$24,$T33<=$R$25),(GETPIVOTDATA("Value",Pivots!$A$6,"Month",$T33,"Delay reason",AE$16)),""),0) ->  | AF33: =IFERROR(IF(AND($T33>=$R$24,$T33<=$R$25),(GETPIVOTDATA("Value",Pivots!$A$6,"Month",$T33,"Delay reason",AF$16)),""),0) ->  | AG33: 0
B34: 2 | C34: B) Awaiting public funding | D34: =HLOOKUP(C34,$V$16:$AF$42,27,0) -> 24943 | F34: 2 | G34: =COUNTIF($D$33:$D$43,$D34) -> 1 | H34: =IF(G34>1,D34+ROW()*0.001,D34) -> 24943 | I34: =RANK(H34,H$33:H$43) -> 8 | J34: =INDEX($C$33:$C$43,MATCH($F34,$I$33:$I$43,0)) -> C) Awaiting further non-acute NHS care (including intermediate care, rehabilitation services etc) | K34: =INDEX($D$33:$D$43,MATCH($F34,$I$33:$I$43,0)) -> 160199 | N34: =N33+K34 -> 352555 | O34: =N34/$N$43 -> 0.3864730328 | Q34: Max Y axis | R34: =ROUNDUP(R33/10000,0)*10000 -> 200000 | S34: 18 | T34: 2019-07-01 | U34: (All) | V34: =IFERROR(IF(AND($T34>=$R$24,$T34<=$R$25),(GETPIVOTDATA("Value",Pivots!$A$6,"Month",$T34,"Delay reason",V$16)),""),0) ->  | W34: =IFERROR(IF(AND($T34>=$R$24,$T34<=$R$25),(GETPIVOTDATA("Value",Pivots!$A$6,"Month",$T34,"Delay reason",W$16)),""),0) ->  | X34: =IFERROR(IF(AND($T34>=$R$24,$T34<=$R$25),(GETPIVOTDATA("Value",Pivots!$A$6,"Month",$T34,"Delay reason",X$16)),""),0) ->  | Y34: =IFERROR(IF(AND($T34>=$R$24,$T34<=$R$25),(GETPIVOTDATA("Value",Pivots!$A$6,"Month",$T34,"Delay reason",Y$16)),""),0) ->  | Z34: =IFERROR(IF(AND($T34>=$R$24,$T34<=$R$25),(GETPIVOTDATA("Value",Pivots!$A$6,"Month",$T34,"Delay reason",Z$16)),""),0) ->  | AA34: =IFERROR(IF(AND($T34>=$R$24,$T34<=$R$25),(GETPIVOTDATA("Value",Pivots!$A$6,"Month",$T34,"Delay reason",AA$16)),""),0) ->  | AB34: =IFERROR(IF(AND($T34>=$R$24,$T34<=$R$25),(GETPIVOTDATA("Value",Pivots!$A$6,"Month",$T34,"Delay reason",AB$16)),""),0) ->  | AC34: =IFERROR(IF(AND($T34>=$R$24,$T34<=$R$25),(GETPIVOTDATA("Value",Pivots!$A$6,"Month",$T34,"Delay reason",AC$16)),""),0) ->  | AD34: =IFERROR(IF(AND($T34>=$R$24,$T34<=$R$25),(GETPIVOTDATA("Value",Pivots!$A$6,"Month",$T34,"Delay reason",AD$16)),""),0) ->  | AE34: =IFERROR(IF(AND($T34>=$R$24,$T34<=$R$25),(GETPIVOTDATA("Value",Pivots!$A$6,"Month",$T34,"Delay reason",AE$16)),""),0) ->  | AF34: =IFERROR(IF(AND($T34>=$R$24,$T34<=$R$25),(GETPIVOTDATA("Value",Pivots!$A$6,"Month",$T34,"Delay reason",AF$16)),""),0) ->  | AG34: 0
B35: 3 | C35: C) Awaiting further non-acute NHS care (including intermediate care, rehabilitation services etc) | D35: 160199 | F35: 3 | G35: 1 | H35: 160199 | I35: =RANK(H35,H$33:H$43) -> 2 | J35: Dii) Awaiting nursing home placement or availability | K35: 120966 | N35: =N34+K35 -> 473521 | O35: 0.5190767312 | Q35: interval | R35: =IF(MOD(R34/1000,5)=0,R34/5,IF(MOD(R34/1000,4)=0,R34/4,IF(MOD(R34/1000,6)=0,R34/6,IF(MOD(R34/1000,3)=0,R34/3,ROUNDUP(R34/1000/5,0)*1000)))) -> 40000 | S35: 19 | T35: 2019-08-01 | U35: (All) | V35: =IFERROR(IF(AND($T35>=$R$24,$T35<=$R$25),(GETPIVOTDATA("Value",Pivots!$A$6,"Month",$T35,"Delay reason",V$16)),""),0) ->  | W35: =IFERROR(IF(AND($T35>=$R$24,$T35<=$R$25),(GETPIVOTDATA("Value",Pivots!$A$6,"Month",$T35,"Delay reason",W$16)),""),0) ->  | X35: =IFERROR(IF(AND($T35>=$R$24,$T35<=$R$25),(GETPIVOTDATA("Value",Pivots!$A$6,"Month",$T35,"Delay reason",X$16)),""),0) ->  | Y35: =IFERROR(IF(AND($T35>=$R$24,$T35<=$R$25),(GETPIVOTDATA("Value",Pivots!$A$6,"Month",$T35,"Delay reason",Y$16)),""),0) ->  | Z35: =IFERROR(IF(AND($T35>=$R$24,$T35<=$R$25),(GETPIVOTDATA("Value",Pivots!$A$6,"Month",$T35,"Delay reason",Z$16)),""),0) ->  | AA35: =IFERROR(IF(AND($T35>=$R$24,$T35<=$R$25),(GETPIVOTDATA("Value",Pivots!$A$6,"Month",$T35,"Delay reason",AA$16)),""),0) ->  | AB35: =IFERROR(IF(AND($T35>=$R$24,$T35<=$R$25),(GETPIVOTDATA("Value",Pivots!$A$6,"Month",$T35,"Delay reason",AB$16)),""),0) ->  | AC35: =IFERROR(IF(AND($T35>=$R$24,$T35<=$R$25),(GETPIVOTDATA("Value",Pivots!$A$6,"Month",$T35,"Delay reason",AC$16)),""),0) ->  | AD35: =IFERROR(IF(AND($T35>=$R$24,$T35<=$R$25),(GETPIVOTDATA("Value",Pivots!$A$6,"Month",$T35,"Delay reason",AD$16)),""),0) ->  | AE35: =IFERROR(IF(AND($T35>=$R$24,$T35<=$R$25),(GETPIVOTDATA("Value",Pivots!$A$6,"Month",$T35,"Delay reason",AE$16)),""),0) ->  | AF35: =IFERROR(IF(AND($T35>=$R$24,$T35<=$R$25),(GETPIVOTDATA("Value",Pivots!$A$6,"Month",$T35,"Delay reason",AF$16)),""),0) ->  | AG35: 0
B36: 4 | C36: Di) Awaiting residential home placement or availability | D36: 108638 | F36: 4 | G36: 1 | H36: 108638 | I36: 5 | J36: A) Awaiting completion of assessment | K36: 115600 | N36: 589121 | O36: 0.6457981862 | S36: 20 | T36: 2019-09-01 | U36: (All) | V36: =IFERROR(IF(AND($T36>=$R$24,$T36<=$R$25),(GETPIVOTDATA("Value",Pivots!$A$6,"Month",$T36,"Delay reason",V$16)),""),0) -> 19611 | W36: =IFERROR(IF(AND($T36>=$R$24,$T36<=$R$25),(GETPIVOTDATA("Value",Pivots!$A$6,"Month",$T36,"Delay reason",W$16)),""),0) -> 4128 | X36: =IFERROR(IF(AND($T36>=$R$24,$T36<=$R$25),(GETPIVOTDATA("Value",Pivots!$A$6,"Month",$T36,"Delay reason",X$16)),""),0) -> 24587 | Y36: =IFERROR(IF(AND($T36>=$R$24,$T36<=$R$25),(GETPIVOTDATA("Value",Pivots!$A$6,"Month",$T36,"Delay reason",Y$16)),""),0) -> 17524 | Z36: =IFERROR(IF(AND($T36>=$R$24,$T36<=$R$25),(GETPIVOTDATA("Value",Pivots!$A$6,"Month",$T36,"Delay reason",Z$16)),""),0) -> 19644 | AA36: =IFERROR(IF(AND($T36>=$R$24,$T36<=$R$25),(GETPIVOTDATA("Value",Pivots!$A$6,"Month",$T36,"Delay reason",AA$16)),""),0) -> 32025 | AB36: =IFERROR(IF(AND($T36>=$R$24,$T36<=$R$25),(GETPIVOTDATA("Value",Pivots!$A$6,"Month",$T36,"Delay reason",AB$16)),""),0) -> 4171 | AC36: =IFERROR(IF(AND($T36>=$R$24,$T36<=$R$25),(GETPIVOTDATA("Value",Pivots!$A$6,"Month",$T36,"Delay reason",AC$16)),""),0) -> 18613 | AD36: =IFERROR(IF(AND($T36>=$R$24,$T36<=$R$25),(GETPIVOTDATA("Value",Pivots!$A$6,"Month",$T36,"Delay reason",AD$16)),""),0) -> 868 | AE36: =IFERROR(IF(AND($T36>=$R$24,$T36<=$R$25),(GETPIVOTDATA("Value",Pivots!$A$6,"Month",$T36,"Delay reason",AE$16)),""),0) -> 6222 | AF36: =IFERROR(IF(AND($T36>=$R$24,$T36<=$R$25),(GETPIVOTDATA("Value",Pivots!$A$6,"Month",$T36,"Delay reason",AF$16)),""),0) -> 1991 | AG36: 11
B37: 5 | C37: Dii) Awaiting nursing home placement or availability | D37: 120966 | F37: 5 | G37: 1 | H37: 120966 | I37: 3 | J37: Di) Awaiting residential home placement or availability | K37: 108638 | N37: 697759 | O37: 0.7648878526 | S37: 21 | T37: 2019-10-01 | U37: (All) | V37: =IFERROR(IF(AND($T37>=$R$24,$T37<=$R$25),(GETPIVOTDATA("Value",Pivots!$A$6,"Month",$T37,"Delay reason",V$16)),""),0) -> 18437 | W37: =IFERROR(IF(AND($T37>=$R$24,$T37<=$R$25),(GETPIVOTDATA("Value",Pivots!$A$6,"Month",$T37,"Delay reason",W$16)),""),0) -> 4199 | X37: =IFERROR(IF(AND($T37>=$R$24,$T37<=$R$25),(GETPIVOTDATA("Value",Pivots!$A$6,"Month",$T37,"Delay reason",X$16)),""),0) -> 26023 | Y37: =IFERROR(IF(AND($T37>=$R$24,$T37<=$R$25),(GETPIVOTDATA("Value",Pivots!$A$6,"Month",$T37,"Delay reason",Y$16)),""),0) -> 18371 | Z37: =IFERROR(IF(AND($T37>=$R$24,$T37<=$R$25),(GETPIVOTDATA("Value",Pivots!$A$6,"Month",$T37,"Delay reason",Z$16)),""),0) -> 21881 | AA37: =IFERROR(IF(AND($T37>=$R$24,$T37<=$R$25),(GETPIVOTDATA("Value",Pivots!$A$6,"Month",$T37,"Delay reason",AA$16)),""),0) -> 31643 | AB37: =IFERROR(IF(AND($T37>=$R$24,$T37<=$R$25),(GETPIVOTDATA("Value",Pivots!$A$6,"Month",$T37,"Delay reason",AB$16)),""),0) -> 4557 | AC37: =IFERROR(IF(AND($T37>=$R$24,$T37<=$R$25),(GETPIVOTDATA("Value",Pivots!$A$6,"Month",$T37,"Delay reason",AC$16)),""),0) -> 17896 | AD37: =IFERROR(IF(AND($T37>=$R$24,$T37<=$R$25),(GETPIVOTDATA("Value",Pivots!$A$6,"Month",$T37,"Delay reason",AD$16)),""),0) -> 1174 | AE37: =IFERROR(IF(AND($T37>=$R$24,$T37<=$R$25),(GETPIVOTDATA("Value",Pivots!$A$6,"Month",$T37,"Delay reason",AE$16)),""),0) -> 6641 | AF37: =IFERROR(IF(AND($T37>=$R$24,$T37<=$R$25),(GETPIVOTDATA("Value",Pivots!$A$6,"Month",$T37,"Delay reason",AF$16)),""),0) -> 1700 | AG37: 11
B38: 6 | C38: E) Awaiting care package in own home | D38: 192356 | F38: 6 | G38: 1 | H38: 192356 | I38: =RANK(H38,H$33:H$43) -> 1 | J38: G) Patient or family choice | K38: 103619 | N38: 801378 | O38: 0.8784756593 | S38: 22 | T38: 2019-11-01 | U38: (All) | V38: =IFERROR(IF(AND($T38>=$R$24,$T38<=$R$25),(GETPIVOTDATA("Value",Pivots!$A$6,"Month",$T38,"Delay reason",V$16)),""),0) -> 18022 | W38: =IFERROR(IF(AND($T38>=$R$24,$T38<=$R$25),(GETPIVOTDATA("Value",Pivots!$A$6,"Month",$T38,"Delay reason",W$16)),""),0) -> 4517 | X38: =IFERROR(IF(AND($T38>=$R$24,$T38<=$R$25),(GETPIVOTDATA("Value",Pivots!$A$6,"Month",$T38,"Delay reason",X$16)),""),0) -> 25343 | Y38: =IFERROR(IF(AND($T38>=$R$24,$T38<=$R$25),(GETPIVOTDATA("Value",Pivots!$A$6,"Month",$T38,"Delay reason",Y$16)),""),0) -> 17214 | Z38: =IFERROR(IF(AND($T38>=$R$24,$T38<=$R$25),(GETPIVOTDATA("Value",Pivots!$A$6,"Month",$T38,"Delay reason",Z$16)),""),0) -> 20004 | AA38: =IFERROR(IF(AND($T38>=$R$24,$T38<=$R$25),(GETPIVOTDATA("Value",Pivots!$A$6,"Month",$T38,"Delay reason",AA$16)),""),0) -> 30375 | AB38: =IFERROR(IF(AND($T38>=$R$24,$T38<=$R$25),(GETPIVOTDATA("Value",Pivots!$A$6,"Month",$T38,"Delay reason",AB$16)),""),0) -> 4033 | AC38: =IFERROR(IF(AND($T38>=$R$24,$T38<=$R$25),(GETPIVOTDATA("Value",Pivots!$A$6,"Month",$T38,"Delay reason",AC$16)),""),0) -> 16536 | AD38: =IFERROR(IF(AND($T38>=$R$24,$T38<=$R$25),(GETPIVOTDATA("Value",Pivots!$A$6,"Month",$T38,"Delay reason",AD$16)),""),0) -> 1299 | AE38: =IFERROR(IF(AND($T38>=$R$24,$T38<=$R$25),(GETPIVOTDATA("Value",Pivots!$A$6,"Month",$T38,"Delay reason",AE$16)),""),0) -> 6410 | AF38: =IFERROR(IF(AND($T38>=$R$24,$T38<=$R$25),(GETPIVOTDATA("Value",Pivots!$A$6,"Month",$T38,"Delay reason",AF$16)),""),0) -> 2123 | AG38: 11
B39: 7 | C39: F) Awaiting community equipment and adaptations | D39: 24754 | F39: 7 | G39: 1 | H39: 24754 | I39: 9 | J39: I) Housing – patients not covered by NHS Care Act | K39: 42074 | N39: 843452 | O39: 0.9245974456 | S39: 23 | T39: 2019-12-01 | U39: (All) | V39: =IFERROR(IF(AND($T39>=$R$24,$T39<=$R$25),(GETPIVOTDATA("Value",Pivots!$A$6,"Month",$T39,"Delay reason",V$16)),""),0) -> 18399 | W39: =IFERROR(IF(AND($T39>=$R$24,$T39<=$R$25),(GETPIVOTDATA("Value",Pivots!$A$6,"Month",$T39,"Delay reason",W$16)),""),0) -> 3753 | X39: =IFERROR(IF(AND($T39>=$R$24,$T39<=$R$25),(GETPIVOTDATA("Value",Pivots!$A$6,"Month",$T39,"Delay reason",X$16)),""),0) -> 25704 | Y39: =IFERROR(IF(AND($T39>=$R$24,$T39<=$R$25),(GETPIVOTDATA("Value",Pivots!$A$6,"Month",$T39,"Delay reason",Y$16)),""),0) -> 18374 | Z39: =IFERROR(IF(AND($T39>=$R$24,$T39<=$R$25),(GETPIVOTDATA("Value",Pivots!$A$6,"Month",$T39,"Delay reason",Z$16)),""),0) -> 19344 | AA39: =IFERROR(IF(AND($T39>=$R$24,$T39<=$R$25),(GETPIVOTDATA("Value",Pivots!$A$6,"Month",$T39,"Delay reason",AA$16)),""),0) -> 31393 | AB39: =IFERROR(IF(AND($T39>=$R$24,$T39<=$R$25),(GETPIVOTDATA("Value",Pivots!$A$6,"Month",$T39,"Delay reason",AB$16)),""),0) -> 3925 | AC39: =IFERROR(IF(AND($T39>=$R$24,$T39<=$R$25),(GETPIVOTDATA("Value",Pivots!$A$6,"Month",$T39,"Delay reason",AC$16)),""),0) -> 16654 | AD39: =IFERROR(IF(AND($T39>=$R$24,$T39<=$R$25),(GETPIVOTDATA("Value",Pivots!$A$6,"Month",$T39,"Delay reason",AD$16)),""),0) -> 1235 | AE39: =IFERROR(IF(AND($T39>=$R$24,$T39<=$R$25),(GETPIVOTDATA("Value",Pivots!$A$6,"Month",$T39,"Delay reason",AE$16)),""),0) -> 7078 | AF39: =IFERROR(IF(AND($T39>=$R$24,$T39<=$R$25),(GETPIVOTDATA("Value",Pivots!$A$6,"Month",$T39,"Delay reason",AF$16)),""),0) -> 2242 | AG39: 11
B40: 8 | C40: G) Patient or family choice | D40: 103619 | F40: 8 | G40: 1 | H40: 103619 | I40: 6 | J40: B) Awaiting public funding | K40: 24943 | N40: 868395 | O40: 0.9519401208 | S40: 24 | T40: 2020-01-01 | U40: (All) | V40: =IFERROR(IF(AND($T40>=$R$24,$T40<=$R$25),(GETPIVOTDATA("Value",Pivots!$A$6,"Month",$T40,"Delay reason",V$16)),""),0) -> 20917 | W40: =IFERROR(IF(AND($T40>=$R$24,$T40<=$R$25),(GETPIVOTDATA("Value",Pivots!$A$6,"Month",$T40,"Delay reason",W$16)),""),0) -> 4228 | X40: =IFERROR(IF(AND($T40>=$R$24,$T40<=$R$25),(GETPIVOTDATA("Value",Pivots!$A$6,"Month",$T40,"Delay reason",X$16)),""),0) -> 29825 | Y40: =IFERROR(IF(AND($T40>=$R$24,$T40<=$R$25),(GETPIVOTDATA("Value",Pivots!$A$6,"Month",$T40,"Delay reason",Y$16)),""),0) -> 19327 | Z40: =IFERROR(IF(AND($T40>=$R$24,$T40<=$R$25),(GETPIVOTDATA("Value",Pivots!$A$6,"Month",$T40,"Delay reason",Z$16)),""),0) -> 19641 | AA40: =IFERROR(IF(AND($T40>=$R$24,$T40<=$R$25),(GETPIVOTDATA("Value",Pivots!$A$6,"Month",$T40,"Delay reason",AA$16)),""),0) -> 34456 | AB40: =IFERROR(IF(AND($T40>=$R$24,$T40<=$R$25),(GETPIVOTDATA("Value",Pivots!$A$6,"Month",$T40,"Delay reason",AB$16)),""),0) -> 4091 | AC40: =IFERROR(IF(AND($T40>=$R$24,$T40<=$R$25),(GETPIVOTDATA("Value",Pivots!$A$6,"Month",$T40,"Delay reason",AC$16)),""),0) -> 17052 | AD40: =IFERROR(IF(AND($T40>=$R$24,$T40<=$R$25),(GETPIVOTDATA("Value",Pivots!$A$6,"Month",$T40,"Delay reason",AD$16)),""),0) -> 1191 | AE40: =IFERROR(IF(AND($T40>=$R$24,$T40<=$R$25),(GETPIVOTDATA("Value",Pivots!$A$6,"Month",$T40,"Delay reason",AE$16)),""),0) -> 7696 | AF40: =IFERROR(IF(AND($T40>=$R$24,$T40<=$R$25),(GETPIVOTDATA("Value",Pivots!$A$6,"Month",$T40,"Delay reason",AF$16)),""),0) -> 2213 | AG40: 11
B41: 9 | C41: H) Disputes | D41: 6811 | F41: 9 | G41: 1 | H41: 6811 | I41: 11 | J41: F) Awaiting community equipment and adaptations | K41: 24754 | N41: 893149 | O41: 0.979075613 | S41: 25 | T41: 2020-02-01 | U41: =$C$11 -> (All) | V41: =IFERROR(IF(AND($T41>=$R$24,$T41<=$R$25),(GETPIVOTDATA("Value",Pivots!$A$6,"Month",$T41,"Delay reason",V$16)),""),0) -> 20214 | W41: =IFERROR(IF(AND($T41>=$R$24,$T41<=$R$25),(GETPIVOTDATA("Value",Pivots!$A$6,"Month",$T41,"Delay reason",W$16)),""),0) -> 4118 | X41: =IFERROR(IF(AND($T41>=$R$24,$T41<=$R$25),(GETPIVOTDATA("Value",Pivots!$A$6,"Month",$T41,"Delay reason",X$16)),""),0) -> 28717 | Y41: =IFERROR(IF(AND($T41>=$R$24,$T41<=$R$25),(GETPIVOTDATA("Value",Pivots!$A$6,"Month",$T41,"Delay reason",Y$16)),""),0) -> 17828 | Z41: =IFERROR(IF(AND($T41>=$R$24,$T41<=$R$25),(GETPIVOTDATA("Value",Pivots!$A$6,"Month",$T41,"Delay reason",Z$16)),""),0) -> 20452 | AA41: =IFERROR(IF(AND($T41>=$R$24,$T41<=$R$25),(GETPIVOTDATA("Value",Pivots!$A$6,"Month",$T41,"Delay reason",AA$16)),""),0) -> 32464 | AB41: =IFERROR(IF(AND($T41>=$R$24,$T41<=$R$25),(GETPIVOTDATA("Value",Pivots!$A$6,"Month",$T41,"Delay reason",AB$16)),""),0) -> 3977 | AC41: =IFERROR(IF(AND($T41>=$R$24,$T41<=$R$25),(GETPIVOTDATA("Value",Pivots!$A$6,"Month",$T41,"Delay reason",AC$16)),""),0) -> 16868 | AD41: =IFERROR(IF(AND($T41>=$R$24,$T41<=$R$25),(GETPIVOTDATA("Value",Pivots!$A$6,"Month",$T41,"Delay reason",AD$16)),""),0) -> 1044 | AE41: =IFERROR(IF(AND($T41>=$R$24,$T41<=$R$25),(GETPIVOTDATA("Value",Pivots!$A$6,"Month",$T41,"Delay reason",AE$16)),""),0) -> 8027 | AF41: =IFERROR(IF(AND($T41>=$R$24,$T41<=$R$25),(GETPIVOTDATA("Value",Pivots!$A$6,"Month",$T41,"Delay reason",AF$16)),""),0) -> 2008 | AG41: 11
B42: 10 | C42: I) Housing – patients not covered by NHS Care Act | D42: 42074 | F42: 10 | G42: 1 | H42: 42074 | I42: 7 | J42: O) Other | K42: 12277 | N42: 905426 | O42: 0.9925337385 | S42: Total | V42: =SUM(V17:V41) -> 115600 | W42: =SUM(W17:W41) -> 24943 | X42: =SUM(X17:X41) -> 160199 | Y42: =SUM(Y17:Y41) -> 108638 | Z42: 120966 | AA42: 192356 | AB42: 24754 | AC42: 103619 | AD42: 6811 | AE42: =SUM(AE17:AE41) -> 42074 | AF42: =SUM(AF17:AF41) -> 12277 | AG42: 11
B43: 11 | C43: O) Other | D43: 12277 | F43: 11 | G43: 1 | H43: 12277 | I43: 10 | J43: H) Disputes | K43: 6811 | N43: =N42+K43 -> 912237 | O43: 1
D46: Count IF data point is zero | W46: RULES
B47: =C19 -> E) Awaiting care package in own home | D47: =COUNTIF(D50:D74,0) -> 0
B48: 1 | C48: =ROW() -> 48 | H48: Upper | I48: Lower | N48: Date | O48: Difference | Q48: Sigma | W48: > 3 | X48: < 3 | AA48: 7 points above/below mean | AI48: Trend up/down | AQ48: chart 1
B49: ID (Week no.) | C49: Plot data | D49: Data | G49: Mean | H49: Control limits | I49: control limit (-3) | O49: For. Roll avg | P49: Cumul. Moving Avg. | Q49: 2.66* MR | R49: 3.27*MR | W49: Count | X49: Count | Y49: Above 3 sigma | Z49: Below 3 sigma | AA49: 7 points > mean | AB49: Count of 7point | AC49: 7 points above mean | AE49: 7 points <mean | AF49: Count of 7 point | AG49: 6 points below mean | AI49: Trend up | AM49: Trend Down | AQ49: Concern | AR49: Improvement
A50: 1 | B50: =$D$8 -> 2018-02-01 | C50: =IFERROR(IF(GETPIVOTDATA("Value",Pivots!$A$6,"Month",$B50,"Delay reason",$C$19)=0,"",GETPIVOTDATA("Value",Pivots!$A$6,"Month",$B50,"Delay reason",$C$19)),NA()) -> 30876 | D50: =IFERROR(IF(C50="",0,C50),"") -> 30876 | G50: =AVERAGE($D$50:$D$74) -> 29837.28 | H50: =IF($D$47>5,NA(),IF(D50="",H49,G50+Q50)) -> 34333.345 | I50: =IF($D$47>5,NA(),IF(D50="",I49,G50-Q50)) -> 25341.215 | N50: =B50 -> 2018-02-01 | P50: =IF(O50="",P49,AVERAGE(IF($O$50:O$74<>"",$O$50:O$74))) -> Cumul. Moving Avg. | Q50: =Q51 -> 4496.065 | R50: =R51 -> 5527.1175 | W50: =IF($D$47>5,NA(),IF(D50>H50,MAX(W$49:$W49)+1,0)) -> 0 | X50: =IF($D$47>5,NA(),IF(D50<I50,MAX(X$49:$X49)+1,0)) -> 0 | Y50: =IF(W50>0,C50,NA()) ->  | Z50: =IF(X50>0,D50,NA()) ->  | AA50: =IFERROR(IF($D$47>5,NA(), IF(D50>G50,1,0)),0) -> 1 | AB50: =IFERROR(IF(AND(AB49=1,AA50=1),1,IF(SUM(AA50:AA56)>=7,1,0)),NA()) -> 0 | AC50: =IF(AB50=0,NA(),C50) ->  | AE50: =IFERROR(IF($D$47>5,NA(), IF(D50<G50,1,0)),0) -> 0 | AF50: =IFERROR(IF(AND(AF49=1,AE50=1),1,IF(SUM(AE50:AE56)>=7,1,0)),NA()) -> 0 | AG50: =IF(AF50=0,NA(),C50) ->  | AI50: =IF($D$47>5,NA(),IF(D50>D49,1,0)) -> 0 | AJ50: =IFERROR(IF(AND(AJ49=1,AI50=1),1,IF(SUM(AI50:AI56)>=7,1,0)),NA()) -> 0 | AK50: =IF(AJ50=0,NA(),C50) ->  | AM50: =IF($D$47>5,NA(),IF(D50<D49,1,0)) -> 1 | AN50: =IFERROR(IF(AND(AN49=1,AM50=1),1,IF(SUM(AM50:AM56)>=7,1,0)),NA()) -> 0 | AO50: =IF(AN50=0,NA(),C50) ->  | AQ50: =IF(OR(W50>0,AB50>0,AJ50>0),C50,NA()) ->  | AR50: =IF(OR(X50>0,AF50>0,AN50>0),D50,NA()) -> 
A51: 2 | B51: =IF(DAY(B50+31)=1,B50+31,B50+31-DAY(B50+31)+1) -> 2018-03-01 | C51: =IFERROR(IF(GETPIVOTDATA("Value",Pivots!$A$6,"Month",$B51,"Delay reason",$C$19)=0,"",GETPIVOTDATA("Value",Pivots!$A$6,"Month",$B51,"Delay reason",$C$19)),NA()) -> 33504 | D51: =IFERROR(IF(C51="",0,C51),"") -> 33504 | G51: =AVERAGE($D$50:$D$74) -> 29837.28 | H51: =IF($D$47>5,NA(),IF(D51="",H50,G51+Q51)) -> 34333.345 | I51: =IF($D$47>5,NA(),IF(D51="",I50,G51-Q51)) -> 25341.215 | N51: =B51 -> 2018-03-01 | O51: =IF(D50="","",IF(D51="","",ABS(D50-D51))) -> 2628 | P51: =IF(O51="",P50,AVERAGE(IF($O$50:O$74<>"",$O$50:O$74))) -> 1690.25 | Q51: =IF(ISERROR((P51*2.66)),Q52,(P51*2.66)) -> 4496.065 | R51: =$P51*3.27 -> 5527.1175 | W51: =IF($D$47>5,NA(),IF(D51>H51,MAX(W$49:$W50)+1,0)) -> 0 | X51: =IF($D$47>5,NA(),IF(D51<I51,MAX(X$49:$X50)+1,0)) -> 0 | Y51: =IF(W51>0,C51,NA()) ->  | Z51: =IF(X51>0,D51,NA()) ->  | AA51: =IFERROR(IF($D$47>5,NA(), IF(D51>G51,1,0)),0) -> 1 | AB51: =IFERROR(IF(AND(AB50=1,AA51=1),1,IF(SUM(AA51:AA57)>=7,1,0)),NA()) -> 0 | AC51: =IF(AB51=0,NA(),C51) ->  | AE51: =IFERROR(IF($D$47>5,NA(), IF(D51<G51,1,0)),0) -> 0 | AF51: =IFERROR(IF(AND(AF50=1,AE51=1),1,IF(SUM(AE51:AE57)>=7,1,0)),NA()) -> 0 | AG51: =IF(AF51=0,NA(),C51) ->  | AI51: =IF($D$47>5,NA(),IF(D51>D50,1,0)) -> 1 | AJ51: =IFERROR(IF(AND(AJ50=1,AI51=1),1,IF(SUM(AI51:AI57)>=7,1,0)),NA()) -> 0 | AK51: =IF(AJ51=0,NA(),C51) ->  | AM51: =IF($D$47>5,NA(),IF(D51<D50,1,0)) -> 0 | AN51: =IFERROR(IF(AND(AN50=1,AM51=1),1,IF(SUM(AM51:AM57)>=7,1,0)),NA()) -> 0 | AO51: =IF(AN51=0,NA(),C51) ->  | AQ51: =IF(OR(W51>0,AB51>0,AJ51>0),C51,NA()) ->  | AR51: =IF(OR(X51>0,AF51>0,AN51>0),D51,NA()) -> 
A52: 3 | B52: =IF(DAY(B51+31)=1,B51+31,B51+31-DAY(B51+31)+1) -> 2018-04-01 | C52: =IFERROR(IF(GETPIVOTDATA("Value",Pivots!$A$6,"Month",$B52,"Delay reason",$C$19)=0,"",GETPIVOTDATA("Value",Pivots!$A$6,"Month",$B52,"Delay reason",$C$19)),NA()) -> 29458 | D52: 29458 | G52: =AVERAGE($D$50:$D$74) -> 29837.28 | H52: =IF($D$47>5,NA(),IF(D52="",H51,G52+Q52)) -> 34333.345 | I52: =IF($D$47>5,NA(),IF(D52="",I51,G52-Q52)) -> 25341.215 | N52: 2018-04-01 | O52: =IF(D51="","",IF(D52="","",ABS(D51-D52))) -> 4046 | P52: =IF(O52="",P51,AVERAGE(IF($O$50:O$74<>"",$O$50:O$74))) -> 1690.25 | Q52: =IF(ISERROR((P52*2.66)),Q53,(P52*2.66)) -> 4496.065 | R52: =$P52*3.27 -> 5527.1175 | W52: =IF($D$47>5,NA(),IF(D52>H52,MAX(W$49:$W51)+1,0)) -> 0 | X52: =IF($D$47>5,NA(),IF(D52<I52,MAX(X$49:$X51)+1,0)) -> 0 | AA52: 0 | AB52: 0 | AE52: 1 | AF52: 0 | AI52: 0 | AJ52: =IFERROR(IF(AND(AJ51=1,AI52=1),1,IF(SUM(AI52:AI58)>=7,1,0)),NA()) -> 0 | AK52: =IF(AJ52=0,NA(),C52) ->  | AM52: 1 | AN52: 0 | AO52: =IF(AN52=0,NA(),C52) -> 
A53: 4 | B53: 2018-05-01 | C53: =IFERROR(IF(GETPIVOTDATA("Value",Pivots!$A$6,"Month",$B53,"Delay reason",$C$19)=0,"",GETPIVOTDATA("Value",Pivots!$A$6,"Month",$B53,"Delay reason",$C$19)),NA()) -> 27442 | D53: 27442 | G53: 29837.28 | H53: 34333.345 | I53: 25341.215 | N53: 2018-05-01 | O53: 2016 | P53: =IF(O53="",P52,AVERAGE(IF($O$50:O$74<>"",$O$50:O$74))) -> 1690.25 | Q53: =IF(ISERROR((P53*2.66)),Q54,(P53*2.66)) -> 4496.065 | R53: 5527.1175 | W53: =IF($D$47>5,NA(),IF(D53>H53,MAX(W$49:$W52)+1,0)) -> 0 | X53: =IF($D$47>5,NA(),IF(D53<I53,MAX(X$49:$X52)+1,0)) -> 0 | AA53: 0 | AB53: 0 | AE53: 1 | AF53: 0 | AI53: 0 | AJ53: 0 | AM53: 1 | AN53: 0
A54: 5 | B54: 2018-06-01 | C54: =IFERROR(IF(GETPIVOTDATA("Value",Pivots!$A$6,"Month",$B54,"Delay reason",$C$19)=0,"",GETPIVOTDATA("Value",Pivots!$A$6,"Month",$B54,"Delay reason",$C$19)),NA()) -> 27978 | D54: 27978 | G54: 29837.28 | H54: 34333.345 | I54: 25341.215 | N54: 2018-06-01 | O54: 536 | P54: =IF(O54="",P53,AVERAGE(IF($O$50:O$74<>"",$O$50:O$74))) -> 1690.25 | Q54: 4496.065 | R54: 5527.1175 | W54: =IF($D$47>5,NA(),IF(D54>H54,MAX(W$49:$W53)+1,0)) -> 0 | X54: =IF($D$47>5,NA(),IF(D54<I54,MAX(X$49:$X53)+1,0)) -> 0 | AA54: 0 | AB54: 0 | AE54: 1 | AF54: 0 | AI54: 1 | AJ54: 0 | AM54: 0 | AN54: 0
A55: 6 | B55: 2018-07-01 | C55: =IFERROR(IF(GETPIVOTDATA("Value",Pivots!$A$6,"Month",$B55,"Delay reason",$C$19)=0,"",GETPIVOTDATA("Value",Pivots!$A$6,"Month",$B55,"Delay reason",$C$19)),NA()) -> 30570 | D55: 30570 | G55: 29837.28 | H55: 34333.345 | I55: 25341.215 | N55: 2018-07-01 | O55: 2592 | P55: =IF(O55="",P54,AVERAGE(IF($O$50:O$74<>"",$O$50:O$74))) -> 1690.25 | Q55: 4496.065 | R55: 5527.1175 | W55: =IF($D$47>5,NA(),IF(D55>H55,MAX(W$49:$W54)+1,0)) -> 0 | X55: =IF($D$47>5,NA(),IF(D55<I55,MAX(X$49:$X54)+1,0)) -> 0 | AA55: 1 | AB55: 0 | AE55: 0 | AF55: 0 | AI55: 1 | AJ55: 0 | AM55: 0 | AN55: 0
A56: 7 | B56: 2018-08-01 | C56: =IFERROR(IF(GETPIVOTDATA("Value",Pivots!$A$6,"Month",$B56,"Delay reason",$C$19)=0,"",GETPIVOTDATA("Value",Pivots!$A$6,"Month",$B56,"Delay reason",$C$19)),NA()) -> 31577 | D56: 31577 | G56: 29837.28 | H56: 34333.345 | I56: 25341.215 | N56: 2018-08-01 | O56: 1007 | P56: =IF(O56="",P55,AVERAGE(IF($O$50:O$74<>"",$O$50:O$74))) -> 1690.25 | Q56: 4496.065 | R56: 5527.1175 | W56: =IF($D$47>5,NA(),IF(D56>H56,MAX(W$49:$W55)+1,0)) -> 0 | X56: =IF($D$47>5,NA(),IF(D56<I56,MAX(X$49:$X55)+1,0)) -> 0 | AA56: 1 | AB56: 0 | AE56: 0 | AF56: 0 | AI56: 1 | AJ56: 0 | AM56: 0 | AN56: 0
A57: 8 | B57: 2018-09-01 | C57: =IFERROR(IF(GETPIVOTDATA("Value",Pivots!$A$6,"Month",$B57,"Delay reason",$C$19)=0,"",GETPIVOTDATA("Value",Pivots!$A$6,"Month",$B57,"Delay reason",$C$19)),NA()) -> 31080 | D57: 31080 | G57: 29837.28 | H57: 34333.345 | I57: 25341.215 | N57: 2018-09-01 | O57: 497 | P57: =IF(O57="",P56,AVERAGE(IF($O$50:O$74<>"",$O$50:O$74))) -> 1690.25 | Q57: 4496.065 | R57: 5527.1175 | W57: =IF($D$47>5,NA(),IF(D57>H57,MAX(W$49:$W56)+1,0)) -> 0 | X57: =IF($D$47>5,NA(),IF(D57<I57,MAX(X$49:$X56)+1,0)) -> 0 | AA57: 1 | AB57: 0 | AE57: 0 | AF57: 0 | AI57: 0 | AJ57: 0 | AM57: 1 | AN57: 0
A58: 9 | B58: 2018-10-01 | C58: =IFERROR(IF(GETPIVOTDATA("Value",Pivots!$A$6,"Month",$B58,"Delay reason",$C$19)=0,"",GETPIVOTDATA("Value",Pivots!$A$6,"Month",$B58,"Delay reason",$C$19)),NA()) -> 30807 | D58: 30807 | G58: 29837.28 | H58: 34333.345 | I58: 25341.215 | N58: 2018-10-01 | O58: 273 | P58: =IF(O58="",P57,AVERAGE(IF($O$50:O$74<>"",$O$50:O$74))) -> 1690.25 | Q58: 4496.065 | R58: 5527.1175 | W58: =IF($D$47>5,NA(),IF(D58>H58,MAX(W$49:$W57)+1,0)) -> 0 | X58: =IF($D$47>5,NA(),IF(D58<I58,MAX(X$49:$X57)+1,0)) -> 0 | AA58: 1 | AB58: 0 | AE58: 0 | AF58: 0 | AI58: 0 | AJ58: 0 | AM58: 1 | AN58: 0
A59: 10 | B59: 2018-11-01 | C59: =IFERROR(IF(GETPIVOTDATA("Value",Pivots!$A$6,"Month",$B59,"Delay reason",$C$19)=0,"",GETPIVOTDATA("Value",Pivots!$A$6,"Month",$B59,"Delay reason",$C$19)),NA()) -> 28822 | D59: 28822 | G59: 29837.28 | H59: 34333.345 | I59: 25341.215 | N59: 2018-11-01 | O59: 1985 | P59: =IF(O59="",P58,AVERAGE(IF($O$50:O$74<>"",$O$50:O$74))) -> 1690.25 | Q59: 4496.065 | R59: 5527.1175 | W59: =IF($D$47>5,NA(),IF(D59>H59,MAX(W$49:$W58)+1,0)) -> 0 | X59: =IF($D$47>5,NA(),IF(D59<I59,MAX(X$49:$X58)+1,0)) -> 0 | AA59: 0 | AB59: 0 | AE59: 1 | AF59: 1 | AG59: 28822 | AI59: 0 | AJ59: 0 | AM59: 1 | AN59: 0 | AR59: 28822
A60: 11 | B60: 2018-12-01 | C60: =IFERROR(IF(GETPIVOTDATA("Value",Pivots!$A$6,"Month",$B60,"Delay reason",$C$19)=0,"",GETPIVOTDATA("Value",Pivots!$A$6,"Month",$B60,"Delay reason",$C$19)),NA()) -> 27550 | D60: 27550 | G60: 29837.28 | H60: 34333.345 | I60: 25341.215 | N60: 2018-12-01 | O60: 1272 | P60: =IF(O60="",P59,AVERAGE(IF($O$50:O$74<>"",$O$50:O$74))) -> 1690.25 | Q60: 4496.065 | R60: 5527.1175 | W60: =IF($D$47>5,NA(),IF(D60>H60,MAX(W$49:$W59)+1,0)) -> 0 | X60: =IF($D$47>5,NA(),IF(D60<I60,MAX(X$49:$X59)+1,0)) -> 0 | AA60: 0 | AB60: 0 | AE60: 1 | AF60: 1 | AG60: 27550 | AI60: 0 | AJ60: 0 | AM60: 1 | AN60: 0 | AR60: 27550
A61: 12 | B61: 2019-01-01 | C61: =IFERROR(IF(GETPIVOTDATA("Value",Pivots!$A$6,"Month",$B61,"Delay reason",$C$19)=0,"",GETPIVOTDATA("Value",Pivots!$A$6,"Month",$B61,"Delay reason",$C$19)),NA()) -> 27733 | D61: 27733 | G61: 29837.28 | H61: 34333.345 | I61: 25341.215 | N61: 2019-01-01 | O61: 183 | P61: =IF(O61="",P60,AVERAGE(IF($O$50:O$74<>"",$O$50:O$74))) -> 1690.25 | Q61: 4496.065 | R61: 5527.1175 | W61: =IF($D$47>5,NA(),IF(D61>H61,MAX(W$49:$W60)+1,0)) -> 0 | X61: =IF($D$47>5,NA(),IF(D61<I61,MAX(X$49:$X60)+1,0)) -> 0 | AA61: 0 | AB61: 0 | AE61: 1 | AF61: 1 | AG61: 27733 | AI61: 1 | AJ61: 0 | AM61: 0 | AN61: 0 | AR61: 27733
A62: 13 | B62: 2019-02-01 | C62: =IFERROR(IF(GETPIVOTDATA("Value",Pivots!$A$6,"Month",$B62,"Delay reason",$C$19)=0,"",GETPIVOTDATA("Value",Pivots!$A$6,"Month",$B62,"Delay reason",$C$19)),NA()) -> 25350 | D62: 25350 | G62: 29837.28 | H62: 34333.345 | I62: 25341.215 | N62: 2019-02-01 | O62: 2383 | P62: =IF(O62="",P61,AVERAGE(IF($O$50:O$74<>"",$O$50:O$74))) -> 1690.25 | Q62: 4496.065 | R62: 5527.1175 | W62: =IF($D$47>5,NA(),IF(D62>H62,MAX(W$49:$W61)+1,0)) -> 0 | X62: =IF($D$47>5,NA(),IF(D62<I62,MAX(X$49:$X61)+1,0)) -> 0 | AA62: 0 | AB62: 0 | AE62: 1 | AF62: 1 | AG62: 25350 | AI62: 0 | AJ62: 0 | AM62: 1 | AN62: 0 | AR62: 25350
A63: 14 | B63: 2019-03-01 | C63: =IFERROR(IF(GETPIVOTDATA("Value",Pivots!$A$6,"Month",$B63,"Delay reason",$C$19)=0,"",GETPIVOTDATA("Value",Pivots!$A$6,"Month",$B63,"Delay reason",$C$19)),NA()) -> 28208 | D63: 28208 | G63: 29837.28 | H63: 34333.345 | I63: 25341.215 | N63: 2019-03-01 | O63: 2858 | P63: =IF(O63="",P62,AVERAGE(IF($O$50:O$74<>"",$O$50:O$74))) -> 1690.25 | Q63: 4496.065 | R63: 5527.1175 | W63: =IF($D$47>5,NA(),IF(D63>H63,MAX(W$49:$W62)+1,0)) -> 0 | X63: =IF($D$47>5,NA(),IF(D63<I63,MAX(X$49:$X62)+1,0)) -> 0 | AA63: 0 | AB63: 0 | AE63: 1 | AF63: 1 | AG63: 28208 | AI63: 1 | AJ63: 0 | AM63: 0 | AN63: 0 | AR63: 28208
A64: 15 | B64: 2019-04-01 | C64: =IFERROR(IF(GETPIVOTDATA("Value",Pivots!$A$6,"Month",$B64,"Delay reason",$C$19)=0,"",GETPIVOTDATA("Value",Pivots!$A$6,"Month",$B64,"Delay reason",$C$19)),NA()) -> 25051 | D64: 25051 | G64: 29837.28 | H64: 34333.345 | I64: 25341.215 | N64: 2019-04-01 | O64: 3157 | P64: =IF(O64="",P63,AVERAGE(IF($O$50:O$74<>"",$O$50:O$74))) -> 1690.25 | Q64: 4496.065 | R64: 5527.1175 | W64: =IF($D$47>5,NA(),IF(D64>H64,MAX(W$49:$W63)+1,0)) -> 0 | X64: =IF($D$47>5,NA(),IF(D64<I64,MAX(X$49:$X63)+1,0)) -> 1 | Z64: 25051 | AA64: 0 | AB64: 0 | AE64: 1 | AF64: 1 | AG64: 25051 | AI64: 0 | AJ64: 0 | AM64: 1 | AN64: 0 | AR64: 25051
A65: 16 | B65: 2019-05-01 | C65: =IFERROR(IF(GETPIVOTDATA("Value",Pivots!$A$6,"Month",$B65,"Delay reason",$C$19)=0,"",GETPIVOTDATA("Value",Pivots!$A$6,"Month",$B65,"Delay reason",$C$19)),NA()) -> 27789 | D65: 27789 | G65: 29837.28 | H65: 34333.345 | I65: 25341.215 | N65: 2019-05-01 | O65: 2738 | P65: =IF(O65="",P64,AVERAGE(IF($O$50:O$74<>"",$O$50:O$74))) -> 1690.25 | Q65: 4496.065 | R65: 5527.1175 | W65: =IF($D$47>5,NA(),IF(D65>H65,MAX(W$49:$W64)+1,0)) -> 0 | X65: =IF($D$47>5,NA(),IF(D65<I65,MAX(X$49:$X64)+1,0)) -> 0 | AA65: 0 | AB65: 0 | AE65: 1 | AF65: 1 | AG65: 27789 | AI65: 1 | AJ65: 0 | AM65: 0 | AN65: 0 | AR65: 27789
A66: 17 | B66: 2019-06-01 | C66: =IFERROR(IF(GETPIVOTDATA("Value",Pivots!$A$6,"Month",$B66,"Delay reason",$C$19)=0,"",GETPIVOTDATA("Value",Pivots!$A$6,"Month",$B66,"Delay reason",$C$19)),NA()) -> 27719 | D66: 27719 | G66: 29837.28 | H66: 34333.345 | I66: 25341.215 | N66: 2019-06-01 | O66: 70 | P66: =IF(O66="",P65,AVERAGE(IF($O$50:O$74<>"",$O$50:O$74))) -> 1690.25 | Q66: 4496.065 | R66: 5527.1175 | W66: =IF($D$47>5,NA(),IF(D66>H66,MAX(W$49:$W65)+1,0)) -> 0 | X66: =IF($D$47>5,NA(),IF(D66<I66,MAX(X$49:$X65)+1,0)) -> 0 | AA66: 0 | AB66: 0 | AE66: 1 | AF66: 1 | AG66: 27719 | AI66: 0 | AJ66: 0 | AM66: 1 | AN66: 0 | AR66: 27719
A67: 18 | B67: 2019-07-01 | C67: =IFERROR(IF(GETPIVOTDATA("Value",Pivots!$A$6,"Month",$B67,"Delay reason",$C$19)=0,"",GETPIVOTDATA("Value",Pivots!$A$6,"Month",$B67,"Delay reason",$C$19)),NA()) -> 29889 | D67: 29889 | G67: 29837.28 | H67: 34333.345 | I67: 25341.215 | N67: 2019-07-01 | O67: 2170 | P67: =IF(O67="",P66,AVERAGE(IF($O$50:O$74<>"",$O$50:O$74))) -> 1690.25 | Q67: 4496.065 | R67: 5527.1175 | W67: =IF($D$47>5,NA(),IF(D67>H67,MAX(W$49:$W66)+1,0)) -> 0 | X67: =IF($D$47>5,NA(),IF(D67<I67,MAX(X$49:$X66)+1,0)) -> 0 | AA67: 1 | AB67: 1 | AC67: 29889 | AE67: 0 | AF67: 0 | AI67: 1 | AJ67: 0 | AM67: 0 | AN67: 0 | AQ67: 29889
A68: 19 | B68: 2019-08-01 | C68: =IFERROR(IF(GETPIVOTDATA("Value",Pivots!$A$6,"Month",$B68,"Delay reason",$C$19)=0,"",GETPIVOTDATA("Value",Pivots!$A$6,"Month",$B68,"Delay reason",$C$19)),NA()) -> 32173 | D68: 32173 | G68: 29837.28 | H68: 34333.345 | I68: 25341.215 | N68: 2019-08-01 | O68: 2284 | P68: =IF(O68="",P67,AVERAGE(IF($O$50:O$74<>"",$O$50:O$74))) -> 1690.25 | Q68: 4496.065 | R68: 5527.1175 | W68: =IF($D$47>5,NA(),IF(D68>H68,MAX(W$49:$W67)+1,0)) -> 0 | X68: =IF($D$47>5,NA(),IF(D68<I68,MAX(X$49:$X67)+1,0)) -> 0 | AA68: 1 | AB68: 1 | AC68: 32173 | AE68: 0 | AF68: 0 | AI68: 1 | AJ68: 0 | AM68: 0 | AN68: 0 | AQ68: 32173
A69: 20 | B69: 2019-09-01 | C69: =IFERROR(IF(GETPIVOTDATA("Value",Pivots!$A$6,"Month",$B69,"Delay reason",$C$19)=0,"",GETPIVOTDATA("Value",Pivots!$A$6,"Month",$B69,"Delay reason",$C$19)),NA()) -> 32025 | D69: 32025 | G69: 29837.28 | H69: 34333.345 | I69: 25341.215 | N69: 2019-09-01 | O69: 148 | P69: =IF(O69="",P68,AVERAGE(IF($O$50:O$74<>"",$O$50:O$74))) -> 1690.25 | Q69: 4496.065 | R69: 5527.1175 | W69: =IF($D$47>5,NA(),IF(D69>H69,MAX(W$49:$W68)+1,0)) -> 0 | X69: =IF($D$47>5,NA(),IF(D69<I69,MAX(X$49:$X68)+1,0)) -> 0 | AA69: 1 | AB69: 1 | AC69: 32025 | AE69: 0 | AF69: 0 | AI69: 0 | AJ69: 0 | AM69: 1 | AN69: =IFERROR(IF(AND(AN68=1,AM69=1),1,IF(SUM(AM69:AM74)>=7,1,0)),NA()) -> 0 | AQ69: 32025
A70: 21 | B70: 2019-10-01 | C70: =IFERROR(IF(GETPIVOTDATA("Value",Pivots!$A$6,"Month",$B70,"Delay reason",$C$19)=0,"",GETPIVOTDATA("Value",Pivots!$A$6,"Month",$B70,"Delay reason",$C$19)),NA()) -> 31643 | D70: 31643 | G70: 29837.28 | H70: 34333.345 | I70: 25341.215 | N70: 2019-10-01 | O70: 382 | P70: =IF(O70="",P69,AVERAGE(IF($O$50:O$74<>"",$O$50:O$74))) -> 1690.25 | Q70: 4496.065 | R70: 5527.1175 | W70: =IF($D$47>5,NA(),IF(D70>H70,MAX(W$49:$W69)+1,0)) -> 0 | X70: =IF($D$47>5,NA(),IF(D70<I70,MAX(X$49:$X69)+1,0)) -> 0 | AA70: 1 | AB70: 1 | AC70: 31643 | AE70: 0 | AF70: 0 | AI70: 0 | AJ70: =IFERROR(IF(AND(AJ69=1,AI70=1),1,IF(SUM(AI70:AI74)>=7,1,0)),NA()) -> 0 | AM70: 1 | AN70: =IFERROR(IF(AND(AN69=1,AM70=1),1,IF(SUM(AM70:AM74)>=7,1,0)),NA()) -> 0 | AQ70: 31643
A71: 22 | B71: 2019-11-01 | C71: =IFERROR(IF(GETPIVOTDATA("Value",Pivots!$A$6,"Month",$B71,"Delay reason",$C$19)=0,"",GETPIVOTDATA("Value",Pivots!$A$6,"Month",$B71,"Delay reason",$C$19)),NA()) -> 30375 | D71: 30375 | G71: =AVERAGE($D$50:$D$74) -> 29837.28 | H71: 34333.345 | I71: 25341.215 | N71: 2019-11-01 | O71: 1268 | P71: =IF(O71="",P70,AVERAGE(IF($O$50:O$74<>"",$O$50:O$74))) -> 1690.25 | Q71: 4496.065 | R71: 5527.1175 | W71: =IF($D$47>5,NA(),IF(D71>H71,MAX(W$49:$W70)+1,0)) -> 0 | X71: =IF($D$47>5,NA(),IF(D71<I71,MAX(X$49:$X70)+1,0)) -> 0 | AA71: 1 | AB71: =IFERROR(IF(AND(AB70=1,AA71=1),1,IF(SUM(AA71:AA74)>=7,1,0)),NA()) -> 1 | AC71: =IF(AB71=0,NA(),C71) -> 30375 | AE71: 0 | AF71: =IFERROR(IF(AND(AF70=1,AE71=1),1,IF(SUM(AE71:AE74)>=7,1,0)),NA()) -> 0 | AG71: =IF(AF71=0,NA(),C71) ->  | AI71: 0 | AJ71: =IFERROR(IF(AND(AJ70=1,AI71=1),1,IF(SUM(AI71:AI74)>=7,1,0)),NA()) -> 0 | AM71: 1 | AN71: =IFERROR(IF(AND(AN70=1,AM71=1),1,IF(SUM(AM71:AM74)>=7,1,0)),NA()) -> 0 | AQ71: 30375
A72: 23 | B72: 2019-12-01 | C72: =IFERROR(IF(GETPIVOTDATA("Value",Pivots!$A$6,"Month",$B72,"Delay reason",$C$19)=0,"",GETPIVOTDATA("Value",Pivots!$A$6,"Month",$B72,"Delay reason",$C$19)),NA()) -> 31393 | D72: 31393 | G72: =AVERAGE($D$50:$D$74) -> 29837.28 | H72: 34333.345 | I72: 25341.215 | N72: 2019-12-01 | O72: 1018 | P72: =IF(O72="",P71,AVERAGE(IF($O$50:O$74<>"",$O$50:O$74))) -> 1690.25 | Q72: 4496.065 | R72: 5527.1175 | W72: =IF($D$47>5,NA(),IF(D72>H72,MAX(W$49:$W71)+1,0)) -> 0 | X72: =IF($D$47>5,NA(),IF(D72<I72,MAX(X$49:$X71)+1,0)) -> 0 | AA72: 1 | AB72: =IFERROR(IF(AND(AB71=1,AA72=1),1,IF(SUM(AA72:AA74)>=7,1,0)),NA()) -> 1 | AC72: 31393 | AE72: 0 | AF72: =IFERROR(IF(AND(AF71=1,AE72=1),1,IF(SUM(AE72:AE74)>=7,1,0)),NA()) -> 0 | AI72: 1 | AJ72: 0 | AM72: 0 | AN72: =IFERROR(IF(AND(AN71=1,AM72=1),1,IF(SUM(AM72:AM74)>=7,1,0)),NA()) -> 0 | AQ72: 31393
A73: 24 | B73: 2020-01-01 | C73: =IFERROR(IF(GETPIVOTDATA("Value",Pivots!$A$6,"Month",$B73,"Delay reason",$C$19)=0,"",GETPIVOTDATA("Value",Pivots!$A$6,"Month",$B73,"Delay reason",$C$19)),NA()) -> 34456 | D73: 34456 | G73: 29837.28 | H73: 34333.345 | I73: 25341.215 | N73: 2020-01-01 | O73: 3063 | P73: =IF(O73="",P72,AVERAGE(IF($O$50:O$74<>"",$O$50:O$74))) -> 1690.25 | Q73: 4496.065 | R73: 5527.1175 | W73: =IF($D$47>5,NA(),IF(D73>H73,MAX(W$49:$W72)+1,0)) -> 1 | X73: =IF($D$47>5,NA(),IF(D73<I73,MAX(X$49:$X72)+1,0)) -> 0 | Y73: 34456 | AA73: 1 | AB73: 1 | AC73: 34456 | AE73: 0 | AF73: =IFERROR(IF(AND(AF72=1,AE73=1),1,IF(SUM(AE73:AE74)>=7,1,0)),NA()) -> 0 | AI73: 1 | AJ73: =IFERROR(IF(AND(AJ72=1,AI73=1),1,IF(SUM(AI73:AI74)>=7,1,0)),NA()) -> 0 | AM73: 0 | AN73: 0 | AQ73: 34456
A74: 25 | B74: 2020-02-01 | C74: =IFERROR(IF(GETPIVOTDATA("Value",Pivots!$A$6,"Month",$B74,"Delay reason",$C$19)=0,"",GETPIVOTDATA("Value",Pivots!$A$6,"Month",$B74,"Delay reason",$C$19)),NA()) -> 32464 | D74: 32464 | G74: 29837.28 | H74: 34333.345 | I74: 25341.215 | N74: 2020-02-01 | O74: 1992 | P74: =IF(O74="",P73,AVERAGE(IF($O$50:O$74<>"",$O$50:O$74))) -> 1690.25 | Q74: =IF(ISERROR((P74*2.66)),Q75,(P74*2.66)) -> 4496.065 | R74: 5527.1175 | W74: =IF($D$47>5,NA(),IF(D74>H74,MAX(W$49:$W73)+1,0)) -> 0 | X74: =IF($D$47>5,NA(),IF(D74<I74,MAX(X$49:$X73)+1,0)) -> 0 | AA74: 1 | AB74: =IFERROR(IF(AND(AB73=1,AA74=1),1,IF(SUM(AA74)>=7,1,0)),NA()) -> 1 | AC74: 32464 | AE74: 0 | AF74: =IFERROR(IF(AND(AF73=1,AE74=1),1,IF(SUM(AE74)>=7,1,0)),NA()) -> 0 | AI74: =IF($D$47>5,NA(),IF(D74>D73,1,0)) -> 0 | AJ74: =IFERROR(IF(AND(AJ73=1,AI74=1),1,IF(SUM(AI74)>=7,1,0)),NA()) -> 0 | AM74: =IF($D$47>5,NA(),IF(D74<D73,1,0)) -> 1 | AN74: =IFERROR(IF(AND(AN73=1,AM74=1),1,IF(SUM(AM74)>=7,1,0)),NA()) -> 0 | AQ74: 32464
D75: Count IF data point is zero
B76: =C20 -> C) Awaiting further non-acute NHS care (including intermediate care, rehabilitation services etc) | D76: =COUNTIF(D79:D103,0) -> 0
B77: 2 | C77: =ROW() -> 77 | H77: Upper | I77: Lower | N77: Date | O77: Difference | Q77: Sigma | W77: > 3 | X77: < 3 | AA77: 7 points above/below mean | AI77: Trend up/down | AQ77: chart 2
B78: ID (Week no.) | C78: Plot data | D78: Data | G78: Mean | H78: Control limits | I78: control limit (-3) | O78: For. Roll avg | P78: Cumul. Moving Avg. | Q78: 2.66* MR | R78: 3.27*MR | W78: Count | X78: Count | Y78: Above 3 sigma | Z78: Below 3 sigma | AA78: 7 points > mean | AB78: Count of 7point | AC78: 7 points above mean | AE78: 7 points <mean | AF78: Count of 7 point | AG78: 6 points below mean | AI78: Trend up | AM78: Trend Down | AQ78: Concern | AR78: Improvement
B79: =D8 -> 2018-02-01 | C79: =IFERROR(IF(GETPIVOTDATA("Value",Pivots!$A$6,"Month",$B79,"Delay reason",$C$20)=0,"",GETPIVOTDATA("Value",Pivots!$A$6,"Month",$B79,"Delay reason",$C$20)),NA()) -> 24647 | D79: =IFERROR(IF(C79="",0,C79),"") -> 24647 | G79: =AVERAGE($D$79:$D$103) -> 25073.36 | H79: =IF($D$76>5,NA(),IF(D79="",H78,G79+Q79)) -> 28788.27167 | I79: =IF($D$76>5,NA(),IF(D79="",I78,G79-Q79)) -> 21358.44833 | N79: =B79 -> 2018-02-01 | P79: =IF(O79="",P78,AVERAGE(IF($O$79:$O$103<>"",$O$79:$O$103))) -> Cumul. Moving Avg. | Q79: =Q80 -> 3714.911667 | R79: =R80 -> 4566.8275 | W79: =IF($D$76>5,NA(),IF(D79>H79,MAX(W$78:$W78)+1,0)) -> 0 | X79: =IF($D$76>5,NA(),IF(D79<I79,MAX(W$78:$W79)+1,0)) -> 0 | Y79: =IF(W79>0,C79,NA()) ->  | Z79: =IF(X79>0,D79,NA()) ->  | AA79: =IFERROR(IF($D$76>5,NA(), IF(D79>G79,1,0)),0) -> 0 | AB79: =IFERROR(IF(AND(AB78=1,AA79=1),1,IF(SUM(AA79:AA85)>=7,1,0)),NA()) -> 0 | AC79: =IF(AB79=0,NA(),C79) ->  | AE79: =IFERROR(IF($D$76>5,NA(), IF(D79<G79,1,0)),0) -> 1 | AF79: =IFERROR(IF(AND(AF78=1,AE79=1),1,IF(SUM(AE79:AE85)>=7,1,0)),NA()) -> 0 | AG79: =IF(AF79=0,NA(),C79) ->  | AI79: =IF($D$76>5,NA(),IF(D79>D78,1,0)) -> 0 | AJ79: =IFERROR(IF(AND(AJ78=1,AI79=1),1,IF(SUM(AI79:AI85)>=7,1,0)),NA()) -> 0 | AK79: =IF(AJ79=0,NA(),C79) ->  | AM79: =IF($D$76>5,NA(),IF(D79<D78,1,0)) -> 1 | AN79: =IFERROR(IF(AND(AN78=1,AM79=1),1,IF(SUM(AM79:AM85)>=7,1,0)),NA()) -> 0 | AO79: =IF(AN79=0,NA(),C79) ->  | AQ79: =IF(OR(W79>0,AB79>0,AJ79>0),C79,NA()) ->  | AR79: =IF(OR(X79>0,AF79>0,AN79>0),D79,NA()) -> 
B80: =IF(DAY(B79+31)=1,B79+31,B79+31-DAY(B79+31)+1) -> 2018-03-01 | C80: =IFERROR(IF(GETPIVOTDATA("Value",Pivots!$A$6,"Month",$B80,"Delay reason",$C$20)=0,"",GETPIVOTDATA("Value",Pivots!$A$6,"Month",$B80,"Delay reason",$C$20)),NA()) -> 29316 | D80: =IFERROR(IF(C80="",0,C80),"") -> 29316 | G80: =AVERAGE($D$79:$D$103) -> 25073.36 | H80: =IF($D$76>5,NA(),IF(D80="",H79,G80+Q80)) -> 28788.27167 | I80: =IF($D$76>5,NA(),IF(D80="",I79,G80-Q80)) -> 21358.44833 | N80: =B80 -> 2018-03-01 | O80: =IF(D79="","",IF(D80="","",ABS(D79-D80))) -> 4669 | P80: 1396.583333 | Q80: =IF(ISERROR((P80*2.66)),Q81,(P80*2.66)) -> 3714.911667 | R80: =$P80*3.27 -> 4566.8275 | W80: =IF($D$76>5,NA(),IF(D80>H80,MAX(W$78:$W79)+1,0)) -> 1 | X80: =IF($D$76>5,NA(),IF(D80<I80,MAX(W$78:$W80)+1,0)) -> 0 | Y80: =IF(W80>0,C80,NA()) -> 29316 | Z80: =IF(X80>0,D80,NA()) ->  | AA80: =IFERROR(IF($D$76>5,NA(), IF(D80>G80,1,0)),0) -> 1 | AB80: =IFERROR(IF(AND(AB79=1,AA80=1),1,IF(SUM(AA80:AA86)>=7,1,0)),NA()) -> 0 | AC80: =IF(AB80=0,NA(),C80) ->  | AE80: =IFERROR(IF($D$76>5,NA(), IF(D80<G80,1,0)),0) -> 0 | AF80: =IFERROR(IF(AND(AF79=1,AE80=1),1,IF(SUM(AE80:AE86)>=7,1,0)),NA()) -> 0 | AG80: =IF(AF80=0,NA(),C80) ->  | AI80: =IF($D$76>5,NA(),IF(D80>D79,1,0)) -> 1 | AJ80: =IFERROR(IF(AND(AJ79=1,AI80=1),1,IF(SUM(AI80:AI86)>=7,1,0)),NA()) -> 0 | AK80: =IF(AJ80=0,NA(),C80) ->  | AM80: =IF($D$76>5,NA(),IF(D80<D79,1,0)) -> 0 | AN80: =IFERROR(IF(AND(AN79=1,AM80=1),1,IF(SUM(AM80:AM86)>=7,1,0)),NA()) -> 0 | AO80: =IF(AN80=0,NA(),C80) ->  | AQ80: =IF(OR(W80>0,AB80>0,AJ80>0),C80,NA()) -> 29316 | AR80: =IF(OR(X80>0,AF80>0,AN80>0),D80,NA()) -> 
B81: =IF(DAY(B80+31)=1,B80+31,B80+31-DAY(B80+31)+1) -> 2018-04-01 | C81: =IFERROR(IF(GETPIVOTDATA("Value",Pivots!$A$6,"Month",$B81,"Delay reason",$C$20)=0,"",GETPIVOTDATA("Value",Pivots!$A$6,"Month",$B81,"Delay reason",$C$20)),NA()) -> 26700 | D81: 26700 | G81: 25073.36 | H81: =IF($D$76>5,NA(),IF(D81="",H80,G81+Q81)) -> 28788.27167 | I81: =IF($D$76>5,NA(),IF(D81="",I80,G81-Q81)) -> 21358.44833 | N81: 2018-04-01 | O81: =IF(D80="","",IF(D81="","",ABS(D80-D81))) -> 2616 | P81: 1396.583333 | Q81: =IF(ISERROR((P81*2.66)),Q82,(P81*2.66)) -> 3714.911667 | R81: =$P81*3.27 -> 4566.8275 | W81: =IF($D$76>5,NA(),IF(D81>H81,MAX(W$78:$W80)+1,0)) -> 0 | X81: =IF($D$76>5,NA(),IF(D81<I81,MAX(W$78:$W81)+1,0)) -> 0 | AA81: 1 | AB81: 0 | AE81: 0 | AF81: 0 | AI81: 0 | AJ81: 0 | AK81: =IF(AJ81=0,NA(),C81) ->  | AM81: 1 | AN81: 0 | AO81: =IF(AN81=0,NA(),C81) -> 
B82: 2018-05-01 | C82: =IFERROR(IF(GETPIVOTDATA("Value",Pivots!$A$6,"Month",$B82,"Delay reason",$C$20)=0,"",GETPIVOTDATA("Value",Pivots!$A$6,"Month",$B82,"Delay reason",$C$20)),NA()) -> 24841 | D82: 24841 | G82: =AVERAGE($D$79:$D$103) -> 25073.36 | H82: 28788.27167 | I82: 21358.44833 | N82: 2018-05-01 | O82: 1859 | P82: 1396.583333 | Q82: =IF(ISERROR((P82*2.66)),Q83,(P82*2.66)) -> 3714.911667 | R82: 4566.8275 | W82: =IF($D$76>5,NA(),IF(D82>H82,MAX(W$78:$W81)+1,0)) -> 0 | X82: =IF($D$76>5,NA(),IF(D82<I82,MAX(W$78:$W82)+1,0)) -> 0 | AA82: 0 | AB82: 0 | AE82: 1 | AF82: 1 | AG82: 24841 | AI82: 0 | AJ82: 0 | AM82: 1 | AN82: 0 | AR82: 24841
B83: 2018-06-01 | C83: =IFERROR(IF(GETPIVOTDATA("Value",Pivots!$A$6,"Month",$B83,"Delay reason",$C$20)=0,"",GETPIVOTDATA("Value",Pivots!$A$6,"Month",$B83,"Delay reason",$C$20)),NA()) -> 22953 | D83: 22953 | G83: 25073.36 | H83: 28788.27167 | I83: 21358.44833 | N83: 2018-06-01 | O83: 1888 | P83: 1396.583333 | Q83: 3714.911667 | R83: 4566.8275 | W83: =IF($D$76>5,NA(),IF(D83>H83,MAX(W$78:$W82)+1,0)) -> 0 | X83: =IF($D$76>5,NA(),IF(D83<I83,MAX(W$78:$W83)+1,0)) -> 0 | AA83: 0 | AB83: 0 | AE83: 1 | AF83: 1 | AG83: 22953 | AI83: 0 | AJ83: 0 | AM83: 1 | AN83: 0 | AR83: 22953
B84: 2018-07-01 | C84: =IFERROR(IF(GETPIVOTDATA("Value",Pivots!$A$6,"Month",$B84,"Delay reason",$C$20)=0,"",GETPIVOTDATA("Value",Pivots!$A$6,"Month",$B84,"Delay reason",$C$20)),NA()) -> 24166 | D84: 24166 | G84: 25073.36 | H84: 28788.27167 | I84: 21358.44833 | N84: 2018-07-01 | O84: 1213 | P84: 1396.583333 | Q84: 3714.911667 | R84: 4566.8275 | W84: =IF($D$76>5,NA(),IF(D84>H84,MAX(W$78:$W83)+1,0)) -> 0 | X84: =IF($D$76>5,NA(),IF(D84<I84,MAX(W$78:$W84)+1,0)) -> 0 | AA84: 0 | AB84: 0 | AE84: 1 | AF84: 1 | AG84: 24166 | AI84: 1 | AJ84: 0 | AM84: 0 | AN84: 0 | AR84: 24166
B85: 2018-08-01 | C85: =IFERROR(IF(GETPIVOTDATA("Value",Pivots!$A$6,"Month",$B85,"Delay reason",$C$20)=0,"",GETPIVOTDATA("Value",Pivots!$A$6,"Month",$B85,"Delay reason",$C$20)),NA()) -> 24797 | D85: 24797 | G85: 25073.36 | H85: 28788.27167 | I85: 21358.44833 | N85: 2018-08-01 | O85: 631 | P85: 1396.583333 | Q85: 3714.911667 | R85: 4566.8275 | W85: =IF($D$76>5,NA(),IF(D85>H85,MAX(W$78:$W84)+1,0)) -> 0 | X85: =IF($D$76>5,NA(),IF(D85<I85,MAX(W$78:$W85)+1,0)) -> 0 | AA85: 0 | AB85: 0 | AE85: 1 | AF85: 1 | AG85: 24797 | AI85: 1 | AJ85: 0 | AM85: 0 | AN85: 0 | AR85: 24797
B86: 2018-09-01 | C86: =IFERROR(IF(GETPIVOTDATA("Value",Pivots!$A$6,"Month",$B86,"Delay reason",$C$20)=0,"",GETPIVOTDATA("Value",Pivots!$A$6,"Month",$B86,"Delay reason",$C$20)),NA()) -> 22400 | D86: 22400 | G86: 25073.36 | H86: 28788.27167 | I86: 21358.44833 | N86: 2018-09-01 | O86: 2397 | P86: 1396.583333 | Q86: 3714.911667 | R86: 4566.8275 | W86: =IF($D$76>5,NA(),IF(D86>H86,MAX(W$78:$W85)+1,0)) -> 0 | X86: =IF($D$76>5,NA(),IF(D86<I86,MAX(W$78:$W86)+1,0)) -> 0 | AA86: 0 | AB86: 0 | AE86: 1 | AF86: 1 | AG86: 22400 | AI86: 0 | AJ86: 0 | AM86: 1 | AN86: 0 | AR86: 22400
B87: 2018-10-01 | C87: =IFERROR(IF(GETPIVOTDATA("Value",Pivots!$A$6,"Month",$B87,"Delay reason",$C$20)=0,"",GETPIVOTDATA("Value",Pivots!$A$6,"Month",$B87,"Delay reason",$C$20)),NA()) -> 22411 | D87: 22411 | G87: 25073.36 | H87: 28788.27167 | I87: 21358.44833 | N87: 2018-10-01 | O87: 11 | P87: 1396.583333 | Q87: 3714.911667 | R87: 4566.8275 | W87: =IF($D$76>5,NA(),IF(D87>H87,MAX(W$78:$W86)+1,0)) -> 0 | X87: =IF($D$76>5,NA(),IF(D87<I87,MAX(W$78:$W87)+1,0)) -> 0 | AA87: 0 | AB87: 0 | AE87: 1 | AF87: 1 | AG87: 22411 | AI87: 1 | AJ87: 0 | AM87: 0 | AN87: 0 | AR87: 22411
B88: 2018-11-01 | C88: =IFERROR(IF(GETPIVOTDATA("Value",Pivots!$A$6,"Month",$B88,"Delay reason",$C$20)=0,"",GETPIVOTDATA("Value",Pivots!$A$6,"Month",$B88,"Delay reason",$C$20)),NA()) -> 21587 | D88: 21587 | G88: 25073.36 | H88: 28788.27167 | I88: 21358.44833 | N88: 2018-11-01 | O88: 824 | P88: 1396.583333 | Q88: 3714.911667 | R88: 4566.8275 | W88: =IF($D$76>5,NA(),IF(D88>H88,MAX(W$78:$W87)+1,0)) -> 0 | X88: =IF($D$76>5,NA(),IF(D88<I88,MAX(W$78:$W88)+1,0)) -> 0 | AA88: 0 | AB88: 0 | AE88: 1 | AF88: 1 | AG88: 21587 | AI88: 0 | AJ88: 0 | AM88: 1 | AN88: 0 | AR88: 21587
B89: 2018-12-01 | C89: =IFERROR(IF(GETPIVOTDATA("Value",Pivots!$A$6,"Month",$B89,"Delay reason",$C$20)=0,"",GETPIVOTDATA("Value",Pivots!$A$6,"Month",$B89,"Delay reason",$C$20)),NA()) -> 21361 | D89: 21361 | G89: 25073.36 | H89: 28788.27167 | I89: 21358.44833 | N89: 2018-12-01 | O89: 226 | P89: 1396.583333 | Q89: 3714.911667 | R89: 4566.8275 | W89: =IF($D$76>5,NA(),IF(D89>H89,MAX(W$78:$W88)+1,0)) -> 0 | X89: =IF($D$76>5,NA(),IF(D89<I89,MAX(W$78:$W89)+1,0)) -> 0 | AA89: 0 | AB89: 0 | AE89: 1 | AF89: 1 | AG89: 21361 | AI89: 0 | AJ89: 0 | AM89: 1 | AN89: 0 | AR89: 21361
B90: 2019-01-01 | C90: =IFERROR(IF(GETPIVOTDATA("Value",Pivots!$A$6,"Month",$B90,"Delay reason",$C$20)=0,"",GETPIVOTDATA("Value",Pivots!$A$6,"Month",$B90,"Delay reason",$C$20)),NA()) -> 24403 | D90: 24403 | G90: 25073.36 | H90: 28788.27167 | I90: 21358.44833 | N90: 2019-01-01 | O90: 3042 | P90: 1396.583333 | Q90: 3714.911667 | R90: 4566.8275 | W90: =IF($D$76>5,NA(),IF(D90>H90,MAX(W$78:$W89)+1,0)) -> 0 | X90: =IF($D$76>5,NA(),IF(D90<I90,MAX(W$78:$W90)+1,0)) -> 0 | AA90: 0 | AB90: 0 | AE90: 1 | AF90: 1 | AG90: 24403 | AI90: 1 | AJ90: 0 | AM90: 0 | AN90: 0 | AR90: 24403
B91: 2019-02-01 | C91: =IFERROR(IF(GETPIVOTDATA("Value",Pivots!$A$6,"Month",$B91,"Delay reason",$C$20)=0,"",GETPIVOTDATA("Value",Pivots!$A$6,"Month",$B91,"Delay reason",$C$20)),NA()) -> 24289 | D91: 24289 | G91: 25073.36 | H91: 28788.27167 | I91: 21358.44833 | N91: 2019-02-01 | O91: 114 | P91: 1396.583333 | Q91: 3714.911667 | R91: 4566.8275 | W91: =IF($D$76>5,NA(),IF(D91>H91,MAX(W$78:$W90)+1,0)) -> 0 | X91: =IF($D$76>5,NA(),IF(D91<I91,MAX(W$78:$W91)+1,0)) -> 0 | AA91: 0 | AB91: 0 | AE91: 1 | AF91: 1 | AG91: 24289 | AI91: 0 | AJ91: 0 | AM91: 1 | AN91: 0 | AR91: 24289
B92: 2019-03-01 | C92: =IFERROR(IF(GETPIVOTDATA("Value",Pivots!$A$6,"Month",$B92,"Delay reason",$C$20)=0,"",GETPIVOTDATA("Value",Pivots!$A$6,"Month",$B92,"Delay reason",$C$20)),NA()) -> 26458 | D92: 26458 | G92: 25073.36 | H92: 28788.27167 | I92: 21358.44833 | N92: 2019-03-01 | O92: 2169 | P92: 1396.583333 | Q92: 3714.911667 | R92: 4566.8275 | W92: =IF($D$76>5,NA(),IF(D92>H92,MAX(W$78:$W91)+1,0)) -> 0 | X92: =IF($D$76>5,NA(),IF(D92<I92,MAX(W$78:$W92)+1,0)) -> 0 | AA92: 1 | AB92: 0 | AE92: 0 | AF92: 0 | AI92: 1 | AJ92: 0 | AM92: 0 | AN92: 0
B93: 2019-04-01 | C93: =IFERROR(IF(GETPIVOTDATA("Value",Pivots!$A$6,"Month",$B93,"Delay reason",$C$20)=0,"",GETPIVOTDATA("Value",Pivots!$A$6,"Month",$B93,"Delay reason",$C$20)),NA()) -> 25624 | D93: 25624 | G93: 25073.36 | H93: 28788.27167 | I93: 21358.44833 | N93: 2019-04-01 | O93: 834 | P93: 1396.583333 | Q93: 3714.911667 | R93: 4566.8275 | W93: =IF($D$76>5,NA(),IF(D93>H93,MAX(W$78:$W92)+1,0)) -> 0 | X93: =IF($D$76>5,NA(),IF(D93<I93,MAX(W$78:$W93)+1,0)) -> 0 | AA93: 1 | AB93: 0 | AE93: 0 | AF93: 0 | AI93: 0 | AJ93: 0 | AM93: 1 | AN93: 0
B94: 2019-05-01 | C94: =IFERROR(IF(GETPIVOTDATA("Value",Pivots!$A$6,"Month",$B94,"Delay reason",$C$20)=0,"",GETPIVOTDATA("Value",Pivots!$A$6,"Month",$B94,"Delay reason",$C$20)),NA()) -> 26330 | D94: 26330 | G94: 25073.36 | H94: 28788.27167 | I94: 21358.44833 | N94: 2019-05-01 | O94: 706 | P94: 1396.583333 | Q94: 3714.911667 | R94: 4566.8275 | W94: =IF($D$76>5,NA(),IF(D94>H94,MAX(W$78:$W93)+1,0)) -> 0 | X94: =IF($D$76>5,NA(),IF(D94<I94,MAX(W$78:$W94)+1,0)) -> 0 | AA94: 1 | AB94: 0 | AE94: 0 | AF94: 0 | AI94: 1 | AJ94: 0 | AM94: 0 | AN94: 0
B95: 2019-06-01 | C95: =IFERROR(IF(GETPIVOTDATA("Value",Pivots!$A$6,"Month",$B95,"Delay reason",$C$20)=0,"",GETPIVOTDATA("Value",Pivots!$A$6,"Month",$B95,"Delay reason",$C$20)),NA()) -> 24777 | D95: 24777 | G95: 25073.36 | H95: 28788.27167 | I95: 21358.44833 | N95: 2019-06-01 | O95: 1553 | P95: 1396.583333 | Q95: 3714.911667 | R95: 4566.8275 | W95: =IF($D$76>5,NA(),IF(D95>H95,MAX(W$78:$W94)+1,0)) -> 0 | X95: =IF($D$76>5,NA(),IF(D95<I95,MAX(W$78:$W95)+1,0)) -> 0 | AA95: 0 | AB95: 0 | AE95: 1 | AF95: 0 | AI95: 0 | AJ95: 0 | AM95: 1 | AN95: 0
B96: 2019-07-01 | C96: =IFERROR(IF(GETPIVOTDATA("Value",Pivots!$A$6,"Month",$B96,"Delay reason",$C$20)=0,"",GETPIVOTDATA("Value",Pivots!$A$6,"Month",$B96,"Delay reason",$C$20)),NA()) -> 25100 | D96: 25100 | G96: 25073.36 | H96: 28788.27167 | I96: 21358.44833 | N96: 2019-07-01 | O96: 323 | P96: 1396.583333 | Q96: 3714.911667 | R96: 4566.8275 | W96: =IF($D$76>5,NA(),IF(D96>H96,MAX(W$78:$W95)+1,0)) -> 0 | X96: =IF($D$76>5,NA(),IF(D96<I96,MAX(W$78:$W96)+1,0)) -> 0 | AA96: 1 | AB96: 0 | AE96: 0 | AF96: 0 | AI96: 1 | AJ96: 0 | AM96: 0 | AN96: 0
B97: 2019-08-01 | C97: =IFERROR(IF(GETPIVOTDATA("Value",Pivots!$A$6,"Month",$B97,"Delay reason",$C$20)=0,"",GETPIVOTDATA("Value",Pivots!$A$6,"Month",$B97,"Delay reason",$C$20)),NA()) -> 24475 | D97: 24475 | G97: 25073.36 | H97: 28788.27167 | I97: 21358.44833 | N97: 2019-08-01 | O97: 625 | P97: 1396.583333 | Q97: 3714.911667 | R97: 4566.8275 | W97: =IF($D$76>5,NA(),IF(D97>H97,MAX(W$78:$W96)+1,0)) -> 0 | X97: =IF($D$76>5,NA(),IF(D97<I97,MAX(W$78:$W97)+1,0)) -> 0 | AA97: 0 | AB97: 0 | AE97: 1 | AF97: 0 | AI97: 0 | AJ97: 0 | AM97: 1 | AN97: 0
B98: 2019-09-01 | C98: =IFERROR(IF(GETPIVOTDATA("Value",Pivots!$A$6,"Month",$B98,"Delay reason",$C$20)=0,"",GETPIVOTDATA("Value",Pivots!$A$6,"Month",$B98,"Delay reason",$C$20)),NA()) -> 24587 | D98: 24587 | G98: 25073.36 | H98: 28788.27167 | I98: 21358.44833 | N98: 2019-09-01 | O98: 112 | P98: 1396.583333 | Q98: 3714.911667 | R98: 4566.8275 | W98: =IF($D$76>5,NA(),IF(D98>H98,MAX(W$78:$W97)+1,0)) -> 0 | X98: =IF($D$76>5,NA(),IF(D98<I98,MAX(W$78:$W98)+1,0)) -> 0 | AA98: 0 | AB98: 0 | AE98: 1 | AF98: 0 | AI98: 1 | AJ98: 0 | AM98: 0 | AN98: 0
B99: 2019-10-01 | C99: =IFERROR(IF(GETPIVOTDATA("Value",Pivots!$A$6,"Month",$B99,"Delay reason",$C$20)=0,"",GETPIVOTDATA("Value",Pivots!$A$6,"Month",$B99,"Delay reason",$C$20)),NA()) -> 26023 | D99: 26023 | G99: 25073.36 | H99: 28788.27167 | I99: 21358.44833 | N99: 2019-10-01 | O99: 1436 | P99: =IF(O99="",P98,AVERAGE(IF($O$79:$O$103<>"",$O$79:$O$103))) -> 1396.583333 | Q99: 3714.911667 | R99: 4566.8275 | W99: =IF($D$76>5,NA(),IF(D99>H99,MAX(W$78:$W98)+1,0)) -> 0 | X99: =IF($D$76>5,NA(),IF(D99<I99,MAX(W$78:$W99)+1,0)) -> 0 | AA99: 1 | AB99: 0 | AE99: 0 | AF99: 0 | AI99: 1 | AJ99: 0 | AM99: 0 | AN99: 0
B100: 2019-11-01 | C100: =IFERROR(IF(GETPIVOTDATA("Value",Pivots!$A$6,"Month",$B100,"Delay reason",$C$20)=0,"",GETPIVOTDATA("Value",Pivots!$A$6,"Month",$B100,"Delay reason",$C$20)),NA()) -> 25343 | D100: 25343 | G100: 25073.36 | H100: 28788.27167 | I100: 21358.44833 | N100: 2019-11-01 | O100: 680 | P100: 1396.583333 | Q100: 3714.911667 | R100: 4566.8275 | W100: =IF($D$76>5,NA(),IF(D100>H100,MAX(W$78:$W99)+1,0)) -> 0 | X100: =IF($D$76>5,NA(),IF(D100<I100,MAX(W$78:$W100)+1,0)) -> 0 | AA100: 1 | AB100: =IFERROR(IF(AND(AB99=1,AA100=1),1,IF(SUM(AA100:AA103)>=7,1,0)),NA()) -> 0 | AC100: =IF(AB100=0,NA(),C100) ->  | AE100: 0 | AF100: =IFERROR(IF(AND(AF99=1,AE100=1),1,IF(SUM(AE100:AE103)>=7,1,0)),NA()) -> 0 | AG100: =IF(AF100=0,NA(),C100) ->  | AI100: 0 | AJ100: 0 | AM100: 1 | AN100: 0
B101: 2019-12-01 | C101: =IFERROR(IF(GETPIVOTDATA("Value",Pivots!$A$6,"Month",$B101,"Delay reason",$C$20)=0,"",GETPIVOTDATA("Value",Pivots!$A$6,"Month",$B101,"Delay reason",$C$20)),NA()) -> 25704 | D101: 25704 | G101: 25073.36 | H101: 28788.27167 | I101: 21358.44833 | N101: 2019-12-01 | O101: 361 | P101: 1396.583333 | Q101: 3714.911667 | R101: 4566.8275 | W101: =IF($D$76>5,NA(),IF(D101>H101,MAX(W$78:$W100)+1,0)) -> 0 | X101: =IF($D$76>5,NA(),IF(D101<I101,MAX(W$78:$W101)+1,0)) -> 0 | AA101: 1 | AB101: =IFERROR(IF(AND(AB100=1,AA101=1),1,IF(SUM(AA101:AA103)>=7,1,0)),NA()) -> 0 | AC101: =IF(AB101=0,NA(),C101) ->  | AE101: 0 | AF101: =IFERROR(IF(AND(AF100=1,AE101=1),1,IF(SUM(AE101:AE103)>=7,1,0)),NA()) -> 0 | AG101: =IF(AF101=0,NA(),C101) ->  | AI101: 1 | AJ101: 0 | AM101: 0 | AN101: 0
B102: 2020-01-01 | C102: =IFERROR(IF(GETPIVOTDATA("Value",Pivots!$A$6,"Month",$B102,"Delay reason",$C$20)=0,"",GETPIVOTDATA("Value",Pivots!$A$6,"Month",$B102,"Delay reason",$C$20)),NA()) -> 29825 | D102: 29825 | G102: 25073.36 | H102: 28788.27167 | I102: 21358.44833 | N102: 2020-01-01 | O102: 4121 | P102: 1396.583333 | Q102: 3714.911667 | R102: 4566.8275 | W102: =IF($D$76>5,NA(),IF(D102>H102,MAX(W$78:$W101)+1,0)) -> 2 | X102: =IF($D$76>5,NA(),IF(D102<I102,MAX(W$78:$W102)+1,0)) -> 0 | Y102: 29825 | AA102: 1 | AB102: =IFERROR(IF(AND(AB101=1,AA102=1),1,IF(SUM(AA102:AA108)>=7,1,0)),NA()) -> 0 | AE102: 0 | AF102: =IFERROR(IF(AND(AF101=1,AE102=1),1,IF(SUM(AE102:AE103)>=7,1,0)),NA()) -> 0 | AI102: 1 | AJ102: 0 | AM102: 0 | AN102: 0 | AQ102: 29825
B103: 2020-02-01 | C103: =IFERROR(IF(GETPIVOTDATA("Value",Pivots!$A$6,"Month",$B103,"Delay reason",$C$20)=0,"",GETPIVOTDATA("Value",Pivots!$A$6,"Month",$B103,"Delay reason",$C$20)),NA()) -> 28717 | D103: 28717 | G103: 25073.36 | H103: 28788.27167 | I103: 21358.44833 | N103: 2020-02-01 | O103: 1108 | P103: =IF(O103="",P102,AVERAGE(IF($O$79:$O$103<>"",$O$79:$O$103))) -> 1396.583333 | Q103: =IF(ISERROR((P103*2.66)),Q104,(P103*2.66)) -> 3714.911667 | R103: 4566.8275 | W103: =IF($D$76>5,NA(),IF(D103>H103,MAX(W$78:$W102)+1,0)) -> 0 | X103: =IF($D$76>5,NA(),IF(D103<I103,MAX(W$78:$W103)+1,0)) -> 0 | AA103: =IFERROR(IF($D$76>5,NA(), IF(D103>G103,1,0)),0) -> 1 | AB103: =IFERROR(IF(AND(AB102=1,AA103=1),1,IF(SUM(AA103)>=7,1,0)),NA()) -> 0 | AE103: 0 | AF103: =IFERROR(IF(AND(AF102=1,AE103=1),1,IF(SUM(AE103)>=7,1,0)),NA()) -> 0 | AI103: =IF($D$76>5,NA(),IF(D103>D102,1,0)) -> 0 | AJ103: 0 | AM103: 1 | AN103: 0
D104: Count IF data point is zero
B105: =C21 -> Dii) Awaiting nursing home placement or availability | D105: =COUNTIF(D108:D132,0) -> 0
B106: =B37 -> 5 | C106: =ROW() -> 106 | H106: Upper | I106: Lower | N106: Date | O106: Difference | Q106: Sigma | W106: > 3 | X106: < 3 | AA106: 7 points above/below mean | AI106: Trend up/down | AQ106: chart 3
B107: ID (Week no.) | C107: Plot data | D107: Data | G107: Mean | H107: Control limits | I107: control limit (-3) | O107: For. Roll avg | P107: Cumul. Moving Avg. | Q107: 2.66* MR | R107: 3.27*MR | W107: Count | X107: Count | Y107: Above 3 sigma | Z107: Below 3 sigma | AA107: 7 points > mean | AB107: Count of 7point | AC107: 7 points above mean | AE107: 7 points <mean | AF107: Count of 7 point | AG107: 6 points below mean | AI107: Trend up | AM107: Trend Down | AQ107: Concern | AR107: Improvement
B108: =D8 -> 2018-02-01 | C108: =IFERROR(IF(GETPIVOTDATA("Value",Pivots!$A$6,"Month",$B108,"Delay reason",$C$21)=0,"",GETPIVOTDATA("Value",Pivots!$A$6,"Month",$B108,"Delay reason",$C$21)),NA()) -> 19461 | D108: =IFERROR(IF(C108="",0,C108),"") -> 19461 | G108: =AVERAGE($D$108:$D$132) -> 19334.84 | H108: =IF($D$105>5,NA(),IF(D108="",H107,G108+Q108)) -> 21670.20917 | I108: =IF($D$105>5,NA(),IF(D108="",I107,G108-Q108)) -> 16999.47083 | N108: =B108 -> 2018-02-01 | P108: =IF(O108="",P107,AVERAGE(IF($O$108:$O$132<>"",$O$108:$O$132))) -> Cumul. Moving Avg. | Q108: =Q109 -> 2335.369167 | R108: =R109 -> 2870.92375 | W108: =IF($D$105>5,NA(),IF(D108>H108,MAX(W$107:$W107)+1,0)) -> 0 | X108: =IF($D$105>5,NA(),IF(D108<I108,MAX(W$107:$W107)+1,0)) -> 0 | Y108: =IF(W108>0,C108,NA()) ->  | Z108: =IF(X108>0,D108,NA()) ->  | AA108: =IFERROR(IF($D$105>5,NA(), IF(D108>G108,1,0)),0) -> 1 | AB108: =IFERROR(IF(AND(AB107=1,AA108=1),1,IF(SUM(AA108:AA114)>=7,1,0)),NA()) -> 0 | AC108: =IF(AB108=0,NA(),C108) ->  | AE108: =IFERROR(IF($D$105>5,NA(), IF(D108<G108,1,0)),0) -> 0 | AF108: =IFERROR(IF(AND(AF107=1,AE108=1),1,IF(SUM(AE108:AE114)>=7,1,0)),NA()) -> 0 | AG108: =IF(AF108=0,NA(),C108) ->  | AI108: =IF($D$105>5,NA(),IF(D108>D107,1,0)) -> 0 | AJ108: =IFERROR(IF(AND(AJ107=1,AI108=1),1,IF(SUM(AI108:AI114)>=7,1,0)),NA()) -> 0 | AK108: =IF(AJ108=0,NA(),C108) ->  | AM108: =IF($D$105>5,NA(),IF(D108<D107,1,0)) -> 1 | AN108: =IFERROR(IF(AND(AN107=1,AM108=1),1,IF(SUM(AM108:AM114)>=7,1,0)),NA()) -> 0 | AO108: =IF(AN108=0,NA(),C108) ->  | AQ108: =IF(OR(W108>0,AB108>0,AJ108>0),C108,NA()) ->  | AR108: =IF(OR(X108>0,AF108>0,AN108>0),D108,NA()) -> 
B109: =IF(DAY(B108+31)=1,B108+31,B108+31-DAY(B108+31)+1) -> 2018-03-01 | C109: =IFERROR(IF(GETPIVOTDATA("Value",Pivots!$A$6,"Month",$B109,"Delay reason",$C$21)=0,"",GETPIVOTDATA("Value",Pivots!$A$6,"Month",$B109,"Delay reason",$C$21)),NA()) -> 20569 | D109: =IFERROR(IF(C109="",0,C109),"") -> 20569 | G109: =AVERAGE($D$108:$D$132) -> 19334.84 | H109: =IF($D$105>5,NA(),IF(D109="",H108,G109+Q109)) -> 21670.20917 | I109: =IF($D$105>5,NA(),IF(D109="",I108,G109-Q109)) -> 16999.47083 | N109: =B109 -> 2018-03-01 | O109: =IF(D108="","",IF(D109="","",ABS(D108-D109))) -> 1108 | P109: 877.9583333 | Q109: =IF(ISERROR((P109*2.66)),Q110,(P109*2.66)) -> 2335.369167 | R109: =$P109*3.27 -> 2870.92375 | W109: =IF($D$105>5,NA(),IF(D109>H109,MAX(W$107:$W108)+1,0)) -> 0 | X109: =IF($D$105>5,NA(),IF(D109<I109,MAX(W$107:$W108)+1,0)) -> 0 | Y109: =IF(W109>0,C109,NA()) ->  | Z109: =IF(X109>0,D109,NA()) ->  | AA109: =IFERROR(IF($D$105>5,NA(), IF(D109>G109,1,0)),0) -> 1 | AB109: =IFERROR(IF(AND(AB108=1,AA109=1),1,IF(SUM(AA109:AA115)>=7,1,0)),NA()) -> 0 | AC109: =IF(AB109=0,NA(),C109) ->  | AE109: =IFERROR(IF($D$105>5,NA(), IF(D109<G109,1,0)),0) -> 0 | AF109: =IFERROR(IF(AND(AF108=1,AE109=1),1,IF(SUM(AE109:AE115)>=7,1,0)),NA()) -> 0 | AG109: =IF(AF109=0,NA(),C109) ->  | AI109: =IF($D$105>5,NA(),IF(D109>D108,1,0)) -> 1 | AJ109: =IFERROR(IF(AND(AJ108=1,AI109=1),1,IF(SUM(AI109:AI115)>=7,1,0)),NA()) -> 0 | AK109: =IF(AJ109=0,NA(),C109) ->  | AM109: =IF($D$105>5,NA(),IF(D109<D108,1,0)) -> 0 | AN109: =IFERROR(IF(AND(AN108=1,AM109=1),1,IF(SUM(AM109:AM115)>=7,1,0)),NA()) -> 0 | AO109: =IF(AN109=0,NA(),C109) ->  | AQ109: =IF(OR(W109>0,AB109>0,AJ109>0),C109,NA()) ->  | AR109: =IF(OR(X109>0,AF109>0,AN109>0),D109,NA()) -> 
B110: =IF(DAY(B109+31)=1,B109+31,B109+31-DAY(B109+31)+1) -> 2018-04-01 | C110: =IFERROR(IF(GETPIVOTDATA("Value",Pivots!$A$6,"Month",$B110,"Delay reason",$C$21)=0,"",GETPIVOTDATA("Value",Pivots!$A$6,"Month",$B110,"Delay reason",$C$21)),NA()) -> 19803 | D110: 19803 | G110: 19334.84 | H110: 21670.20917 | I110: 16999.47083 | N110: 2018-04-01 | O110: =IF(D109="","",IF(D110="","",ABS(D109-D110))) -> 766 | P110: 877.9583333 | Q110: =IF(ISERROR((P110*2.66)),Q111,(P110*2.66)) -> 2335.369167 | R110: =$P110*3.27 -> 2870.92375 | W110: =IF($D$105>5,NA(),IF(D110>H110,MAX(W$107:$W109)+1,0)) -> 0 | X110: =IF($D$105>5,NA(),IF(D110<I110,MAX(W$107:$W109)+1,0)) -> 0 | AA110: 1 | AB110: 0 | AE110: 0 | AF110: 0 | AI110: 0 | AJ110: 0 | AK110: =IF(AJ110=0,NA(),C110) ->  | AM110: 1 | AN110: 0 | AO110: =IF(AN110=0,NA(),C110) -> 
B111: 2018-05-01 | C111: =IFERROR(IF(GETPIVOTDATA("Value",Pivots!$A$6,"Month",$B111,"Delay reason",$C$21)=0,"",GETPIVOTDATA("Value",Pivots!$A$6,"Month",$B111,"Delay reason",$C$21)),NA()) -> 19173 | D111: 19173 | G111: 19334.84 | H111: 21670.20917 | I111: 16999.47083 | N111: 2018-05-01 | O111: 630 | P111: 877.9583333 | Q111: =IF(ISERROR((P111*2.66)),Q112,(P111*2.66)) -> 2335.369167 | R111: 2870.92375 | W111: =IF($D$105>5,NA(),IF(D111>H111,MAX(W$107:$W110)+1,0)) -> 0 | X111: =IF($D$105>5,NA(),IF(D111<I111,MAX(W$107:$W110)+1,0)) -> 0 | AA111: 0 | AB111: 0 | AE111: 1 | AF111: 0 | AI111: 0 | AJ111: 0 | AM111: 1 | AN111: 0
B112: 2018-06-01 | C112: =IFERROR(IF(GETPIVOTDATA("Value",Pivots!$A$6,"Month",$B112,"Delay reason",$C$21)=0,"",GETPIVOTDATA("Value",Pivots!$A$6,"Month",$B112,"Delay reason",$C$21)),NA()) -> 18511 | D112: 18511 | G112: 19334.84 | H112: 21670.20917 | I112: 16999.47083 | N112: 2018-06-01 | O112: 662 | P112: 877.9583333 | Q112: =IF(ISERROR((P112*2.66)),Q113,(P112*2.66)) -> 2335.369167 | R112: 2870.92375 | W112: =IF($D$105>5,NA(),IF(D112>H112,MAX(W$107:$W111)+1,0)) -> 0 | X112: =IF($D$105>5,NA(),IF(D112<I112,MAX(W$107:$W111)+1,0)) -> 0 | AA112: 0 | AB112: 0 | AE112: 1 | AF112: 0 | AI112: 0 | AJ112: 0 | AM112: 1 | AN112: 0
B113: 2018-07-01 | C113: =IFERROR(IF(GETPIVOTDATA("Value",Pivots!$A$6,"Month",$B113,"Delay reason",$C$21)=0,"",GETPIVOTDATA("Value",Pivots!$A$6,"Month",$B113,"Delay reason",$C$21)),NA()) -> 19331 | D113: 19331 | G113: 19334.84 | H113: 21670.20917 | I113: 16999.47083 | N113: 2018-07-01 | O113: 820 | P113: 877.9583333 | Q113: 2335.369167 | R113: 2870.92375 | W113: =IF($D$105>5,NA(),IF(D113>H113,MAX(W$107:$W112)+1,0)) -> 0 | X113: =IF($D$105>5,NA(),IF(D113<I113,MAX(W$107:$W112)+1,0)) -> 0 | AA113: 0 | AB113: 0 | AE113: 1 | AF113: 0 | AI113: 1 | AJ113: 0 | AM113: 0 | AN113: 0
B114: 2018-08-01 | C114: =IFERROR(IF(GETPIVOTDATA("Value",Pivots!$A$6,"Month",$B114,"Delay reason",$C$21)=0,"",GETPIVOTDATA("Value",Pivots!$A$6,"Month",$B114,"Delay reason",$C$21)),NA()) -> 20672 | D114: 20672 | G114: 19334.84 | H114: 21670.20917 | I114: 16999.47083 | N114: 2018-08-01 | O114: 1341 | P114: 877.9583333 | Q114: 2335.369167 | R114: 2870.92375 | W114: =IF($D$105>5,NA(),IF(D114>H114,MAX(W$107:$W113)+1,0)) -> 0 | X114: =IF($D$105>5,NA(),IF(D114<I114,MAX(W$107:$W113)+1,0)) -> 0 | AA114: 1 | AB114: 0 | AE114: 0 | AF114: 0 | AI114: 1 | AJ114: 0 | AM114: 0 | AN114: 0
B115: 2018-09-01 | C115: =IFERROR(IF(GETPIVOTDATA("Value",Pivots!$A$6,"Month",$B115,"Delay reason",$C$21)=0,"",GETPIVOTDATA("Value",Pivots!$A$6,"Month",$B115,"Delay reason",$C$21)),NA()) -> 21063 | D115: 21063 | G115: 19334.84 | H115: 21670.20917 | I115: 16999.47083 | N115: 2018-09-01 | O115: 391 | P115: 877.9583333 | Q115: 2335.369167 | R115: 2870.92375 | W115: =IF($D$105>5,NA(),IF(D115>H115,MAX(W$107:$W114)+1,0)) -> 0 | X115: =IF($D$105>5,NA(),IF(D115<I115,MAX(W$107:$W114)+1,0)) -> 0 | AA115: 1 | AB115: 0 | AE115: 0 | AF115: 0 | AI115: 1 | AJ115: 0 | AM115: 0 | AN115: 0
B116: 2018-10-01 | C116: =IFERROR(IF(GETPIVOTDATA("Value",Pivots!$A$6,"Month",$B116,"Delay reason",$C$21)=0,"",GETPIVOTDATA("Value",Pivots!$A$6,"Month",$B116,"Delay reason",$C$21)),NA()) -> 21062 | D116: 21062 | G116: 19334.84 | H116: 21670.20917 | I116: 16999.47083 | N116: 2018-10-01 | O116: 1 | P116: 877.9583333 | Q116: 2335.369167 | R116: 2870.92375 | W116: =IF($D$105>5,NA(),IF(D116>H116,MAX(W$107:$W115)+1,0)) -> 0 | X116: =IF($D$105>5,NA(),IF(D116<I116,MAX(W$107:$W115)+1,0)) -> 0 | AA116: 1 | AB116: 0 | AE116: 0 | AF116: 0 | AI116: 0 | AJ116: 0 | AM116: 1 | AN116: 0
B117: 2018-11-01 | C117: =IFERROR(IF(GETPIVOTDATA("Value",Pivots!$A$6,"Month",$B117,"Delay reason",$C$21)=0,"",GETPIVOTDATA("Value",Pivots!$A$6,"Month",$B117,"Delay reason",$C$21)),NA()) -> 19943 | D117: 19943 | G117: 19334.84 | H117: 21670.20917 | I117: 16999.47083 | N117: 2018-11-01 | O117: 1119 | P117: 877.9583333 | Q117: 2335.369167 | R117: 2870.92375 | W117: =IF($D$105>5,NA(),IF(D117>H117,MAX(W$107:$W116)+1,0)) -> 0 | X117: =IF($D$105>5,NA(),IF(D117<I117,MAX(W$107:$W116)+1,0)) -> 0 | AA117: 1 | AB117: 0 | AE117: 0 | AF117: 0 | AI117: 0 | AJ117: 0 | AM117: 1 | AN117: 0
B118: 2018-12-01 | C118: =IFERROR(IF(GETPIVOTDATA("Value",Pivots!$A$6,"Month",$B118,"Delay reason",$C$21)=0,"",GETPIVOTDATA("Value",Pivots!$A$6,"Month",$B118,"Delay reason",$C$21)),NA()) -> 18394 | D118: 18394 | G118: 19334.84 | H118: 21670.20917 | I118: 16999.47083 | N118: 2018-12-01 | O118: 1549 | P118: 877.9583333 | Q118: 2335.369167 | R118: 2870.92375 | W118: =IF($D$105>5,NA(),IF(D118>H118,MAX(W$107:$W117)+1,0)) -> 0 | X118: =IF($D$105>5,NA(),IF(D118<I118,MAX(W$107:$W117)+1,0)) -> 0 | AA118: 0 | AB118: 0 | AE118: 1 | AF118: 1 | AG118: 18394 | AI118: 0 | AJ118: 0 | AM118: 1 | AN118: 0 | AR118: 18394
B119: 2019-01-01 | C119: =IFERROR(IF(GETPIVOTDATA("Value",Pivots!$A$6,"Month",$B119,"Delay reason",$C$21)=0,"",GETPIVOTDATA("Value",Pivots!$A$6,"Month",$B119,"Delay reason",$C$21)),NA()) -> 17584 | D119: 17584 | G119: 19334.84 | H119: 21670.20917 | I119: 16999.47083 | N119: 2019-01-01 | O119: 810 | P119: 877.9583333 | Q119: 2335.369167 | R119: 2870.92375 | W119: =IF($D$105>5,NA(),IF(D119>H119,MAX(W$107:$W118)+1,0)) -> 0 | X119: =IF($D$105>5,NA(),IF(D119<I119,MAX(W$107:$W118)+1,0)) -> 0 | AA119: 0 | AB119: 0 | AE119: 1 | AF119: 1 | AG119: 17584 | AI119: 0 | AJ119: 0 | AM119: 1 | AN119: 0 | AR119: 17584
B120: 2019-02-01 | C120: =IFERROR(IF(GETPIVOTDATA("Value",Pivots!$A$6,"Month",$B120,"Delay reason",$C$21)=0,"",GETPIVOTDATA("Value",Pivots!$A$6,"Month",$B120,"Delay reason",$C$21)),NA()) -> 17459 | D120: 17459 | G120: 19334.84 | H120: 21670.20917 | I120: 16999.47083 | N120: 2019-02-01 | O120: 125 | P120: 877.9583333 | Q120: 2335.369167 | R120: 2870.92375 | W120: =IF($D$105>5,NA(),IF(D120>H120,MAX(W$107:$W119)+1,0)) -> 0 | X120: =IF($D$105>5,NA(),IF(D120<I120,MAX(W$107:$W119)+1,0)) -> 0 | AA120: 0 | AB120: 0 | AE120: 1 | AF120: 1 | AG120: 17459 | AI120: 0 | AJ120: 0 | AM120: 1 | AN120: 0 | AR120: 17459
B121: 2019-03-01 | C121: =IFERROR(IF(GETPIVOTDATA("Value",Pivots!$A$6,"Month",$B121,"Delay reason",$C$21)=0,"",GETPIVOTDATA("Value",Pivots!$A$6,"Month",$B121,"Delay reason",$C$21)),NA()) -> 18380 | D121: 18380 | G121: 19334.84 | H121: 21670.20917 | I121: 16999.47083 | N121: 2019-03-01 | O121: 921 | P121: 877.9583333 | Q121: 2335.369167 | R121: 2870.92375 | W121: =IF($D$105>5,NA(),IF(D121>H121,MAX(W$107:$W120)+1,0)) -> 0 | X121: =IF($D$105>5,NA(),IF(D121<I121,MAX(W$107:$W120)+1,0)) -> 0 | AA121: 0 | AB121: 0 | AE121: 1 | AF121: 1 | AG121: 18380 | AI121: 1 | AJ121: 0 | AM121: 0 | AN121: 0 | AR121: 18380
B122: 2019-04-01 | C122: =IFERROR(IF(GETPIVOTDATA("Value",Pivots!$A$6,"Month",$B122,"Delay reason",$C$21)=0,"",GETPIVOTDATA("Value",Pivots!$A$6,"Month",$B122,"Delay reason",$C$21)),NA()) -> 17100 | D122: 17100 | G122: 19334.84 | H122: 21670.20917 | I122: 16999.47083 | N122: 2019-04-01 | O122: 1280 | P122: 877.9583333 | Q122: 2335.369167 | R122: 2870.92375 | W122: =IF($D$105>5,NA(),IF(D122>H122,MAX(W$107:$W121)+1,0)) -> 0 | X122: =IF($D$105>5,NA(),IF(D122<I122,MAX(W$107:$W121)+1,0)) -> 0 | AA122: 0 | AB122: 0 | AE122: 1 | AF122: 1 | AG122: 17100 | AI122: 0 | AJ122: 0 | AM122: 1 | AN122: 0 | AR122: 17100
B123: 2019-05-01 | C123: =IFERROR(IF(GETPIVOTDATA("Value",Pivots!$A$6,"Month",$B123,"Delay reason",$C$21)=0,"",GETPIVOTDATA("Value",Pivots!$A$6,"Month",$B123,"Delay reason",$C$21)),NA()) -> 17102 | D123: 17102 | G123: 19334.84 | H123: 21670.20917 | I123: 16999.47083 | N123: 2019-05-01 | O123: 2 | P123: 877.9583333 | Q123: 2335.369167 | R123: 2870.92375 | W123: =IF($D$105>5,NA(),IF(D123>H123,MAX(W$107:$W122)+1,0)) -> 0 | X123: =IF($D$105>5,NA(),IF(D123<I123,MAX(W$107:$W122)+1,0)) -> 0 | AA123: 0 | AB123: 0 | AE123: 1 | AF123: 1 | AG123: 17102 | AI123: 1 | AJ123: 0 | AM123: 0 | AN123: 0 | AR123: 17102
B124: 2019-06-01 | C124: =IFERROR(IF(GETPIVOTDATA("Value",Pivots!$A$6,"Month",$B124,"Delay reason",$C$21)=0,"",GETPIVOTDATA("Value",Pivots!$A$6,"Month",$B124,"Delay reason",$C$21)),NA()) -> 17453 | D124: 17453 | G124: 19334.84 | H124: 21670.20917 | I124: 16999.47083 | N124: 2019-06-01 | O124: 351 | P124: 877.9583333 | Q124: 2335.369167 | R124: 2870.92375 | W124: =IF($D$105>5,NA(),IF(D124>H124,MAX(W$107:$W123)+1,0)) -> 0 | X124: =IF($D$105>5,NA(),IF(D124<I124,MAX(W$107:$W123)+1,0)) -> 0 | AA124: 0 | AB124: 0 | AE124: 1 | AF124: 1 | AG124: 17453 | AI124: 1 | AJ124: 0 | AM124: 0 | AN124: 0 | AR124: 17453
B125: 2019-07-01 | C125: =IFERROR(IF(GETPIVOTDATA("Value",Pivots!$A$6,"Month",$B125,"Delay reason",$C$21)=0,"",GETPIVOTDATA("Value",Pivots!$A$6,"Month",$B125,"Delay reason",$C$21)),NA()) -> 19140 | D125: 19140 | G125: 19334.84 | H125: 21670.20917 | I125: 16999.47083 | N125: 2019-07-01 | O125: 1687 | P125: 877.9583333 | Q125: 2335.369167 | R125: 2870.92375 | W125: =IF($D$105>5,NA(),IF(D125>H125,MAX(W$107:$W124)+1,0)) -> 0 | X125: =IF($D$105>5,NA(),IF(D125<I125,MAX(W$107:$W124)+1,0)) -> 0 | AA125: 0 | AB125: 0 | AE125: 1 | AF125: 1 | AG125: 19140 | AI125: 1 | AJ125: 0 | AM125: 0 | AN125: 0 | AR125: 19140
B126: 2019-08-01 | C126: =IFERROR(IF(GETPIVOTDATA("Value",Pivots!$A$6,"Month",$B126,"Delay reason",$C$21)=0,"",GETPIVOTDATA("Value",Pivots!$A$6,"Month",$B126,"Delay reason",$C$21)),NA()) -> 20205 | D126: 20205 | G126: 19334.84 | H126: 21670.20917 | I126: 16999.47083 | N126: 2019-08-01 | O126: 1065 | P126: 877.9583333 | Q126: 2335.369167 | R126: 2870.92375 | W126: =IF($D$105>5,NA(),IF(D126>H126,MAX(W$107:$W125)+1,0)) -> 0 | X126: =IF($D$105>5,NA(),IF(D126<I126,MAX(W$107:$W125)+1,0)) -> 0 | AA126: 1 | AB126: 1 | AC126: 20205 | AE126: 0 | AF126: 0 | AI126: 1 | AJ126: 0 | AM126: 0 | AN126: 0 | AQ126: 20205
B127: 2019-09-01 | C127: =IFERROR(IF(GETPIVOTDATA("Value",Pivots!$A$6,"Month",$B127,"Delay reason",$C$21)=0,"",GETPIVOTDATA("Value",Pivots!$A$6,"Month",$B127,"Delay reason",$C$21)),NA()) -> 19644 | D127: 19644 | G127: 19334.84 | H127: 21670.20917 | I127: 16999.47083 | N127: 2019-09-01 | O127: 561 | P127: 877.9583333 | Q127: 2335.369167 | R127: 2870.92375 | W127: =IF($D$105>5,NA(),IF(D127>H127,MAX(W$107:$W126)+1,0)) -> 0 | X127: =IF($D$105>5,NA(),IF(D127<I127,MAX(W$107:$W126)+1,0)) -> 0 | AA127: 1 | AB127: 1 | AC127: 19644 | AE127: 0 | AF127: 0 | AI127: 0 | AJ127: 0 | AM127: 1 | AN127: 0 | AQ127: 19644
B128: 2019-10-01 | C128: =IFERROR(IF(GETPIVOTDATA("Value",Pivots!$A$6,"Month",$B128,"Delay reason",$C$21)=0,"",GETPIVOTDATA("Value",Pivots!$A$6,"Month",$B128,"Delay reason",$C$21)),NA()) -> 21881 | D128: 21881 | G128: 19334.84 | H128: 21670.20917 | I128: 16999.47083 | N128: 2019-10-01 | O128: 2237 | P128: 877.9583333 | Q128: 2335.369167 | R128: 2870.92375 | W128: =IF($D$105>5,NA(),IF(D128>H128,MAX(W$107:$W127)+1,0)) -> 1 | X128: =IF($D$105>5,NA(),IF(D128<I128,MAX(W$107:$W127)+1,0)) -> 0 | Y128: 21881 | AA128: 1 | AB128: 1 | AC128: 21881 | AE128: 0 | AF128: 0 | AI128: 1 | AJ128: 0 | AM128: 0 | AN128: 0 | AQ128: 21881
B129: 2019-11-01 | C129: =IFERROR(IF(GETPIVOTDATA("Value",Pivots!$A$6,"Month",$B129,"Delay reason",$C$21)=0,"",GETPIVOTDATA("Value",Pivots!$A$6,"Month",$B129,"Delay reason",$C$21)),NA()) -> 20004 | D129: 20004 | G129: 19334.84 | H129: 21670.20917 | I129: 16999.47083 | N129: 2019-11-01 | O129: 1877 | P129: 877.9583333 | Q129: 2335.369167 | R129: 2870.92375 | W129: =IF($D$105>5,NA(),IF(D129>H129,MAX(W$107:$W128)+1,0)) -> 0 | X129: =IF($D$105>5,NA(),IF(D129<I129,MAX(W$107:$W128)+1,0)) -> 0 | AA129: 1 | AB129: =IFERROR(IF(AND(AB128=1,AA129=1),1,IF(SUM(AA129:AA132)>=7,1,0)),NA()) -> 1 | AC129: =IF(AB129=0,NA(),C129) -> 20004 | AE129: 0 | AF129: =IFERROR(IF(AND(AF128=1,AE129=1),1,IF(SUM(AE129:AE132)>=7,1,0)),NA()) -> 0 | AG129: =IF(AF129=0,NA(),C129) ->  | AI129: 0 | AJ129: 0 | AM129: 1 | AN129: 0 | AQ129: 20004
B130: 2019-12-01 | C130: =IFERROR(IF(GETPIVOTDATA("Value",Pivots!$A$6,"Month",$B130,"Delay reason",$C$21)=0,"",GETPIVOTDATA("Value",Pivots!$A$6,"Month",$B130,"Delay reason",$C$21)),NA()) -> 19344 | D130: 19344 | G130: 19334.84 | H130: 21670.20917 | I130: 16999.47083 | N130: 2019-12-01 | O130: 660 | P130: 877.9583333 | Q130: 2335.369167 | R130: 2870.92375 | W130: =IF($D$105>5,NA(),IF(D130>H130,MAX(W$107:$W129)+1,0)) -> 0 | X130: =IF($D$105>5,NA(),IF(D130<I130,MAX(W$107:$W129)+1,0)) -> 0 | AA130: 1 | AB130: =IFERROR(IF(AND(AB129=1,AA130=1),1,IF(SUM(AA130:AA132)>=7,1,0)),NA()) -> 1 | AC130: =IF(AB130=0,NA(),C130) -> 19344 | AE130: 0 | AF130: =IFERROR(IF(AND(AF129=1,AE130=1),1,IF(SUM(AE130:AE132)>=7,1,0)),NA()) -> 0 | AG130: =IF(AF130=0,NA(),C130) ->  | AI130: 0 | AJ130: 0 | AM130: 1 | AN130: 0 | AQ130: 19344
B131: 2020-01-01 | C131: =IFERROR(IF(GETPIVOTDATA("Value",Pivots!$A$6,"Month",$B131,"Delay reason",$C$21)=0,"",GETPIVOTDATA("Value",Pivots!$A$6,"Month",$B131,"Delay reason",$C$21)),NA()) -> 19641 | D131: 19641 | G131: 19334.84 | H131: 21670.20917 | I131: 16999.47083 | N131: 2020-01-01 | O131: 297 | P131: 877.9583333 | Q131: 2335.369167 | R131: 2870.92375 | W131: =IF($D$105>5,NA(),IF(D131>H131,MAX(W$107:$W130)+1,0)) -> 0 | X131: =IF($D$105>5,NA(),IF(D131<I131,MAX(W$107:$W130)+1,0)) -> 0 | AA131: 1 | AB131: =IFERROR(IF(AND(AB130=1,AA131=1),1,IF(SUM(AA131:AA137)>=7,1,0)),NA()) -> 1 | AC131: 19641 | AE131: 0 | AF131: =IFERROR(IF(AND(AF130=1,AE131=1),1,IF(SUM(AE131:AE132)>=7,1,0)),NA()) -> 0 | AI131: 1 | AJ131: 0 | AM131: 0 | AN131: 0 | AQ131: 19641
B132: 2020-02-01 | C132: =IFERROR(IF(GETPIVOTDATA("Value",Pivots!$A$6,"Month",$B132,"Delay reason",$C$21)=0,"",GETPIVOTDATA("Value",Pivots!$A$6,"Month",$B132,"Delay reason",$C$21)),NA()) -> 20452 | D132: 20452 | G132: 19334.84 | H132: 21670.20917 | I132: 16999.47083 | N132: 2020-02-01 | O132: 811 | P132: =IF(O132="",P131,AVERAGE(IF($O$108:$O$132<>"",$O$108:$O$132))) -> 877.9583333 | Q132: =IF(ISERROR((P132*2.66)),Q133,(P132*2.66)) -> 2335.369167 | R132: 2870.92375 | W132: =IF($D$105>5,NA(),IF(D132>H132,MAX(W$107:$W131)+1,0)) -> 0 | X132: =IF($D$105>5,NA(),IF(D132<I132,MAX(W$107:$W131)+1,0)) -> 0 | AA132: 1 | AB132: =IFERROR(IF(AND(AB131=1,AA132=1),1,IF(SUM(AA132)>=7,1,0)),NA()) -> 1 | AC132: 20452 | AE132: 0 | AF132: =IFERROR(IF(AND(AF131=1,AE132=1),1,IF(SUM(AE132)>=7,1,0)),NA()) -> 0 | AI132: 1 | AJ132: 0 | AM132: 0 | AN132: 0 | AQ132: 20452
D133: Count IF data point is zero
B134: =C22 -> A) Awaiting completion of assessment | D134: =COUNTIF(D137:D161,0) -> 0
B135: =B38 -> 6 | C135: =ROW() -> 135 | H135: Upper | I135: Lower | N135: Date | O135: Difference | Q135: Sigma | W135: > 3 | X135: < 3 | AA135: 7 points above/below mean | AI135: Trend up/down | AQ135: chart 4
B136: ID (Week no.) | C136: Plot data | D136: Data | G136: Mean | H136: Control limits | I136: control limit (-3) | O136: For. Roll avg | P136: Cumul. Moving Avg. | Q136: 2.66* MR | R136: 3.27*MR | W136: Count | X136: Count | Y136: Above 3 sigma | Z136: Below 3 sigma | AA136: 7 points > mean | AB136: Count of 7point | AC136: 7 points above mean | AE136: 7 points <mean | AF136: Count of 7 point | AG136: 6 points below mean | AI136: Trend up | AM136: Trend Down | AQ136: Concern | AR136: Improvement
B137: =D8 -> 2018-02-01 | C137: =IFERROR(IF(GETPIVOTDATA("Value",Pivots!$A$6,"Month",$B137,"Delay reason",$C$22)=0,"",GETPIVOTDATA("Value",Pivots!$A$6,"Month",$B137,"Delay reason",$C$22)),NA()) -> 17748 | D137: =IFERROR(IF(C137="",0,C137),"") -> 17748 | G137: =AVERAGE($D$137:$D$161) -> 16886.08 | H137: =IF($D$134>5,NA(),IF(D137="",H136,G137+Q137)) -> 20059.01667 | I137: =IF($D$134>5,NA(),IF(D137="",I136,G137-Q137)) -> 13713.14333 | N137: =B137 -> 2018-02-01 | P137: =IF(O137="",P136,AVERAGE(IF($O$137:$O$161<>"",$O$137:$O$161))) -> Cumul. Moving Avg. | Q137: =Q138 -> 3172.936667 | R137: =R138 -> 3900.565 | W137: =IF($D$134>5,NA(),IF(D137>H137,MAX(W$136:$W136)+1,0)) -> 0 | X137: =IF($D$134>5,NA(),IF(D137<I137,MAX(W$136:$W136)+1,0)) -> 0 | Y137: =IF(W137>0,C137,NA()) ->  | Z137: =IF(X137>0,D137,NA()) ->  | AA137: =IFERROR(IF($D$134>5,NA(), IF(D137>G137,1,0)),0) -> 1 | AB137: =IFERROR(IF(AND(AB136=1,AA137=1),1,IF(SUM(AA137:AA143)>=7,1,0)),NA()) -> 0 | AC137: =IF(AB137=0,NA(),C137) ->  | AE137: =IFERROR(IF($D$134>5,NA(), IF(D137<G137,1,0)),0) -> 0 | AF137: =IFERROR(IF(AND(AF136=1,AE137=1),1,IF(SUM(AE137:AE143)>=7,1,0)),NA()) -> 0 | AG137: =IF(AF137=0,NA(),C137) ->  | AI137: =IF($D$134>5,NA(),IF(D137>D136,1,0)) -> 0 | AJ137: =IFERROR(IF(AND(AJ136=1,AI137=1),1,IF(SUM(AI137:AI143)>=7,1,0)),NA()) -> 0 | AK137: =IF(AJ137=0,NA(),C137) ->  | AM137: =IF($D$134>5,NA(),IF(D137<D136,1,0)) -> 1 | AN137: =IFERROR(IF(AND(AN136=1,AM137=1),1,IF(SUM(AM137:AM143)>=7,1,0)),NA()) -> 0 | AO137: =IF(AN137=0,NA(),C137) ->  | AQ137: =IF(OR(W137>0,AB137>0,AJ137>0),C137,NA()) ->  | AR137: =IF(OR(X137>0,AF137>0,AN137>0),D137,NA()) -> 
B138: =IF(DAY(B137+31)=1,B137+31,B137+31-DAY(B137+31)+1) -> 2018-03-01 | C138: =IFERROR(IF(GETPIVOTDATA("Value",Pivots!$A$6,"Month",$B138,"Delay reason",$C$22)=0,"",GETPIVOTDATA("Value",Pivots!$A$6,"Month",$B138,"Delay reason",$C$22)),NA()) -> 18643 | D138: =IFERROR(IF(C138="",0,C138),"") -> 18643 | G138: =AVERAGE($D$137:$D$161) -> 16886.08 | H138: =IF($D$134>5,NA(),IF(D138="",H137,G138+Q138)) -> 20059.01667 | I138: =IF($D$134>5,NA(),IF(D138="",I137,G138-Q138)) -> 13713.14333 | N138: =B138 -> 2018-03-01 | O138: =IF(D137="","",IF(D138="","",ABS(D137-D138))) -> 895 | P138: 1192.833333 | Q138: =IF(ISERROR((P138*2.66)),Q139,(P138*2.66)) -> 3172.936667 | R138: =$P138*3.27 -> 3900.565 | W138: =IF($D$134>5,NA(),IF(D138>H138,MAX(W$136:$W137)+1,0)) -> 0 | X138: =IF($D$134>5,NA(),IF(D138<I138,MAX(W$136:$W137)+1,0)) -> 0 | Y138: =IF(W138>0,C138,NA()) ->  | Z138: =IF(X138>0,D138,NA()) ->  | AA138: =IFERROR(IF($D$134>5,NA(), IF(D138>G138,1,0)),0) -> 1 | AB138: =IFERROR(IF(AND(AB137=1,AA138=1),1,IF(SUM(AA138:AA144)>=7,1,0)),NA()) -> 0 | AC138: =IF(AB138=0,NA(),C138) ->  | AE138: =IFERROR(IF($D$134>5,NA(), IF(D138<G138,1,0)),0) -> 0 | AF138: =IFERROR(IF(AND(AF137=1,AE138=1),1,IF(SUM(AE138:AE144)>=7,1,0)),NA()) -> 0 | AG138: =IF(AF138=0,NA(),C138) ->  | AI138: =IF($D$134>5,NA(),IF(D138>D137,1,0)) -> 1 | AJ138: =IFERROR(IF(AND(AJ137=1,AI138=1),1,IF(SUM(AI138:AI144)>=7,1,0)),NA()) -> 0 | AK138: =IF(AJ138=0,NA(),C138) ->  | AM138: =IF($D$134>5,NA(),IF(D138<D137,1,0)) -> 0 | AN138: =IFERROR(IF(AND(AN137=1,AM138=1),1,IF(SUM(AM138:AM144)>=7,1,0)),NA()) -> 0 | AO138: =IF(AN138=0,NA(),C138) ->  | AQ138: =IF(OR(W138>0,AB138>0,AJ138>0),C138,NA()) ->  | AR138: =IF(OR(X138>0,AF138>0,AN138>0),D138,NA()) -> 
B139: =IF(DAY(B138+31)=1,B138+31,B138+31-DAY(B138+31)+1) -> 2018-04-01 | C139: =IFERROR(IF(GETPIVOTDATA("Value",Pivots!$A$6,"Month",$B139,"Delay reason",$C$22)=0,"",GETPIVOTDATA("Value",Pivots!$A$6,"Month",$B139,"Delay reason",$C$22)),NA()) -> 16858 | D139: 16858 | G139: 16886.08 | H139: 20059.01667 | I139: 13713.14333 | N139: 2018-04-01 | O139: =IF(D138="","",IF(D139="","",ABS(D138-D139))) -> 1785 | P139: 1192.833333 | Q139: =IF(ISERROR((P139*2.66)),Q140,(P139*2.66)) -> 3172.936667 | R139: =$P139*3.27 -> 3900.565 | W139: =IF($D$134>5,NA(),IF(D139>H139,MAX(W$136:$W138)+1,0)) -> 0 | X139: =IF($D$134>5,NA(),IF(D139<I139,MAX(W$136:$W138)+1,0)) -> 0 | AA139: 0 | AB139: 0 | AE139: 1 | AF139: 0 | AI139: 0 | AJ139: 0 | AK139: =IF(AJ139=0,NA(),C139) ->  | AM139: 1 | AN139: 0 | AO139: =IF(AN139=0,NA(),C139) -> 
B140: 2018-05-01 | C140: =IFERROR(IF(GETPIVOTDATA("Value",Pivots!$A$6,"Month",$B140,"Delay reason",$C$22)=0,"",GETPIVOTDATA("Value",Pivots!$A$6,"Month",$B140,"Delay reason",$C$22)),NA()) -> 16111 | D140: 16111 | G140: 16886.08 | H140: 20059.01667 | I140: 13713.14333 | N140: 2018-05-01 | O140: 747 | P140: 1192.833333 | Q140: =IF(ISERROR((P140*2.66)),Q141,(P140*2.66)) -> 3172.936667 | R140: 3900.565 | W140: =IF($D$134>5,NA(),IF(D140>H140,MAX(W$136:$W139)+1,0)) -> 0 | X140: =IF($D$134>5,NA(),IF(D140<I140,MAX(W$136:$W139)+1,0)) -> 0 | AA140: 0 | AB140: 0 | AE140: 1 | AF140: 0 | AI140: 0 | AJ140: 0 | AM140: 1 | AN140: 0
B141: 2018-06-01 | C141: =IFERROR(IF(GETPIVOTDATA("Value",Pivots!$A$6,"Month",$B141,"Delay reason",$C$22)=0,"",GETPIVOTDATA("Value",Pivots!$A$6,"Month",$B141,"Delay reason",$C$22)),NA()) -> 15083 | D141: 15083 | G141: 16886.08 | H141: 20059.01667 | I141: 13713.14333 | N141: 2018-06-01 | O141: 1028 | P141: 1192.833333 | Q141: =IF(ISERROR((P141*2.66)),Q142,(P141*2.66)) -> 3172.936667 | R141: 3900.565 | W141: =IF($D$134>5,NA(),IF(D141>H141,MAX(W$136:$W140)+1,0)) -> 0 | X141: =IF($D$134>5,NA(),IF(D141<I141,MAX(W$136:$W140)+1,0)) -> 0 | AA141: 0 | AB141: 0 | AE141: 1 | AF141: 0 | AI141: 0 | AJ141: 0 | AM141: 1 | AN141: 0
B142: 2018-07-01 | C142: =IFERROR(IF(GETPIVOTDATA("Value",Pivots!$A$6,"Month",$B142,"Delay reason",$C$22)=0,"",GETPIVOTDATA("Value",Pivots!$A$6,"Month",$B142,"Delay reason",$C$22)),NA()) -> 15807 | D142: 15807 | G142: 16886.08 | H142: 20059.01667 | I142: 13713.14333 | N142: 2018-07-01 | O142: 724 | P142: 1192.833333 | Q142: 3172.936667 | R142: 3900.565 | W142: =IF($D$134>5,NA(),IF(D142>H142,MAX(W$136:$W141)+1,0)) -> 0 | X142: =IF($D$134>5,NA(),IF(D142<I142,MAX(W$136:$W141)+1,0)) -> 0 | AA142: 0 | AB142: 0 | AE142: 1 | AF142: 0 | AI142: 1 | AJ142: 0 | AM142: 0 | AN142: 0
B143: 2018-08-01 | C143: =IFERROR(IF(GETPIVOTDATA("Value",Pivots!$A$6,"Month",$B143,"Delay reason",$C$22)=0,"",GETPIVOTDATA("Value",Pivots!$A$6,"Month",$B143,"Delay reason",$C$22)),NA()) -> 16740 | D143: 16740 | G143: 16886.08 | H143: 20059.01667 | I143: 13713.14333 | N143: 2018-08-01 | O143: 933 | P143: 1192.833333 | Q143: 3172.936667 | R143: 3900.565 | W143: =IF($D$134>5,NA(),IF(D143>H143,MAX(W$136:$W142)+1,0)) -> 0 | X143: =IF($D$134>5,NA(),IF(D143<I143,MAX(W$136:$W142)+1,0)) -> 0 | AA143: 0 | AB143: 0 | AE143: 1 | AF143: 0 | AI143: 1 | AJ143: 0 | AM143: 0 | AN143: 0
B144: 2018-09-01 | C144: =IFERROR(IF(GETPIVOTDATA("Value",Pivots!$A$6,"Month",$B144,"Delay reason",$C$22)=0,"",GETPIVOTDATA("Value",Pivots!$A$6,"Month",$B144,"Delay reason",$C$22)),NA()) -> 17079 | D144: 17079 | G144: 16886.08 | H144: 20059.01667 | I144: 13713.14333 | N144: 2018-09-01 | O144: 339 | P144: 1192.833333 | Q144: 3172.936667 | R144: 3900.565 | W144: =IF($D$134>5,NA(),IF(D144>H144,MAX(W$136:$W143)+1,0)) -> 0 | X144: =IF($D$134>5,NA(),IF(D144<I144,MAX(W$136:$W143)+1,0)) -> 0 | AA144: 1 | AB144: 0 | AE144: 0 | AF144: 0 | AI144: 1 | AJ144: 0 | AM144: 0 | AN144: 0
B145: 2018-10-01 | C145: =IFERROR(IF(GETPIVOTDATA("Value",Pivots!$A$6,"Month",$B145,"Delay reason",$C$22)=0,"",GETPIVOTDATA("Value",Pivots!$A$6,"Month",$B145,"Delay reason",$C$22)),NA()) -> 16538 | D145: 16538 | G145: 16886.08 | H145: 20059.01667 | I145: 13713.14333 | N145: 2018-10-01 | O145: 541 | P145: 1192.833333 | Q145: 3172.936667 | R145: 3900.565 | W145: =IF($D$134>5,NA(),IF(D145>H145,MAX(W$136:$W144)+1,0)) -> 0 | X145: =IF($D$134>5,NA(),IF(D145<I145,MAX(W$136:$W144)+1,0)) -> 0 | AA145: 0 | AB145: 0 | AE145: 1 | AF145: 1 | AG145: 16538 | AI145: 0 | AJ145: 0 | AM145: 1 | AN145: 0 | AR145: 16538
B146: 2018-11-01 | C146: =IFERROR(IF(GETPIVOTDATA("Value",Pivots!$A$6,"Month",$B146,"Delay reason",$C$22)=0,"",GETPIVOTDATA("Value",Pivots!$A$6,"Month",$B146,"Delay reason",$C$22)),NA()) -> 13739 | D146: 13739 | G146: 16886.08 | H146: 20059.01667 | I146: 13713.14333 | N146: 2018-11-01 | O146: 2799 | P146: 1192.833333 | Q146: 3172.936667 | R146: 3900.565 | W146: =IF($D$134>5,NA(),IF(D146>H146,MAX(W$136:$W145)+1,0)) -> 0 | X146: =IF($D$134>5,NA(),IF(D146<I146,MAX(W$136:$W145)+1,0)) -> 0 | AA146: 0 | AB146: 0 | AE146: 1 | AF146: 1 | AG146: 13739 | AI146: 0 | AJ146: 0 | AM146: 1 | AN146: 0 | AR146: 13739
B147: 2018-12-01 | C147: =IFERROR(IF(GETPIVOTDATA("Value",Pivots!$A$6,"Month",$B147,"Delay reason",$C$22)=0,"",GETPIVOTDATA("Value",Pivots!$A$6,"Month",$B147,"Delay reason",$C$22)),NA()) -> 13983 | D147: 13983 | G147: 16886.08 | H147: 20059.01667 | I147: 13713.14333 | N147: 2018-12-01 | O147: 244 | P147: 1192.833333 | Q147: 3172.936667 | R147: 3900.565 | W147: =IF($D$134>5,NA(),IF(D147>H147,MAX(W$136:$W146)+1,0)) -> 0 | X147: =IF($D$134>5,NA(),IF(D147<I147,MAX(W$136:$W146)+1,0)) -> 0 | AA147: 0 | AB147: 0 | AE147: 1 | AF147: 1 | AG147: 13983 | AI147: 1 | AJ147: 0 | AM147: 0 | AN147: 0 | AR147: 13983
B148: 2019-01-01 | C148: =IFERROR(IF(GETPIVOTDATA("Value",Pivots!$A$6,"Month",$B148,"Delay reason",$C$22)=0,"",GETPIVOTDATA("Value",Pivots!$A$6,"Month",$B148,"Delay reason",$C$22)),NA()) -> 15811 | D148: 15811 | G148: 16886.08 | H148: 20059.01667 | I148: 13713.14333 | N148: 2019-01-01 | O148: 1828 | P148: 1192.833333 | Q148: 3172.936667 | R148: 3900.565 | W148: =IF($D$134>5,NA(),IF(D148>H148,MAX(W$136:$W147)+1,0)) -> 0 | X148: =IF($D$134>5,NA(),IF(D148<I148,MAX(W$136:$W147)+1,0)) -> 0 | AA148: 0 | AB148: 0 | AE148: 1 | AF148: 1 | AG148: 15811 | AI148: 1 | AJ148: 0 | AM148: 0 | AN148: 0 | AR148: 15811
B149: 2019-02-01 | C149: =IFERROR(IF(GETPIVOTDATA("Value",Pivots!$A$6,"Month",$B149,"Delay reason",$C$22)=0,"",GETPIVOTDATA("Value",Pivots!$A$6,"Month",$B149,"Delay reason",$C$22)),NA()) -> 14266 | D149: 14266 | G149: 16886.08 | H149: 20059.01667 | I149: 13713.14333 | N149: 2019-02-01 | O149: 1545 | P149: 1192.833333 | Q149: 3172.936667 | R149: 3900.565 | W149: =IF($D$134>5,NA(),IF(D149>H149,MAX(W$136:$W148)+1,0)) -> 0 | X149: =IF($D$134>5,NA(),IF(D149<I149,MAX(W$136:$W148)+1,0)) -> 0 | AA149: 0 | AB149: 0 | AE149: 1 | AF149: 1 | AG149: 14266 | AI149: 0 | AJ149: 0 | AM149: 1 | AN149: 0 | AR149: 14266
B150: 2019-03-01 | C150: =IFERROR(IF(GETPIVOTDATA("Value",Pivots!$A$6,"Month",$B150,"Delay reason",$C$22)=0,"",GETPIVOTDATA("Value",Pivots!$A$6,"Month",$B150,"Delay reason",$C$22)),NA()) -> 15422 | D150: 15422 | G150: 16886.08 | H150: 20059.01667 | I150: 13713.14333 | N150: 2019-03-01 | O150: 1156 | P150: 1192.833333 | Q150: 3172.936667 | R150: 3900.565 | W150: =IF($D$134>5,NA(),IF(D150>H150,MAX(W$136:$W149)+1,0)) -> 0 | X150: =IF($D$134>5,NA(),IF(D150<I150,MAX(W$136:$W149)+1,0)) -> 0 | AA150: 0 | AB150: 0 | AE150: 1 | AF150: 1 | AG150: 15422 | AI150: 1 | AJ150: 0 | AM150: 0 | AN150: 0 | AR150: 15422
B151: 2019-04-01 | C151: =IFERROR(IF(GETPIVOTDATA("Value",Pivots!$A$6,"Month",$B151,"Delay reason",$C$22)=0,"",GETPIVOTDATA("Value",Pivots!$A$6,"Month",$B151,"Delay reason",$C$22)),NA()) -> 15076 | D151: 15076 | G151: 16886.08 | H151: 20059.01667 | I151: 13713.14333 | N151: 2019-04-01 | O151: 346 | P151: 1192.833333 | Q151: 3172.936667 | R151: 3900.565 | W151: =IF($D$134>5,NA(),IF(D151>H151,MAX(W$136:$W150)+1,0)) -> 0 | X151: =IF($D$134>5,NA(),IF(D151<I151,MAX(W$136:$W150)+1,0)) -> 0 | AA151: 0 | AB151: 0 | AE151: 1 | AF151: 1 | AG151: 15076 | AI151: 0 | AJ151: 0 | AM151: 1 | AN151: 0 | AR151: 15076
B152: 2019-05-01 | C152: =IFERROR(IF(GETPIVOTDATA("Value",Pivots!$A$6,"Month",$B152,"Delay reason",$C$22)=0,"",GETPIVOTDATA("Value",Pivots!$A$6,"Month",$B152,"Delay reason",$C$22)),NA()) -> 17620 | D152: 17620 | G152: 16886.08 | H152: 20059.01667 | I152: 13713.14333 | N152: 2019-05-01 | O152: 2544 | P152: 1192.833333 | Q152: 3172.936667 | R152: 3900.565 | W152: =IF($D$134>5,NA(),IF(D152>H152,MAX(W$136:$W151)+1,0)) -> 0 | X152: =IF($D$134>5,NA(),IF(D152<I152,MAX(W$136:$W151)+1,0)) -> 0 | AA152: 1 | AB152: 0 | AE152: 0 | AF152: 0 | AI152: 1 | AJ152: 0 | AM152: 0 | AN152: 0
B153: 2019-06-01 | C153: =IFERROR(IF(GETPIVOTDATA("Value",Pivots!$A$6,"Month",$B153,"Delay reason",$C$22)=0,"",GETPIVOTDATA("Value",Pivots!$A$6,"Month",$B153,"Delay reason",$C$22)),NA()) -> 15622 | D153: 15622 | G153: 16886.08 | H153: 20059.01667 | I153: 13713.14333 | N153: 2019-06-01 | O153: 1998 | P153: 1192.833333 | Q153: 3172.936667 | R153: 3900.565 | W153: =IF($D$134>5,NA(),IF(D153>H153,MAX(W$136:$W152)+1,0)) -> 0 | X153: =IF($D$134>5,NA(),IF(D153<I153,MAX(W$136:$W152)+1,0)) -> 0 | AA153: 0 | AB153: 0 | AE153: 1 | AF153: 0 | AI153: 0 | AJ153: 0 | AM153: 1 | AN153: 0
B154: 2019-07-01 | C154: =IFERROR(IF(GETPIVOTDATA("Value",Pivots!$A$6,"Month",$B154,"Delay reason",$C$22)=0,"",GETPIVOTDATA("Value",Pivots!$A$6,"Month",$B154,"Delay reason",$C$22)),NA()) -> 16535 | D154: 16535 | G154: 16886.08 | H154: 20059.01667 | I154: 13713.14333 | N154: 2019-07-01 | O154: 913 | P154: 1192.833333 | Q154: 3172.936667 | R154: 3900.565 | W154: =IF($D$134>5,NA(),IF(D154>H154,MAX(W$136:$W153)+1,0)) -> 0 | X154: =IF($D$134>5,NA(),IF(D154<I154,MAX(W$136:$W153)+1,0)) -> 0 | AA154: 0 | AB154: 0 | AE154: 1 | AF154: 0 | AI154: 1 | AJ154: 0 | AM154: 0 | AN154: 0
B155: 2019-08-01 | C155: =IFERROR(IF(GETPIVOTDATA("Value",Pivots!$A$6,"Month",$B155,"Delay reason",$C$22)=0,"",GETPIVOTDATA("Value",Pivots!$A$6,"Month",$B155,"Delay reason",$C$22)),NA()) -> 17871 | D155: 17871 | G155: 16886.08 | H155: 20059.01667 | I155: 13713.14333 | N155: 2019-08-01 | O155: 1336 | P155: 1192.833333 | Q155: 3172.936667 | R155: 3900.565 | W155: =IF($D$134>5,NA(),IF(D155>H155,MAX(W$136:$W154)+1,0)) -> 0 | X155: =IF($D$134>5,NA(),IF(D155<I155,MAX(W$136:$W154)+1,0)) -> 0 | AA155: 1 | AB155: 1 | AC155: 17871 | AE155: 0 | AF155: 0 | AI155: 1 | AJ155: 0 | AM155: 0 | AN155: 0 | AQ155: 17871
B156: 2019-09-01 | C156: =IFERROR(IF(GETPIVOTDATA("Value",Pivots!$A$6,"Month",$B156,"Delay reason",$C$22)=0,"",GETPIVOTDATA("Value",Pivots!$A$6,"Month",$B156,"Delay reason",$C$22)),NA()) -> 19611 | D156: 19611 | G156: 16886.08 | H156: 20059.01667 | I156: 13713.14333 | N156: 2019-09-01 | O156: 1740 | P156: 1192.833333 | Q156: 3172.936667 | R156: 3900.565 | W156: =IF($D$134>5,NA(),IF(D156>H156,MAX(W$136:$W155)+1,0)) -> 0 | X156: =IF($D$134>5,NA(),IF(D156<I156,MAX(W$136:$W155)+1,0)) -> 0 | AA156: 1 | AB156: 1 | AC156: 19611 | AE156: 0 | AF156: 0 | AI156: 1 | AJ156: 0 | AM156: 0 | AN156: =IFERROR(IF(AND(AN155=1,AM156=1),1,IF(SUM(AM156:AM161)>=7,1,0)),NA()) -> 0 | AQ156: 19611
B157: 2019-10-01 | C157: =IFERROR(IF(GETPIVOTDATA("Value",Pivots!$A$6,"Month",$B157,"Delay reason",$C$22)=0,"",GETPIVOTDATA("Value",Pivots!$A$6,"Month",$B157,"Delay reason",$C$22)),NA()) -> 18437 | D157: 18437 | G157: 16886.08 | H157: 20059.01667 | I157: 13713.14333 | N157: 2019-10-01 | O157: 1174 | P157: 1192.833333 | Q157: 3172.936667 | R157: 3900.565 | W157: =IF($D$134>5,NA(),IF(D157>H157,MAX(W$136:$W156)+1,0)) -> 0 | X157: =IF($D$134>5,NA(),IF(D157<I157,MAX(W$136:$W156)+1,0)) -> 0 | AA157: 1 | AB157: 1 | AC157: 18437 | AE157: 0 | AF157: 0 | AI157: 0 | AJ157: =IFERROR(IF(AND(AJ156=1,AI157=1),1,IF(SUM(AI157:AI161)>=7,1,0)),NA()) -> 0 | AM157: 1 | AN157: =IFERROR(IF(AND(AN156=1,AM157=1),1,IF(SUM(AM157:AM161)>=7,1,0)),NA()) -> 0 | AQ157: 18437
B158: 2019-11-01 | C158: =IFERROR(IF(GETPIVOTDATA("Value",Pivots!$A$6,"Month",$B158,"Delay reason",$C$22)=0,"",GETPIVOTDATA("Value",Pivots!$A$6,"Month",$B158,"Delay reason",$C$22)),NA()) -> 18022 | D158: 18022 | G158: 16886.08 | H158: 20059.01667 | I158: 13713.14333 | N158: 2019-11-01 | O158: 415 | P158: 1192.833333 | Q158: 3172.936667 | R158: 3900.565 | W158: =IF($D$134>5,NA(),IF(D158>H158,MAX(W$136:$W157)+1,0)) -> 0 | X158: =IF($D$134>5,NA(),IF(D158<I158,MAX(W$136:$W157)+1,0)) -> 0 | AA158: 1 | AB158: =IFERROR(IF(AND(AB157=1,AA158=1),1,IF(SUM(AA158:AA161)>=7,1,0)),NA()) -> 1 | AC158: =IF(AB158=0,NA(),C158) -> 18022 | AE158: 0 | AF158: =IFERROR(IF(AND(AF157=1,AE158=1),1,IF(SUM(AE158:AE161)>=7,1,0)),NA()) -> 0 | AG158: =IF(AF158=0,NA(),C158) ->  | AI158: 0 | AJ158: =IFERROR(IF(AND(AJ157=1,AI158=1),1,IF(SUM(AI158:AI161)>=7,1,0)),NA()) -> 0 | AM158: 1 | AN158: =IFERROR(IF(AND(AN157=1,AM158=1),1,IF(SUM(AM158:AM161)>=7,1,0)),NA()) -> 0 | AQ158: 18022
B159: 2019-12-01 | C159: =IFERROR(IF(GETPIVOTDATA("Value",Pivots!$A$6,"Month",$B159,"Delay reason",$C$22)=0,"",GETPIVOTDATA("Value",Pivots!$A$6,"Month",$B159,"Delay reason",$C$22)),NA()) -> 18399 | D159: 18399 | G159: 16886.08 | H159: 20059.01667 | I159: 13713.14333 | N159: 2019-12-01 | O159: 377 | P159: 1192.833333 | Q159: 3172.936667 | R159: 3900.565 | W159: =IF($D$134>5,NA(),IF(D159>H159,MAX(W$136:$W158)+1,0)) -> 0 | X159: =IF($D$134>5,NA(),IF(D159<I159,MAX(W$136:$W158)+1,0)) -> 0 | AA159: 1 | AB159: =IFERROR(IF(AND(AB158=1,AA159=1),1,IF(SUM(AA159:AA161)>=7,1,0)),NA()) -> 1 | AC159: =IF(AB159=0,NA(),C159) -> 18399 | AE159: 0 | AF159: =IFERROR(IF(AND(AF158=1,AE159=1),1,IF(SUM(AE159:AE161)>=7,1,0)),NA()) -> 0 | AG159: =IF(AF159=0,NA(),C159) ->  | AI159: 1 | AJ159: =IFERROR(IF(AND(AJ158=1,AI159=1),1,IF(SUM(AI159:AI161)>=7,1,0)),NA()) -> 0 | AM159: 0 | AN159: =IFERROR(IF(AND(AN158=1,AM159=1),1,IF(SUM(AM159:AM161)>=7,1,0)),NA()) -> 0 | AQ159: 18399
B160: 2020-01-01 | C160: =IFERROR(IF(GETPIVOTDATA("Value",Pivots!$A$6,"Month",$B160,"Delay reason",$C$22)=0,"",GETPIVOTDATA("Value",Pivots!$A$6,"Month",$B160,"Delay reason",$C$22)),NA()) -> 20917 | D160: 20917 | G160: 16886.08 | H160: 20059.01667 | I160: 13713.14333 | N160: 2020-01-01 | O160: 2518 | P160: 1192.833333 | Q160: 3172.936667 | R160: 3900.565 | W160: =IF($D$134>5,NA(),IF(D160>H160,MAX(W$136:$W159)+1,0)) -> 1 | X160: =IF($D$134>5,NA(),IF(D160<I160,MAX(W$136:$W159)+1,0)) -> 0 | Y160: 20917 | AA160: 1 | AB160: =IFERROR(IF(AND(AB159=1,AA160=1),1,IF(SUM(AA160:AA166)>=7,1,0)),NA()) -> 1 | AC160: 20917 | AE160: 0 | AF160: =IFERROR(IF(AND(AF159=1,AE160=1),1,IF(SUM(AE160:AE161)>=7,1,0)),NA()) -> 0 | AI160: 1 | AJ160: =IFERROR(IF(AND(AJ159=1,AI160=1),1,IF(SUM(AI160:AI161)>=7,1,0)),NA()) -> 0 | AM160: 0 | AN160: =IFERROR(IF(AND(AN159=1,AM160=1),1,IF(SUM(AM160:AM161)>=7,1,0)),NA()) -> 0 | AQ160: 20917
B161: 2020-02-01 | C161: =IFERROR(IF(GETPIVOTDATA("Value",Pivots!$A$6,"Month",$B161,"Delay reason",$C$22)=0,"",GETPIVOTDATA("Value",Pivots!$A$6,"Month",$B161,"Delay reason",$C$22)),NA()) -> 20214 | D161: 20214 | G161: 16886.08 | H161: 20059.01667 | I161: =IF($D$134>5,NA(),IF(D161="",I160,G161-Q161)) -> 13713.14333 | N161: 2020-02-01 | O161: 703 | P161: =IF(O161="",P160,AVERAGE(IF($O$137:$O$161<>"",$O$137:$O$161))) -> 1192.833333 | Q161: =IF(ISERROR((P161*2.66)),Q162,(P161*2.66)) -> 3172.936667 | R161: 3900.565 | W161: =IF($D$134>5,NA(),IF(D161>H161,MAX(W$136:$W160)+1,0)) -> 2 | X161: =IF($D$134>5,NA(),IF(D161<I161,MAX(W$136:$W160)+1,0)) -> 0 | Y161: 20214 | AA161: 1 | AB161: =IFERROR(IF(AND(AB160=1,AA161=1),1,IF(SUM(AA161)>=7,1,0)),NA()) -> 1 | AC161: 20214 | AE161: 0 | AF161: =IFERROR(IF(AND(AF160=1,AE161=1),1,IF(SUM(AE161)>=7,1,0)),NA()) -> 0 | AI161: 0 | AJ161: =IFERROR(IF(AND(AJ160=1,AI161=1),1,IF(SUM(AI161)>=7,1,0)),NA()) -> 0 | AM161: 1 | AN161: =IFERROR(IF(AND(AN160=1,AM161=1),1,IF(SUM(AM161)>=7,1,0)),NA()) -> 0 | AQ161: 20214
B163: =C23 -> E) Awaiting care package in own home | D163: Count IF data point is zero
B164: =B39 -> 7 | C164: =ROW() -> 164 | D164: =COUNTIF(D167:D191,0) -> 0 | H164: Upper | I164: Lower | N164: Date | O164: Difference | Q164: Sigma | W164: > 3 | X164: < 3 | AA164: 7 points above/below mean | AI164: Trend up/down | AQ164: chart 5
B165: ID (Week no.) | C165: Plot data | D165: Data | G165: Mean | H165: Control limits | I165: control limit (-3) | O165: For. Roll avg | P165: Cumul. Moving Avg. | Q165: 2.66* MR | R165: 3.27*MR | W165: Count | X165: Count | Y165: Above 3 sigma | Z165: Below 3 sigma | AA165: 7 points > mean | AB165: Count of 7point | AC165: 7 points above mean | AE165: 7 points <mean | AF165: Count of 7 point | AG165: 6 points below mean | AI165: Trend up | AM165: Trend Down | AQ165: Concern | AR165: Improvement
B166: =D8 -> 2018-02-01 | C166: =IFERROR(IF(GETPIVOTDATA("Value",Pivots!$A$6,"Month",$B166,"Delay reason",$C$23)=0,"",GETPIVOTDATA("Value",Pivots!$A$6,"Month",$B166,"Delay reason",$C$23)),NA()) -> 30876 | D166: =IFERROR(IF(C166="",0,C166),"") -> 30876 | G166: =AVERAGE($D$166:$D$190) -> 29837.28 | H166: =IF($D$164>5,NA(),IF(D166="",H165,G166+Q166)) -> 34333.345 | I166: =IF($D$164>5,NA(),IF(D166="",I165,G166-Q166)) -> 25341.215 | N166: =B166 -> 2018-02-01 | P166: =IF(O166="",P165,AVERAGE(IF($O$166:$O$190<>"",$O$166:$O$190))) -> Cumul. Moving Avg. | Q166: =Q167 -> 4496.065 | R166: =R167 -> 5527.1175 | W166: =IF($D$164>5,NA(),IF(D166>H166,MAX(W$165:$W165)+1,0)) -> 0 | X166: =IF($D$164>5,NA(),IF(D166<I166,MAX(W$165:$W165)+1,0)) -> 0 | Y166: =IF(W166>0,C166,NA()) ->  | Z166: =IF(X166>0,D166,NA()) ->  | AA166: =IFERROR(IF($D$164>5,NA(), IF(D166>G166,1,0)),0) -> 1 | AB166: =IFERROR(IF(AND(AB165=1,AA166=1),1,IF(SUM(AA166:AA172)>=7,1,0)),NA()) -> 0 | AC166: =IF(AB166=0,NA(),C166) ->  | AE166: =IFERROR(IF($D$164>5,NA(), IF(D166<G166,1,0)),0) -> 0 | AF166: =IFERROR(IF(AND(AF165=1,AE166=1),1,IF(SUM(AE166:AE172)>=7,1,0)),NA()) -> 0 | AG166: =IF(AF166=0,NA(),C166) ->  | AI166: =IF($D$164>5,NA(),IF(D166>D165,1,0)) -> 0 | AJ166: =IFERROR(IF(AND(AJ165=1,AI166=1),1,IF(SUM(AI166:AI172)>=7,1,0)),NA()) -> 0 | AK166: =IF(AJ166=0,NA(),C166) ->  | AM166: =IF($D$164>5,NA(),IF(D166<D165,1,0)) -> 1 | AN166: =IFERROR(IF(AND(AN165=1,AM166=1),1,IF(SUM(AM166:AM172)>=7,1,0)),NA()) -> 0 | AO166: =IF(AN166=0,NA(),C166) ->  | AQ166: =IF(OR(W166>0,AB166>0,AJ166>0),C166,NA()) ->  | AR166: =IF(OR(X166>0,AF166>0,AN166>0),D166,NA()) -> 
B167: =IF(DAY(B166+31)=1,B166+31,B166+31-DAY(B166+31)+1) -> 2018-03-01 | C167: =IFERROR(IF(GETPIVOTDATA("Value",Pivots!$A$6,"Month",$B167,"Delay reason",$C$23)=0,"",GETPIVOTDATA("Value",Pivots!$A$6,"Month",$B167,"Delay reason",$C$23)),NA()) -> 33504 | D167: =IFERROR(IF(C167="",0,C167),"") -> 33504 | G167: =AVERAGE($D$166:$D$190) -> 29837.28 | H167: =IF($D$164>5,NA(),IF(D167="",H166,G167+Q167)) -> 34333.345 | I167: =IF($D$164>5,NA(),IF(D167="",I166,G167-Q167)) -> 25341.215 | N167: =B167 -> 2018-03-01 | O167: =IF(D166="","",IF(D167="","",ABS(D166-D167))) -> 2628 | P167: 1690.25 | Q167: =IF(ISERROR((P167*2.66)),Q168,(P167*2.66)) -> 4496.065 | R167: =$P167*3.27 -> 5527.1175 | W167: =IF($D$164>5,NA(),IF(D167>H167,MAX(W$165:$W166)+1,0)) -> 0 | X167: =IF($D$164>5,NA(),IF(D167<I167,MAX(W$165:$W166)+1,0)) -> 0 | Y167: =IF(W167>0,C167,NA()) ->  | Z167: =IF(X167>0,D167,NA()) ->  | AA167: =IFERROR(IF($D$164>5,NA(), IF(D167>G167,1,0)),0) -> 1 | AB167: =IFERROR(IF(AND(AB166=1,AA167=1),1,IF(SUM(AA167:AA173)>=7,1,0)),NA()) -> 0 | AC167: =IF(AB167=0,NA(),C167) ->  | AE167: =IFERROR(IF($D$164>5,NA(), IF(D167<G167,1,0)),0) -> 0 | AF167: =IFERROR(IF(AND(AF166=1,AE167=1),1,IF(SUM(AE167:AE173)>=7,1,0)),NA()) -> 0 | AG167: =IF(AF167=0,NA(),C167) ->  | AI167: =IF($D$164>5,NA(),IF(D167>D166,1,0)) -> 1 | AJ167: =IFERROR(IF(AND(AJ166=1,AI167=1),1,IF(SUM(AI167:AI173)>=7,1,0)),NA()) -> 0 | AK167: =IF(AJ167=0,NA(),C167) ->  | AM167: =IF($D$164>5,NA(),IF(D167<D166,1,0)) -> 0 | AN167: =IFERROR(IF(AND(AN166=1,AM167=1),1,IF(SUM(AM167:AM173)>=7,1,0)),NA()) -> 0 | AO167: =IF(AN167=0,NA(),C167) ->  | AQ167: =IF(OR(W167>0,AB167>0,AJ167>0),C167,NA()) ->  | AR167: =IF(OR(X167>0,AF167>0,AN167>0),D167,NA()) -> 
B168: =IF(DAY(B167+31)=1,B167+31,B167+31-DAY(B167+31)+1) -> 2018-04-01 | C168: =IFERROR(IF(GETPIVOTDATA("Value",Pivots!$A$6,"Month",$B168,"Delay reason",$C$23)=0,"",GETPIVOTDATA("Value",Pivots!$A$6,"Month",$B168,"Delay reason",$C$23)),NA()) -> 29458 | D168: 29458 | G168: 29837.28 | H168: 34333.345 | I168: 25341.215 | N168: 2018-04-01 | O168: =IF(D167="","",IF(D168="","",ABS(D167-D168))) -> 4046 | P168: 1690.25 | Q168: =IF(ISERROR((P168*2.66)),Q169,(P168*2.66)) -> 4496.065 | R168: =$P168*3.27 -> 5527.1175 | W168: =IF($D$164>5,NA(),IF(D168>H168,MAX(W$165:$W167)+1,0)) -> 0 | X168: =IF($D$164>5,NA(),IF(D168<I168,MAX(W$165:$W167)+1,0)) -> 0 | AA168: 0 | AB168: 0 | AE168: 1 | AF168: 0 | AI168: 0 | AJ168: 0 | AK168: =IF(AJ168=0,NA(),C168) ->  | AM168: 1 | AN168: 0 | AO168: =IF(AN168=0,NA(),C168) -> 
B169: 2018-05-01 | C169: =IFERROR(IF(GETPIVOTDATA("Value",Pivots!$A$6,"Month",$B169,"Delay reason",$C$23)=0,"",GETPIVOTDATA("Value",Pivots!$A$6,"Month",$B169,"Delay reason",$C$23)),NA()) -> 27442 | D169: 27442 | G169: 29837.28 | H169: 34333.345 | I169: 25341.215 | N169: 2018-05-01 | O169: 2016 | P169: 1690.25 | Q169: =IF(ISERROR((P169*2.66)),Q170,(P169*2.66)) -> 4496.065 | R169: 5527.1175 | W169: =IF($D$164>5,NA(),IF(D169>H169,MAX(W$165:$W168)+1,0)) -> 0 | X169: =IF($D$164>5,NA(),IF(D169<I169,MAX(W$165:$W168)+1,0)) -> 0 | AA169: 0 | AB169: 0 | AE169: 1 | AF169: 0 | AI169: 0 | AJ169: 0 | AM169: 1 | AN169: 0
B170: 2018-06-01 | C170: =IFERROR(IF(GETPIVOTDATA("Value",Pivots!$A$6,"Month",$B170,"Delay reason",$C$23)=0,"",GETPIVOTDATA("Value",Pivots!$A$6,"Month",$B170,"Delay reason",$C$23)),NA()) -> 27978 | D170: 27978 | G170: 29837.28 | H170: 34333.345 | I170: 25341.215 | N170: 2018-06-01 | O170: 536 | P170: 1690.25 | Q170: =IF(ISERROR((P170*2.66)),Q171,(P170*2.66)) -> 4496.065 | R170: 5527.1175 | W170: =IF($D$164>5,NA(),IF(D170>H170,MAX(W$165:$W169)+1,0)) -> 0 | X170: =IF($D$164>5,NA(),IF(D170<I170,MAX(W$165:$W169)+1,0)) -> 0 | AA170: 0 | AB170: 0 | AE170: 1 | AF170: 0 | AI170: 1 | AJ170: 0 | AM170: 0 | AN170: 0
B171: 2018-07-01 | C171: =IFERROR(IF(GETPIVOTDATA("Value",Pivots!$A$6,"Month",$B171,"Delay reason",$C$23)=0,"",GETPIVOTDATA("Value",Pivots!$A$6,"Month",$B171,"Delay reason",$C$23)),NA()) -> 30570 | D171: 30570 | G171: 29837.28 | H171: 34333.345 | I171: 25341.215 | N171: 2018-07-01 | O171: 2592 | P171: 1690.25 | Q171: 4496.065 | R171: 5527.1175 | W171: =IF($D$164>5,NA(),IF(D171>H171,MAX(W$165:$W170)+1,0)) -> 0 | X171: =IF($D$164>5,NA(),IF(D171<I171,MAX(W$165:$W170)+1,0)) -> 0 | AA171: 1 | AB171: 0 | AE171: 0 | AF171: 0 | AI171: 1 | AJ171: 0 | AM171: 0 | AN171: 0
B172: 2018-08-01 | C172: =IFERROR(IF(GETPIVOTDATA("Value",Pivots!$A$6,"Month",$B172,"Delay reason",$C$23)=0,"",GETPIVOTDATA("Value",Pivots!$A$6,"Month",$B172,"Delay reason",$C$23)),NA()) -> 31577 | D172: 31577 | G172: 29837.28 | H172: 34333.345 | I172: 25341.215 | N172: 2018-08-01 | O172: 1007 | P172: 1690.25 | Q172: 4496.065 | R172: 5527.1175 | W172: =IF($D$164>5,NA(),IF(D172>H172,MAX(W$165:$W171)+1,0)) -> 0 | X172: =IF($D$164>5,NA(),IF(D172<I172,MAX(W$165:$W171)+1,0)) -> 0 | AA172: 1 | AB172: 0 | AE172: 0 | AF172: 0 | AI172: 1 | AJ172: 0 | AM172: 0 | AN172: 0
B173: 2018-09-01 | C173: =IFERROR(IF(GETPIVOTDATA("Value",Pivots!$A$6,"Month",$B173,"Delay reason",$C$23)=0,"",GETPIVOTDATA("Value",Pivots!$A$6,"Month",$B173,"Delay reason",$C$23)),NA()) -> 31080 | D173: 31080 | G173: 29837.28 | H173: 34333.345 | I173: 25341.215 | N173: 2018-09-01 | O173: 497 | P173: 1690.25 | Q173: 4496.065 | R173: 5527.1175 | W173: =IF($D$164>5,NA(),IF(D173>H173,MAX(W$165:$W172)+1,0)) -> 0 | X173: =IF($D$164>5,NA(),IF(D173<I173,MAX(W$165:$W172)+1,0)) -> 0 | AA173: 1 | AB173: 0 | AE173: 0 | AF173: 0 | AI173: 0 | AJ173: 0 | AM173: 1 | AN173: 0
B174: 2018-10-01 | C174: =IFERROR(IF(GETPIVOTDATA("Value",Pivots!$A$6,"Month",$B174,"Delay reason",$C$23)=0,"",GETPIVOTDATA("Value",Pivots!$A$6,"Month",$B174,"Delay reason",$C$23)),NA()) -> 30807 | D174: 30807 | G174: 29837.28 | H174: 34333.345 | I174: 25341.215 | N174: 2018-10-01 | O174: 273 | P174: 1690.25 | Q174: 4496.065 | R174: 5527.1175 | W174: =IF($D$164>5,NA(),IF(D174>H174,MAX(W$165:$W173)+1,0)) -> 0 | X174: =IF($D$164>5,NA(),IF(D174<I174,MAX(W$165:$W173)+1,0)) -> 0 | AA174: 1 | AB174: 0 | AE174: 0 | AF174: 0 | AI174: 0 | AJ174: 0 | AM174: 1 | AN174: 0
B175: 2018-11-01 | C175: =IFERROR(IF(GETPIVOTDATA("Value",Pivots!$A$6,"Month",$B175,"Delay reason",$C$23)=0,"",GETPIVOTDATA("Value",Pivots!$A$6,"Month",$B175,"Delay reason",$C$23)),NA()) -> 28822 | D175: 28822 | G175: 29837.28 | H175: 34333.345 | I175: 25341.215 | N175: 2018-11-01 | O175: 1985 | P175: 1690.25 | Q175: 4496.065 | R175: 5527.1175 | W175: =IF($D$164>5,NA(),IF(D175>H175,MAX(W$165:$W174)+1,0)) -> 0 | X175: =IF($D$164>5,NA(),IF(D175<I175,MAX(W$165:$W174)+1,0)) -> 0 | AA175: 0 | AB175: 0 | AE175: 1 | AF175: 1 | AG175: 28822 | AI175: 0 | AJ175: 0 | AM175: 1 | AN175: 0 | AR175: 28822
B176: 2018-12-01 | C176: =IFERROR(IF(GETPIVOTDATA("Value",Pivots!$A$6,"Month",$B176,"Delay reason",$C$23)=0,"",GETPIVOTDATA("Value",Pivots!$A$6,"Month",$B176,"Delay reason",$C$23)),NA()) -> 27550 | D176: 27550 | G176: 29837.28 | H176: 34333.345 | I176: 25341.215 | N176: 2018-12-01 | O176: 1272 | P176: 1690.25 | Q176: 4496.065 | R176: 5527.1175 | W176: =IF($D$164>5,NA(),IF(D176>H176,MAX(W$165:$W175)+1,0)) -> 0 | X176: =IF($D$164>5,NA(),IF(D176<I176,MAX(W$165:$W175)+1,0)) -> 0 | AA176: 0 | AB176: 0 | AE176: 1 | AF176: 1 | AG176: 27550 | AI176: 0 | AJ176: 0 | AM176: 1 | AN176: 0 | AR176: 27550
B177: 2019-01-01 | C177: =IFERROR(IF(GETPIVOTDATA("Value",Pivots!$A$6,"Month",$B177,"Delay reason",$C$23)=0,"",GETPIVOTDATA("Value",Pivots!$A$6,"Month",$B177,"Delay reason",$C$23)),NA()) -> 27733 | D177: 27733 | G177: 29837.28 | H177: 34333.345 | I177: 25341.215 | N177: 2019-01-01 | O177: 183 | P177: 1690.25 | Q177: 4496.065 | R177: 5527.1175 | W177: =IF($D$164>5,NA(),IF(D177>H177,MAX(W$165:$W176)+1,0)) -> 0 | X177: =IF($D$164>5,NA(),IF(D177<I177,MAX(W$165:$W176)+1,0)) -> 0 | AA177: =IFERROR(IF($D$164>5,NA(), IF(D177>G177,1,0)),0) -> 0 | AB177: 0 | AE177: 1 | AF177: 1 | AG177: 27733 | AI177: 1 | AJ177: 0 | AM177: 0 | AN177: 0 | AR177: 27733
B178: 2019-02-01 | C178: =IFERROR(IF(GETPIVOTDATA("Value",Pivots!$A$6,"Month",$B178,"Delay reason",$C$23)=0,"",GETPIVOTDATA("Value",Pivots!$A$6,"Month",$B178,"Delay reason",$C$23)),NA()) -> 25350 | D178: 25350 | G178: 29837.28 | H178: 34333.345 | I178: 25341.215 | N178: 2019-02-01 | O178: 2383 | P178: 1690.25 | Q178: 4496.065 | R178: 5527.1175 | W178: =IF($D$164>5,NA(),IF(D178>H178,MAX(W$165:$W177)+1,0)) -> 0 | X178: =IF($D$164>5,NA(),IF(D178<I178,MAX(W$165:$W177)+1,0)) -> 0 | AA178: 0 | AB178: 0 | AE178: 1 | AF178: 1 | AG178: 25350 | AI178: 0 | AJ178: 0 | AM178: 1 | AN178: 0 | AR178: 25350
B179: 2019-03-01 | C179: =IFERROR(IF(GETPIVOTDATA("Value",Pivots!$A$6,"Month",$B179,"Delay reason",$C$23)=0,"",GETPIVOTDATA("Value",Pivots!$A$6,"Month",$B179,"Delay reason",$C$23)),NA()) -> 28208 | D179: 28208 | G179: 29837.28 | H179: 34333.345 | I179: 25341.215 | N179: 2019-03-01 | O179: 2858 | P179: 1690.25 | Q179: 4496.065 | R179: 5527.1175 | W179: =IF($D$164>5,NA(),IF(D179>H179,MAX(W$165:$W178)+1,0)) -> 0 | X179: =IF($D$164>5,NA(),IF(D179<I179,MAX(W$165:$W178)+1,0)) -> 0 | AA179: 0 | AB179: 0 | AE179: 1 | AF179: 1 | AG179: 28208 | AI179: 1 | AJ179: 0 | AM179: 0 | AN179: 0 | AR179: 28208
B180: 2019-04-01 | C180: =IFERROR(IF(GETPIVOTDATA("Value",Pivots!$A$6,"Month",$B180,"Delay reason",$C$23)=0,"",GETPIVOTDATA("Value",Pivots!$A$6,"Month",$B180,"Delay reason",$C$23)),NA()) -> 25051 | D180: 25051 | G180: 29837.28 | H180: 34333.345 | I180: 25341.215 | N180: 2019-04-01 | O180: 3157 | P180: 1690.25 | Q180: 4496.065 | R180: 5527.1175 | W180: =IF($D$164>5,NA(),IF(D180>H180,MAX(W$165:$W179)+1,0)) -> 0 | X180: =IF($D$164>5,NA(),IF(D180<I180,MAX(W$165:$W179)+1,0)) -> 1 | Z180: 25051 | AA180: 0 | AB180: 0 | AE180: 1 | AF180: 1 | AG180: 25051 | AI180: 0 | AJ180: 0 | AM180: 1 | AN180: 0 | AR180: 25051
B181: 2019-05-01 | C181: =IFERROR(IF(GETPIVOTDATA("Value",Pivots!$A$6,"Month",$B181,"Delay reason",$C$23)=0,"",GETPIVOTDATA("Value",Pivots!$A$6,"Month",$B181,"Delay reason",$C$23)),NA()) -> 27789 | D181: 27789 | G181: 29837.28 | H181: 34333.345 | I181: 25341.215 | N181: 2019-05-01 | O181: 2738 | P181: 1690.25 | Q181: 4496.065 | R181: 5527.1175 | W181: =IF($D$164>5,NA(),IF(D181>H181,MAX(W$165:$W180)+1,0)) -> 0 | X181: =IF($D$164>5,NA(),IF(D181<I181,MAX(W$165:$W180)+1,0)) -> 0 | AA181: 0 | AB181: 0 | AE181: 1 | AF181: 1 | AG181: 27789 | AI181: 1 | AJ181: 0 | AM181: 0 | AN181: 0 | AR181: 27789
B182: 2019-06-01 | C182: =IFERROR(IF(GETPIVOTDATA("Value",Pivots!$A$6,"Month",$B182,"Delay reason",$C$23)=0,"",GETPIVOTDATA("Value",Pivots!$A$6,"Month",$B182,"Delay reason",$C$23)),NA()) -> 27719 | D182: 27719 | G182: 29837.28 | H182: 34333.345 | I182: 25341.215 | N182: 2019-06-01 | O182: 70 | P182: 1690.25 | Q182: 4496.065 | R182: 5527.1175 | W182: =IF($D$164>5,NA(),IF(D182>H182,MAX(W$165:$W181)+1,0)) -> 0 | X182: =IF($D$164>5,NA(),IF(D182<I182,MAX(W$165:$W181)+1,0)) -> 0 | AA182: 0 | AB182: 0 | AE182: 1 | AF182: 1 | AG182: 27719 | AI182: 0 | AJ182: 0 | AM182: 1 | AN182: 0 | AR182: 27719
B183: 2019-07-01 | C183: =IFERROR(IF(GETPIVOTDATA("Value",Pivots!$A$6,"Month",$B183,"Delay reason",$C$23)=0,"",GETPIVOTDATA("Value",Pivots!$A$6,"Month",$B183,"Delay reason",$C$23)),NA()) -> 29889 | D183: 29889 | G183: 29837.28 | H183: 34333.345 | I183: 25341.215 | N183: 2019-07-01 | O183: 2170 | P183: 1690.25 | Q183: 4496.065 | R183: 5527.1175 | W183: =IF($D$164>5,NA(),IF(D183>H183,MAX(W$165:$W182)+1,0)) -> 0 | X183: =IF($D$164>5,NA(),IF(D183<I183,MAX(W$165:$W182)+1,0)) -> 0 | AA183: 1 | AB183: 1 | AC183: 29889 | AE183: 0 | AF183: 0 | AI183: 1 | AJ183: 0 | AM183: 0 | AN183: 0 | AQ183: 29889
B184: 2019-08-01 | C184: =IFERROR(IF(GETPIVOTDATA("Value",Pivots!$A$6,"Month",$B184,"Delay reason",$C$23)=0,"",GETPIVOTDATA("Value",Pivots!$A$6,"Month",$B184,"Delay reason",$C$23)),NA()) -> 32173 | D184: 32173 | G184: 29837.28 | H184: 34333.345 | I184: 25341.215 | N184: 2019-08-01 | O184: 2284 | P184: 1690.25 | Q184: 4496.065 | R184: 5527.1175 | W184: =IF($D$164>5,NA(),IF(D184>H184,MAX(W$165:$W183)+1,0)) -> 0 | X184: =IF($D$164>5,NA(),IF(D184<I184,MAX(W$165:$W183)+1,0)) -> 0 | AA184: 1 | AB184: 1 | AC184: 32173 | AE184: 0 | AF184: 0 | AI184: 1 | AJ184: 0 | AM184: 0 | AN184: 0 | AQ184: 32173
B185: 2019-09-01 | C185: =IFERROR(IF(GETPIVOTDATA("Value",Pivots!$A$6,"Month",$B185,"Delay reason",$C$23)=0,"",GETPIVOTDATA("Value",Pivots!$A$6,"Month",$B185,"Delay reason",$C$23)),NA()) -> 32025 | D185: 32025 | G185: 29837.28 | H185: 34333.345 | I185: 25341.215 | N185: 2019-09-01 | O185: 148 | P185: 1690.25 | Q185: 4496.065 | R185: 5527.1175 | W185: =IF($D$164>5,NA(),IF(D185>H185,MAX(W$165:$W184)+1,0)) -> 0 | X185: =IF($D$164>5,NA(),IF(D185<I185,MAX(W$165:$W184)+1,0)) -> 0 | AA185: 1 | AB185: 1 | AC185: 32025 | AE185: 0 | AF185: 0 | AI185: 0 | AJ185: 0 | AM185: 1 | AN185: 0 | AQ185: 32025
B186: 2019-10-01 | C186: =IFERROR(IF(GETPIVOTDATA("Value",Pivots!$A$6,"Month",$B186,"Delay reason",$C$23)=0,"",GETPIVOTDATA("Value",Pivots!$A$6,"Month",$B186,"Delay reason",$C$23)),NA()) -> 31643 | D186: 31643 | G186: 29837.28 | H186: 34333.345 | I186: 25341.215 | N186: 2019-10-01 | O186: 382 | P186: 1690.25 | Q186: 4496.065 | R186: 5527.1175 | W186: =IF($D$164>5,NA(),IF(D186>H186,MAX(W$165:$W185)+1,0)) -> 0 | X186: =IF($D$164>5,NA(),IF(D186<I186,MAX(W$165:$W185)+1,0)) -> 0 | AA186: 1 | AB186: 1 | AC186: 31643 | AE186: 0 | AF186: 0 | AI186: 0 | AJ186: 0 | AM186: 1 | AN186: 0 | AQ186: 31643
B187: 2019-11-01 | C187: =IFERROR(IF(GETPIVOTDATA("Value",Pivots!$A$6,"Month",$B187,"Delay reason",$C$23)=0,"",GETPIVOTDATA("Value",Pivots!$A$6,"Month",$B187,"Delay reason",$C$23)),NA()) -> 30375 | D187: 30375 | G187: 29837.28 | H187: 34333.345 | I187: 25341.215 | N187: 2019-11-01 | O187: 1268 | P187: 1690.25 | Q187: 4496.065 | R187: 5527.1175 | W187: =IF($D$164>5,NA(),IF(D187>H187,MAX(W$165:$W186)+1,0)) -> 0 | X187: =IF($D$164>5,NA(),IF(D187<I187,MAX(W$165:$W186)+1,0)) -> 0 | AA187: 1 | AB187: =IFERROR(IF(AND(AB186=1,AA187=1),1,IF(SUM(AA187:AA190)>=7,1,0)),NA()) -> 1 | AC187: =IF(AB187=0,NA(),C187) -> 30375 | AE187: 0 | AF187: =IFERROR(IF(AND(AF186=1,AE187=1),1,IF(SUM(AE187:AE190)>=7,1,0)),NA()) -> 0 | AG187: =IF(AF187=0,NA(),C187) ->  | AI187: 0 | AJ187: 0 | AM187: 1 | AN187: 0 | AQ187: 30375
B188: 2019-12-01 | C188: =IFERROR(IF(GETPIVOTDATA("Value",Pivots!$A$6,"Month",$B188,"Delay reason",$C$23)=0,"",GETPIVOTDATA("Value",Pivots!$A$6,"Month",$B188,"Delay reason",$C$23)),NA()) -> 31393 | D188: 31393 | G188: 29837.28 | H188: 34333.345 | I188: 25341.215 | N188: 2019-12-01 | O188: 1018 | P188: 1690.25 | Q188: 4496.065 | R188: 5527.1175 | W188: =IF($D$164>5,NA(),IF(D188>H188,MAX(W$165:$W187)+1,0)) -> 0 | X188: =IF($D$164>5,NA(),IF(D188<I188,MAX(W$165:$W187)+1,0)) -> 0 | AA188: 1 | AB188: =IFERROR(IF(AND(AB187=1,AA188=1),1,IF(SUM(AA188:AA190)>=7,1,0)),NA()) -> 1 | AC188: =IF(AB188=0,NA(),C188) -> 31393 | AE188: 0 | AF188: =IFERROR(IF(AND(AF187=1,AE188=1),1,IF(SUM(AE188:AE190)>=7,1,0)),NA()) -> 0 | AG188: =IF(AF188=0,NA(),C188) ->  | AI188: 1 | AJ188: 0 | AM188: 0 | AN188: 0 | AQ188: 31393
B189: 2020-01-01 | C189: =IFERROR(IF(GETPIVOTDATA("Value",Pivots!$A$6,"Month",$B189,"Delay reason",$C$23)=0,"",GETPIVOTDATA("Value",Pivots!$A$6,"Month",$B189,"Delay reason",$C$23)),NA()) -> 34456 | D189: 34456 | G189: 29837.28 | H189: 34333.345 | I189: 25341.215 | N189: 2020-01-01 | O189: 3063 | P189: 1690.25 | Q189: =IF(ISERROR((P189*2.66)),Q190,(P189*2.66)) -> 4496.065 | R189: 5527.1175 | W189: =IF($D$164>5,NA(),IF(D189>H189,MAX(W$165:$W188)+1,0)) -> 1 | X189: =IF($D$164>5,NA(),IF(D189<I189,MAX(W$165:$W188)+1,0)) -> 0 | Y189: 34456 | AA189: 1 | AB189: =IFERROR(IF(AND(AB188=1,AA189=1),1,IF(SUM(AA189:AA195)>=7,1,0)),NA()) -> 1 | AC189: 34456 | AE189: 0 | AF189: =IFERROR(IF(AND(AF188=1,AE189=1),1,IF(SUM(AE189:AE190)>=7,1,0)),NA()) -> 0 | AI189: 1 | AM189: 0
B190: 2020-02-01 | C190: =IFERROR(IF(GETPIVOTDATA("Value",Pivots!$A$6,"Month",$B190,"Delay reason",$C$23)=0,"",GETPIVOTDATA("Value",Pivots!$A$6,"Month",$B190,"Delay reason",$C$23)),NA()) -> 32464 | D190: 32464 | G190: 29837.28 | H190: =IF($D$164>5,NA(),IF(D190="",H189,G190+Q190)) -> 34333.345 | I190: =IF($D$164>5,NA(),IF(D190="",I189,G190-Q190)) -> 25341.215 | N190: 2020-02-01 | O190: 1992 | P190: =IF(O190="",P189,AVERAGE(IF($O$166:$O$190<>"",$O$166:$O$190))) -> 1690.25 | Q190: =IF(ISERROR((P190*2.66)),Q191,(P190*2.66)) -> 4496.065 | R190: 5527.1175 | W190: =IF($D$164>5,NA(),IF(D190>H190,MAX(W$165:$W189)+1,0)) -> 0 | X190: =IF($D$164>5,NA(),IF(D190<I190,MAX(W$165:$W189)+1,0)) -> 0 | AA190: =IFERROR(IF($D$164>5,NA(), IF(D190>G190,1,0)),0) -> 1 | AB190: =IFERROR(IF(AND(AB189=1,AA190=1),1,IF(SUM(AA190)>=7,1,0)),NA()) -> 1 | AC190: 32464 | AE190: =IFERROR(IF($D$164>5,NA(), IF(D190<G190,1,0)),0) -> 0 | AF190: =IFERROR(IF(AND(AF189=1,AE190=1),1,IF(SUM(AE190)>=7,1,0)),NA()) -> 0 | AI190: 0 | AM190: 1
B192: Grand total of reasons | C192: pareto link | D192: Count IF data point is blank
B193: =B68 -> 43678 | C193: =ROW() -> 193 | D193: =COUNTIF(D196:D220,"") -> 19 | H193: Upper | I193: Lower | N193: Date | O193: Difference | Q193: Sigma | W193: > 3 | X193: < 3 | AA193: 7 points above/below mean | AI193: Trend up/down | AQ193: chart 6
B194: ID (Week no.) | C194: Plot data | D194: Data | G194: Mean | H194: Control limits | I194: control limit (-3) | O194: For. Roll avg | P194: Cumul. Moving Avg. | Q194: 2.66* MR | R194: 3.27*MR | W194: Count | X194: Count | Y194: Above 3 sigma | Z194: Below 3 sigma | AA194: 7 points > mean | AB194: Count of 7point | AC194: 7 points above mean | AE194: 7 points <mean | AF194: Count of 7 point | AG194: 7points below mean | AI194: Trend up | AM194: Trend Down | AQ194: Concern | AR194: Improvement
B195: =IF(AG17=0,NA(),T17) ->  | C195: =IFERROR(IF(GETPIVOTDATA("Value",Pivots!$A$6,"Month",$B195)=0,"",GETPIVOTDATA("Value",Pivots!$A$6,"Month",$B195)),NA()) ->  | D195: =IFERROR(IF(C195="","",C195),"") ->  | G195: =AVERAGE($D$195:$D$219) -> 152039.5 | H195: =IF($D$193>5,NA(),IF(D195="",H194,(G195+Q195))) ->  | I195: =IF($D$193>5,NA(),IF(D195="",I194,(G195-Q195))) ->  | N195: =IFERROR(B195,NA()) ->  | P195: =IF(O195="",P194,AVERAGE(IF($O$195:$O$219<>"",$O$195:$O$219))) -> Cumul. Moving Avg. | Q195: =Q196 -> 15675.38 | R195: =R196 ->  | W195: =IF($D$193>5,NA(),IF(D195>H195,MAX(W$194:$W194)+1,0)) ->  | X195: =IF($D$193>5,NA(),IF(D195<I195,MAX(W$194:$W194)+1,0)) ->  | Y195: =IF(W195>0,C195,NA()) ->  | Z195: =IF(X195>0,D195,NA()) ->  | AA195: =IFERROR(IF($D$193>5,NA(), IF(D195>G195,1,0)),NA()) ->  | AB195: =IFERROR(IF(AND(AB194=1,AA195=1),1,IF(SUM(AA195:AA201)>=7,1,0)),0) -> 0 | AC195: =IF(AB195=0,NA(),C195) ->  | AE195: =IFERROR(IF($D$193>5,NA(), IF(D195<G195,1,0)),NA()) ->  | AF195: =IFERROR(IF(AND(AF194=1,AE195=1),1,IF(SUM(AE195:AE201)>=7,1,0)),0) -> 0 | AG195: =IF(AF195=0,NA(),C195) ->  | AI195: =IF($D$193>5,NA(),IF(D195>D194,1,0)) ->  | AJ195: =IFERROR(IF(AND(AJ194=1,AI195=1),1,IF(SUM(AI195:AI201)>=7,1,0)),NA()) ->  | AK195: =IF(AJ195=0,NA(),C195) ->  | AM195: =IF($D$193>5,NA(),IF(D195<D194,1,0)) ->  | AN195: =IFERROR(IF(AND(AN194=1,AM195=1),1,IF(SUM(AM195:AM201)>=7,1,0)),NA()) ->  | AO195: =IF(AN195=0,NA(),C195) ->  | AQ195: =IF(OR(W195>0,AB195>0,AJ195>0),C195,NA()) ->  | AR195: =IF(OR(X195>0,AF195>0,AN195>0),D195,NA()) -> 
B196: =IF(AG18=0,NA(),T18) ->  | C196: =IFERROR(IF(GETPIVOTDATA("Value",Pivots!$A$6,"Month",$B196)=0,"",GETPIVOTDATA("Value",Pivots!$A$6,"Month",$B196)),NA()) ->  | D196: =IFERROR(IF(C196="","",C196),"") ->  | G196: =AVERAGE($D$195:$D$219) -> 152039.5 | H196: =IF($D$193>5,NA(),IF(D196="",H195,(G196+Q196))) ->  | I196: =IF($D$193>5,NA(),IF(D196="",I195,(G196-Q196))) ->  | N196: =IFERROR(B196,NA()) ->  | O196: =IF(D195="","",IF(D196="","",ABS(D195-D196))) ->  | P196: Cumul. Moving Avg. | Q196: =IF(ISERROR((P196*2.66)),Q197,(P196*2.66)) -> 15675.38 | R196: =$P196*3.27 ->  | W196: =IF($D$193>5,NA(),IF(D196>H196,MAX(W$194:$W195)+1,0)) ->  | X196: =IF($D$193>5,NA(),IF(D196<I196,MAX(W$194:$W195)+1,0)) ->  | Y196: =IF(W196>0,C196,NA()) ->  | Z196: =IF(X196>0,D196,NA()) ->  | AA196: =IFERROR(IF($D$193>5,NA(), IF(D196>G196,1,0)),NA()) ->  | AB196: =IFERROR(IF(AND(AB195=1,AA196=1),1,IF(SUM(AA196:AA202)>=7,1,0)),0) -> 0 | AC196: =IF(AB196=0,NA(),C196) ->  | AE196: =IFERROR(IF($D$193>5,NA(), IF(D196<G196,1,0)),NA()) ->  | AF196: =IFERROR(IF(AND(AF195=1,AE196=1),1,IF(SUM(AE196:AE202)>=7,1,0)),0) -> 0 | AG196: =IF(AF196=0,NA(),C196) ->  | AI196: =IF($D$193>5,NA(),IF(D196>D195,1,0)) ->  | AJ196: =IFERROR(IF(AND(AJ195=1,AI196=1),1,IF(SUM(AI196:AI202)>=7,1,0)),NA()) ->  | AK196: =IF(AJ196=0,NA(),C196) ->  | AM196: =IF($D$193>5,NA(),IF(D196<D195,1,0)) ->  | AN196: =IFERROR(IF(AND(AN195=1,AM196=1),1,IF(SUM(AM196:AM202)>=7,1,0)),NA()) ->  | AO196: =IF(AN196=0,NA(),C196) ->  | AQ196: =IF(OR(W196>0,AB196>0,AJ196>0),C196,NA()) ->  | AR196: =IF(OR(X196>0,AF196>0,AN196>0),D196,NA()) -> 
C197: =IFERROR(IF(GETPIVOTDATA("Value",Pivots!$A$6,"Month",$B197)=0,"",GETPIVOTDATA("Value",Pivots!$A$6,"Month",$B197)),NA()) ->  | G197: 152039.5 | O197: =IF(D196="","",IF(D197="","",ABS(D196-D197))) ->  | P197: Cumul. Moving Avg. | Q197: =IF(ISERROR((P197*2.66)),Q198,(P197*2.66)) -> 15675.38 | R197: =$P197*3.27 ->  | W197: =IF($D$193>5,NA(),IF(D197>H197,MAX(W$194:$W196)+1,0)) ->  | X197: =IF($D$193>5,NA(),IF(D197<I197,MAX(W$194:$W196)+1,0)) ->  | AB197: 0 | AC197: =IF(AB197=0,NA(),C197) ->  | AF197: 0 | AG197: =IF(AF197=0,NA(),C197) ->  | AK197: =IF(AJ197=0,NA(),C197) ->  | AO197: =IF(AN197=0,NA(),C197) -> 
C198: =IFERROR(IF(GETPIVOTDATA("Value",Pivots!$A$6,"Month",$B198)=0,"",GETPIVOTDATA("Value",Pivots!$A$6,"Month",$B198)),NA()) ->  | G198: 152039.5 | P198: Cumul. Moving Avg. | Q198: =IF(ISERROR((P198*2.66)),Q199,(P198*2.66)) -> 15675.38 | W198: =IF($D$193>5,NA(),IF(D198>H198,MAX(W$194:$W197)+1,0)) ->  | X198: =IF($D$193>5,NA(),IF(D198<I198,MAX(W$194:$W197)+1,0)) ->  | AB198: 0 | AF198: 0
C199: =IFERROR(IF(GETPIVOTDATA("Value",Pivots!$A$6,"Month",$B199)=0,"",GETPIVOTDATA("Value",Pivots!$A$6,"Month",$B199)),NA()) ->  | G199: 152039.5 | P199: Cumul. Moving Avg. | Q199: =IF(ISERROR((P199*2.66)),Q200,(P199*2.66)) -> 15675.38 | W199: =IF($D$193>5,NA(),IF(D199>H199,MAX(W$194:$W198)+1,0)) ->  | X199: =IF($D$193>5,NA(),IF(D199<I199,MAX(W$194:$W198)+1,0)) ->  | AB199: 0 | AF199: 0
C200: =IFERROR(IF(GETPIVOTDATA("Value",Pivots!$A$6,"Month",$B200)=0,"",GETPIVOTDATA("Value",Pivots!$A$6,"Month",$B200)),NA()) ->  | G200: 152039.5 | P200: Cumul. Moving Avg. | Q200: 15675.38 | W200: =IF($D$193>5,NA(),IF(D200>H200,MAX(W$194:$W199)+1,0)) ->  | X200: =IF($D$193>5,NA(),IF(D200<I200,MAX(W$194:$W199)+1,0)) ->  | AB200: 0 | AF200: 0
C201: =IFERROR(IF(GETPIVOTDATA("Value",Pivots!$A$6,"Month",$B201)=0,"",GETPIVOTDATA("Value",Pivots!$A$6,"Month",$B201)),NA()) ->  | G201: 152039.5 | P201: Cumul. Moving Avg. | Q201: 15675.38 | W201: =IF($D$193>5,NA(),IF(D201>H201,MAX(W$194:$W200)+1,0)) ->  | X201: =IF($D$193>5,NA(),IF(D201<I201,MAX(W$194:$W200)+1,0)) ->  | AB201: 0 | AF201: 0
C202: =IFERROR(IF(GETPIVOTDATA("Value",Pivots!$A$6,"Month",$B202)=0,"",GETPIVOTDATA("Value",Pivots!$A$6,"Month",$B202)),NA()) ->  | G202: 152039.5 | P202: Cumul. Moving Avg. | Q202: 15675.38 | W202: =IF($D$193>5,NA(),IF(D202>H202,MAX(W$194:$W201)+1,0)) ->  | X202: =IF($D$193>5,NA(),IF(D202<I202,MAX(W$194:$W201)+1,0)) ->  | AB202: 0 | AF202: 0
C203: =IFERROR(IF(GETPIVOTDATA("Value",Pivots!$A$6,"Month",$B203)=0,"",GETPIVOTDATA("Value",Pivots!$A$6,"Month",$B203)),NA()) ->  | G203: 152039.5 | P203: Cumul. Moving Avg. | Q203: 15675.38 | W203: =IF($D$193>5,NA(),IF(D203>H203,MAX(W$194:$W202)+1,0)) ->  | X203: =IF($D$193>5,NA(),IF(D203<I203,MAX(W$194:$W202)+1,0)) ->  | AB203: 0 | AF203: 0
C204: =IFERROR(IF(GETPIVOTDATA("Value",Pivots!$A$6,"Month",$B204)=0,"",GETPIVOTDATA("Value",Pivots!$A$6,"Month",$B204)),NA()) ->  | G204: 152039.5 | P204: Cumul. Moving Avg. | Q204: 15675.38 | W204: =IF($D$193>5,NA(),IF(D204>H204,MAX(W$194:$W203)+1,0)) ->  | X204: =IF($D$193>5,NA(),IF(D204<I204,MAX(W$194:$W203)+1,0)) ->  | AB204: 0 | AF204: 0
C205: =IFERROR(IF(GETPIVOTDATA("Value",Pivots!$A$6,"Month",$B205)=0,"",GETPIVOTDATA("Value",Pivots!$A$6,"Month",$B205)),NA()) ->  | G205: 152039.5 | P205: Cumul. Moving Avg. | Q205: 15675.38 | W205: =IF($D$193>5,NA(),IF(D205>H205,MAX(W$194:$W204)+1,0)) ->  | X205: =IF($D$193>5,NA(),IF(D205<I205,MAX(W$194:$W204)+1,0)) ->  | AB205: 0 | AF205: 0
C206: =IFERROR(IF(GETPIVOTDATA("Value",Pivots!$A$6,"Month",$B206)=0,"",GETPIVOTDATA("Value",Pivots!$A$6,"Month",$B206)),NA()) ->  | G206: 152039.5 | P206: Cumul. Moving Avg. | Q206: 15675.38 | W206: =IF($D$193>5,NA(),IF(D206>H206,MAX(W$194:$W205)+1,0)) ->  | X206: =IF($D$193>5,NA(),IF(D206<I206,MAX(W$194:$W205)+1,0)) ->  | AB206: 0 | AF206: 0
C207: =IFERROR(IF(GETPIVOTDATA("Value",Pivots!$A$6,"Month",$B207)=0,"",GETPIVOTDATA("Value",Pivots!$A$6,"Month",$B207)),NA()) ->  | G207: 152039.5 | P207: Cumul. Moving Avg. | Q207: 15675.38 | W207: =IF($D$193>5,NA(),IF(D207>H207,MAX(W$194:$W206)+1,0)) ->  | X207: =IF($D$193>5,NA(),IF(D207<I207,MAX(W$194:$W206)+1,0)) ->  | AB207: 0 | AF207: 0
C208: =IFERROR(IF(GETPIVOTDATA("Value",Pivots!$A$6,"Month",$B208)=0,"",GETPIVOTDATA("Value",Pivots!$A$6,"Month",$B208)),NA()) ->  | G208: 152039.5 | P208: Cumul. Moving Avg. | Q208: 15675.38 | W208: =IF($D$193>5,NA(),IF(D208>H208,MAX(W$194:$W207)+1,0)) ->  | X208: =IF($D$193>5,NA(),IF(D208<I208,MAX(W$194:$W207)+1,0)) ->  | AB208: 0 | AF208: 0
... 12 more rows

Sheet DTOC_Tool LA
B2: Delayed transfer of care (local authority level) By reason (number of delayed days)
AF3: Click on button to go to:
B8: Region | M8: Type | R8: Source | V8: Local authority | AE8: To view England overview remove filters from 'Region' and 'Local authority'
B9: =IF(LA_Charts!$E$12=1,"(All)",LA_Charts!$D$12) -> (All) | M9: =LA_Charts!C14 -> (All) | R9: =LA_Charts!C13 -> (All) | V9: =IF(LA_Charts!$E$11=1,"(All)",LA_Charts!$D$11) -> (All)
AE36: Key:
V39: Additional comments: The five charts displaying the reasons will change from SPC charts to run charts if more than 5 data points are 0. The Pareto chart will display the number of delayed days for the period selected and will rank them in descending order. The four charts underneath will display the last 25 months of data for each of the top four reasons. The user can select to display a fifth chart and the reason it displays.
AG49: `

Sheet LA_Charts (hidden)
B2: Source
B3: Earliest week | D3: =MIN(Pivots_LA!$A$9:$A$36) -> 2018-02-01
B4: Last date | D4: =MAX(Pivots_LA!$A$9:$A$36) -> 2020-02-01
R6: Chart title | T6: =IF(U10=1,T7,T8) -> Pareto chart showing delayed days by reason for 6 months
T7: ="Pareto chart showing delayed days by reason for" &" "&U10&" "&"month" -> Pareto chart showing delayed days by reason for 6 month
T8: ="Pareto chart showing delayed days by reason for" &" "&U10&" "&"months" -> Pareto chart showing delayed days by reason for 6 months
B9: Start month | D9: =D3 -> 2018-02-01
E10: IF = all put 1 else 0 | T10: Total months | U10: =COUNT(V14:V38) -> 6
B11: LA Name | C11: =Pivots_LA!B2 -> (All) | D11: =IF(C11="(All)","England",C11) -> England | E11: =IF(AND(C11="(All)"),1,0) -> 1
B12: Region ref | C12: =Pivots_LA!B6 -> (All) | D12: =IF(C12="(All)","England",C12) -> England | E12: =IF(AND(C12="(All)"),1,0) -> 1 | V12: 1 | W12: 2 | X12: 3 | Y12: 4 | Z12: 5 | AA12: 6 | AB12: 7 | AC12: 8 | AD12: 9 | AE12: 10 | AF12: 11
B13: Source | C13: =Pivots_LA!B4 -> (All) | D13: =IF(D12="England","All",C13) -> All | N13: Delayed reasons adjust date range calculations | T13: Month | U13: Region | V13: A) Awaiting completion of assessment | W13: B) Awaiting public funding | X13: C) Awaiting further non-acute NHS care (including intermediate care, rehabilitation services etc) | Y13: Di) Awaiting residential home placement or availability | Z13: Dii) Awaiting nursing home placement or availability | AA13: E) Awaiting care package in own home | AB13: F) Awaiting community equipment and adaptations | AC13: G) Patient or family choice | AD13: H) Disputes | AE13: I) Housing – patients not covered by NHS Care Act | AF13: O) Other
B14: Type | C14: =Pivots_LA!B3 -> (All) | D14: =IF(D12="England","All",C14) -> All | S14: 1 | T14: =B45 -> 2018-02-01 | U14: =$C$12 -> (All) | V14: =IFERROR(IF(AND($T14>=$P$23,$T14<=$P$24),(GETPIVOTDATA("Value",Pivots_LA!$A$6,"Month",$T14,"Delay reason",V$13)),""),0) ->  | W14: =IFERROR(IF(AND($T14>=$P$23,$T14<=$P$24),(GETPIVOTDATA("Value",Pivots_LA!$A$6,"Month",$T14,"Delay reason",W$13)),""),0) ->  | X14: =IFERROR(IF(AND($T14>=$P$23,$T14<=$P$24),(GETPIVOTDATA("Value",Pivots_LA!$A$6,"Month",$T14,"Delay reason",X$13)),""),0) ->  | Y14: =IFERROR(IF(AND($T14>=$P$23,$T14<=$P$24),(GETPIVOTDATA("Value",Pivots_LA!$A$6,"Month",$T14,"Delay reason",Y$13)),""),0) ->  | Z14: =IFERROR(IF(AND($T14>=$P$23,$T14<=$P$24),(GETPIVOTDATA("Value",Pivots_LA!$A$6,"Month",$T14,"Delay reason",Z$13)),""),0) ->  | AA14: =IFERROR(IF(AND($T14>=$P$23,$T14<=$P$24),(GETPIVOTDATA("Value",Pivots_LA!$A$6,"Month",$T14,"Delay reason",AA$13)),""),0) ->  | AB14: =IFERROR(IF(AND($T14>=$P$23,$T14<=$P$24),(GETPIVOTDATA("Value",Pivots_LA!$A$6,"Month",$T14,"Delay reason",AB$13)),""),0) ->  | AC14: =IFERROR(IF(AND($T14>=$P$23,$T14<=$P$24),(GETPIVOTDATA("Value",Pivots_LA!$A$6,"Month",$T14,"Delay reason",AC$13)),""),0) ->  | AD14: =IFERROR(IF(AND($T14>=$P$23,$T14<=$P$24),(GETPIVOTDATA("Value",Pivots_LA!$A$6,"Month",$T14,"Delay reason",AD$13)),""),0) ->  | AE14: =IFERROR(IF(AND($T14>=$P$23,$T14<=$P$24),(GETPIVOTDATA("Value",Pivots_LA!$A$6,"Month",$T14,"Delay reason",AE$13)),""),0) ->  | AF14: =IFERROR(IF(AND($T14>=$P$23,$T14<=$P$24),(GETPIVOTDATA("Value",Pivots_LA!$A$6,"Month",$T14,"Delay reason",AF$13)),""),0) ->  | AG14: =COUNT(V14:AF14) -> 0
S15: 2 | T15: 2018-03-01 | U15: (All) | V15: =IFERROR(IF(AND($T15>=$P$23,$T15<=$P$24),(GETPIVOTDATA("Value",Pivots_LA!$A$6,"Month",$T15,"Delay reason",V$13)),""),0) ->  | W15: =IFERROR(IF(AND($T15>=$P$23,$T15<=$P$24),(GETPIVOTDATA("Value",Pivots_LA!$A$6,"Month",$T15,"Delay reason",W$13)),""),0) ->  | X15: =IFERROR(IF(AND($T15>=$P$23,$T15<=$P$24),(GETPIVOTDATA("Value",Pivots_LA!$A$6,"Month",$T15,"Delay reason",X$13)),""),0) ->  | Y15: =IFERROR(IF(AND($T15>=$P$23,$T15<=$P$24),(GETPIVOTDATA("Value",Pivots_LA!$A$6,"Month",$T15,"Delay reason",Y$13)),""),0) ->  | Z15: =IFERROR(IF(AND($T15>=$P$23,$T15<=$P$24),(GETPIVOTDATA("Value",Pivots_LA!$A$6,"Month",$T15,"Delay reason",Z$13)),""),0) ->  | AA15: =IFERROR(IF(AND($T15>=$P$23,$T15<=$P$24),(GETPIVOTDATA("Value",Pivots_LA!$A$6,"Month",$T15,"Delay reason",AA$13)),""),0) ->  | AB15: =IFERROR(IF(AND($T15>=$P$23,$T15<=$P$24),(GETPIVOTDATA("Value",Pivots_LA!$A$6,"Month",$T15,"Delay reason",AB$13)),""),0) ->  | AC15: =IFERROR(IF(AND($T15>=$P$23,$T15<=$P$24),(GETPIVOTDATA("Value",Pivots_LA!$A$6,"Month",$T15,"Delay reason",AC$13)),""),0) ->  | AD15: =IFERROR(IF(AND($T15>=$P$23,$T15<=$P$24),(GETPIVOTDATA("Value",Pivots_LA!$A$6,"Month",$T15,"Delay reason",AD$13)),""),0) ->  | AE15: =IFERROR(IF(AND($T15>=$P$23,$T15<=$P$24),(GETPIVOTDATA("Value",Pivots_LA!$A$6,"Month",$T15,"Delay reason",AE$13)),""),0) ->  | AF15: =IFERROR(IF(AND($T15>=$P$23,$T15<=$P$24),(GETPIVOTDATA("Value",Pivots_LA!$A$6,"Month",$T15,"Delay reason",AF$13)),""),0) ->  | AG15: =COUNT(V15:AF15) -> 0
B16: Chart number | C16: Title | J16: Chart look-up ref | O16: Date start | P16: 20 | S16: 3 | T16: 2018-04-01 | U16: (All) | V16: =IFERROR(IF(AND($T16>=$P$23,$T16<=$P$24),(GETPIVOTDATA("Value",Pivots_LA!$A$6,"Month",$T16,"Delay reason",V$13)),""),0) ->  | W16: =IFERROR(IF(AND($T16>=$P$23,$T16<=$P$24),(GETPIVOTDATA("Value",Pivots_LA!$A$6,"Month",$T16,"Delay reason",W$13)),""),0) ->  | X16: =IFERROR(IF(AND($T16>=$P$23,$T16<=$P$24),(GETPIVOTDATA("Value",Pivots_LA!$A$6,"Month",$T16,"Delay reason",X$13)),""),0) ->  | Y16: =IFERROR(IF(AND($T16>=$P$23,$T16<=$P$24),(GETPIVOTDATA("Value",Pivots_LA!$A$6,"Month",$T16,"Delay reason",Y$13)),""),0) ->  | Z16: =IFERROR(IF(AND($T16>=$P$23,$T16<=$P$24),(GETPIVOTDATA("Value",Pivots_LA!$A$6,"Month",$T16,"Delay reason",Z$13)),""),0) ->  | AA16: =IFERROR(IF(AND($T16>=$P$23,$T16<=$P$24),(GETPIVOTDATA("Value",Pivots_LA!$A$6,"Month",$T16,"Delay reason",AA$13)),""),0) ->  | AB16: =IFERROR(IF(AND($T16>=$P$23,$T16<=$P$24),(GETPIVOTDATA("Value",Pivots_LA!$A$6,"Month",$T16,"Delay reason",AB$13)),""),0) ->  | AC16: =IFERROR(IF(AND($T16>=$P$23,$T16<=$P$24),(GETPIVOTDATA("Value",Pivots_LA!$A$6,"Month",$T16,"Delay reason",AC$13)),""),0) ->  | AD16: =IFERROR(IF(AND($T16>=$P$23,$T16<=$P$24),(GETPIVOTDATA("Value",Pivots_LA!$A$6,"Month",$T16,"Delay reason",AD$13)),""),0) ->  | AE16: =IFERROR(IF(AND($T16>=$P$23,$T16<=$P$24),(GETPIVOTDATA("Value",Pivots_LA!$A$6,"Month",$T16,"Delay reason",AE$13)),""),0) ->  | AF16: =IFERROR(IF(AND($T16>=$P$23,$T16<=$P$24),(GETPIVOTDATA("Value",Pivots_LA!$A$6,"Month",$T16,"Delay reason",AF$13)),""),0) ->  | AG16: 0
B17: 1 | C17: Local Authority Delayed reasons | O17: Date end | P17: 6 | S17: 4 | T17: 2018-05-01 | U17: (All) | V17: =IFERROR(IF(AND($T17>=$P$23,$T17<=$P$24),(GETPIVOTDATA("Value",Pivots_LA!$A$6,"Month",$T17,"Delay reason",V$13)),""),0) ->  | W17: =IFERROR(IF(AND($T17>=$P$23,$T17<=$P$24),(GETPIVOTDATA("Value",Pivots_LA!$A$6,"Month",$T17,"Delay reason",W$13)),""),0) ->  | X17: =IFERROR(IF(AND($T17>=$P$23,$T17<=$P$24),(GETPIVOTDATA("Value",Pivots_LA!$A$6,"Month",$T17,"Delay reason",X$13)),""),0) ->  | Y17: =IFERROR(IF(AND($T17>=$P$23,$T17<=$P$24),(GETPIVOTDATA("Value",Pivots_LA!$A$6,"Month",$T17,"Delay reason",Y$13)),""),0) ->  | Z17: =IFERROR(IF(AND($T17>=$P$23,$T17<=$P$24),(GETPIVOTDATA("Value",Pivots_LA!$A$6,"Month",$T17,"Delay reason",Z$13)),""),0) ->  | AA17: =IFERROR(IF(AND($T17>=$P$23,$T17<=$P$24),(GETPIVOTDATA("Value",Pivots_LA!$A$6,"Month",$T17,"Delay reason",AA$13)),""),0) ->  | AB17: =IFERROR(IF(AND($T17>=$P$23,$T17<=$P$24),(GETPIVOTDATA("Value",Pivots_LA!$A$6,"Month",$T17,"Delay reason",AB$13)),""),0) ->  | AC17: =IFERROR(IF(AND($T17>=$P$23,$T17<=$P$24),(GETPIVOTDATA("Value",Pivots_LA!$A$6,"Month",$T17,"Delay reason",AC$13)),""),0) ->  | AD17: =IFERROR(IF(AND($T17>=$P$23,$T17<=$P$24),(GETPIVOTDATA("Value",Pivots_LA!$A$6,"Month",$T17,"Delay reason",AD$13)),""),0) ->  | AE17: =IFERROR(IF(AND($T17>=$P$23,$T17<=$P$24),(GETPIVOTDATA("Value",Pivots_LA!$A$6,"Month",$T17,"Delay reason",AE$13)),""),0) ->  | AF17: =IFERROR(IF(AND($T17>=$P$23,$T17<=$P$24),(GETPIVOTDATA("Value",Pivots_LA!$A$6,"Month",$T17,"Delay reason",AF$13)),""),0) ->  | AG17: 0
B18: 2 | C18: =$J29 -> E) Awaiting care package in own home | J18: =VLOOKUP(C18,ReferenceSheet!$B$2:$C$12,2,0) -> 6 | S18: 5 | T18: 2018-06-01 | U18: (All) | V18: =IFERROR(IF(AND($T18>=$P$23,$T18<=$P$24),(GETPIVOTDATA("Value",Pivots_LA!$A$6,"Month",$T18,"Delay reason",V$13)),""),0) ->  | W18: =IFERROR(IF(AND($T18>=$P$23,$T18<=$P$24),(GETPIVOTDATA("Value",Pivots_LA!$A$6,"Month",$T18,"Delay reason",W$13)),""),0) ->  | X18: =IFERROR(IF(AND($T18>=$P$23,$T18<=$P$24),(GETPIVOTDATA("Value",Pivots_LA!$A$6,"Month",$T18,"Delay reason",X$13)),""),0) ->  | Y18: =IFERROR(IF(AND($T18>=$P$23,$T18<=$P$24),(GETPIVOTDATA("Value",Pivots_LA!$A$6,"Month",$T18,"Delay reason",Y$13)),""),0) ->  | Z18: =IFERROR(IF(AND($T18>=$P$23,$T18<=$P$24),(GETPIVOTDATA("Value",Pivots_LA!$A$6,"Month",$T18,"Delay reason",Z$13)),""),0) ->  | AA18: =IFERROR(IF(AND($T18>=$P$23,$T18<=$P$24),(GETPIVOTDATA("Value",Pivots_LA!$A$6,"Month",$T18,"Delay reason",AA$13)),""),0) ->  | AB18: =IFERROR(IF(AND($T18>=$P$23,$T18<=$P$24),(GETPIVOTDATA("Value",Pivots_LA!$A$6,"Month",$T18,"Delay reason",AB$13)),""),0) ->  | AC18: =IFERROR(IF(AND($T18>=$P$23,$T18<=$P$24),(GETPIVOTDATA("Value",Pivots_LA!$A$6,"Month",$T18,"Delay reason",AC$13)),""),0) ->  | AD18: =IFERROR(IF(AND($T18>=$P$23,$T18<=$P$24),(GETPIVOTDATA("Value",Pivots_LA!$A$6,"Month",$T18,"Delay reason",AD$13)),""),0) ->  | AE18: =IFERROR(IF(AND($T18>=$P$23,$T18<=$P$24),(GETPIVOTDATA("Value",Pivots_LA!$A$6,"Month",$T18,"Delay reason",AE$13)),""),0) ->  | AF18: =IFERROR(IF(AND($T18>=$P$23,$T18<=$P$24),(GETPIVOTDATA("Value",Pivots_LA!$A$6,"Month",$T18,"Delay reason",AF$13)),""),0) ->  | AG18: 0
B19: 3 | C19: =$J30 -> C) Awaiting further non-acute NHS care (including intermediate care, rehabilitation services etc) | J19: 3 | O19: Offset end date | P19: =P16-1 -> 19 | S19: 6 | T19: 2018-07-01 | U19: (All) | V19: =IFERROR(IF(AND($T19>=$P$23,$T19<=$P$24),(GETPIVOTDATA("Value",Pivots_LA!$A$6,"Month",$T19,"Delay reason",V$13)),""),0) ->  | W19: =IFERROR(IF(AND($T19>=$P$23,$T19<=$P$24),(GETPIVOTDATA("Value",Pivots_LA!$A$6,"Month",$T19,"Delay reason",W$13)),""),0) ->  | X19: =IFERROR(IF(AND($T19>=$P$23,$T19<=$P$24),(GETPIVOTDATA("Value",Pivots_LA!$A$6,"Month",$T19,"Delay reason",X$13)),""),0) ->  | Y19: =IFERROR(IF(AND($T19>=$P$23,$T19<=$P$24),(GETPIVOTDATA("Value",Pivots_LA!$A$6,"Month",$T19,"Delay reason",Y$13)),""),0) ->  | Z19: =IFERROR(IF(AND($T19>=$P$23,$T19<=$P$24),(GETPIVOTDATA("Value",Pivots_LA!$A$6,"Month",$T19,"Delay reason",Z$13)),""),0) ->  | AA19: =IFERROR(IF(AND($T19>=$P$23,$T19<=$P$24),(GETPIVOTDATA("Value",Pivots_LA!$A$6,"Month",$T19,"Delay reason",AA$13)),""),0) ->  | AB19: =IFERROR(IF(AND($T19>=$P$23,$T19<=$P$24),(GETPIVOTDATA("Value",Pivots_LA!$A$6,"Month",$T19,"Delay reason",AB$13)),""),0) ->  | AC19: =IFERROR(IF(AND($T19>=$P$23,$T19<=$P$24),(GETPIVOTDATA("Value",Pivots_LA!$A$6,"Month",$T19,"Delay reason",AC$13)),""),0) ->  | AD19: =IFERROR(IF(AND($T19>=$P$23,$T19<=$P$24),(GETPIVOTDATA("Value",Pivots_LA!$A$6,"Month",$T19,"Delay reason",AD$13)),""),0) ->  | AE19: =IFERROR(IF(AND($T19>=$P$23,$T19<=$P$24),(GETPIVOTDATA("Value",Pivots_LA!$A$6,"Month",$T19,"Delay reason",AE$13)),""),0) ->  | AF19: =IFERROR(IF(AND($T19>=$P$23,$T19<=$P$24),(GETPIVOTDATA("Value",Pivots_LA!$A$6,"Month",$T19,"Delay reason",AF$13)),""),0) ->  | AG19: 0
B20: 4 | C20: =$J31 -> Dii) Awaiting nursing home placement or availability | J20: =VLOOKUP(C20,ReferenceSheet!$B$2:$C$12,2,0) -> 5 | O20: Count | P20: 26 | S20: 7 | T20: 2018-08-01 | U20: (All) | V20: =IFERROR(IF(AND($T20>=$P$23,$T20<=$P$24),(GETPIVOTDATA("Value",Pivots_LA!$A$6,"Month",$T20,"Delay reason",V$13)),""),0) ->  | W20: =IFERROR(IF(AND($T20>=$P$23,$T20<=$P$24),(GETPIVOTDATA("Value",Pivots_LA!$A$6,"Month",$T20,"Delay reason",W$13)),""),0) ->  | X20: =IFERROR(IF(AND($T20>=$P$23,$T20<=$P$24),(GETPIVOTDATA("Value",Pivots_LA!$A$6,"Month",$T20,"Delay reason",X$13)),""),0) ->  | Y20: =IFERROR(IF(AND($T20>=$P$23,$T20<=$P$24),(GETPIVOTDATA("Value",Pivots_LA!$A$6,"Month",$T20,"Delay reason",Y$13)),""),0) ->  | Z20: =IFERROR(IF(AND($T20>=$P$23,$T20<=$P$24),(GETPIVOTDATA("Value",Pivots_LA!$A$6,"Month",$T20,"Delay reason",Z$13)),""),0) ->  | AA20: =IFERROR(IF(AND($T20>=$P$23,$T20<=$P$24),(GETPIVOTDATA("Value",Pivots_LA!$A$6,"Month",$T20,"Delay reason",AA$13)),""),0) ->  | AB20: =IFERROR(IF(AND($T20>=$P$23,$T20<=$P$24),(GETPIVOTDATA("Value",Pivots_LA!$A$6,"Month",$T20,"Delay reason",AB$13)),""),0) ->  | AC20: =IFERROR(IF(AND($T20>=$P$23,$T20<=$P$24),(GETPIVOTDATA("Value",Pivots_LA!$A$6,"Month",$T20,"Delay reason",AC$13)),""),0) ->  | AD20: =IFERROR(IF(AND($T20>=$P$23,$T20<=$P$24),(GETPIVOTDATA("Value",Pivots_LA!$A$6,"Month",$T20,"Delay reason",AD$13)),""),0) ->  | AE20: =IFERROR(IF(AND($T20>=$P$23,$T20<=$P$24),(GETPIVOTDATA("Value",Pivots_LA!$A$6,"Month",$T20,"Delay reason",AE$13)),""),0) ->  | AF20: =IFERROR(IF(AND($T20>=$P$23,$T20<=$P$24),(GETPIVOTDATA("Value",Pivots_LA!$A$6,"Month",$T20,"Delay reason",AF$13)),""),0) ->  | AG20: 0
B21: 5 | C21: =$J32 -> A) Awaiting completion of assessment | J21: =VLOOKUP(C21,ReferenceSheet!$B$2:$C$12,2,0) -> 1 | O21: Height | P21: =P20-P16 -> 6 | S21: 8 | T21: 2018-09-01 | U21: (All) | V21: =IFERROR(IF(AND($T21>=$P$23,$T21<=$P$24),(GETPIVOTDATA("Value",Pivots_LA!$A$6,"Month",$T21,"Delay reason",V$13)),""),0) ->  | W21: =IFERROR(IF(AND($T21>=$P$23,$T21<=$P$24),(GETPIVOTDATA("Value",Pivots_LA!$A$6,"Month",$T21,"Delay reason",W$13)),""),0) ->  | X21: =IFERROR(IF(AND($T21>=$P$23,$T21<=$P$24),(GETPIVOTDATA("Value",Pivots_LA!$A$6,"Month",$T21,"Delay reason",X$13)),""),0) ->  | Y21: =IFERROR(IF(AND($T21>=$P$23,$T21<=$P$24),(GETPIVOTDATA("Value",Pivots_LA!$A$6,"Month",$T21,"Delay reason",Y$13)),""),0) ->  | Z21: =IFERROR(IF(AND($T21>=$P$23,$T21<=$P$24),(GETPIVOTDATA("Value",Pivots_LA!$A$6,"Month",$T21,"Delay reason",Z$13)),""),0) ->  | AA21: =IFERROR(IF(AND($T21>=$P$23,$T21<=$P$24),(GETPIVOTDATA("Value",Pivots_LA!$A$6,"Month",$T21,"Delay reason",AA$13)),""),0) ->  | AB21: =IFERROR(IF(AND($T21>=$P$23,$T21<=$P$24),(GETPIVOTDATA("Value",Pivots_LA!$A$6,"Month",$T21,"Delay reason",AB$13)),""),0) ->  | AC21: =IFERROR(IF(AND($T21>=$P$23,$T21<=$P$24),(GETPIVOTDATA("Value",Pivots_LA!$A$6,"Month",$T21,"Delay reason",AC$13)),""),0) ->  | AD21: =IFERROR(IF(AND($T21>=$P$23,$T21<=$P$24),(GETPIVOTDATA("Value",Pivots_LA!$A$6,"Month",$T21,"Delay reason",AD$13)),""),0) ->  | AE21: =IFERROR(IF(AND($T21>=$P$23,$T21<=$P$24),(GETPIVOTDATA("Value",Pivots_LA!$A$6,"Month",$T21,"Delay reason",AE$13)),""),0) ->  | AF21: =IFERROR(IF(AND($T21>=$P$23,$T21<=$P$24),(GETPIVOTDATA("Value",Pivots_LA!$A$6,"Month",$T21,"Delay reason",AF$13)),""),0) ->  | AG21: 0
B22: 6 | C22: =HLOOKUP(J22,V12:AF39,2,0) -> A) Awaiting completion of assessment | J22: 1 | S22: 9 | T22: 2018-10-01 | U22: (All) | V22: =IFERROR(IF(AND($T22>=$P$23,$T22<=$P$24),(GETPIVOTDATA("Value",Pivots_LA!$A$6,"Month",$T22,"Delay reason",V$13)),""),0) ->  | W22: =IFERROR(IF(AND($T22>=$P$23,$T22<=$P$24),(GETPIVOTDATA("Value",Pivots_LA!$A$6,"Month",$T22,"Delay reason",W$13)),""),0) ->  | X22: =IFERROR(IF(AND($T22>=$P$23,$T22<=$P$24),(GETPIVOTDATA("Value",Pivots_LA!$A$6,"Month",$T22,"Delay reason",X$13)),""),0) ->  | Y22: =IFERROR(IF(AND($T22>=$P$23,$T22<=$P$24),(GETPIVOTDATA("Value",Pivots_LA!$A$6,"Month",$T22,"Delay reason",Y$13)),""),0) ->  | Z22: =IFERROR(IF(AND($T22>=$P$23,$T22<=$P$24),(GETPIVOTDATA("Value",Pivots_LA!$A$6,"Month",$T22,"Delay reason",Z$13)),""),0) ->  | AA22: =IFERROR(IF(AND($T22>=$P$23,$T22<=$P$24),(GETPIVOTDATA("Value",Pivots_LA!$A$6,"Month",$T22,"Delay reason",AA$13)),""),0) ->  | AB22: =IFERROR(IF(AND($T22>=$P$23,$T22<=$P$24),(GETPIVOTDATA("Value",Pivots_LA!$A$6,"Month",$T22,"Delay reason",AB$13)),""),0) ->  | AC22: =IFERROR(IF(AND($T22>=$P$23,$T22<=$P$24),(GETPIVOTDATA("Value",Pivots_LA!$A$6,"Month",$T22,"Delay reason",AC$13)),""),0) ->  | AD22: =IFERROR(IF(AND($T22>=$P$23,$T22<=$P$24),(GETPIVOTDATA("Value",Pivots_LA!$A$6,"Month",$T22,"Delay reason",AD$13)),""),0) ->  | AE22: =IFERROR(IF(AND($T22>=$P$23,$T22<=$P$24),(GETPIVOTDATA("Value",Pivots_LA!$A$6,"Month",$T22,"Delay reason",AE$13)),""),0) ->  | AF22: =IFERROR(IF(AND($T22>=$P$23,$T22<=$P$24),(GETPIVOTDATA("Value",Pivots_LA!$A$6,"Month",$T22,"Delay reason",AF$13)),""),0) ->  | AG22: 0
N23: =P16 -> 20 | O23: Start date | P23: =VLOOKUP(N23,S14:T38,2,0) -> 2019-09-01 | S23: 10 | T23: 2018-11-01 | U23: (All) | V23: =IFERROR(IF(AND($T23>=$P$23,$T23<=$P$24),(GETPIVOTDATA("Value",Pivots_LA!$A$6,"Month",$T23,"Delay reason",V$13)),""),0) ->  | W23: =IFERROR(IF(AND($T23>=$P$23,$T23<=$P$24),(GETPIVOTDATA("Value",Pivots_LA!$A$6,"Month",$T23,"Delay reason",W$13)),""),0) ->  | X23: =IFERROR(IF(AND($T23>=$P$23,$T23<=$P$24),(GETPIVOTDATA("Value",Pivots_LA!$A$6,"Month",$T23,"Delay reason",X$13)),""),0) ->  | Y23: =IFERROR(IF(AND($T23>=$P$23,$T23<=$P$24),(GETPIVOTDATA("Value",Pivots_LA!$A$6,"Month",$T23,"Delay reason",Y$13)),""),0) ->  | Z23: =IFERROR(IF(AND($T23>=$P$23,$T23<=$P$24),(GETPIVOTDATA("Value",Pivots_LA!$A$6,"Month",$T23,"Delay reason",Z$13)),""),0) ->  | AA23: =IFERROR(IF(AND($T23>=$P$23,$T23<=$P$24),(GETPIVOTDATA("Value",Pivots_LA!$A$6,"Month",$T23,"Delay reason",AA$13)),""),0) ->  | AB23: =IFERROR(IF(AND($T23>=$P$23,$T23<=$P$24),(GETPIVOTDATA("Value",Pivots_LA!$A$6,"Month",$T23,"Delay reason",AB$13)),""),0) ->  | AC23: =IFERROR(IF(AND($T23>=$P$23,$T23<=$P$24),(GETPIVOTDATA("Value",Pivots_LA!$A$6,"Month",$T23,"Delay reason",AC$13)),""),0) ->  | AD23: =IFERROR(IF(AND($T23>=$P$23,$T23<=$P$24),(GETPIVOTDATA("Value",Pivots_LA!$A$6,"Month",$T23,"Delay reason",AD$13)),""),0) ->  | AE23: =IFERROR(IF(AND($T23>=$P$23,$T23<=$P$24),(GETPIVOTDATA("Value",Pivots_LA!$A$6,"Month",$T23,"Delay reason",AE$13)),""),0) ->  | AF23: =IFERROR(IF(AND($T23>=$P$23,$T23<=$P$24),(GETPIVOTDATA("Value",Pivots_LA!$A$6,"Month",$T23,"Delay reason",AF$13)),""),0) ->  | AG23: 0
N24: =IF((P17+P19)>25,25,(P17+P19)) -> 25 | O24: End date | P24: =VLOOKUP(N24,S14:T38,2,0) -> 2020-02-01 | S24: 11 | T24: 2018-12-01 | U24: (All) | V24: =IFERROR(IF(AND($T24>=$P$23,$T24<=$P$24),(GETPIVOTDATA("Value",Pivots_LA!$A$6,"Month",$T24,"Delay reason",V$13)),""),0) ->  | W24: =IFERROR(IF(AND($T24>=$P$23,$T24<=$P$24),(GETPIVOTDATA("Value",Pivots_LA!$A$6,"Month",$T24,"Delay reason",W$13)),""),0) ->  | X24: =IFERROR(IF(AND($T24>=$P$23,$T24<=$P$24),(GETPIVOTDATA("Value",Pivots_LA!$A$6,"Month",$T24,"Delay reason",X$13)),""),0) ->  | Y24: =IFERROR(IF(AND($T24>=$P$23,$T24<=$P$24),(GETPIVOTDATA("Value",Pivots_LA!$A$6,"Month",$T24,"Delay reason",Y$13)),""),0) ->  | Z24: =IFERROR(IF(AND($T24>=$P$23,$T24<=$P$24),(GETPIVOTDATA("Value",Pivots_LA!$A$6,"Month",$T24,"Delay reason",Z$13)),""),0) ->  | AA24: =IFERROR(IF(AND($T24>=$P$23,$T24<=$P$24),(GETPIVOTDATA("Value",Pivots_LA!$A$6,"Month",$T24,"Delay reason",AA$13)),""),0) ->  | AB24: =IFERROR(IF(AND($T24>=$P$23,$T24<=$P$24),(GETPIVOTDATA("Value",Pivots_LA!$A$6,"Month",$T24,"Delay reason",AB$13)),""),0) ->  | AC24: =IFERROR(IF(AND($T24>=$P$23,$T24<=$P$24),(GETPIVOTDATA("Value",Pivots_LA!$A$6,"Month",$T24,"Delay reason",AC$13)),""),0) ->  | AD24: =IFERROR(IF(AND($T24>=$P$23,$T24<=$P$24),(GETPIVOTDATA("Value",Pivots_LA!$A$6,"Month",$T24,"Delay reason",AD$13)),""),0) ->  | AE24: =IFERROR(IF(AND($T24>=$P$23,$T24<=$P$24),(GETPIVOTDATA("Value",Pivots_LA!$A$6,"Month",$T24,"Delay reason",AE$13)),""),0) ->  | AF24: =IFERROR(IF(AND($T24>=$P$23,$T24<=$P$24),(GETPIVOTDATA("Value",Pivots_LA!$A$6,"Month",$T24,"Delay reason",AF$13)),""),0) ->  | AG24: 0
S25: 12 | T25: 2019-01-01 | U25: (All) | V25: =IFERROR(IF(AND($T25>=$P$23,$T25<=$P$24),(GETPIVOTDATA("Value",Pivots_LA!$A$6,"Month",$T25,"Delay reason",V$13)),""),0) ->  | W25: =IFERROR(IF(AND($T25>=$P$23,$T25<=$P$24),(GETPIVOTDATA("Value",Pivots_LA!$A$6,"Month",$T25,"Delay reason",W$13)),""),0) ->  | X25: =IFERROR(IF(AND($T25>=$P$23,$T25<=$P$24),(GETPIVOTDATA("Value",Pivots_LA!$A$6,"Month",$T25,"Delay reason",X$13)),""),0) ->  | Y25: =IFERROR(IF(AND($T25>=$P$23,$T25<=$P$24),(GETPIVOTDATA("Value",Pivots_LA!$A$6,"Month",$T25,"Delay reason",Y$13)),""),0) ->  | Z25: =IFERROR(IF(AND($T25>=$P$23,$T25<=$P$24),(GETPIVOTDATA("Value",Pivots_LA!$A$6,"Month",$T25,"Delay reason",Z$13)),""),0) ->  | AA25: =IFERROR(IF(AND($T25>=$P$23,$T25<=$P$24),(GETPIVOTDATA("Value",Pivots_LA!$A$6,"Month",$T25,"Delay reason",AA$13)),""),0) ->  | AB25: =IFERROR(IF(AND($T25>=$P$23,$T25<=$P$24),(GETPIVOTDATA("Value",Pivots_LA!$A$6,"Month",$T25,"Delay reason",AB$13)),""),0) ->  | AC25: =IFERROR(IF(AND($T25>=$P$23,$T25<=$P$24),(GETPIVOTDATA("Value",Pivots_LA!$A$6,"Month",$T25,"Delay reason",AC$13)),""),0) ->  | AD25: =IFERROR(IF(AND($T25>=$P$23,$T25<=$P$24),(GETPIVOTDATA("Value",Pivots_LA!$A$6,"Month",$T25,"Delay reason",AD$13)),""),0) ->  | AE25: =IFERROR(IF(AND($T25>=$P$23,$T25<=$P$24),(GETPIVOTDATA("Value",Pivots_LA!$A$6,"Month",$T25,"Delay reason",AE$13)),""),0) ->  | AF25: =IFERROR(IF(AND($T25>=$P$23,$T25<=$P$24),(GETPIVOTDATA("Value",Pivots_LA!$A$6,"Month",$T25,"Delay reason",AF$13)),""),0) ->  | AG25: 0
B26: =C17 -> Local Authority Delayed reasons | S26: 13 | T26: 2019-02-01 | U26: (All) | V26: =IFERROR(IF(AND($T26>=$P$23,$T26<=$P$24),(GETPIVOTDATA("Value",Pivots_LA!$A$6,"Month",$T26,"Delay reason",V$13)),""),0) ->  | W26: =IFERROR(IF(AND($T26>=$P$23,$T26<=$P$24),(GETPIVOTDATA("Value",Pivots_LA!$A$6,"Month",$T26,"Delay reason",W$13)),""),0) ->  | X26: =IFERROR(IF(AND($T26>=$P$23,$T26<=$P$24),(GETPIVOTDATA("Value",Pivots_LA!$A$6,"Month",$T26,"Delay reason",X$13)),""),0) ->  | Y26: =IFERROR(IF(AND($T26>=$P$23,$T26<=$P$24),(GETPIVOTDATA("Value",Pivots_LA!$A$6,"Month",$T26,"Delay reason",Y$13)),""),0) ->  | Z26: =IFERROR(IF(AND($T26>=$P$23,$T26<=$P$24),(GETPIVOTDATA("Value",Pivots_LA!$A$6,"Month",$T26,"Delay reason",Z$13)),""),0) ->  | AA26: =IFERROR(IF(AND($T26>=$P$23,$T26<=$P$24),(GETPIVOTDATA("Value",Pivots_LA!$A$6,"Month",$T26,"Delay reason",AA$13)),""),0) ->  | AB26: =IFERROR(IF(AND($T26>=$P$23,$T26<=$P$24),(GETPIVOTDATA("Value",Pivots_LA!$A$6,"Month",$T26,"Delay reason",AB$13)),""),0) ->  | AC26: =IFERROR(IF(AND($T26>=$P$23,$T26<=$P$24),(GETPIVOTDATA("Value",Pivots_LA!$A$6,"Month",$T26,"Delay reason",AC$13)),""),0) ->  | AD26: =IFERROR(IF(AND($T26>=$P$23,$T26<=$P$24),(GETPIVOTDATA("Value",Pivots_LA!$A$6,"Month",$T26,"Delay reason",AD$13)),""),0) ->  | AE26: =IFERROR(IF(AND($T26>=$P$23,$T26<=$P$24),(GETPIVOTDATA("Value",Pivots_LA!$A$6,"Month",$T26,"Delay reason",AE$13)),""),0) ->  | AF26: =IFERROR(IF(AND($T26>=$P$23,$T26<=$P$24),(GETPIVOTDATA("Value",Pivots_LA!$A$6,"Month",$T26,"Delay reason",AF$13)),""),0) ->  | AG26: 0
B27: 1 | C27: =ROW() -> 27 | F27: Table to rank data | S27: 14 | T27: 2019-03-01 | U27: (All) | V27: =IFERROR(IF(AND($T27>=$P$23,$T27<=$P$24),(GETPIVOTDATA("Value",Pivots_LA!$A$6,"Month",$T27,"Delay reason",V$13)),""),0) ->  | W27: =IFERROR(IF(AND($T27>=$P$23,$T27<=$P$24),(GETPIVOTDATA("Value",Pivots_LA!$A$6,"Month",$T27,"Delay reason",W$13)),""),0) ->  | X27: =IFERROR(IF(AND($T27>=$P$23,$T27<=$P$24),(GETPIVOTDATA("Value",Pivots_LA!$A$6,"Month",$T27,"Delay reason",X$13)),""),0) ->  | Y27: =IFERROR(IF(AND($T27>=$P$23,$T27<=$P$24),(GETPIVOTDATA("Value",Pivots_LA!$A$6,"Month",$T27,"Delay reason",Y$13)),""),0) ->  | Z27: =IFERROR(IF(AND($T27>=$P$23,$T27<=$P$24),(GETPIVOTDATA("Value",Pivots_LA!$A$6,"Month",$T27,"Delay reason",Z$13)),""),0) ->  | AA27: =IFERROR(IF(AND($T27>=$P$23,$T27<=$P$24),(GETPIVOTDATA("Value",Pivots_LA!$A$6,"Month",$T27,"Delay reason",AA$13)),""),0) ->  | AB27: =IFERROR(IF(AND($T27>=$P$23,$T27<=$P$24),(GETPIVOTDATA("Value",Pivots_LA!$A$6,"Month",$T27,"Delay reason",AB$13)),""),0) ->  | AC27: =IFERROR(IF(AND($T27>=$P$23,$T27<=$P$24),(GETPIVOTDATA("Value",Pivots_LA!$A$6,"Month",$T27,"Delay reason",AC$13)),""),0) ->  | AD27: =IFERROR(IF(AND($T27>=$P$23,$T27<=$P$24),(GETPIVOTDATA("Value",Pivots_LA!$A$6,"Month",$T27,"Delay reason",AD$13)),""),0) ->  | AE27: =IFERROR(IF(AND($T27>=$P$23,$T27<=$P$24),(GETPIVOTDATA("Value",Pivots_LA!$A$6,"Month",$T27,"Delay reason",AE$13)),""),0) ->  | AF27: =IFERROR(IF(AND($T27>=$P$23,$T27<=$P$24),(GETPIVOTDATA("Value",Pivots_LA!$A$6,"Month",$T27,"Delay reason",AF$13)),""),0) ->  | AG27: 0
B28: Month | F28: Summed days by action | G28: equal rank | H28: Adjusted score | I28: Final Rank | J28: Ranked Actions | K28: ranked delay | N28: Cuml total | O28: Culm % | Q28: Chart set up | S28: 15 | T28: 2019-04-01 | U28: (All) | V28: =IFERROR(IF(AND($T28>=$P$23,$T28<=$P$24),(GETPIVOTDATA("Value",Pivots_LA!$A$6,"Month",$T28,"Delay reason",V$13)),""),0) ->  | W28: =IFERROR(IF(AND($T28>=$P$23,$T28<=$P$24),(GETPIVOTDATA("Value",Pivots_LA!$A$6,"Month",$T28,"Delay reason",W$13)),""),0) ->  | X28: =IFERROR(IF(AND($T28>=$P$23,$T28<=$P$24),(GETPIVOTDATA("Value",Pivots_LA!$A$6,"Month",$T28,"Delay reason",X$13)),""),0) ->  | Y28: =IFERROR(IF(AND($T28>=$P$23,$T28<=$P$24),(GETPIVOTDATA("Value",Pivots_LA!$A$6,"Month",$T28,"Delay reason",Y$13)),""),0) ->  | Z28: =IFERROR(IF(AND($T28>=$P$23,$T28<=$P$24),(GETPIVOTDATA("Value",Pivots_LA!$A$6,"Month",$T28,"Delay reason",Z$13)),""),0) ->  | AA28: =IFERROR(IF(AND($T28>=$P$23,$T28<=$P$24),(GETPIVOTDATA("Value",Pivots_LA!$A$6,"Month",$T28,"Delay reason",AA$13)),""),0) ->  | AB28: =IFERROR(IF(AND($T28>=$P$23,$T28<=$P$24),(GETPIVOTDATA("Value",Pivots_LA!$A$6,"Month",$T28,"Delay reason",AB$13)),""),0) ->  | AC28: =IFERROR(IF(AND($T28>=$P$23,$T28<=$P$24),(GETPIVOTDATA("Value",Pivots_LA!$A$6,"Month",$T28,"Delay reason",AC$13)),""),0) ->  | AD28: =IFERROR(IF(AND($T28>=$P$23,$T28<=$P$24),(GETPIVOTDATA("Value",Pivots_LA!$A$6,"Month",$T28,"Delay reason",AD$13)),""),0) ->  | AE28: =IFERROR(IF(AND($T28>=$P$23,$T28<=$P$24),(GETPIVOTDATA("Value",Pivots_LA!$A$6,"Month",$T28,"Delay reason",AE$13)),""),0) ->  | AF28: =IFERROR(IF(AND($T28>=$P$23,$T28<=$P$24),(GETPIVOTDATA("Value",Pivots_LA!$A$6,"Month",$T28,"Delay reason",AF$13)),""),0) ->  | AG28: 0
C29: A) Awaiting completion of assessment | D29: =IFERROR(HLOOKUP(C29,$V$13:$AF$39,27,TRUE),"") -> 114984 | F29: 1 | G29: =COUNTIF($D$29:$D$39,$D29) -> 1 | H29: =IF(G29>1,D29+ROW()*0.001,D29) -> 114984 | I29: =RANK(H29,$H$29:$H$39) -> 4 | J29: =INDEX($C$29:$C$39,MATCH(F29,$I$29:$I$39,0)) -> E) Awaiting care package in own home | K29: =INDEX($D$29:$D$39,MATCH(F29,$I$29:$I$39,0)) -> 191086 | N29: =K29 -> 191086 | O29: =N29/$N$39 -> 0.2105466129 | S29: 16 | T29: 2019-05-01 | U29: (All) | V29: =IFERROR(IF(AND($T29>=$P$23,$T29<=$P$24),(GETPIVOTDATA("Value",Pivots_LA!$A$6,"Month",$T29,"Delay reason",V$13)),""),0) ->  | W29: =IFERROR(IF(AND($T29>=$P$23,$T29<=$P$24),(GETPIVOTDATA("Value",Pivots_LA!$A$6,"Month",$T29,"Delay reason",W$13)),""),0) ->  | X29: =IFERROR(IF(AND($T29>=$P$23,$T29<=$P$24),(GETPIVOTDATA("Value",Pivots_LA!$A$6,"Month",$T29,"Delay reason",X$13)),""),0) ->  | Y29: =IFERROR(IF(AND($T29>=$P$23,$T29<=$P$24),(GETPIVOTDATA("Value",Pivots_LA!$A$6,"Month",$T29,"Delay reason",Y$13)),""),0) ->  | Z29: =IFERROR(IF(AND($T29>=$P$23,$T29<=$P$24),(GETPIVOTDATA("Value",Pivots_LA!$A$6,"Month",$T29,"Delay reason",Z$13)),""),0) ->  | AA29: =IFERROR(IF(AND($T29>=$P$23,$T29<=$P$24),(GETPIVOTDATA("Value",Pivots_LA!$A$6,"Month",$T29,"Delay reason",AA$13)),""),0) ->  | AB29: =IFERROR(IF(AND($T29>=$P$23,$T29<=$P$24),(GETPIVOTDATA("Value",Pivots_LA!$A$6,"Month",$T29,"Delay reason",AB$13)),""),0) ->  | AC29: =IFERROR(IF(AND($T29>=$P$23,$T29<=$P$24),(GETPIVOTDATA("Value",Pivots_LA!$A$6,"Month",$T29,"Delay reason",AC$13)),""),0) ->  | AD29: =IFERROR(IF(AND($T29>=$P$23,$T29<=$P$24),(GETPIVOTDATA("Value",Pivots_LA!$A$6,"Month",$T29,"Delay reason",AD$13)),""),0) ->  | AE29: =IFERROR(IF(AND($T29>=$P$23,$T29<=$P$24),(GETPIVOTDATA("Value",Pivots_LA!$A$6,"Month",$T29,"Delay reason",AE$13)),""),0) ->  | AF29: =IFERROR(IF(AND($T29>=$P$23,$T29<=$P$24),(GETPIVOTDATA("Value",Pivots_LA!$A$6,"Month",$T29,"Delay reason",AF$13)),""),0) ->  | AG29: 0
C30: B) Awaiting public funding | D30: =IFERROR(HLOOKUP(C30,$V$13:$AF$39,27,TRUE),"") -> 24925 | F30: 2 | G30: =COUNTIF($D$29:$D$39,$D30) -> 1 | H30: =IF(G30>1,D30+ROW()*0.001,D30) -> 24925 | I30: =RANK(H30,$H$29:$H$39) -> 8 | J30: =INDEX($C$29:$C$39,MATCH(F30,$I$29:$I$39,0)) -> C) Awaiting further non-acute NHS care (including intermediate care, rehabilitation services etc) | K30: =INDEX($D$29:$D$39,MATCH(F30,$I$29:$I$39,0)) -> 158921 | N30: =N29+K30 -> 350007 | O30: =N30/$N$39 -> 0.3856524724 | Q30: Maximum | R30: =MAX(D29:D39) -> 191086 | S30: 17 | T30: 2019-06-01 | U30: (All) | V30: =IFERROR(IF(AND($T30>=$P$23,$T30<=$P$24),(GETPIVOTDATA("Value",Pivots_LA!$A$6,"Month",$T30,"Delay reason",V$13)),""),0) ->  | W30: =IFERROR(IF(AND($T30>=$P$23,$T30<=$P$24),(GETPIVOTDATA("Value",Pivots_LA!$A$6,"Month",$T30,"Delay reason",W$13)),""),0) ->  | X30: =IFERROR(IF(AND($T30>=$P$23,$T30<=$P$24),(GETPIVOTDATA("Value",Pivots_LA!$A$6,"Month",$T30,"Delay reason",X$13)),""),0) ->  | Y30: =IFERROR(IF(AND($T30>=$P$23,$T30<=$P$24),(GETPIVOTDATA("Value",Pivots_LA!$A$6,"Month",$T30,"Delay reason",Y$13)),""),0) ->  | Z30: =IFERROR(IF(AND($T30>=$P$23,$T30<=$P$24),(GETPIVOTDATA("Value",Pivots_LA!$A$6,"Month",$T30,"Delay reason",Z$13)),""),0) ->  | AA30: =IFERROR(IF(AND($T30>=$P$23,$T30<=$P$24),(GETPIVOTDATA("Value",Pivots_LA!$A$6,"Month",$T30,"Delay reason",AA$13)),""),0) ->  | AB30: =IFERROR(IF(AND($T30>=$P$23,$T30<=$P$24),(GETPIVOTDATA("Value",Pivots_LA!$A$6,"Month",$T30,"Delay reason",AB$13)),""),0) ->  | AC30: =IFERROR(IF(AND($T30>=$P$23,$T30<=$P$24),(GETPIVOTDATA("Value",Pivots_LA!$A$6,"Month",$T30,"Delay reason",AC$13)),""),0) ->  | AD30: =IFERROR(IF(AND($T30>=$P$23,$T30<=$P$24),(GETPIVOTDATA("Value",Pivots_LA!$A$6,"Month",$T30,"Delay reason",AD$13)),""),0) ->  | AE30: =IFERROR(IF(AND($T30>=$P$23,$T30<=$P$24),(GETPIVOTDATA("Value",Pivots_LA!$A$6,"Month",$T30,"Delay reason",AE$13)),""),0) ->  | AF30: =IFERROR(IF(AND($T30>=$P$23,$T30<=$P$24),(GETPIVOTDATA("Value",Pivots_LA!$A$6,"Month",$T30,"Delay reason",AF$13)),""),0) ->  | AG30: 0
C31: C) Awaiting further non-acute NHS care (including intermediate care, rehabilitation services etc) | D31: 158921 | F31: 3 | G31: =COUNTIF($D$29:$D$39,$D31) -> 1 | H31: 158921 | I31: 2 | J31: =INDEX($C$29:$C$39,MATCH(F31,$I$29:$I$39,0)) -> Dii) Awaiting nursing home placement or availability | K31: 120335 | N31: =N30+K31 -> 470342 | O31: =N31/$N$39 -> 0.5182426499 | Q31: Max Y axis | R31: =ROUNDUP(R30/10000,0)*10000 -> 200000 | S31: 18 | T31: 2019-07-01 | U31: (All) | V31: =IFERROR(IF(AND($T31>=$P$23,$T31<=$P$24),(GETPIVOTDATA("Value",Pivots_LA!$A$6,"Month",$T31,"Delay reason",V$13)),""),0) ->  | W31: =IFERROR(IF(AND($T31>=$P$23,$T31<=$P$24),(GETPIVOTDATA("Value",Pivots_LA!$A$6,"Month",$T31,"Delay reason",W$13)),""),0) ->  | X31: =IFERROR(IF(AND($T31>=$P$23,$T31<=$P$24),(GETPIVOTDATA("Value",Pivots_LA!$A$6,"Month",$T31,"Delay reason",X$13)),""),0) ->  | Y31: =IFERROR(IF(AND($T31>=$P$23,$T31<=$P$24),(GETPIVOTDATA("Value",Pivots_LA!$A$6,"Month",$T31,"Delay reason",Y$13)),""),0) ->  | Z31: =IFERROR(IF(AND($T31>=$P$23,$T31<=$P$24),(GETPIVOTDATA("Value",Pivots_LA!$A$6,"Month",$T31,"Delay reason",Z$13)),""),0) ->  | AA31: =IFERROR(IF(AND($T31>=$P$23,$T31<=$P$24),(GETPIVOTDATA("Value",Pivots_LA!$A$6,"Month",$T31,"Delay reason",AA$13)),""),0) ->  | AB31: =IFERROR(IF(AND($T31>=$P$23,$T31<=$P$24),(GETPIVOTDATA("Value",Pivots_LA!$A$6,"Month",$T31,"Delay reason",AB$13)),""),0) ->  | AC31: =IFERROR(IF(AND($T31>=$P$23,$T31<=$P$24),(GETPIVOTDATA("Value",Pivots_LA!$A$6,"Month",$T31,"Delay reason",AC$13)),""),0) ->  | AD31: =IFERROR(IF(AND($T31>=$P$23,$T31<=$P$24),(GETPIVOTDATA("Value",Pivots_LA!$A$6,"Month",$T31,"Delay reason",AD$13)),""),0) ->  | AE31: =IFERROR(IF(AND($T31>=$P$23,$T31<=$P$24),(GETPIVOTDATA("Value",Pivots_LA!$A$6,"Month",$T31,"Delay reason",AE$13)),""),0) ->  | AF31: =IFERROR(IF(AND($T31>=$P$23,$T31<=$P$24),(GETPIVOTDATA("Value",Pivots_LA!$A$6,"Month",$T31,"Delay reason",AF$13)),""),0) ->  | AG31: 0
C32: Di) Awaiting residential home placement or availability | D32: 108382 | F32: 4 | G32: 1 | H32: 108382 | I32: 5 | J32: A) Awaiting completion of assessment | K32: 114984 | N32: 585326 | O32: 0.64493687 | Q32: interval | R32: =IF(MOD(R31/1000,5)=0,R31/5,IF(MOD(R31/1000,4)=0,R31/4,IF(MOD(R31/1000,6)=0,R31/6,IF(MOD(R31/1000,3)=0,R31/3,ROUNDUP(R31/1000/5,0)*1000)))) -> 40000 | S32: 19 | T32: 2019-08-01 | U32: (All) | V32: =IFERROR(IF(AND($T32>=$P$23,$T32<=$P$24),(GETPIVOTDATA("Value",Pivots_LA!$A$6,"Month",$T32,"Delay reason",V$13)),""),0) ->  | W32: =IFERROR(IF(AND($T32>=$P$23,$T32<=$P$24),(GETPIVOTDATA("Value",Pivots_LA!$A$6,"Month",$T32,"Delay reason",W$13)),""),0) ->  | X32: =IFERROR(IF(AND($T32>=$P$23,$T32<=$P$24),(GETPIVOTDATA("Value",Pivots_LA!$A$6,"Month",$T32,"Delay reason",X$13)),""),0) ->  | Y32: =IFERROR(IF(AND($T32>=$P$23,$T32<=$P$24),(GETPIVOTDATA("Value",Pivots_LA!$A$6,"Month",$T32,"Delay reason",Y$13)),""),0) ->  | Z32: =IFERROR(IF(AND($T32>=$P$23,$T32<=$P$24),(GETPIVOTDATA("Value",Pivots_LA!$A$6,"Month",$T32,"Delay reason",Z$13)),""),0) ->  | AA32: =IFERROR(IF(AND($T32>=$P$23,$T32<=$P$24),(GETPIVOTDATA("Value",Pivots_LA!$A$6,"Month",$T32,"Delay reason",AA$13)),""),0) ->  | AB32: =IFERROR(IF(AND($T32>=$P$23,$T32<=$P$24),(GETPIVOTDATA("Value",Pivots_LA!$A$6,"Month",$T32,"Delay reason",AB$13)),""),0) ->  | AC32: =IFERROR(IF(AND($T32>=$P$23,$T32<=$P$24),(GETPIVOTDATA("Value",Pivots_LA!$A$6,"Month",$T32,"Delay reason",AC$13)),""),0) ->  | AD32: =IFERROR(IF(AND($T32>=$P$23,$T32<=$P$24),(GETPIVOTDATA("Value",Pivots_LA!$A$6,"Month",$T32,"Delay reason",AD$13)),""),0) ->  | AE32: =IFERROR(IF(AND($T32>=$P$23,$T32<=$P$24),(GETPIVOTDATA("Value",Pivots_LA!$A$6,"Month",$T32,"Delay reason",AE$13)),""),0) ->  | AF32: =IFERROR(IF(AND($T32>=$P$23,$T32<=$P$24),(GETPIVOTDATA("Value",Pivots_LA!$A$6,"Month",$T32,"Delay reason",AF$13)),""),0) ->  | AG32: 0
C33: Dii) Awaiting nursing home placement or availability | D33: 120335 | F33: 5 | G33: 1 | H33: 120335 | I33: 3 | J33: Di) Awaiting residential home placement or availability | K33: 108382 | N33: 693708 | O33: 0.764356728 | S33: 20 | T33: 2019-09-01 | U33: (All) | V33: =IFERROR(IF(AND($T33>=$P$23,$T33<=$P$24),(GETPIVOTDATA("Value",Pivots_LA!$A$6,"Month",$T33,"Delay reason",V$13)),""),0) -> 19480 | W33: =IFERROR(IF(AND($T33>=$P$23,$T33<=$P$24),(GETPIVOTDATA("Value",Pivots_LA!$A$6,"Month",$T33,"Delay reason",W$13)),""),0) -> 4126 | X33: =IFERROR(IF(AND($T33>=$P$23,$T33<=$P$24),(GETPIVOTDATA("Value",Pivots_LA!$A$6,"Month",$T33,"Delay reason",X$13)),""),0) -> 24335 | Y33: =IFERROR(IF(AND($T33>=$P$23,$T33<=$P$24),(GETPIVOTDATA("Value",Pivots_LA!$A$6,"Month",$T33,"Delay reason",Y$13)),""),0) -> 17478 | Z33: =IFERROR(IF(AND($T33>=$P$23,$T33<=$P$24),(GETPIVOTDATA("Value",Pivots_LA!$A$6,"Month",$T33,"Delay reason",Z$13)),""),0) -> 19432 | AA33: =IFERROR(IF(AND($T33>=$P$23,$T33<=$P$24),(GETPIVOTDATA("Value",Pivots_LA!$A$6,"Month",$T33,"Delay reason",AA$13)),""),0) -> 31736 | AB33: =IFERROR(IF(AND($T33>=$P$23,$T33<=$P$24),(GETPIVOTDATA("Value",Pivots_LA!$A$6,"Month",$T33,"Delay reason",AB$13)),""),0) -> 4171 | AC33: =IFERROR(IF(AND($T33>=$P$23,$T33<=$P$24),(GETPIVOTDATA("Value",Pivots_LA!$A$6,"Month",$T33,"Delay reason",AC$13)),""),0) -> 18580 | AD33: =IFERROR(IF(AND($T33>=$P$23,$T33<=$P$24),(GETPIVOTDATA("Value",Pivots_LA!$A$6,"Month",$T33,"Delay reason",AD$13)),""),0) -> 868 | AE33: =IFERROR(IF(AND($T33>=$P$23,$T33<=$P$24),(GETPIVOTDATA("Value",Pivots_LA!$A$6,"Month",$T33,"Delay reason",AE$13)),""),0) -> 6149 | AF33: =IFERROR(IF(AND($T33>=$P$23,$T33<=$P$24),(GETPIVOTDATA("Value",Pivots_LA!$A$6,"Month",$T33,"Delay reason",AF$13)),""),0) -> 1991 | AG33: 11
C34: E) Awaiting care package in own home | D34: 191086 | F34: 6 | G34: 1 | H34: 191086 | I34: 1 | J34: G) Patient or family choice | K34: 103387 | N34: 797095 | O34: 0.8782728844 | S34: 21 | T34: 2019-10-01 | U34: (All) | V34: =IFERROR(IF(AND($T34>=$P$23,$T34<=$P$24),(GETPIVOTDATA("Value",Pivots_LA!$A$6,"Month",$T34,"Delay reason",V$13)),""),0) -> 18437 | W34: =IFERROR(IF(AND($T34>=$P$23,$T34<=$P$24),(GETPIVOTDATA("Value",Pivots_LA!$A$6,"Month",$T34,"Delay reason",W$13)),""),0) -> 4199 | X34: =IFERROR(IF(AND($T34>=$P$23,$T34<=$P$24),(GETPIVOTDATA("Value",Pivots_LA!$A$6,"Month",$T34,"Delay reason",X$13)),""),0) -> 26023 | Y34: =IFERROR(IF(AND($T34>=$P$23,$T34<=$P$24),(GETPIVOTDATA("Value",Pivots_LA!$A$6,"Month",$T34,"Delay reason",Y$13)),""),0) -> 18371 | Z34: =IFERROR(IF(AND($T34>=$P$23,$T34<=$P$24),(GETPIVOTDATA("Value",Pivots_LA!$A$6,"Month",$T34,"Delay reason",Z$13)),""),0) -> 21881 | AA34: =IFERROR(IF(AND($T34>=$P$23,$T34<=$P$24),(GETPIVOTDATA("Value",Pivots_LA!$A$6,"Month",$T34,"Delay reason",AA$13)),""),0) -> 31643 | AB34: =IFERROR(IF(AND($T34>=$P$23,$T34<=$P$24),(GETPIVOTDATA("Value",Pivots_LA!$A$6,"Month",$T34,"Delay reason",AB$13)),""),0) -> 4557 | AC34: =IFERROR(IF(AND($T34>=$P$23,$T34<=$P$24),(GETPIVOTDATA("Value",Pivots_LA!$A$6,"Month",$T34,"Delay reason",AC$13)),""),0) -> 17896 | AD34: =IFERROR(IF(AND($T34>=$P$23,$T34<=$P$24),(GETPIVOTDATA("Value",Pivots_LA!$A$6,"Month",$T34,"Delay reason",AD$13)),""),0) -> 1174 | AE34: =IFERROR(IF(AND($T34>=$P$23,$T34<=$P$24),(GETPIVOTDATA("Value",Pivots_LA!$A$6,"Month",$T34,"Delay reason",AE$13)),""),0) -> 6641 | AF34: =IFERROR(IF(AND($T34>=$P$23,$T34<=$P$24),(GETPIVOTDATA("Value",Pivots_LA!$A$6,"Month",$T34,"Delay reason",AF$13)),""),0) -> 1700 | AG34: 11
C35: F) Awaiting community equipment and adaptations | D35: 24754 | F35: 7 | G35: 1 | H35: 24754 | I35: 9 | J35: I) Housing – patients not covered by NHS Care Act | K35: 41820 | N35: 838915 | O35: 0.924351924 | S35: 22 | T35: 2019-11-01 | U35: (All) | V35: =IFERROR(IF(AND($T35>=$P$23,$T35<=$P$24),(GETPIVOTDATA("Value",Pivots_LA!$A$6,"Month",$T35,"Delay reason",V$13)),""),0) -> 17952 | W35: =IFERROR(IF(AND($T35>=$P$23,$T35<=$P$24),(GETPIVOTDATA("Value",Pivots_LA!$A$6,"Month",$T35,"Delay reason",W$13)),""),0) -> 4517 | X35: =IFERROR(IF(AND($T35>=$P$23,$T35<=$P$24),(GETPIVOTDATA("Value",Pivots_LA!$A$6,"Month",$T35,"Delay reason",X$13)),""),0) -> 25116 | Y35: =IFERROR(IF(AND($T35>=$P$23,$T35<=$P$24),(GETPIVOTDATA("Value",Pivots_LA!$A$6,"Month",$T35,"Delay reason",Y$13)),""),0) -> 17148 | Z35: =IFERROR(IF(AND($T35>=$P$23,$T35<=$P$24),(GETPIVOTDATA("Value",Pivots_LA!$A$6,"Month",$T35,"Delay reason",Z$13)),""),0) -> 19885 | AA35: =IFERROR(IF(AND($T35>=$P$23,$T35<=$P$24),(GETPIVOTDATA("Value",Pivots_LA!$A$6,"Month",$T35,"Delay reason",AA$13)),""),0) -> 30071 | AB35: =IFERROR(IF(AND($T35>=$P$23,$T35<=$P$24),(GETPIVOTDATA("Value",Pivots_LA!$A$6,"Month",$T35,"Delay reason",AB$13)),""),0) -> 4033 | AC35: =IFERROR(IF(AND($T35>=$P$23,$T35<=$P$24),(GETPIVOTDATA("Value",Pivots_LA!$A$6,"Month",$T35,"Delay reason",AC$13)),""),0) -> 16505 | AD35: =IFERROR(IF(AND($T35>=$P$23,$T35<=$P$24),(GETPIVOTDATA("Value",Pivots_LA!$A$6,"Month",$T35,"Delay reason",AD$13)),""),0) -> 1299 | AE35: =IFERROR(IF(AND($T35>=$P$23,$T35<=$P$24),(GETPIVOTDATA("Value",Pivots_LA!$A$6,"Month",$T35,"Delay reason",AE$13)),""),0) -> 6350 | AF35: =IFERROR(IF(AND($T35>=$P$23,$T35<=$P$24),(GETPIVOTDATA("Value",Pivots_LA!$A$6,"Month",$T35,"Delay reason",AF$13)),""),0) -> 2090 | AG35: 11
C36: G) Patient or family choice | D36: 103387 | F36: 8 | G36: 1 | H36: 103387 | I36: 6 | J36: B) Awaiting public funding | K36: 24925 | N36: 863840 | O36: 0.9518153401 | S36: 23 | T36: 2019-12-01 | U36: (All) | V36: =IFERROR(IF(AND($T36>=$P$23,$T36<=$P$24),(GETPIVOTDATA("Value",Pivots_LA!$A$6,"Month",$T36,"Delay reason",V$13)),""),0) -> 18232 | W36: =IFERROR(IF(AND($T36>=$P$23,$T36<=$P$24),(GETPIVOTDATA("Value",Pivots_LA!$A$6,"Month",$T36,"Delay reason",W$13)),""),0) -> 3743 | X36: =IFERROR(IF(AND($T36>=$P$23,$T36<=$P$24),(GETPIVOTDATA("Value",Pivots_LA!$A$6,"Month",$T36,"Delay reason",X$13)),""),0) -> 25463 | Y36: =IFERROR(IF(AND($T36>=$P$23,$T36<=$P$24),(GETPIVOTDATA("Value",Pivots_LA!$A$6,"Month",$T36,"Delay reason",Y$13)),""),0) -> 18353 | Z36: =IFERROR(IF(AND($T36>=$P$23,$T36<=$P$24),(GETPIVOTDATA("Value",Pivots_LA!$A$6,"Month",$T36,"Delay reason",Z$13)),""),0) -> 19251 | AA36: =IFERROR(IF(AND($T36>=$P$23,$T36<=$P$24),(GETPIVOTDATA("Value",Pivots_LA!$A$6,"Month",$T36,"Delay reason",AA$13)),""),0) -> 31166 | AB36: =IFERROR(IF(AND($T36>=$P$23,$T36<=$P$24),(GETPIVOTDATA("Value",Pivots_LA!$A$6,"Month",$T36,"Delay reason",AB$13)),""),0) -> 3925 | AC36: =IFERROR(IF(AND($T36>=$P$23,$T36<=$P$24),(GETPIVOTDATA("Value",Pivots_LA!$A$6,"Month",$T36,"Delay reason",AC$13)),""),0) -> 16580 | AD36: =IFERROR(IF(AND($T36>=$P$23,$T36<=$P$24),(GETPIVOTDATA("Value",Pivots_LA!$A$6,"Month",$T36,"Delay reason",AD$13)),""),0) -> 1235 | AE36: =IFERROR(IF(AND($T36>=$P$23,$T36<=$P$24),(GETPIVOTDATA("Value",Pivots_LA!$A$6,"Month",$T36,"Delay reason",AE$13)),""),0) -> 7033 | AF36: =IFERROR(IF(AND($T36>=$P$23,$T36<=$P$24),(GETPIVOTDATA("Value",Pivots_LA!$A$6,"Month",$T36,"Delay reason",AF$13)),""),0) -> 2196 | AG36: 11
C37: H) Disputes | D37: 6811 | F37: 9 | G37: 1 | H37: 6811 | I37: 11 | J37: F) Awaiting community equipment and adaptations | K37: 24754 | N37: 888594 | O37: 0.9790903411 | S37: 24 | T37: 2020-01-01 | U37: (All) | V37: =IFERROR(IF(AND($T37>=$P$23,$T37<=$P$24),(GETPIVOTDATA("Value",Pivots_LA!$A$6,"Month",$T37,"Delay reason",V$13)),""),0) -> 20796 | W37: =IFERROR(IF(AND($T37>=$P$23,$T37<=$P$24),(GETPIVOTDATA("Value",Pivots_LA!$A$6,"Month",$T37,"Delay reason",W$13)),""),0) -> 4228 | X37: =IFERROR(IF(AND($T37>=$P$23,$T37<=$P$24),(GETPIVOTDATA("Value",Pivots_LA!$A$6,"Month",$T37,"Delay reason",X$13)),""),0) -> 29511 | Y37: =IFERROR(IF(AND($T37>=$P$23,$T37<=$P$24),(GETPIVOTDATA("Value",Pivots_LA!$A$6,"Month",$T37,"Delay reason",Y$13)),""),0) -> 19306 | Z37: =IFERROR(IF(AND($T37>=$P$23,$T37<=$P$24),(GETPIVOTDATA("Value",Pivots_LA!$A$6,"Month",$T37,"Delay reason",Z$13)),""),0) -> 19600 | AA37: =IFERROR(IF(AND($T37>=$P$23,$T37<=$P$24),(GETPIVOTDATA("Value",Pivots_LA!$A$6,"Month",$T37,"Delay reason",AA$13)),""),0) -> 34257 | AB37: =IFERROR(IF(AND($T37>=$P$23,$T37<=$P$24),(GETPIVOTDATA("Value",Pivots_LA!$A$6,"Month",$T37,"Delay reason",AB$13)),""),0) -> 4091 | AC37: =IFERROR(IF(AND($T37>=$P$23,$T37<=$P$24),(GETPIVOTDATA("Value",Pivots_LA!$A$6,"Month",$T37,"Delay reason",AC$13)),""),0) -> 17004 | AD37: =IFERROR(IF(AND($T37>=$P$23,$T37<=$P$24),(GETPIVOTDATA("Value",Pivots_LA!$A$6,"Month",$T37,"Delay reason",AD$13)),""),0) -> 1191 | AE37: =IFERROR(IF(AND($T37>=$P$23,$T37<=$P$24),(GETPIVOTDATA("Value",Pivots_LA!$A$6,"Month",$T37,"Delay reason",AE$13)),""),0) -> 7663 | AF37: =IFERROR(IF(AND($T37>=$P$23,$T37<=$P$24),(GETPIVOTDATA("Value",Pivots_LA!$A$6,"Month",$T37,"Delay reason",AF$13)),""),0) -> 2181 | AG37: 11
C38: I) Housing – patients not covered by NHS Care Act | D38: 41820 | F38: 10 | G38: 1 | H38: 41820 | I38: 7 | J38: O) Other | K38: 12166 | N38: 900760 | O38: 0.992495353 | S38: 25 | T38: =B69 -> 2020-02-01 | U38: =$C$12 -> (All) | V38: =IFERROR(IF(AND($T38>=$P$23,$T38<=$P$24),(GETPIVOTDATA("Value",Pivots_LA!$A$6,"Month",$T38,"Delay reason",V$13)),""),0) -> 20087 | W38: =IFERROR(IF(AND($T38>=$P$23,$T38<=$P$24),(GETPIVOTDATA("Value",Pivots_LA!$A$6,"Month",$T38,"Delay reason",W$13)),""),0) -> 4112 | X38: =IFERROR(IF(AND($T38>=$P$23,$T38<=$P$24),(GETPIVOTDATA("Value",Pivots_LA!$A$6,"Month",$T38,"Delay reason",X$13)),""),0) -> 28473 | Y38: =IFERROR(IF(AND($T38>=$P$23,$T38<=$P$24),(GETPIVOTDATA("Value",Pivots_LA!$A$6,"Month",$T38,"Delay reason",Y$13)),""),0) -> 17726 | Z38: =IFERROR(IF(AND($T38>=$P$23,$T38<=$P$24),(GETPIVOTDATA("Value",Pivots_LA!$A$6,"Month",$T38,"Delay reason",Z$13)),""),0) -> 20286 | AA38: =IFERROR(IF(AND($T38>=$P$23,$T38<=$P$24),(GETPIVOTDATA("Value",Pivots_LA!$A$6,"Month",$T38,"Delay reason",AA$13)),""),0) -> 32213 | AB38: =IFERROR(IF(AND($T38>=$P$23,$T38<=$P$24),(GETPIVOTDATA("Value",Pivots_LA!$A$6,"Month",$T38,"Delay reason",AB$13)),""),0) -> 3977 | AC38: =IFERROR(IF(AND($T38>=$P$23,$T38<=$P$24),(GETPIVOTDATA("Value",Pivots_LA!$A$6,"Month",$T38,"Delay reason",AC$13)),""),0) -> 16822 | AD38: =IFERROR(IF(AND($T38>=$P$23,$T38<=$P$24),(GETPIVOTDATA("Value",Pivots_LA!$A$6,"Month",$T38,"Delay reason",AD$13)),""),0) -> 1044 | AE38: =IFERROR(IF(AND($T38>=$P$23,$T38<=$P$24),(GETPIVOTDATA("Value",Pivots_LA!$A$6,"Month",$T38,"Delay reason",AE$13)),""),0) -> 7984 | AF38: =IFERROR(IF(AND($T38>=$P$23,$T38<=$P$24),(GETPIVOTDATA("Value",Pivots_LA!$A$6,"Month",$T38,"Delay reason",AF$13)),""),0) -> 2008 | AG38: 11
C39: O) Other | D39: 12166 | F39: 11 | G39: 1 | H39: 12166 | I39: 10 | J39: H) Disputes | K39: 6811 | N39: =N38+K39 -> 907571 | O39: 1 | T39: Total | V39: =SUM(V14:V38) -> 114984 | W39: =SUM(W14:W38) -> 24925 | X39: =SUM(X14:X38) -> 158921 | Y39: 108382 | Z39: 120335 | AA39: 191086 | AB39: 24754 | AC39: 103387 | AD39: 6811 | AE39: 41820 | AF39: 12166
W41: RULES
B42: =C18 -> E) Awaiting care package in own home | D42: Count IF data point is zero
B43: 1 | C43: =ROW() -> 43 | D43: =COUNTIF(D45:D69,0) -> 0 | H43: Upper | I43: Lower | O43: Difference | Q43: Sigma | W43: > 3 | X43: < 3 | AA43: 7 points above/below mean | AI43: Trend up/down | AR43: chart 1
B44: ID (Week no.) | C44: Plot data | D44: Data | G44: Mean | H44: Control limits | I44: control limit (-3) | N44: Date | O44: For. Roll avg | P44: Cumul. Moving Avg. | Q44: 2.66* MR | R44: 3.27*MR | W44: Count | X44: Count | Y44: Above/below 3 sigma | AA44: 7 points > mean | AB44: Count of 7 point | AC44: 7 points above mean | AE44: 7 points <mean | AF44: Count of 7point | AG44: 7 points below mean | AI44: Trend up | AM44: Trend Down | AR44: Concern | AS44: Improvement
B45: =D9 -> 2018-02-01 | C45: =IFERROR(IF(GETPIVOTDATA("Value",Pivots_LA!$A$6,"Month",$B45,"Delay reason",$C$18)=0,"",GETPIVOTDATA("Value",Pivots_LA!$A$6,"Month",$B45,"Delay reason",$C$18)),NA()) -> 30876 | D45: =IFERROR(IF(C45="",0,C45),"") -> 30876 | G45: =AVERAGE($D$45:$D$69) -> 29736.44 | H45: =IF($D$43>5,NA(),IF(D45="",H44,G45+Q45)) -> 34209.78417 | I45: =IF($D$43>5,NA(),IF(D45="",I44,G45-Q45)) -> 25263.09583 | N45: =B45 -> 2018-02-01 | P45: =IF(O45="",P44,AVERAGE(IF($O$45:O$69<>"",$O$45:O$69))) -> Cumul. Moving Avg. | Q45: =Q46 -> 4473.344167 | R45: =R46 -> 5499.18625 | W45: =IF($D$43>5,NA(),IF(C45>H45,MAX(W$44:$W44)+1,0)) -> 0 | X45: =IF($D$43>5,NA(),IF(C45<I45,MAX(W$44:$W44)+1,0)) -> 0 | Y45: =IF(OR(W45>0,X45>0),C45,NA()) ->  | AA45: =IF($D$43>5,NA(), IF(C45>G45,1,0)) -> 1 | AB45: =IFERROR(IF(AND(AB44=1,AA45=1),1,IF(SUM(AA45:AA51)>=7,1,0)),0) -> 0 | AC45: =IF(AB45=0,NA(),C45) ->  | AE45: =IF($D$43>5,NA(), IF(C45<G45,1,0)) -> 0 | AF45: =IFERROR(IF(AND(AF44=1,AE45=1),1,IF(SUM(AE45:AE51)>=7,1,0)),0) -> 0 | AG45: =IF(AF45=0,NA(),C45) ->  | AI45: =IF($D$43>5,NA(),IF(C45>C44,1,0)) -> 0 | AJ45: =IF(AND(AJ44=1,AI45=1),1,IF(SUM(AI45:AI51)>=7,1,0)) -> 0 | AK45: =IF(AJ45=0,NA(),C45) ->  | AM45: =IF($D$43>5,NA(),IF(C45<C44,1,0)) -> 1 | AN45: =IF(AND(AN44=1,AM45=1),1,IF(SUM(AM45:AM51)>=7,1,0)) -> 0 | AO45: =IF(AN45=0,NA(),C45) ->  | AR45: =IF(OR(W45>0,AB45>0,AJ45>0),C45,NA()) ->  | AS45: =IF(OR(X45>0,AF45>0,AN45>0),C45,NA()) -> 
B46: =IF(DAY(B45+31)=1,B45+31,B45+31-DAY(B45+31)+1) -> 2018-03-01 | C46: =IFERROR(IF(GETPIVOTDATA("Value",Pivots_LA!$A$6,"Month",$B46,"Delay reason",$C$18)=0,"",GETPIVOTDATA("Value",Pivots_LA!$A$6,"Month",$B46,"Delay reason",$C$18)),NA()) -> 33504 | D46: =IFERROR(IF(C46="",0,C46),"") -> 33504 | G46: =AVERAGE($D$45:$D$69) -> 29736.44 | H46: 34209.78417 | I46: 25263.09583 | N46: 2018-03-01 | O46: =IF(D45="","",IF(D46="","",ABS(D45-D46))) -> 2628 | P46: =IF(O46="",P45,AVERAGE(IF($O$45:O$69<>"",$O$45:O$69))) -> 1681.708333 | Q46: =IF(ISERROR((P46*2.66)),Q47,(P46*2.66)) -> 4473.344167 | R46: =$P46*3.27 -> 5499.18625 | W46: =IF($D$43>5,NA(),IF(C46>H46,MAX(W$44:$W45)+1,0)) -> 0 | X46: =IF($D$43>5,NA(),IF(C46<I46,MAX(W$44:$W45)+1,0)) -> 0 | Y46: =IF(OR(W46>0,X46>0),C46,NA()) ->  | AA46: =IF($D$43>5,NA(), IF(C46>G46,1,0)) -> 1 | AB46: =IFERROR(IF(AND(AB45=1,AA46=1),1,IF(SUM(AA46:AA52)>=7,1,0)),0) -> 0 | AC46: =IF(AB46=0,NA(),C46) ->  | AE46: =IF($D$43>5,NA(), IF(C46<G46,1,0)) -> 0 | AF46: =IFERROR(IF(AND(AF45=1,AE46=1),1,IF(SUM(AE46:AE52)>=7,1,0)),0) -> 0 | AG46: =IF(AF46=0,NA(),C46) ->  | AI46: =IF($D$43>5,NA(),IF(C46>C45,1,0)) -> 1 | AJ46: =IF(AND(AJ45=1,AI46=1),1,IF(SUM(AI46:AI52)>=7,1,0)) -> 0 | AK46: =IF(AJ46=0,NA(),C46) ->  | AM46: =IF($D$43>5,NA(),IF(C46<C45,1,0)) -> 0 | AN46: =IF(AND(AN45=1,AM46=1),1,IF(SUM(AM46:AM52)>=7,1,0)) -> 0 | AO46: =IF(AN46=0,NA(),C46) ->  | AR46: =IF(OR(W46>0,AB46>0,AJ46>0),C46,NA()) ->  | AS46: =IF(OR(X46>0,AF46>0,AN46>0),C46,NA()) -> 
B47: =IF(DAY(B46+31)=1,B46+31,B46+31-DAY(B46+31)+1) -> 2018-04-01 | C47: =IFERROR(IF(GETPIVOTDATA("Value",Pivots_LA!$A$6,"Month",$B47,"Delay reason",$C$18)=0,"",GETPIVOTDATA("Value",Pivots_LA!$A$6,"Month",$B47,"Delay reason",$C$18)),NA()) -> 29458 | D47: 29458 | G47: 29736.44 | H47: 34209.78417 | I47: 25263.09583 | N47: 2018-04-01 | O47: =IF(D46="","",IF(D47="","",ABS(D46-D47))) -> 4046 | P47: =IF(O47="",P46,AVERAGE(IF($O$45:O$69<>"",$O$45:O$69))) -> 1681.708333 | Q47: =IF(ISERROR((P47*2.66)),Q48,(P47*2.66)) -> 4473.344167 | R47: =$P47*3.27 -> 5499.18625 | W47: =IF($D$43>5,NA(),IF(C47>H47,MAX(W$44:$W46)+1,0)) -> 0 | X47: =IF($D$43>5,NA(),IF(C47<I47,MAX(W$44:$W46)+1,0)) -> 0 | AA47: 0 | AB47: 0 | AE47: 1 | AF47: 0 | AI47: 0 | AJ47: 0 | AM47: 1 | AN47: 0
B48: 2018-05-01 | C48: =IFERROR(IF(GETPIVOTDATA("Value",Pivots_LA!$A$6,"Month",$B48,"Delay reason",$C$18)=0,"",GETPIVOTDATA("Value",Pivots_LA!$A$6,"Month",$B48,"Delay reason",$C$18)),NA()) -> 27442 | D48: 27442 | G48: 29736.44 | H48: 34209.78417 | I48: 25263.09583 | N48: 2018-05-01 | O48: 2016 | P48: =IF(O48="",P47,AVERAGE(IF($O$45:O$69<>"",$O$45:O$69))) -> 1681.708333 | Q48: =IF(ISERROR((P48*2.66)),Q49,(P48*2.66)) -> 4473.344167 | R48: =$P48*3.27 -> 5499.18625 | W48: =IF($D$43>5,NA(),IF(C48>H48,MAX(W$44:$W47)+1,0)) -> 0 | X48: =IF($D$43>5,NA(),IF(C48<I48,MAX(W$44:$W47)+1,0)) -> 0 | AA48: 0 | AB48: 0 | AE48: 1 | AF48: 0 | AI48: 0 | AJ48: 0 | AM48: 1 | AN48: 0
B49: 2018-06-01 | C49: =IFERROR(IF(GETPIVOTDATA("Value",Pivots_LA!$A$6,"Month",$B49,"Delay reason",$C$18)=0,"",GETPIVOTDATA("Value",Pivots_LA!$A$6,"Month",$B49,"Delay reason",$C$18)),NA()) -> 27978 | D49: 27978 | G49: 29736.44 | H49: 34209.78417 | I49: 25263.09583 | N49: 2018-06-01 | O49: 536 | P49: =IF(O49="",P48,AVERAGE(IF($O$45:O$69<>"",$O$45:O$69))) -> 1681.708333 | Q49: =IF(ISERROR((P49*2.66)),Q50,(P49*2.66)) -> 4473.344167 | R49: 5499.18625 | W49: =IF($D$43>5,NA(),IF(C49>H49,MAX(W$44:$W48)+1,0)) -> 0 | X49: =IF($D$43>5,NA(),IF(C49<I49,MAX(W$44:$W48)+1,0)) -> 0 | AA49: 0 | AB49: 0 | AE49: 1 | AF49: 0 | AI49: 1 | AJ49: 0 | AM49: 0 | AN49: 0
B50: 2018-07-01 | C50: =IFERROR(IF(GETPIVOTDATA("Value",Pivots_LA!$A$6,"Month",$B50,"Delay reason",$C$18)=0,"",GETPIVOTDATA("Value",Pivots_LA!$A$6,"Month",$B50,"Delay reason",$C$18)),NA()) -> 30570 | D50: 30570 | G50: 29736.44 | H50: 34209.78417 | I50: 25263.09583 | N50: 2018-07-01 | O50: 2592 | P50: =IF(O50="",P49,AVERAGE(IF($O$45:O$69<>"",$O$45:O$69))) -> 1681.708333 | Q50: 4473.344167 | R50: 5499.18625 | W50: =IF($D$43>5,NA(),IF(C50>H50,MAX(W$44:$W49)+1,0)) -> 0 | X50: =IF($D$43>5,NA(),IF(C50<I50,MAX(W$44:$W49)+1,0)) -> 0 | AA50: 1 | AB50: 0 | AE50: 0 | AF50: 0 | AI50: 1 | AJ50: 0 | AM50: 0 | AN50: 0
B51: 2018-08-01 | C51: =IFERROR(IF(GETPIVOTDATA("Value",Pivots_LA!$A$6,"Month",$B51,"Delay reason",$C$18)=0,"",GETPIVOTDATA("Value",Pivots_LA!$A$6,"Month",$B51,"Delay reason",$C$18)),NA()) -> 31577 | D51: 31577 | G51: 29736.44 | H51: 34209.78417 | I51: 25263.09583 | N51: 2018-08-01 | O51: 1007 | P51: =IF(O51="",P50,AVERAGE(IF($O$45:O$69<>"",$O$45:O$69))) -> 1681.708333 | Q51: 4473.344167 | R51: 5499.18625 | W51: =IF($D$43>5,NA(),IF(C51>H51,MAX(W$44:$W50)+1,0)) -> 0 | X51: =IF($D$43>5,NA(),IF(C51<I51,MAX(W$44:$W50)+1,0)) -> 0 | AA51: 1 | AB51: 0 | AE51: 0 | AF51: 0 | AI51: 1 | AJ51: 0 | AM51: 0 | AN51: 0
B52: 2018-09-01 | C52: =IFERROR(IF(GETPIVOTDATA("Value",Pivots_LA!$A$6,"Month",$B52,"Delay reason",$C$18)=0,"",GETPIVOTDATA("Value",Pivots_LA!$A$6,"Month",$B52,"Delay reason",$C$18)),NA()) -> 31080 | D52: 31080 | G52: 29736.44 | H52: 34209.78417 | I52: 25263.09583 | N52: 2018-09-01 | O52: 497 | P52: =IF(O52="",P51,AVERAGE(IF($O$45:O$69<>"",$O$45:O$69))) -> 1681.708333 | Q52: 4473.344167 | R52: 5499.18625 | W52: =IF($D$43>5,NA(),IF(C52>H52,MAX(W$44:$W51)+1,0)) -> 0 | X52: =IF($D$43>5,NA(),IF(C52<I52,MAX(W$44:$W51)+1,0)) -> 0 | AA52: 1 | AB52: 0 | AE52: 0 | AF52: 0 | AI52: 0 | AJ52: 0 | AM52: 1 | AN52: 0
B53: 2018-10-01 | C53: =IFERROR(IF(GETPIVOTDATA("Value",Pivots_LA!$A$6,"Month",$B53,"Delay reason",$C$18)=0,"",GETPIVOTDATA("Value",Pivots_LA!$A$6,"Month",$B53,"Delay reason",$C$18)),NA()) -> 30807 | D53: 30807 | G53: 29736.44 | H53: 34209.78417 | I53: 25263.09583 | N53: 2018-10-01 | O53: 273 | P53: =IF(O53="",P52,AVERAGE(IF($O$45:O$69<>"",$O$45:O$69))) -> 1681.708333 | Q53: 4473.344167 | R53: 5499.18625 | W53: =IF($D$43>5,NA(),IF(C53>H53,MAX(W$44:$W52)+1,0)) -> 0 | X53: =IF($D$43>5,NA(),IF(C53<I53,MAX(W$44:$W52)+1,0)) -> 0 | AA53: 1 | AB53: 0 | AE53: 0 | AF53: 0 | AI53: 0 | AJ53: 0 | AM53: 1 | AN53: 0
B54: 2018-11-01 | C54: =IFERROR(IF(GETPIVOTDATA("Value",Pivots_LA!$A$6,"Month",$B54,"Delay reason",$C$18)=0,"",GETPIVOTDATA("Value",Pivots_LA!$A$6,"Month",$B54,"Delay reason",$C$18)),NA()) -> 28822 | D54: 28822 | G54: 29736.44 | H54: 34209.78417 | I54: 25263.09583 | N54: 2018-11-01 | O54: 1985 | P54: =IF(O54="",P53,AVERAGE(IF($O$45:O$69<>"",$O$45:O$69))) -> 1681.708333 | Q54: 4473.344167 | R54: 5499.18625 | W54: =IF($D$43>5,NA(),IF(C54>H54,MAX(W$44:$W53)+1,0)) -> 0 | X54: =IF($D$43>5,NA(),IF(C54<I54,MAX(W$44:$W53)+1,0)) -> 0 | AA54: 0 | AB54: 0 | AE54: 1 | AF54: 1 | AG54: 28822 | AI54: 0 | AJ54: 0 | AM54: 1 | AN54: 0 | AS54: 28822
B55: 2018-12-01 | C55: =IFERROR(IF(GETPIVOTDATA("Value",Pivots_LA!$A$6,"Month",$B55,"Delay reason",$C$18)=0,"",GETPIVOTDATA("Value",Pivots_LA!$A$6,"Month",$B55,"Delay reason",$C$18)),NA()) -> 27550 | D55: 27550 | G55: 29736.44 | H55: 34209.78417 | I55: 25263.09583 | N55: 2018-12-01 | O55: 1272 | P55: =IF(O55="",P54,AVERAGE(IF($O$45:O$69<>"",$O$45:O$69))) -> 1681.708333 | Q55: 4473.344167 | R55: 5499.18625 | W55: =IF($D$43>5,NA(),IF(C55>H55,MAX(W$44:$W54)+1,0)) -> 0 | X55: =IF($D$43>5,NA(),IF(C55<I55,MAX(W$44:$W54)+1,0)) -> 0 | AA55: 0 | AB55: 0 | AE55: 1 | AF55: 1 | AG55: 27550 | AI55: 0 | AJ55: 0 | AM55: 1 | AN55: 0 | AS55: 27550
B56: 2019-01-01 | C56: =IFERROR(IF(GETPIVOTDATA("Value",Pivots_LA!$A$6,"Month",$B56,"Delay reason",$C$18)=0,"",GETPIVOTDATA("Value",Pivots_LA!$A$6,"Month",$B56,"Delay reason",$C$18)),NA()) -> 27733 | D56: 27733 | G56: 29736.44 | H56: 34209.78417 | I56: 25263.09583 | N56: 2019-01-01 | O56: 183 | P56: =IF(O56="",P55,AVERAGE(IF($O$45:O$69<>"",$O$45:O$69))) -> 1681.708333 | Q56: 4473.344167 | R56: 5499.18625 | W56: =IF($D$43>5,NA(),IF(C56>H56,MAX(W$44:$W55)+1,0)) -> 0 | X56: =IF($D$43>5,NA(),IF(C56<I56,MAX(W$44:$W55)+1,0)) -> 0 | AA56: 0 | AB56: 0 | AE56: 1 | AF56: 1 | AG56: 27733 | AI56: 1 | AJ56: 0 | AM56: 0 | AN56: 0 | AS56: 27733
B57: 2019-02-01 | C57: =IFERROR(IF(GETPIVOTDATA("Value",Pivots_LA!$A$6,"Month",$B57,"Delay reason",$C$18)=0,"",GETPIVOTDATA("Value",Pivots_LA!$A$6,"Month",$B57,"Delay reason",$C$18)),NA()) -> 25350 | D57: 25350 | G57: 29736.44 | H57: 34209.78417 | I57: 25263.09583 | N57: 2019-02-01 | O57: 2383 | P57: =IF(O57="",P56,AVERAGE(IF($O$45:O$69<>"",$O$45:O$69))) -> 1681.708333 | Q57: 4473.344167 | R57: 5499.18625 | W57: =IF($D$43>5,NA(),IF(C57>H57,MAX(W$44:$W56)+1,0)) -> 0 | X57: =IF($D$43>5,NA(),IF(C57<I57,MAX(W$44:$W56)+1,0)) -> 0 | AA57: 0 | AB57: 0 | AE57: 1 | AF57: 1 | AG57: 25350 | AI57: 0 | AJ57: 0 | AM57: 1 | AN57: 0 | AS57: 25350
B58: 2019-03-01 | C58: =IFERROR(IF(GETPIVOTDATA("Value",Pivots_LA!$A$6,"Month",$B58,"Delay reason",$C$18)=0,"",GETPIVOTDATA("Value",Pivots_LA!$A$6,"Month",$B58,"Delay reason",$C$18)),NA()) -> 28208 | D58: 28208 | G58: 29736.44 | H58: 34209.78417 | I58: 25263.09583 | N58: 2019-03-01 | O58: 2858 | P58: =IF(O58="",P57,AVERAGE(IF($O$45:O$69<>"",$O$45:O$69))) -> 1681.708333 | Q58: 4473.344167 | R58: 5499.18625 | W58: =IF($D$43>5,NA(),IF(C58>H58,MAX(W$44:$W57)+1,0)) -> 0 | X58: =IF($D$43>5,NA(),IF(C58<I58,MAX(W$44:$W57)+1,0)) -> 0 | AA58: 0 | AB58: 0 | AE58: 1 | AF58: 1 | AG58: 28208 | AI58: 1 | AJ58: 0 | AM58: 0 | AN58: 0 | AS58: 28208
B59: 2019-04-01 | C59: =IFERROR(IF(GETPIVOTDATA("Value",Pivots_LA!$A$6,"Month",$B59,"Delay reason",$C$18)=0,"",GETPIVOTDATA("Value",Pivots_LA!$A$6,"Month",$B59,"Delay reason",$C$18)),NA()) -> 25051 | D59: 25051 | G59: 29736.44 | H59: 34209.78417 | I59: 25263.09583 | N59: 2019-04-01 | O59: 3157 | P59: =IF(O59="",P58,AVERAGE(IF($O$45:O$69<>"",$O$45:O$69))) -> 1681.708333 | Q59: 4473.344167 | R59: 5499.18625 | W59: =IF($D$43>5,NA(),IF(C59>H59,MAX(W$44:$W58)+1,0)) -> 0 | X59: =IF($D$43>5,NA(),IF(C59<I59,MAX(W$44:$W58)+1,0)) -> 1 | Y59: 25051 | AA59: 0 | AB59: 0 | AE59: 1 | AF59: 1 | AG59: 25051 | AI59: 0 | AJ59: 0 | AM59: 1 | AN59: 0 | AS59: 25051
B60: 2019-05-01 | C60: =IFERROR(IF(GETPIVOTDATA("Value",Pivots_LA!$A$6,"Month",$B60,"Delay reason",$C$18)=0,"",GETPIVOTDATA("Value",Pivots_LA!$A$6,"Month",$B60,"Delay reason",$C$18)),NA()) -> 27428 | D60: 27428 | G60: 29736.44 | H60: 34209.78417 | I60: 25263.09583 | N60: 2019-05-01 | O60: 2377 | P60: =IF(O60="",P59,AVERAGE(IF($O$45:O$69<>"",$O$45:O$69))) -> 1681.708333 | Q60: 4473.344167 | R60: 5499.18625 | W60: =IF($D$43>5,NA(),IF(C60>H60,MAX(W$44:$W59)+1,0)) -> 0 | X60: =IF($D$43>5,NA(),IF(C60<I60,MAX(W$44:$W59)+1,0)) -> 0 | AA60: 0 | AB60: 0 | AE60: 1 | AF60: 1 | AG60: 27428 | AI60: 1 | AJ60: 0 | AM60: 0 | AN60: 0 | AS60: 27428
B61: 2019-06-01 | C61: =IFERROR(IF(GETPIVOTDATA("Value",Pivots_LA!$A$6,"Month",$B61,"Delay reason",$C$18)=0,"",GETPIVOTDATA("Value",Pivots_LA!$A$6,"Month",$B61,"Delay reason",$C$18)),NA()) -> 27404 | D61: 27404 | G61: 29736.44 | H61: 34209.78417 | I61: 25263.09583 | N61: 2019-06-01 | O61: 24 | P61: =IF(O61="",P60,AVERAGE(IF($O$45:O$69<>"",$O$45:O$69))) -> 1681.708333 | Q61: 4473.344167 | R61: 5499.18625 | W61: =IF($D$43>5,NA(),IF(C61>H61,MAX(W$44:$W60)+1,0)) -> 0 | X61: =IF($D$43>5,NA(),IF(C61<I61,MAX(W$44:$W60)+1,0)) -> 0 | AA61: 0 | AB61: 0 | AE61: 1 | AF61: 1 | AG61: 27404 | AI61: 0 | AJ61: 0 | AM61: 1 | AN61: 0 | AS61: 27404
B62: 2019-07-01 | C62: =IFERROR(IF(GETPIVOTDATA("Value",Pivots_LA!$A$6,"Month",$B62,"Delay reason",$C$18)=0,"",GETPIVOTDATA("Value",Pivots_LA!$A$6,"Month",$B62,"Delay reason",$C$18)),NA()) -> 29601 | D62: 29601 | G62: 29736.44 | H62: 34209.78417 | I62: 25263.09583 | N62: 2019-07-01 | O62: 2197 | P62: =IF(O62="",P61,AVERAGE(IF($O$45:O$69<>"",$O$45:O$69))) -> 1681.708333 | Q62: 4473.344167 | R62: 5499.18625 | W62: =IF($D$43>5,NA(),IF(C62>H62,MAX(W$44:$W61)+1,0)) -> 0 | X62: =IF($D$43>5,NA(),IF(C62<I62,MAX(W$44:$W61)+1,0)) -> 0 | AA62: 0 | AB62: 0 | AE62: 1 | AF62: =IFERROR(IF(AND(AF61=1,AE62=1),1,IF(SUM(AE62:AE68)>=7,1,0)),0) -> 1 | AG62: 29601 | AI62: 1 | AJ62: 0 | AM62: 0 | AN62: 0 | AS62: 29601
B63: 2019-08-01 | C63: =IFERROR(IF(GETPIVOTDATA("Value",Pivots_LA!$A$6,"Month",$B63,"Delay reason",$C$18)=0,"",GETPIVOTDATA("Value",Pivots_LA!$A$6,"Month",$B63,"Delay reason",$C$18)),NA()) -> 31886 | D63: 31886 | G63: 29736.44 | H63: 34209.78417 | I63: 25263.09583 | N63: 2019-08-01 | O63: 2285 | P63: =IF(O63="",P62,AVERAGE(IF($O$45:O$69<>"",$O$45:O$69))) -> 1681.708333 | Q63: 4473.344167 | R63: 5499.18625 | W63: =IF($D$43>5,NA(),IF(C63>H63,MAX(W$44:$W62)+1,0)) -> 0 | X63: =IF($D$43>5,NA(),IF(C63<I63,MAX(W$44:$W62)+1,0)) -> 0 | AA63: 1 | AB63: 1 | AC63: 31886 | AE63: 0 | AF63: =IFERROR(IF(AND(AF62=1,AE63=1),1,IF(SUM(AE63:AE69)>=7,1,0)),0) -> 0 | AI63: 1 | AJ63: 0 | AM63: 0 | AN63: 0 | AR63: 31886
B64: 2019-09-01 | C64: =IFERROR(IF(GETPIVOTDATA("Value",Pivots_LA!$A$6,"Month",$B64,"Delay reason",$C$18)=0,"",GETPIVOTDATA("Value",Pivots_LA!$A$6,"Month",$B64,"Delay reason",$C$18)),NA()) -> 31736 | D64: 31736 | G64: 29736.44 | H64: 34209.78417 | I64: 25263.09583 | N64: 2019-09-01 | O64: 150 | P64: =IF(O64="",P63,AVERAGE(IF($O$45:O$69<>"",$O$45:O$69))) -> 1681.708333 | Q64: 4473.344167 | R64: 5499.18625 | W64: =IF($D$43>5,NA(),IF(C64>H64,MAX(W$44:$W63)+1,0)) -> 0 | X64: =IF($D$43>5,NA(),IF(C64<I64,MAX(W$44:$W63)+1,0)) -> 0 | AA64: 1 | AB64: =IFERROR(IF(AND(AB63=1,AA64=1),1,IF(SUM(AA64:AA69)>=7,1,0)),0) -> 1 | AC64: 31736 | AE64: 0 | AF64: =IFERROR(IF(AND(AF63=1,AE64=1),1,IF(SUM(AE64:AE69)>=7,1,0)),0) -> 0 | AI64: 0 | AJ64: 0 | AM64: 1 | AN64: 0 | AR64: 31736
B65: 2019-10-01 | C65: =IFERROR(IF(GETPIVOTDATA("Value",Pivots_LA!$A$6,"Month",$B65,"Delay reason",$C$18)=0,"",GETPIVOTDATA("Value",Pivots_LA!$A$6,"Month",$B65,"Delay reason",$C$18)),NA()) -> 31643 | D65: 31643 | G65: 29736.44 | H65: 34209.78417 | I65: 25263.09583 | N65: 2019-10-01 | O65: 93 | P65: =IF(O65="",P64,AVERAGE(IF($O$45:O$69<>"",$O$45:O$69))) -> 1681.708333 | Q65: 4473.344167 | R65: 5499.18625 | W65: =IF($D$43>5,NA(),IF(C65>H65,MAX(W$44:$W64)+1,0)) -> 0 | X65: =IF($D$43>5,NA(),IF(C65<I65,MAX(W$44:$W64)+1,0)) -> 0 | AA65: 1 | AB65: =IFERROR(IF(AND(AB64=1,AA65=1),1,IF(SUM(AA65:AA69)>=7,1,0)),0) -> 1 | AC65: 31643 | AE65: 0 | AF65: =IFERROR(IF(AND(AF64=1,AE65=1),1,IF(SUM(AE65:AE69)>=7,1,0)),0) -> 0 | AI65: 0 | AJ65: 0 | AM65: 1 | AN65: =IF(AND(AN64=1,AM65=1),1,IF(SUM(AM65:AM69)>=7,1,0)) -> 0 | AR65: 31643
B66: 2019-11-01 | C66: =IFERROR(IF(GETPIVOTDATA("Value",Pivots_LA!$A$6,"Month",$B66,"Delay reason",$C$18)=0,"",GETPIVOTDATA("Value",Pivots_LA!$A$6,"Month",$B66,"Delay reason",$C$18)),NA()) -> 30071 | D66: 30071 | G66: 29736.44 | H66: 34209.78417 | I66: 25263.09583 | N66: 2019-11-01 | O66: 1572 | P66: =IF(O66="",P65,AVERAGE(IF($O$45:O$69<>"",$O$45:O$69))) -> 1681.708333 | Q66: 4473.344167 | R66: 5499.18625 | W66: =IF($D$43>5,NA(),IF(C66>H66,MAX(W$44:$W65)+1,0)) -> 0 | X66: =IF($D$43>5,NA(),IF(C66<I66,MAX(W$44:$W65)+1,0)) -> 0 | AA66: 1 | AB66: 1 | AC66: 30071 | AE66: 0 | AF66: =IFERROR(IF(AND(AF65=1,AE66=1),1,IF(SUM(AE66:AE69)>=7,1,0)),0) -> 0 | AI66: 0 | AJ66: =IF(AND(AJ65=1,AI66=1),1,IF(SUM(AI66:AI69)>=7,1,0)) -> 0 | AM66: 1 | AN66: =IF(AND(AN65=1,AM66=1),1,IF(SUM(AM66:AM69)>=7,1,0)) -> 0 | AR66: 30071
B67: 2019-12-01 | C67: =IFERROR(IF(GETPIVOTDATA("Value",Pivots_LA!$A$6,"Month",$B67,"Delay reason",$C$18)=0,"",GETPIVOTDATA("Value",Pivots_LA!$A$6,"Month",$B67,"Delay reason",$C$18)),NA()) -> 31166 | D67: 31166 | G67: 29736.44 | H67: 34209.78417 | I67: 25263.09583 | N67: 2019-12-01 | O67: 1095 | P67: =IF(O67="",P66,AVERAGE(IF($O$45:O$69<>"",$O$45:O$69))) -> 1681.708333 | Q67: 4473.344167 | R67: 5499.18625 | W67: =IF($D$43>5,NA(),IF(C67>H67,MAX(W$44:$W66)+1,0)) -> 0 | X67: =IF($D$43>5,NA(),IF(C67<I67,MAX(W$44:$W66)+1,0)) -> 0 | AA67: 1 | AB67: =IFERROR(IF(AND(AB66=1,AA67=1),1,IF(SUM(AA67:AA69)>=7,1,0)),0) -> 1 | AC67: 31166 | AE67: 0 | AF67: =IFERROR(IF(AND(AF66=1,AE67=1),1,IF(SUM(AE67:AE69)>=7,1,0)),0) -> 0 | AI67: 1 | AJ67: =IF(AND(AJ66=1,AI67=1),1,IF(SUM(AI67:AI69)>=7,1,0)) -> 0 | AM67: 0 | AN67: =IF(AND(AN66=1,AM67=1),1,IF(SUM(AM67:AM69)>=7,1,0)) -> 0 | AR67: 31166
B68: 2020-01-01 | C68: =IFERROR(IF(GETPIVOTDATA("Value",Pivots_LA!$A$6,"Month",$B68,"Delay reason",$C$18)=0,"",GETPIVOTDATA("Value",Pivots_LA!$A$6,"Month",$B68,"Delay reason",$C$18)),NA()) -> 34257 | D68: 34257 | G68: 29736.44 | H68: 34209.78417 | I68: 25263.09583 | N68: 2020-01-01 | O68: 3091 | P68: =IF(O68="",P67,AVERAGE(IF($O$45:O$69<>"",$O$45:O$69))) -> 1681.708333 | Q68: 4473.344167 | R68: 5499.18625 | W68: =IF($D$43>5,NA(),IF(C68>H68,MAX(W$44:$W67)+1,0)) -> 1 | X68: =IF($D$43>5,NA(),IF(C68<I68,MAX(W$44:$W67)+1,0)) -> 0 | Y68: 34257 | AA68: 1 | AB68: =IFERROR(IF(AND(AB67=1,AA68=1),1,IF(SUM(AA68:AA69)>=7,1,0)),0) -> 1 | AC68: 34257 | AE68: 0 | AF68: =IFERROR(IF(AND(AF67=1,AE68=1),1,IF(SUM(AE68:AE69)>=7,1,0)),0) -> 0 | AI68: 1 | AJ68: =IF(AND(AJ67=1,AI68=1),1,IF(SUM(AI68:AI69)>=7,1,0)) -> 0 | AM68: 0 | AN68: =IF(AND(AN67=1,AM68=1),1,IF(SUM(AM68:AM69)>=7,1,0)) -> 0 | AR68: 34257
B69: 2020-02-01 | C69: =IFERROR(IF(GETPIVOTDATA("Value",Pivots_LA!$A$6,"Month",$B69,"Delay reason",$C$18)=0,"",GETPIVOTDATA("Value",Pivots_LA!$A$6,"Month",$B69,"Delay reason",$C$18)),NA()) -> 32213 | D69: 32213 | G69: 29736.44 | H69: 34209.78417 | I69: 25263.09583 | N69: 2020-02-01 | O69: 2044 | P69: =IF(O69="",P68,AVERAGE(IF($O$45:O$69<>"",$O$45:O$69))) -> 1681.708333 | Q69: =IF(ISERROR((P69*2.66)),Q70,(P69*2.66)) -> 4473.344167 | R69: =$P69*3.27 -> 5499.18625 | W69: =IF($D$43>5,NA(),IF(C69>H69,MAX(W$44:$W68)+1,0)) -> 0 | X69: =IF($D$43>5,NA(),IF(C69<I69,MAX(W$44:$W68)+1,0)) -> 0 | AA69: =IF($D$43>5,NA(), IF(C69>G69,1,0)) -> 1 | AB69: =IFERROR(IF(AND(AB68=1,AA69=1),1,IF(SUM(AA69)>=7,1,0)),0) -> 1 | AC69: 32213 | AE69: =IF($D$43>5,NA(), IF(C69<G69,1,0)) -> 0 | AF69: =IFERROR(IF(AND(AF68=1,AE69=1),1,IF(SUM(AE69)>=7,1,0)),0) -> 0 | AI69: 0 | AJ69: =IF(AND(AJ68=1,AI69=1),1,IF(SUM(AI69)>=7,1,0)) -> 0 | AM69: 1 | AN69: =IF(AND(AN68=1,AM69=1),1,IF(SUM(AM69)>=7,1,0)) -> 0 | AR69: =IF(OR(W69>0,AB69>0,AJ69>0),C69,NA()) -> 32213
B71: =C19 -> C) Awaiting further non-acute NHS care (including intermediate care, rehabilitation services etc) | D71: Count IF data point is zero
B72: 2 | C72: =ROW() -> 72 | D72: =COUNTIF(D74:D98,0) -> 0 | H72: Upper | I72: Lower | O72: Difference | Q72: Sigma | W72: > 3 | X72: < 3 | AA72: 7 points above/below mean | AI72: Trend up/down | AR72: chart 2
B73: ID (Week no.) | C73: Plot data | D73: Data | G73: Mean | H73: Control limits | I73: control limit (-3) | N73: Date | O73: For. Roll avg | P73: Cumul. Moving Avg. | Q73: 2.66* MR | R73: 3.27*MR | W73: Count | X73: Count | Y73: Above/below 3 sigma | AA73: 7 points > mean | AB73: Count of 7 point | AC73: 7 points above mean | AE73: 7 points <mean | AF73: Count of 7point | AG73: 7 points below mean | AI73: Trend up | AM73: Trend Down | AR73: Concern | AS73: Improvement
B74: =D9 -> 2018-02-01 | C74: =IFERROR(IF(GETPIVOTDATA("Value",Pivots_LA!$A$6,"Month",$B74,"Delay reason",$C$19)=0,"",GETPIVOTDATA("Value",Pivots_LA!$A$6,"Month",$B74,"Delay reason",$C$19)),NA()) -> 24647 | D74: =IFERROR(IF(C74="",0,C74),"") -> 24647 | G74: =AVERAGE($D$74:$D$98) -> 24996.76 | H74: =IF($D$72>5,NA(),IF(D74="",H73,G74+Q74)) -> 28716.105 | I74: =IF($D$72>5,NA(),IF(D74="",I73,G74-Q74)) -> 21277.415 | N74: =B74 -> 2018-02-01 | P74: =IF(O74="",P73,AVERAGE(IF($O$74:O$98<>"",$O$74:O$98))) -> Cumul. Moving Avg. | Q74: =Q75 -> 3719.345 | R74: =R75 -> 4572.2775 | W74: =IF($D$72>5,NA(),IF(C74>H74,MAX(W$73:$W73)+1,0)) -> 0 | X74: =IF($D$72>5,NA(),IF(C74<I74,MAX(W$73:$W73)+1,0)) -> 0 | Y74: =IF(OR(W74>0,X74>0),C74,NA()) ->  | AA74: =IF($D$72>5,NA(), IF(C74>G74,1,0)) -> 0 | AB74: =IFERROR(IF(AND(AB73=1,AA74=1),1,IF(SUM(AA74:AA80)>=7,1,0)),0) -> 0 | AC74: =IF(AB74=0,NA(),C74) ->  | AE74: =IF($D$72>5,NA(), IF(C74<G74,1,0)) -> 1 | AF74: =IFERROR(IF(AND(AF73=1,AE74=1),1,IF(SUM(AE74:AE80)>=7,1,0)),0) -> 0 | AG74: =IF(AF74=0,NA(),C74) ->  | AI74: =IF($D$72>5,NA(),IF(C74>C73,1,0)) -> 0 | AJ74: =IF(AND(AJ73=1,AI74=1),1,IF(SUM(AI74:AI80)>=7,1,0)) -> 0 | AK74: =IF(AJ74=0,NA(),C74) ->  | AM74: =IF($D$72>5,NA(),IF(C74<C73,1,0)) -> 1 | AN74: =IF(AND(AN73=1,AM74=1),1,IF(SUM(AM74:AM80)>=7,1,0)) -> 0 | AO74: =IF(AN74=0,NA(),C74) ->  | AR74: =IF(OR(W74>0,AB74>0,AJ74>0),C74,NA()) ->  | AS74: =IF(OR(X74>0,AF74>0,AN74>0),C74,NA()) -> 
B75: =IF(DAY(B74+31)=1,B74+31,B74+31-DAY(B74+31)+1) -> 2018-03-01 | C75: =IFERROR(IF(GETPIVOTDATA("Value",Pivots_LA!$A$6,"Month",$B75,"Delay reason",$C$19)=0,"",GETPIVOTDATA("Value",Pivots_LA!$A$6,"Month",$B75,"Delay reason",$C$19)),NA()) -> 29316 | D75: =IFERROR(IF(C75="",0,C75),"") -> 29316 | G75: =AVERAGE($D$74:$D$98) -> 24996.76 | H75: =IF($D$72>5,NA(),IF(D75="",H74,G75+Q75)) -> 28716.105 | I75: =IF($D$72>5,NA(),IF(D75="",I74,G75-Q75)) -> 21277.415 | N75: 2018-03-01 | O75: =IF(D74="","",IF(D75="","",ABS(D74-D75))) -> 4669 | P75: =IF(O75="",P74,AVERAGE(IF($O$74:O$98<>"",$O$74:O$98))) -> 1398.25 | Q75: =IF(ISERROR((P75*2.66)),Q76,(P75*2.66)) -> 3719.345 | R75: =$P75*3.27 -> 4572.2775 | W75: =IF($D$72>5,NA(),IF(C75>H75,MAX(W$73:$W74)+1,0)) -> 1 | X75: =IF($D$72>5,NA(),IF(C75<I75,MAX(W$73:$W74)+1,0)) -> 0 | Y75: =IF(OR(W75>0,X75>0),C75,NA()) -> 29316 | AA75: =IF($D$72>5,NA(), IF(C75>G75,1,0)) -> 1 | AB75: =IFERROR(IF(AND(AB74=1,AA75=1),1,IF(SUM(AA75:AA81)>=7,1,0)),0) -> 0 | AC75: =IF(AB75=0,NA(),C75) ->  | AE75: =IF($D$72>5,NA(), IF(C75<G75,1,0)) -> 0 | AF75: =IFERROR(IF(AND(AF74=1,AE75=1),1,IF(SUM(AE75:AE81)>=7,1,0)),0) -> 0 | AG75: =IF(AF75=0,NA(),C75) ->  | AI75: =IF($D$72>5,NA(),IF(C75>C74,1,0)) -> 1 | AJ75: =IF(AND(AJ74=1,AI75=1),1,IF(SUM(AI75:AI81)>=7,1,0)) -> 0 | AK75: =IF(AJ75=0,NA(),C75) ->  | AM75: =IF($D$72>5,NA(),IF(C75<C74,1,0)) -> 0 | AN75: =IF(AND(AN74=1,AM75=1),1,IF(SUM(AM75:AM81)>=7,1,0)) -> 0 | AO75: =IF(AN75=0,NA(),C75) ->  | AR75: =IF(OR(W75>0,AB75>0,AJ75>0),C75,NA()) -> 29316 | AS75: =IF(OR(X75>0,AF75>0,AN75>0),C75,NA()) -> 
B76: =IF(DAY(B75+31)=1,B75+31,B75+31-DAY(B75+31)+1) -> 2018-04-01 | C76: =IFERROR(IF(GETPIVOTDATA("Value",Pivots_LA!$A$6,"Month",$B76,"Delay reason",$C$19)=0,"",GETPIVOTDATA("Value",Pivots_LA!$A$6,"Month",$B76,"Delay reason",$C$19)),NA()) -> 26700 | D76: 26700 | G76: 24996.76 | H76: 28716.105 | I76: 21277.415 | N76: 2018-04-01 | O76: =IF(D75="","",IF(D76="","",ABS(D75-D76))) -> 2616 | P76: =IF(O76="",P75,AVERAGE(IF($O$74:O$98<>"",$O$74:O$98))) -> 1398.25 | Q76: =IF(ISERROR((P76*2.66)),Q77,(P76*2.66)) -> 3719.345 | R76: =$P76*3.27 -> 4572.2775 | W76: =IF($D$72>5,NA(),IF(C76>H76,MAX(W$73:$W75)+1,0)) -> 0 | X76: =IF($D$72>5,NA(),IF(C76<I76,MAX(W$73:$W75)+1,0)) -> 0 | AA76: 1 | AB76: 0 | AE76: 0 | AF76: 0 | AI76: 0 | AJ76: 0 | AM76: 1 | AN76: 0
B77: 2018-05-01 | C77: =IFERROR(IF(GETPIVOTDATA("Value",Pivots_LA!$A$6,"Month",$B77,"Delay reason",$C$19)=0,"",GETPIVOTDATA("Value",Pivots_LA!$A$6,"Month",$B77,"Delay reason",$C$19)),NA()) -> 24841 | D77: 24841 | G77: 24996.76 | H77: 28716.105 | I77: 21277.415 | N77: 2018-05-01 | O77: 1859 | P77: =IF(O77="",P76,AVERAGE(IF($O$74:O$98<>"",$O$74:O$98))) -> 1398.25 | Q77: =IF(ISERROR((P77*2.66)),Q78,(P77*2.66)) -> 3719.345 | R77: =$P77*3.27 -> 4572.2775 | W77: =IF($D$72>5,NA(),IF(C77>H77,MAX(W$73:$W76)+1,0)) -> 0 | X77: =IF($D$72>5,NA(),IF(C77<I77,MAX(W$73:$W76)+1,0)) -> 0 | AA77: 0 | AB77: 0 | AE77: 1 | AF77: 1 | AG77: 24841 | AI77: 0 | AJ77: 0 | AM77: 1 | AN77: 0 | AS77: 24841
B78: 2018-06-01 | C78: =IFERROR(IF(GETPIVOTDATA("Value",Pivots_LA!$A$6,"Month",$B78,"Delay reason",$C$19)=0,"",GETPIVOTDATA("Value",Pivots_LA!$A$6,"Month",$B78,"Delay reason",$C$19)),NA()) -> 22953 | D78: 22953 | G78: 24996.76 | H78: 28716.105 | I78: 21277.415 | N78: 2018-06-01 | O78: 1888 | P78: =IF(O78="",P77,AVERAGE(IF($O$74:O$98<>"",$O$74:O$98))) -> 1398.25 | Q78: =IF(ISERROR((P78*2.66)),Q79,(P78*2.66)) -> 3719.345 | R78: 4572.2775 | W78: =IF($D$72>5,NA(),IF(C78>H78,MAX(W$73:$W77)+1,0)) -> 0 | X78: =IF($D$72>5,NA(),IF(C78<I78,MAX(W$73:$W77)+1,0)) -> 0 | AA78: 0 | AB78: 0 | AE78: 1 | AF78: 1 | AG78: 22953 | AI78: 0 | AJ78: 0 | AM78: 1 | AN78: 0 | AS78: 22953
B79: 2018-07-01 | C79: =IFERROR(IF(GETPIVOTDATA("Value",Pivots_LA!$A$6,"Month",$B79,"Delay reason",$C$19)=0,"",GETPIVOTDATA("Value",Pivots_LA!$A$6,"Month",$B79,"Delay reason",$C$19)),NA()) -> 24166 | D79: 24166 | G79: 24996.76 | H79: 28716.105 | I79: 21277.415 | N79: 2018-07-01 | O79: 1213 | P79: =IF(O79="",P78,AVERAGE(IF($O$74:O$98<>"",$O$74:O$98))) -> 1398.25 | Q79: 3719.345 | R79: 4572.2775 | W79: =IF($D$72>5,NA(),IF(C79>H79,MAX(W$73:$W78)+1,0)) -> 0 | X79: =IF($D$72>5,NA(),IF(C79<I79,MAX(W$73:$W78)+1,0)) -> 0 | AA79: 0 | AB79: 0 | AE79: 1 | AF79: 1 | AG79: 24166 | AI79: 1 | AJ79: 0 | AM79: 0 | AN79: 0 | AS79: 24166
B80: 2018-08-01 | C80: =IFERROR(IF(GETPIVOTDATA("Value",Pivots_LA!$A$6,"Month",$B80,"Delay reason",$C$19)=0,"",GETPIVOTDATA("Value",Pivots_LA!$A$6,"Month",$B80,"Delay reason",$C$19)),NA()) -> 24797 | D80: 24797 | G80: 24996.76 | H80: 28716.105 | I80: 21277.415 | N80: 2018-08-01 | O80: 631 | P80: =IF(O80="",P79,AVERAGE(IF($O$74:O$98<>"",$O$74:O$98))) -> 1398.25 | Q80: 3719.345 | R80: 4572.2775 | W80: =IF($D$72>5,NA(),IF(C80>H80,MAX(W$73:$W79)+1,0)) -> 0 | X80: =IF($D$72>5,NA(),IF(C80<I80,MAX(W$73:$W79)+1,0)) -> 0 | AA80: 0 | AB80: 0 | AE80: 1 | AF80: 1 | AG80: 24797 | AI80: 1 | AJ80: 0 | AM80: 0 | AN80: 0 | AS80: 24797
B81: 2018-09-01 | C81: =IFERROR(IF(GETPIVOTDATA("Value",Pivots_LA!$A$6,"Month",$B81,"Delay reason",$C$19)=0,"",GETPIVOTDATA("Value",Pivots_LA!$A$6,"Month",$B81,"Delay reason",$C$19)),NA()) -> 22400 | D81: 22400 | G81: 24996.76 | H81: 28716.105 | I81: 21277.415 | N81: 2018-09-01 | O81: 2397 | P81: =IF(O81="",P80,AVERAGE(IF($O$74:O$98<>"",$O$74:O$98))) -> 1398.25 | Q81: 3719.345 | R81: 4572.2775 | W81: =IF($D$72>5,NA(),IF(C81>H81,MAX(W$73:$W80)+1,0)) -> 0 | X81: =IF($D$72>5,NA(),IF(C81<I81,MAX(W$73:$W80)+1,0)) -> 0 | AA81: 0 | AB81: 0 | AE81: 1 | AF81: 1 | AG81: 22400 | AI81: 0 | AJ81: 0 | AM81: 1 | AN81: 0 | AS81: 22400
B82: 2018-10-01 | C82: =IFERROR(IF(GETPIVOTDATA("Value",Pivots_LA!$A$6,"Month",$B82,"Delay reason",$C$19)=0,"",GETPIVOTDATA("Value",Pivots_LA!$A$6,"Month",$B82,"Delay reason",$C$19)),NA()) -> 22411 | D82: 22411 | G82: 24996.76 | H82: 28716.105 | I82: 21277.415 | N82: 2018-10-01 | O82: 11 | P82: =IF(O82="",P81,AVERAGE(IF($O$74:O$98<>"",$O$74:O$98))) -> 1398.25 | Q82: 3719.345 | R82: 4572.2775 | W82: =IF($D$72>5,NA(),IF(C82>H82,MAX(W$73:$W81)+1,0)) -> 0 | X82: =IF($D$72>5,NA(),IF(C82<I82,MAX(W$73:$W81)+1,0)) -> 0 | AA82: 0 | AB82: 0 | AE82: 1 | AF82: 1 | AG82: 22411 | AI82: 1 | AJ82: 0 | AM82: 0 | AN82: 0 | AS82: 22411
B83: 2018-11-01 | C83: =IFERROR(IF(GETPIVOTDATA("Value",Pivots_LA!$A$6,"Month",$B83,"Delay reason",$C$19)=0,"",GETPIVOTDATA("Value",Pivots_LA!$A$6,"Month",$B83,"Delay reason",$C$19)),NA()) -> 21587 | D83: 21587 | G83: 24996.76 | H83: 28716.105 | I83: 21277.415 | N83: 2018-11-01 | O83: 824 | P83: =IF(O83="",P82,AVERAGE(IF($O$74:O$98<>"",$O$74:O$98))) -> 1398.25 | Q83: 3719.345 | R83: 4572.2775 | W83: =IF($D$72>5,NA(),IF(C83>H83,MAX(W$73:$W82)+1,0)) -> 0 | X83: =IF($D$72>5,NA(),IF(C83<I83,MAX(W$73:$W82)+1,0)) -> 0 | AA83: 0 | AB83: 0 | AE83: 1 | AF83: 1 | AG83: 21587 | AI83: 0 | AJ83: 0 | AM83: 1 | AN83: 0 | AS83: 21587
B84: 2018-12-01 | C84: =IFERROR(IF(GETPIVOTDATA("Value",Pivots_LA!$A$6,"Month",$B84,"Delay reason",$C$19)=0,"",GETPIVOTDATA("Value",Pivots_LA!$A$6,"Month",$B84,"Delay reason",$C$19)),NA()) -> 21361 | D84: 21361 | G84: 24996.76 | H84: 28716.105 | I84: 21277.415 | N84: 2018-12-01 | O84: 226 | P84: =IF(O84="",P83,AVERAGE(IF($O$74:O$98<>"",$O$74:O$98))) -> 1398.25 | Q84: 3719.345 | R84: 4572.2775 | W84: =IF($D$72>5,NA(),IF(C84>H84,MAX(W$73:$W83)+1,0)) -> 0 | X84: =IF($D$72>5,NA(),IF(C84<I84,MAX(W$73:$W83)+1,0)) -> 0 | AA84: 0 | AB84: 0 | AE84: 1 | AF84: 1 | AG84: 21361 | AI84: 0 | AJ84: 0 | AM84: 1 | AN84: 0 | AS84: 21361
B85: 2019-01-01 | C85: =IFERROR(IF(GETPIVOTDATA("Value",Pivots_LA!$A$6,"Month",$B85,"Delay reason",$C$19)=0,"",GETPIVOTDATA("Value",Pivots_LA!$A$6,"Month",$B85,"Delay reason",$C$19)),NA()) -> 24403 | D85: 24403 | G85: 24996.76 | H85: 28716.105 | I85: 21277.415 | N85: 2019-01-01 | O85: 3042 | P85: =IF(O85="",P84,AVERAGE(IF($O$74:O$98<>"",$O$74:O$98))) -> 1398.25 | Q85: 3719.345 | R85: 4572.2775 | W85: =IF($D$72>5,NA(),IF(C85>H85,MAX(W$73:$W84)+1,0)) -> 0 | X85: =IF($D$72>5,NA(),IF(C85<I85,MAX(W$73:$W84)+1,0)) -> 0 | AA85: 0 | AB85: 0 | AE85: 1 | AF85: 1 | AG85: 24403 | AI85: 1 | AJ85: 0 | AM85: 0 | AN85: 0 | AS85: 24403
B86: 2019-02-01 | C86: =IFERROR(IF(GETPIVOTDATA("Value",Pivots_LA!$A$6,"Month",$B86,"Delay reason",$C$19)=0,"",GETPIVOTDATA("Value",Pivots_LA!$A$6,"Month",$B86,"Delay reason",$C$19)),NA()) -> 24289 | D86: 24289 | G86: 24996.76 | H86: 28716.105 | I86: 21277.415 | N86: 2019-02-01 | O86: 114 | P86: =IF(O86="",P85,AVERAGE(IF($O$74:O$98<>"",$O$74:O$98))) -> 1398.25 | Q86: 3719.345 | R86: 4572.2775 | W86: =IF($D$72>5,NA(),IF(C86>H86,MAX(W$73:$W85)+1,0)) -> 0 | X86: =IF($D$72>5,NA(),IF(C86<I86,MAX(W$73:$W85)+1,0)) -> 0 | AA86: 0 | AB86: 0 | AE86: 1 | AF86: 1 | AG86: 24289 | AI86: 0 | AJ86: 0 | AM86: 1 | AN86: 0 | AS86: 24289
B87: 2019-03-01 | C87: =IFERROR(IF(GETPIVOTDATA("Value",Pivots_LA!$A$6,"Month",$B87,"Delay reason",$C$19)=0,"",GETPIVOTDATA("Value",Pivots_LA!$A$6,"Month",$B87,"Delay reason",$C$19)),NA()) -> 26458 | D87: 26458 | G87: 24996.76 | H87: 28716.105 | I87: 21277.415 | N87: 2019-03-01 | O87: 2169 | P87: =IF(O87="",P86,AVERAGE(IF($O$74:O$98<>"",$O$74:O$98))) -> 1398.25 | Q87: 3719.345 | R87: 4572.2775 | W87: =IF($D$72>5,NA(),IF(C87>H87,MAX(W$73:$W86)+1,0)) -> 0 | X87: =IF($D$72>5,NA(),IF(C87<I87,MAX(W$73:$W86)+1,0)) -> 0 | AA87: 1 | AB87: 0 | AE87: 0 | AF87: 0 | AI87: 1 | AJ87: 0 | AM87: 0 | AN87: 0
B88: 2019-04-01 | C88: =IFERROR(IF(GETPIVOTDATA("Value",Pivots_LA!$A$6,"Month",$B88,"Delay reason",$C$19)=0,"",GETPIVOTDATA("Value",Pivots_LA!$A$6,"Month",$B88,"Delay reason",$C$19)),NA()) -> 25624 | D88: 25624 | G88: 24996.76 | H88: 28716.105 | I88: 21277.415 | N88: 2019-04-01 | O88: 834 | P88: =IF(O88="",P87,AVERAGE(IF($O$74:O$98<>"",$O$74:O$98))) -> 1398.25 | Q88: 3719.345 | R88: 4572.2775 | W88: =IF($D$72>5,NA(),IF(C88>H88,MAX(W$73:$W87)+1,0)) -> 0 | X88: =IF($D$72>5,NA(),IF(C88<I88,MAX(W$73:$W87)+1,0)) -> 0 | AA88: 1 | AB88: 0 | AE88: 0 | AF88: 0 | AI88: 0 | AJ88: 0 | AM88: 1 | AN88: 0
B89: 2019-05-01 | C89: =IFERROR(IF(GETPIVOTDATA("Value",Pivots_LA!$A$6,"Month",$B89,"Delay reason",$C$19)=0,"",GETPIVOTDATA("Value",Pivots_LA!$A$6,"Month",$B89,"Delay reason",$C$19)),NA()) -> 26157 | D89: 26157 | G89: 24996.76 | H89: 28716.105 | I89: 21277.415 | N89: 2019-05-01 | O89: 533 | P89: =IF(O89="",P88,AVERAGE(IF($O$74:O$98<>"",$O$74:O$98))) -> 1398.25 | Q89: 3719.345 | R89: 4572.2775 | W89: =IF($D$72>5,NA(),IF(C89>H89,MAX(W$73:$W88)+1,0)) -> 0 | X89: =IF($D$72>5,NA(),IF(C89<I89,MAX(W$73:$W88)+1,0)) -> 0 | AA89: 1 | AB89: 0 | AE89: 0 | AF89: 0 | AI89: 1 | AJ89: 0 | AM89: 0 | AN89: 0
B90: 2019-06-01 | C90: =IFERROR(IF(GETPIVOTDATA("Value",Pivots_LA!$A$6,"Month",$B90,"Delay reason",$C$19)=0,"",GETPIVOTDATA("Value",Pivots_LA!$A$6,"Month",$B90,"Delay reason",$C$19)),NA()) -> 24654 | D90: 24654 | G90: 24996.76 | H90: 28716.105 | I90: 21277.415 | N90: 2019-06-01 | O90: 1503 | P90: =IF(O90="",P89,AVERAGE(IF($O$74:O$98<>"",$O$74:O$98))) -> 1398.25 | Q90: 3719.345 | R90: 4572.2775 | W90: =IF($D$72>5,NA(),IF(C90>H90,MAX(W$73:$W89)+1,0)) -> 0 | X90: =IF($D$72>5,NA(),IF(C90<I90,MAX(W$73:$W89)+1,0)) -> 0 | AA90: 0 | AB90: 0 | AE90: 1 | AF90: 0 | AI90: 0 | AJ90: 0 | AM90: 1 | AN90: 0
B91: 2019-07-01 | C91: =IFERROR(IF(GETPIVOTDATA("Value",Pivots_LA!$A$6,"Month",$B91,"Delay reason",$C$19)=0,"",GETPIVOTDATA("Value",Pivots_LA!$A$6,"Month",$B91,"Delay reason",$C$19)),NA()) -> 24947 | D91: 24947 | G91: 24996.76 | H91: 28716.105 | I91: 21277.415 | N91: 2019-07-01 | O91: 293 | P91: =IF(O91="",P90,AVERAGE(IF($O$74:O$98<>"",$O$74:O$98))) -> 1398.25 | Q91: 3719.345 | R91: 4572.2775 | W91: =IF($D$72>5,NA(),IF(C91>H91,MAX(W$73:$W90)+1,0)) -> 0 | X91: =IF($D$72>5,NA(),IF(C91<I91,MAX(W$73:$W90)+1,0)) -> 0 | AA91: 0 | AB91: 0 | AE91: 1 | AF91: =IFERROR(IF(AND(AF90=1,AE91=1),1,IF(SUM(AE91:AE97)>=7,1,0)),0) -> 0 | AI91: 1 | AJ91: 0 | AM91: 0 | AN91: 0
B92: 2019-08-01 | C92: =IFERROR(IF(GETPIVOTDATA("Value",Pivots_LA!$A$6,"Month",$B92,"Delay reason",$C$19)=0,"",GETPIVOTDATA("Value",Pivots_LA!$A$6,"Month",$B92,"Delay reason",$C$19)),NA()) -> 24287 | D92: 24287 | G92: 24996.76 | H92: 28716.105 | I92: 21277.415 | N92: 2019-08-01 | O92: 660 | P92: =IF(O92="",P91,AVERAGE(IF($O$74:O$98<>"",$O$74:O$98))) -> 1398.25 | Q92: 3719.345 | R92: 4572.2775 | W92: =IF($D$72>5,NA(),IF(C92>H92,MAX(W$73:$W91)+1,0)) -> 0 | X92: =IF($D$72>5,NA(),IF(C92<I92,MAX(W$73:$W91)+1,0)) -> 0 | AA92: 0 | AB92: 0 | AE92: 1 | AF92: =IFERROR(IF(AND(AF91=1,AE92=1),1,IF(SUM(AE92:AE98)>=7,1,0)),0) -> 0 | AI92: 0 | AJ92: 0 | AM92: 1 | AN92: 0
B93: 2019-09-01 | C93: =IFERROR(IF(GETPIVOTDATA("Value",Pivots_LA!$A$6,"Month",$B93,"Delay reason",$C$19)=0,"",GETPIVOTDATA("Value",Pivots_LA!$A$6,"Month",$B93,"Delay reason",$C$19)),NA()) -> 24335 | D93: 24335 | G93: 24996.76 | H93: 28716.105 | I93: 21277.415 | N93: 2019-09-01 | O93: 48 | P93: =IF(O93="",P92,AVERAGE(IF($O$74:O$98<>"",$O$74:O$98))) -> 1398.25 | Q93: 3719.345 | R93: 4572.2775 | W93: =IF($D$72>5,NA(),IF(C93>H93,MAX(W$73:$W92)+1,0)) -> 0 | X93: =IF($D$72>5,NA(),IF(C93<I93,MAX(W$73:$W92)+1,0)) -> 0 | AA93: 0 | AB93: =IFERROR(IF(AND(AB92=1,AA93=1),1,IF(SUM(AA93:AA98)>=7,1,0)),0) -> 0 | AE93: 1 | AF93: =IFERROR(IF(AND(AF92=1,AE93=1),1,IF(SUM(AE93:AE98)>=7,1,0)),0) -> 0 | AI93: 1 | AJ93: 0 | AM93: 0 | AN93: 0
B94: 2019-10-01 | C94: =IFERROR(IF(GETPIVOTDATA("Value",Pivots_LA!$A$6,"Month",$B94,"Delay reason",$C$19)=0,"",GETPIVOTDATA("Value",Pivots_LA!$A$6,"Month",$B94,"Delay reason",$C$19)),NA()) -> 26023 | D94: 26023 | G94: 24996.76 | H94: 28716.105 | I94: 21277.415 | N94: 2019-10-01 | O94: 1688 | P94: =IF(O94="",P93,AVERAGE(IF($O$74:O$98<>"",$O$74:O$98))) -> 1398.25 | Q94: 3719.345 | R94: 4572.2775 | W94: =IF($D$72>5,NA(),IF(C94>H94,MAX(W$73:$W93)+1,0)) -> 0 | X94: =IF($D$72>5,NA(),IF(C94<I94,MAX(W$73:$W93)+1,0)) -> 0 | AA94: 1 | AB94: =IFERROR(IF(AND(AB93=1,AA94=1),1,IF(SUM(AA94:AA98)>=7,1,0)),0) -> 0 | AE94: 0 | AF94: =IFERROR(IF(AND(AF93=1,AE94=1),1,IF(SUM(AE94:AE98)>=7,1,0)),0) -> 0 | AI94: 1 | AJ94: 0 | AM94: 0 | AN94: 0
B95: 2019-11-01 | C95: =IFERROR(IF(GETPIVOTDATA("Value",Pivots_LA!$A$6,"Month",$B95,"Delay reason",$C$19)=0,"",GETPIVOTDATA("Value",Pivots_LA!$A$6,"Month",$B95,"Delay reason",$C$19)),NA()) -> 25116 | D95: 25116 | G95: 24996.76 | H95: 28716.105 | I95: 21277.415 | N95: 2019-11-01 | O95: 907 | P95: =IF(O95="",P94,AVERAGE(IF($O$74:O$98<>"",$O$74:O$98))) -> 1398.25 | Q95: 3719.345 | R95: 4572.2775 | W95: =IF($D$72>5,NA(),IF(C95>H95,MAX(W$73:$W94)+1,0)) -> 0 | X95: =IF($D$72>5,NA(),IF(C95<I95,MAX(W$73:$W94)+1,0)) -> 0 | AA95: 1 | AB95: =IFERROR(IF(AND(AB94=1,AA95=1),1,IF(SUM(AA95:AA101)>=7,1,0)),0) -> 0 | AE95: 0 | AF95: =IFERROR(IF(AND(AF94=1,AE95=1),1,IF(SUM(AE95:AE98)>=7,1,0)),0) -> 0 | AI95: 0 | AJ95: =IF(AND(AJ94=1,AI95=1),1,IF(SUM(AI95:AI98)>=7,1,0)) -> 0 | AM95: 1 | AN95: =IF(AND(AN94=1,AM95=1),1,IF(SUM(AM95:AM98)>=7,1,0)) -> 0
B96: 2019-12-01 | C96: =IFERROR(IF(GETPIVOTDATA("Value",Pivots_LA!$A$6,"Month",$B96,"Delay reason",$C$19)=0,"",GETPIVOTDATA("Value",Pivots_LA!$A$6,"Month",$B96,"Delay reason",$C$19)),NA()) -> 25463 | D96: 25463 | G96: 24996.76 | H96: 28716.105 | I96: 21277.415 | N96: 2019-12-01 | O96: 347 | P96: =IF(O96="",P95,AVERAGE(IF($O$74:O$98<>"",$O$74:O$98))) -> 1398.25 | Q96: 3719.345 | R96: 4572.2775 | W96: =IF($D$72>5,NA(),IF(C96>H96,MAX(W$73:$W95)+1,0)) -> 0 | X96: =IF($D$72>5,NA(),IF(C96<I96,MAX(W$73:$W95)+1,0)) -> 0 | AA96: 1 | AB96: =IFERROR(IF(AND(AB95=1,AA96=1),1,IF(SUM(AA96:AA98)>=7,1,0)),0) -> 0 | AE96: 0 | AF96: =IFERROR(IF(AND(AF95=1,AE96=1),1,IF(SUM(AE96:AE98)>=7,1,0)),0) -> 0 | AI96: 1 | AJ96: =IF(AND(AJ95=1,AI96=1),1,IF(SUM(AI96:AI98)>=7,1,0)) -> 0 | AM96: 0 | AN96: =IF(AND(AN95=1,AM96=1),1,IF(SUM(AM96:AM98)>=7,1,0)) -> 0
B97: 2020-01-01 | C97: =IFERROR(IF(GETPIVOTDATA("Value",Pivots_LA!$A$6,"Month",$B97,"Delay reason",$C$19)=0,"",GETPIVOTDATA("Value",Pivots_LA!$A$6,"Month",$B97,"Delay reason",$C$19)),NA()) -> 29511 | D97: 29511 | G97: 24996.76 | H97: 28716.105 | I97: 21277.415 | N97: =B97 -> 2020-01-01 | O97: 4048 | P97: =IF(O97="",P96,AVERAGE(IF($O$74:O$98<>"",$O$74:O$98))) -> 1398.25 | Q97: 3719.345 | R97: 4572.2775 | W97: =IF($D$72>5,NA(),IF(C97>H97,MAX(W$73:$W96)+1,0)) -> 2 | X97: =IF($D$72>5,NA(),IF(C97<I97,MAX(W$73:$W96)+1,0)) -> 0 | Y97: 29511 | AA97: 1 | AB97: =IFERROR(IF(AND(AB96=1,AA97=1),1,IF(SUM(AA97:AA98)>=7,1,0)),0) -> 0 | AE97: 0 | AF97: =IFERROR(IF(AND(AF96=1,AE97=1),1,IF(SUM(AE97:AE98)>=7,1,0)),0) -> 0 | AI97: 1 | AJ97: =IF(AND(AJ96=1,AI97=1),1,IF(SUM(AI97:AI98)>=7,1,0)) -> 0 | AM97: 0 | AN97: =IF(AND(AN96=1,AM97=1),1,IF(SUM(AM97:AM98)>=7,1,0)) -> 0 | AR97: 29511
B98: 2020-02-01 | C98: =IFERROR(IF(GETPIVOTDATA("Value",Pivots_LA!$A$6,"Month",$B98,"Delay reason",$C$19)=0,"",GETPIVOTDATA("Value",Pivots_LA!$A$6,"Month",$B98,"Delay reason",$C$19)),NA()) -> 28473 | D98: 28473 | G98: 24996.76 | H98: 28716.105 | I98: 21277.415 | N98: =B98 -> 2020-02-01 | O98: =IF(D97="","",IF(D98="","",ABS(D97-D98))) -> 1038 | P98: =IF(O98="",P97,AVERAGE(IF($O$74:O$98<>"",$O$74:O$98))) -> 1398.25 | Q98: =IF(ISERROR((P98*2.66)),Q99,(P98*2.66)) -> 3719.345 | R98: =$P98*3.27 -> 4572.2775 | W98: =IF($D$72>5,NA(),IF(C98>H98,MAX(W$73:$W97)+1,0)) -> 0 | X98: =IF($D$72>5,NA(),IF(C98<I98,MAX(W$73:$W97)+1,0)) -> 0 | AA98: 1 | AB98: =IFERROR(IF(AND(AB97=1,AA98=1),1,IF(SUM(AA98)>=7,1,0)),0) -> 0 | AE98: 0 | AF98: =IFERROR(IF(AND(AF97=1,AE98=1),1,IF(SUM(AE98)>=7,1,0)),0) -> 0 | AI98: 0 | AJ98: =IF(AND(AJ97=1,AI98=1),1,IF(SUM(AI98)>=7,1,0)) -> 0 | AM98: 1 | AN98: =IF(AND(AN97=1,AM98=1),1,IF(SUM(AM98)>=7,1,0)) -> 0 | AR98: =IF(OR(W98>0,AB98>0,AJ98>0),C98,NA()) -> 
B100: =C20 -> Dii) Awaiting nursing home placement or availability | D100: Count IF data point is zero
B101: =B33 -> 0 | C101: =ROW() -> 101 | D101: =COUNTIF(D103:D127,0) -> 0 | H101: Upper | I101: Lower | O101: Difference | Q101: Sigma | W101: > 3 | X101: < 3 | AA101: 7 points above/below mean | AI101: Trend up/down | AR101: chart 3
B102: ID (Week no.) | C102: Plot data | D102: Data | G102: Mean | H102: Control limits | I102: control limit (-3) | N102: Date | O102: For. Roll avg | P102: Cumul. Moving Avg. | Q102: 2.66* MR | R102: 3.27*MR | W102: Count | X102: Count | Y102: Above/below 3 sigma | AA102: 7 points > mean | AB102: Count of 7 point | AC102: 7 points above mean | AE102: 7 points <mean | AF102: Count of 7point | AG102: 7 points below mean | AI102: Trend up | AM102: Trend Down | AR102: Concern | AS102: Improvement
B103: =D9 -> 2018-02-01 | C103: =IFERROR(IF(GETPIVOTDATA("Value",Pivots_LA!$A$6,"Month",$B103,"Delay reason",$C$20)=0,"",GETPIVOTDATA("Value",Pivots_LA!$A$6,"Month",$B103,"Delay reason",$C$20)),NA()) -> 19461 | D103: =IFERROR(IF(C103="",0,C103),"") -> 19461 | G103: =AVERAGE($D$103:$D$127) -> 19275 | H103: =IF($D$101>5,NA(),IF(D103="",H102,G103+Q103)) -> 21669.9975 | I103: =IF($D$101>5,NA(),IF(D103="",I102,G103-Q103)) -> 16880.0025 | N103: =B103 -> 2018-02-01 | P103: =IF(O103="",P102,AVERAGE(IF($O$103:O$127<>"",$O$103:O$127))) -> Cumul. Moving Avg. | Q103: =Q104 -> 2394.9975 | R103: =R104 -> 2944.22625 | W103: =IF($D$101>5,NA(),IF(C103>H103,MAX(W$102:$W102)+1,0)) -> 0 | X103: =IF($D$101>5,NA(),IF(C103<I103,MAX(W$102:$W102)+1,0)) -> 0 | Y103: =IF(OR(W103>0,X103>0),C103,NA()) ->  | AA103: =IF($D$101>5,NA(), IF(C103>G103,1,0)) -> 1 | AB103: =IFERROR(IF(AND(AB102=1,AA103=1),1,IF(SUM(AA103:AA109)>=7,1,0)),0) -> 0 | AC103: =IF(AB103=0,NA(),C103) ->  | AE103: =IF($D$101>5,NA(), IF(C103<G103,1,0)) -> 0 | AF103: =IFERROR(IF(AND(AF102=1,AE103=1),1,IF(SUM(AE103:AE109)>=7,1,0)),0) -> 0 | AG103: =IF(AF103=0,NA(),C103) ->  | AI103: =IF($D$101>5,NA(),IF(C103>C102,1,0)) -> 0 | AJ103: =IF(AND(AJ102=1,AI103=1),1,IF(SUM(AI103:AI109)>=7,1,0)) -> 0 | AK103: =IF(AJ103=0,NA(),C103) ->  | AM103: =IF($D$101>5,NA(),IF(C103<C102,1,0)) -> 1 | AN103: =IF(AND(AN102=1,AM103=1),1,IF(SUM(AM103:AM109)>=7,1,0)) -> 0 | AO103: =IF(AN103=0,NA(),C103) ->  | AR103: =IF(OR(W103>0,AB103>0,AJ103>0),C103,NA()) ->  | AS103: =IF(OR(X103>0,AF103>0,AN103>0),C103,NA()) -> 
B104: =IF(DAY(B103+31)=1,B103+31,B103+31-DAY(B103+31)+1) -> 2018-03-01 | C104: =IFERROR(IF(GETPIVOTDATA("Value",Pivots_LA!$A$6,"Month",$B104,"Delay reason",$C$20)=0,"",GETPIVOTDATA("Value",Pivots_LA!$A$6,"Month",$B104,"Delay reason",$C$20)),NA()) -> 20569 | D104: =IFERROR(IF(C104="",0,C104),"") -> 20569 | G104: =AVERAGE($D$103:$D$127) -> 19275 | H104: =IF($D$101>5,NA(),IF(D104="",H103,G104+Q104)) -> 21669.9975 | I104: =IF($D$101>5,NA(),IF(D104="",I103,G104-Q104)) -> 16880.0025 | N104: 2018-03-01 | O104: =IF(D103="","",IF(D104="","",ABS(D103-D104))) -> 1108 | P104: =IF(O104="",P103,AVERAGE(IF($O$103:O$127<>"",$O$103:O$127))) -> 900.375 | Q104: =IF(ISERROR((P104*2.66)),Q105,(P104*2.66)) -> 2394.9975 | R104: =$P104*3.27 -> 2944.22625 | W104: =IF($D$101>5,NA(),IF(C104>H104,MAX(W$102:$W103)+1,0)) -> 0 | X104: =IF($D$101>5,NA(),IF(C104<I104,MAX(W$102:$W103)+1,0)) -> 0 | Y104: =IF(OR(W104>0,X104>0),C104,NA()) ->  | AA104: =IF($D$101>5,NA(), IF(C104>G104,1,0)) -> 1 | AB104: =IFERROR(IF(AND(AB103=1,AA104=1),1,IF(SUM(AA104:AA110)>=7,1,0)),0) -> 0 | AC104: =IF(AB104=0,NA(),C104) ->  | AE104: =IF($D$101>5,NA(), IF(C104<G104,1,0)) -> 0 | AF104: =IFERROR(IF(AND(AF103=1,AE104=1),1,IF(SUM(AE104:AE110)>=7,1,0)),0) -> 0 | AG104: =IF(AF104=0,NA(),C104) ->  | AI104: =IF($D$101>5,NA(),IF(C104>C103,1,0)) -> 1 | AJ104: =IF(AND(AJ103=1,AI104=1),1,IF(SUM(AI104:AI109)>=6,1,0)) -> 0 | AK104: =IF(AJ104=0,NA(),C104) ->  | AM104: =IF($D$101>5,NA(),IF(C104<C103,1,0)) -> 0 | AN104: =IF(AND(AN103=1,AM104=1),1,IF(SUM(AM104:AM110)>=7,1,0)) -> 0 | AO104: =IF(AN104=0,NA(),C104) ->  | AR104: =IF(OR(W104>0,AB104>0,AJ104>0),C104,NA()) ->  | AS104: =IF(OR(X104>0,AF104>0,AN104>0),C104,NA()) -> 
B105: =IF(DAY(B104+31)=1,B104+31,B104+31-DAY(B104+31)+1) -> 2018-04-01 | C105: =IFERROR(IF(GETPIVOTDATA("Value",Pivots_LA!$A$6,"Month",$B105,"Delay reason",$C$20)=0,"",GETPIVOTDATA("Value",Pivots_LA!$A$6,"Month",$B105,"Delay reason",$C$20)),NA()) -> 19803 | D105: 19803 | G105: 19275 | H105: 21669.9975 | I105: 16880.0025 | N105: 2018-04-01 | O105: =IF(D104="","",IF(D105="","",ABS(D104-D105))) -> 766 | P105: =IF(O105="",P104,AVERAGE(IF($O$103:O$127<>"",$O$103:O$127))) -> 900.375 | Q105: =IF(ISERROR((P105*2.66)),Q106,(P105*2.66)) -> 2394.9975 | R105: =$P105*3.27 -> 2944.22625 | W105: =IF($D$101>5,NA(),IF(C105>H105,MAX(W$102:$W104)+1,0)) -> 0 | X105: =IF($D$101>5,NA(),IF(C105<I105,MAX(W$102:$W104)+1,0)) -> 0 | AA105: 1 | AB105: 0 | AE105: 0 | AF105: 0 | AI105: 0 | AJ105: 0 | AM105: 1 | AN105: 0
B106: 2018-05-01 | C106: =IFERROR(IF(GETPIVOTDATA("Value",Pivots_LA!$A$6,"Month",$B106,"Delay reason",$C$20)=0,"",GETPIVOTDATA("Value",Pivots_LA!$A$6,"Month",$B106,"Delay reason",$C$20)),NA()) -> 19173 | D106: 19173 | G106: 19275 | H106: 21669.9975 | I106: 16880.0025 | N106: 2018-05-01 | O106: 630 | P106: =IF(O106="",P105,AVERAGE(IF($O$103:O$127<>"",$O$103:O$127))) -> 900.375 | Q106: =IF(ISERROR((P106*2.66)),Q107,(P106*2.66)) -> 2394.9975 | R106: =$P106*3.27 -> 2944.22625 | W106: =IF($D$101>5,NA(),IF(C106>H106,MAX(W$102:$W105)+1,0)) -> 0 | X106: =IF($D$101>5,NA(),IF(C106<I106,MAX(W$102:$W105)+1,0)) -> 0 | AA106: 0 | AB106: 0 | AE106: 1 | AF106: 0 | AI106: 0 | AJ106: 0 | AM106: 1 | AN106: 0
B107: 2018-06-01 | C107: =IFERROR(IF(GETPIVOTDATA("Value",Pivots_LA!$A$6,"Month",$B107,"Delay reason",$C$20)=0,"",GETPIVOTDATA("Value",Pivots_LA!$A$6,"Month",$B107,"Delay reason",$C$20)),NA()) -> 18511 | D107: 18511 | G107: 19275 | H107: 21669.9975 | I107: 16880.0025 | N107: 2018-06-01 | O107: 662 | P107: =IF(O107="",P106,AVERAGE(IF($O$103:O$127<>"",$O$103:O$127))) -> 900.375 | Q107: =IF(ISERROR((P107*2.66)),Q108,(P107*2.66)) -> 2394.9975 | R107: 2944.22625 | W107: =IF($D$101>5,NA(),IF(C107>H107,MAX(W$102:$W106)+1,0)) -> 0 | X107: =IF($D$101>5,NA(),IF(C107<I107,MAX(W$102:$W106)+1,0)) -> 0 | AA107: 0 | AB107: 0 | AE107: 1 | AF107: 0 | AI107: 0 | AJ107: 0 | AM107: 1 | AN107: 0
B108: 2018-07-01 | C108: =IFERROR(IF(GETPIVOTDATA("Value",Pivots_LA!$A$6,"Month",$B108,"Delay reason",$C$20)=0,"",GETPIVOTDATA("Value",Pivots_LA!$A$6,"Month",$B108,"Delay reason",$C$20)),NA()) -> 19331 | D108: 19331 | G108: 19275 | H108: 21669.9975 | I108: 16880.0025 | N108: 2018-07-01 | O108: 820 | P108: =IF(O108="",P107,AVERAGE(IF($O$103:O$127<>"",$O$103:O$127))) -> 900.375 | Q108: 2394.9975 | R108: 2944.22625 | W108: =IF($D$101>5,NA(),IF(C108>H108,MAX(W$102:$W107)+1,0)) -> 0 | X108: =IF($D$101>5,NA(),IF(C108<I108,MAX(W$102:$W107)+1,0)) -> 0 | AA108: 1 | AB108: 0 | AE108: 0 | AF108: 0 | AI108: 1 | AJ108: 0 | AM108: 0 | AN108: 0
B109: 2018-08-01 | C109: =IFERROR(IF(GETPIVOTDATA("Value",Pivots_LA!$A$6,"Month",$B109,"Delay reason",$C$20)=0,"",GETPIVOTDATA("Value",Pivots_LA!$A$6,"Month",$B109,"Delay reason",$C$20)),NA()) -> 20672 | D109: 20672 | G109: 19275 | H109: 21669.9975 | I109: 16880.0025 | N109: 2018-08-01 | O109: 1341 | P109: =IF(O109="",P108,AVERAGE(IF($O$103:O$127<>"",$O$103:O$127))) -> 900.375 | Q109: 2394.9975 | R109: 2944.22625 | W109: =IF($D$101>5,NA(),IF(C109>H109,MAX(W$102:$W108)+1,0)) -> 0 | X109: =IF($D$101>5,NA(),IF(C109<I109,MAX(W$102:$W108)+1,0)) -> 0 | AA109: 1 | AB109: 0 | AE109: 0 | AF109: 0 | AI109: 1 | AJ109: 0 | AM109: 0 | AN109: 0
B110: 2018-09-01 | C110: =IFERROR(IF(GETPIVOTDATA("Value",Pivots_LA!$A$6,"Month",$B110,"Delay reason",$C$20)=0,"",GETPIVOTDATA("Value",Pivots_LA!$A$6,"Month",$B110,"Delay reason",$C$20)),NA()) -> 21063 | D110: 21063 | G110: 19275 | H110: 21669.9975 | I110: 16880.0025 | N110: 2018-09-01 | O110: 391 | P110: =IF(O110="",P109,AVERAGE(IF($O$103:O$127<>"",$O$103:O$127))) -> 900.375 | Q110: 2394.9975 | R110: 2944.22625 | W110: =IF($D$101>5,NA(),IF(C110>H110,MAX(W$102:$W109)+1,0)) -> 0 | X110: =IF($D$101>5,NA(),IF(C110<I110,MAX(W$102:$W109)+1,0)) -> 0 | AA110: 1 | AB110: 0 | AE110: 0 | AF110: 0 | AI110: 1 | AJ110: 0 | AM110: 0 | AN110: 0
B111: 2018-10-01 | C111: =IFERROR(IF(GETPIVOTDATA("Value",Pivots_LA!$A$6,"Month",$B111,"Delay reason",$C$20)=0,"",GETPIVOTDATA("Value",Pivots_LA!$A$6,"Month",$B111,"Delay reason",$C$20)),NA()) -> 21062 | D111: 21062 | G111: 19275 | H111: 21669.9975 | I111: 16880.0025 | N111: 2018-10-01 | O111: 1 | P111: =IF(O111="",P110,AVERAGE(IF($O$103:O$127<>"",$O$103:O$127))) -> 900.375 | Q111: 2394.9975 | R111: 2944.22625 | W111: =IF($D$101>5,NA(),IF(C111>H111,MAX(W$102:$W110)+1,0)) -> 0 | X111: =IF($D$101>5,NA(),IF(C111<I111,MAX(W$102:$W110)+1,0)) -> 0 | AA111: 1 | AB111: 0 | AE111: 0 | AF111: 0 | AI111: 0 | AJ111: 0 | AM111: 1 | AN111: 0
B112: 2018-11-01 | C112: =IFERROR(IF(GETPIVOTDATA("Value",Pivots_LA!$A$6,"Month",$B112,"Delay reason",$C$20)=0,"",GETPIVOTDATA("Value",Pivots_LA!$A$6,"Month",$B112,"Delay reason",$C$20)),NA()) -> 19943 | D112: 19943 | G112: 19275 | H112: 21669.9975 | I112: 16880.0025 | N112: 2018-11-01 | O112: 1119 | P112: =IF(O112="",P111,AVERAGE(IF($O$103:O$127<>"",$O$103:O$127))) -> 900.375 | Q112: 2394.9975 | R112: 2944.22625 | W112: =IF($D$101>5,NA(),IF(C112>H112,MAX(W$102:$W111)+1,0)) -> 0 | X112: =IF($D$101>5,NA(),IF(C112<I112,MAX(W$102:$W111)+1,0)) -> 0 | AA112: 1 | AB112: 0 | AE112: 0 | AF112: 0 | AI112: 0 | AJ112: 0 | AM112: 1 | AN112: 0
B113: 2018-12-01 | C113: =IFERROR(IF(GETPIVOTDATA("Value",Pivots_LA!$A$6,"Month",$B113,"Delay reason",$C$20)=0,"",GETPIVOTDATA("Value",Pivots_LA!$A$6,"Month",$B113,"Delay reason",$C$20)),NA()) -> 18394 | D113: 18394 | G113: 19275 | H113: 21669.9975 | I113: 16880.0025 | N113: 2018-12-01 | O113: 1549 | P113: =IF(O113="",P112,AVERAGE(IF($O$103:O$127<>"",$O$103:O$127))) -> 900.375 | Q113: 2394.9975 | R113: 2944.22625 | W113: =IF($D$101>5,NA(),IF(C113>H113,MAX(W$102:$W112)+1,0)) -> 0 | X113: =IF($D$101>5,NA(),IF(C113<I113,MAX(W$102:$W112)+1,0)) -> 0 | AA113: 0 | AB113: 0 | AE113: 1 | AF113: 1 | AG113: 18394 | AI113: 0 | AJ113: 0 | AM113: 1 | AN113: 0 | AS113: 18394
B114: 2019-01-01 | C114: =IFERROR(IF(GETPIVOTDATA("Value",Pivots_LA!$A$6,"Month",$B114,"Delay reason",$C$20)=0,"",GETPIVOTDATA("Value",Pivots_LA!$A$6,"Month",$B114,"Delay reason",$C$20)),NA()) -> 17584 | D114: 17584 | G114: 19275 | H114: 21669.9975 | I114: 16880.0025 | N114: 2019-01-01 | O114: 810 | P114: =IF(O114="",P113,AVERAGE(IF($O$103:O$127<>"",$O$103:O$127))) -> 900.375 | Q114: 2394.9975 | R114: 2944.22625 | W114: =IF($D$101>5,NA(),IF(C114>H114,MAX(W$102:$W113)+1,0)) -> 0 | X114: =IF($D$101>5,NA(),IF(C114<I114,MAX(W$102:$W113)+1,0)) -> 0 | AA114: 0 | AB114: 0 | AE114: 1 | AF114: 1 | AG114: 17584 | AI114: 0 | AJ114: 0 | AM114: 1 | AN114: 0 | AS114: 17584
B115: 2019-02-01 | C115: =IFERROR(IF(GETPIVOTDATA("Value",Pivots_LA!$A$6,"Month",$B115,"Delay reason",$C$20)=0,"",GETPIVOTDATA("Value",Pivots_LA!$A$6,"Month",$B115,"Delay reason",$C$20)),NA()) -> 17459 | D115: 17459 | G115: 19275 | H115: 21669.9975 | I115: 16880.0025 | N115: 2019-02-01 | O115: 125 | P115: =IF(O115="",P114,AVERAGE(IF($O$103:O$127<>"",$O$103:O$127))) -> 900.375 | Q115: 2394.9975 | R115: 2944.22625 | W115: =IF($D$101>5,NA(),IF(C115>H115,MAX(W$102:$W114)+1,0)) -> 0 | X115: =IF($D$101>5,NA(),IF(C115<I115,MAX(W$102:$W114)+1,0)) -> 0 | AA115: 0 | AB115: 0 | AE115: 1 | AF115: 1 | AG115: 17459 | AI115: 0 | AJ115: 0 | AM115: 1 | AN115: 0 | AS115: 17459
B116: 2019-03-01 | C116: =IFERROR(IF(GETPIVOTDATA("Value",Pivots_LA!$A$6,"Month",$B116,"Delay reason",$C$20)=0,"",GETPIVOTDATA("Value",Pivots_LA!$A$6,"Month",$B116,"Delay reason",$C$20)),NA()) -> 18380 | D116: 18380 | G116: 19275 | H116: 21669.9975 | I116: 16880.0025 | N116: 2019-03-01 | O116: 921 | P116: =IF(O116="",P115,AVERAGE(IF($O$103:O$127<>"",$O$103:O$127))) -> 900.375 | Q116: 2394.9975 | R116: 2944.22625 | W116: =IF($D$101>5,NA(),IF(C116>H116,MAX(W$102:$W115)+1,0)) -> 0 | X116: =IF($D$101>5,NA(),IF(C116<I116,MAX(W$102:$W115)+1,0)) -> 0 | AA116: 0 | AB116: 0 | AE116: 1 | AF116: 1 | AG116: 18380 | AI116: 1 | AJ116: 0 | AM116: 0 | AN116: 0 | AS116: 18380
B117: 2019-04-01 | C117: =IFERROR(IF(GETPIVOTDATA("Value",Pivots_LA!$A$6,"Month",$B117,"Delay reason",$C$20)=0,"",GETPIVOTDATA("Value",Pivots_LA!$A$6,"Month",$B117,"Delay reason",$C$20)),NA()) -> 17100 | D117: 17100 | G117: 19275 | H117: 21669.9975 | I117: 16880.0025 | N117: 2019-04-01 | O117: 1280 | P117: =IF(O117="",P116,AVERAGE(IF($O$103:O$127<>"",$O$103:O$127))) -> 900.375 | Q117: 2394.9975 | R117: 2944.22625 | W117: =IF($D$101>5,NA(),IF(C117>H117,MAX(W$102:$W116)+1,0)) -> 0 | X117: =IF($D$101>5,NA(),IF(C117<I117,MAX(W$102:$W116)+1,0)) -> 0 | AA117: 0 | AB117: 0 | AE117: 1 | AF117: 1 | AG117: 17100 | AI117: 0 | AJ117: 0 | AM117: 1 | AN117: 0 | AS117: 17100
B118: 2019-05-01 | C118: =IFERROR(IF(GETPIVOTDATA("Value",Pivots_LA!$A$6,"Month",$B118,"Delay reason",$C$20)=0,"",GETPIVOTDATA("Value",Pivots_LA!$A$6,"Month",$B118,"Delay reason",$C$20)),NA()) -> 16902 | D118: 16902 | G118: 19275 | H118: 21669.9975 | I118: 16880.0025 | N118: 2019-05-01 | O118: 198 | P118: =IF(O118="",P117,AVERAGE(IF($O$103:O$127<>"",$O$103:O$127))) -> 900.375 | Q118: 2394.9975 | R118: 2944.22625 | W118: =IF($D$101>5,NA(),IF(C118>H118,MAX(W$102:$W117)+1,0)) -> 0 | X118: =IF($D$101>5,NA(),IF(C118<I118,MAX(W$102:$W117)+1,0)) -> 0 | AA118: 0 | AB118: 0 | AE118: 1 | AF118: 1 | AG118: 16902 | AI118: 0 | AJ118: 0 | AM118: 1 | AN118: 0 | AS118: 16902
B119: 2019-06-01 | C119: =IFERROR(IF(GETPIVOTDATA("Value",Pivots_LA!$A$6,"Month",$B119,"Delay reason",$C$20)=0,"",GETPIVOTDATA("Value",Pivots_LA!$A$6,"Month",$B119,"Delay reason",$C$20)),NA()) -> 17182 | D119: 17182 | G119: 19275 | H119: 21669.9975 | I119: 16880.0025 | N119: 2019-06-01 | O119: 280 | P119: =IF(O119="",P118,AVERAGE(IF($O$103:O$127<>"",$O$103:O$127))) -> 900.375 | Q119: 2394.9975 | R119: 2944.22625 | W119: =IF($D$101>5,NA(),IF(C119>H119,MAX(W$102:$W118)+1,0)) -> 0 | X119: =IF($D$101>5,NA(),IF(C119<I119,MAX(W$102:$W118)+1,0)) -> 0 | AA119: 0 | AB119: 0 | AE119: 1 | AF119: 1 | AG119: 17182 | AI119: 1 | AJ119: 0 | AM119: 0 | AN119: 0 | AS119: 17182
B120: 2019-07-01 | C120: =IFERROR(IF(GETPIVOTDATA("Value",Pivots_LA!$A$6,"Month",$B120,"Delay reason",$C$20)=0,"",GETPIVOTDATA("Value",Pivots_LA!$A$6,"Month",$B120,"Delay reason",$C$20)),NA()) -> 18897 | D120: 18897 | G120: 19275 | H120: 21669.9975 | I120: 16880.0025 | N120: 2019-07-01 | O120: 1715 | P120: =IF(O120="",P119,AVERAGE(IF($O$103:O$127<>"",$O$103:O$127))) -> 900.375 | Q120: 2394.9975 | R120: 2944.22625 | W120: =IF($D$101>5,NA(),IF(C120>H120,MAX(W$102:$W119)+1,0)) -> 0 | X120: =IF($D$101>5,NA(),IF(C120<I120,MAX(W$102:$W119)+1,0)) -> 0 | AA120: 0 | AB120: 0 | AE120: 1 | AF120: =IFERROR(IF(AND(AF119=1,AE120=1),1,IF(SUM(AE120:AE126)>=7,1,0)),0) -> 1 | AG120: 18897 | AI120: 1 | AJ120: 0 | AM120: 0 | AN120: 0 | AS120: 18897
B121: 2019-08-01 | C121: =IFERROR(IF(GETPIVOTDATA("Value",Pivots_LA!$A$6,"Month",$B121,"Delay reason",$C$20)=0,"",GETPIVOTDATA("Value",Pivots_LA!$A$6,"Month",$B121,"Delay reason",$C$20)),NA()) -> 20054 | D121: 20054 | G121: 19275 | H121: 21669.9975 | I121: 16880.0025 | N121: 2019-08-01 | O121: 1157 | P121: =IF(O121="",P120,AVERAGE(IF($O$103:O$127<>"",$O$103:O$127))) -> 900.375 | Q121: 2394.9975 | R121: 2944.22625 | W121: =IF($D$101>5,NA(),IF(C121>H121,MAX(W$102:$W120)+1,0)) -> 0 | X121: =IF($D$101>5,NA(),IF(C121<I121,MAX(W$102:$W120)+1,0)) -> 0 | AA121: 1 | AB121: 0 | AE121: 0 | AF121: =IFERROR(IF(AND(AF120=1,AE121=1),1,IF(SUM(AE121:AE127)>=7,1,0)),0) -> 0 | AI121: 1 | AJ121: 0 | AM121: 0 | AN121: 0
B122: 2019-09-01 | C122: =IFERROR(IF(GETPIVOTDATA("Value",Pivots_LA!$A$6,"Month",$B122,"Delay reason",$C$20)=0,"",GETPIVOTDATA("Value",Pivots_LA!$A$6,"Month",$B122,"Delay reason",$C$20)),NA()) -> 19432 | D122: 19432 | G122: =AVERAGE($D$103:$D$127) -> 19275 | H122: 21669.9975 | I122: 16880.0025 | N122: 2019-09-01 | O122: 622 | P122: =IF(O122="",P121,AVERAGE(IF($O$103:O$127<>"",$O$103:O$127))) -> 900.375 | Q122: 2394.9975 | R122: 2944.22625 | W122: =IF($D$101>5,NA(),IF(C122>H122,MAX(W$102:$W121)+1,0)) -> 0 | X122: =IF($D$101>5,NA(),IF(C122<I122,MAX(W$102:$W121)+1,0)) -> 0 | AA122: 1 | AB122: =IFERROR(IF(AND(AB121=1,AA122=1),1,IF(SUM(AA122:AA127)>=7,1,0)),0) -> 0 | AE122: 0 | AF122: =IFERROR(IF(AND(AF121=1,AE122=1),1,IF(SUM(AE122:AE127)>=7,1,0)),0) -> 0 | AI122: 0 | AJ122: 0 | AM122: 1 | AN122: 0
B123: 2019-10-01 | C123: =IFERROR(IF(GETPIVOTDATA("Value",Pivots_LA!$A$6,"Month",$B123,"Delay reason",$C$20)=0,"",GETPIVOTDATA("Value",Pivots_LA!$A$6,"Month",$B123,"Delay reason",$C$20)),NA()) -> 21881 | D123: 21881 | G123: 19275 | H123: 21669.9975 | I123: 16880.0025 | N123: 2019-10-01 | O123: 2449 | P123: =IF(O123="",P122,AVERAGE(IF($O$103:O$127<>"",$O$103:O$127))) -> 900.375 | Q123: 2394.9975 | R123: 2944.22625 | W123: =IF($D$101>5,NA(),IF(C123>H123,MAX(W$102:$W122)+1,0)) -> 1 | X123: =IF($D$101>5,NA(),IF(C123<I123,MAX(W$102:$W122)+1,0)) -> 0 | Y123: 21881 | AA123: 1 | AB123: =IFERROR(IF(AND(AB122=1,AA123=1),1,IF(SUM(AA123:AA127)>=7,1,0)),0) -> 0 | AE123: 0 | AF123: =IFERROR(IF(AND(AF122=1,AE123=1),1,IF(SUM(AE123:AE127)>=7,1,0)),0) -> 0 | AI123: 1 | AJ123: 0 | AM123: 0 | AN123: 0 | AR123: 21881
B124: 2019-11-01 | C124: =IFERROR(IF(GETPIVOTDATA("Value",Pivots_LA!$A$6,"Month",$B124,"Delay reason",$C$20)=0,"",GETPIVOTDATA("Value",Pivots_LA!$A$6,"Month",$B124,"Delay reason",$C$20)),NA()) -> 19885 | D124: 19885 | G124: 19275 | H124: 21669.9975 | I124: 16880.0025 | N124: 2019-11-01 | O124: 1996 | P124: =IF(O124="",P123,AVERAGE(IF($O$103:O$127<>"",$O$103:O$127))) -> 900.375 | Q124: 2394.9975 | R124: 2944.22625 | W124: =IF($D$101>5,NA(),IF(C124>H124,MAX(W$102:$W123)+1,0)) -> 0 | X124: =IF($D$101>5,NA(),IF(C124<I124,MAX(W$102:$W123)+1,0)) -> 0 | AA124: 1 | AB124: =IFERROR(IF(AND(AB123=1,AA124=1),1,IF(SUM(AA124:AA130)>=7,1,0)),0) -> 0 | AE124: 0 | AF124: =IFERROR(IF(AND(AF123=1,AE124=1),1,IF(SUM(AE124:AE127)>=7,1,0)),0) -> 0 | AI124: 0 | AJ124: =IF(AND(AJ123=1,AI124=1),1,IF(SUM(AI124:AI127)>=6,1,0)) -> 0 | AM124: 1 | AN124: =IF(AND(AN123=1,AM124=1),1,IF(SUM(AM124:AM127)>=7,1,0)) -> 0
B125: 2019-12-01 | C125: =IFERROR(IF(GETPIVOTDATA("Value",Pivots_LA!$A$6,"Month",$B125,"Delay reason",$C$20)=0,"",GETPIVOTDATA("Value",Pivots_LA!$A$6,"Month",$B125,"Delay reason",$C$20)),NA()) -> 19251 | D125: 19251 | G125: 19275 | H125: 21669.9975 | I125: 16880.0025 | N125: 2019-12-01 | O125: 634 | P125: =IF(O125="",P124,AVERAGE(IF($O$103:O$127<>"",$O$103:O$127))) -> 900.375 | Q125: 2394.9975 | R125: 2944.22625 | W125: =IF($D$101>5,NA(),IF(C125>H125,MAX(W$102:$W124)+1,0)) -> 0 | X125: =IF($D$101>5,NA(),IF(C125<I125,MAX(W$102:$W124)+1,0)) -> 0 | AA125: 0 | AB125: =IFERROR(IF(AND(AB124=1,AA125=1),1,IF(SUM(AA125:AA127)>=7,1,0)),0) -> 0 | AE125: 1 | AF125: =IFERROR(IF(AND(AF124=1,AE125=1),1,IF(SUM(AE125:AE127)>=7,1,0)),0) -> 0 | AI125: 0 | AJ125: =IF(AND(AJ124=1,AI125=1),1,IF(SUM(AI125:AI127)>=6,1,0)) -> 0 | AM125: 1 | AN125: =IF(AND(AN124=1,AM125=1),1,IF(SUM(AM125:AM127)>=7,1,0)) -> 0
B126: 2020-01-01 | C126: =IFERROR(IF(GETPIVOTDATA("Value",Pivots_LA!$A$6,"Month",$B126,"Delay reason",$C$20)=0,"",GETPIVOTDATA("Value",Pivots_LA!$A$6,"Month",$B126,"Delay reason",$C$20)),NA()) -> 19600 | D126: 19600 | G126: 19275 | H126: 21669.9975 | I126: 16880.0025 | N126: =B126 -> 2020-01-01 | O126: 349 | P126: =IF(O126="",P125,AVERAGE(IF($O$103:O$127<>"",$O$103:O$127))) -> 900.375 | Q126: 2394.9975 | R126: 2944.22625 | W126: =IF($D$101>5,NA(),IF(C126>H126,MAX(W$102:$W125)+1,0)) -> 0 | X126: =IF($D$101>5,NA(),IF(C126<I126,MAX(W$102:$W125)+1,0)) -> 0 | AA126: 1 | AB126: =IFERROR(IF(AND(AB125=1,AA126=1),1,IF(SUM(AA126:AA127)>=7,1,0)),0) -> 0 | AE126: 0 | AF126: =IFERROR(IF(AND(AF125=1,AE126=1),1,IF(SUM(AE126:AE127)>=7,1,0)),0) -> 0 | AI126: 1 | AJ126: =IF(AND(AJ125=1,AI126=1),1,IF(SUM(AI126:AI127)>=6,1,0)) -> 0 | AM126: 0 | AN126: =IF(AND(AN125=1,AM126=1),1,IF(SUM(AM126:AM127)>=7,1,0)) -> 0
B127: 2020-02-01 | C127: =IFERROR(IF(GETPIVOTDATA("Value",Pivots_LA!$A$6,"Month",$B127,"Delay reason",$C$20)=0,"",GETPIVOTDATA("Value",Pivots_LA!$A$6,"Month",$B127,"Delay reason",$C$20)),NA()) -> 20286 | D127: 20286 | G127: 19275 | H127: 21669.9975 | I127: 16880.0025 | N127: =B127 -> 2020-02-01 | O127: =IF(D126="","",IF(D127="","",ABS(D126-D127))) -> 686 | P127: =IF(O127="",P126,AVERAGE(IF($O$103:O$127<>"",$O$103:O$127))) -> 900.375 | Q127: =IF(ISERROR((P127*2.66)),Q128,(P127*2.66)) -> 2394.9975 | R127: =$P127*3.27 -> 2944.22625 | W127: =IF($D$101>5,NA(),IF(C127>H127,MAX(W$102:$W126)+1,0)) -> 0 | X127: =IF($D$101>5,NA(),IF(C127<I127,MAX(W$102:$W126)+1,0)) -> 0 | AA127: 1 | AB127: =IFERROR(IF(AND(AB126=1,AA127=1),1,IF(SUM(AA127)>=7,1,0)),0) -> 0 | AE127: 0 | AF127: =IFERROR(IF(AND(AF126=1,AE127=1),1,IF(SUM(AE127)>=7,1,0)),0) -> 0 | AI127: 1 | AJ127: =IF(AND(AJ126=1,AI127=1),1,IF(SUM(AI127)>=6,1,0)) -> 0 | AM127: 0 | AN127: =IF(AND(AN126=1,AM127=1),1,IF(SUM(AM127)>=7,1,0)) -> 0 | AR127: =IF(OR(W127>0,AB127>0,AJ127>0),C127,NA()) -> 
B129: =C21 -> A) Awaiting completion of assessment | D129: Count IF data point is zero
B130: =B34 -> 0 | C130: =ROW() -> 130 | D130: =COUNTIF(D132:D156,0) -> 0 | H130: Upper | I130: Lower | O130: Difference | Q130: Sigma | W130: > 3 | X130: < 3 | AA130: 7 points above/below mean | AI130: Trend up/down | AR130: chart 4
B131: ID (Week no.) | C131: Plot data | D131: Data | G131: Mean | H131: Control limits | I131: control limit (-3) | N131: Date | O131: For. Roll avg | P131: Cumul. Moving Avg. | Q131: 2.66* MR | R131: 3.27*MR | W131: Count | X131: Count | Y131: Above/below 3 sigma | AA131: 7 points > mean | AB131: Count of 7 point | AC131: 7 points above mean | AE131: 7 points <mean | AF131: Count of 7point | AG131: 7 points below mean | AI131: Trend up | AM131: Trend Down | AR131: Concern | AS131: Improvement
B132: =$D$9 -> 2018-02-01 | C132: =IFERROR(IF(GETPIVOTDATA("Value",Pivots_LA!$A$6,"Month",$B132,"Delay reason",$C$21)=0,"",GETPIVOTDATA("Value",Pivots_LA!$A$6,"Month",$B132,"Delay reason",$C$21)),NA()) -> 17748 | D132: =IFERROR(IF(C132="",0,C132),"") -> 17748 | G132: =AVERAGE($D$132:$D$156) -> 16831 | H132: =IF($D$130>5,NA(),IF(D132="",H131,G132+Q132)) -> 19959.93583 | I132: =IF($D$130>5,NA(),IF(D132="",I131,G132-Q132)) -> 13702.06417 | N132: =B132 -> 2018-02-01 | P132: =IF(O132="",P131,AVERAGE(IF($O$132:O$156<>"",$O$132:O$156))) -> Cumul. Moving Avg. | Q132: =Q133 -> 3128.935833 | R132: =R133 -> 3846.47375 | W132: =IF($D$130>5,NA(),IF(C132>H132,MAX(W131:$W$131)+1,0)) -> 0 | X132: =IF($D$130>5,NA(),IF(C132<I132,MAX(W131:$W$131)+1,0)) -> 0 | Y132: =IF(OR(W132>0,X132>0),C132,NA()) ->  | AA132: =IF($D$130>5,NA(), IF(C132>G132,1,0)) -> 1 | AB132: =IFERROR(IF(AND(AB131=1,AA132=1),1,IF(SUM(AA132:AA138)>=7,1,0)),0) -> 0 | AC132: =IF(AB132=0,NA(),C132) ->  | AE132: =IF($D$130>5,NA(), IF(C132<G132,1,0)) -> 0 | AF132: =IFERROR(IF(AND(AF131=1,AE132=1),1,IF(SUM(AE132:AE138)>=7,1,0)),0) -> 0 | AG132: =IF(AF132=0,NA(),C132) ->  | AI132: =IF($D$130>5,NA(),IF(C132>C131,1,0)) -> 0 | AJ132: =IF(AND(AJ131=1,AI132=1),1,IF(SUM(AI132:AI138)>=7,1,0)) -> 0 | AK132: =IF(AJ132=0,NA(),C132) ->  | AM132: =IF($D$130>5,NA(),IF(C132<C131,1,0)) -> 1 | AN132: =IF(AND(AN131=1,AM132=1),1,IF(SUM(AM132:AM138)>=7,1,0)) -> 0 | AO132: =IF(AN132=0,NA(),C132) ->  | AR132: =IF(OR(W132>0,AB132>0,AJ132>0),C132,NA()) ->  | AS132: =IF(OR(X132>0,AF132>0,AN132>0),C132,NA()) -> 
B133: =IF(DAY(B132+31)=1,B132+31,B132+31-DAY(B132+31)+1) -> 2018-03-01 | C133: =IFERROR(IF(GETPIVOTDATA("Value",Pivots_LA!$A$6,"Month",$B133,"Delay reason",$C$21)=0,"",GETPIVOTDATA("Value",Pivots_LA!$A$6,"Month",$B133,"Delay reason",$C$21)),NA()) -> 18643 | D133: =IFERROR(IF(C133="",0,C133),"") -> 18643 | G133: =AVERAGE($D$132:$D$156) -> 16831 | H133: =IF($D$130>5,NA(),IF(D133="",H132,G133+Q133)) -> 19959.93583 | I133: =IF($D$130>5,NA(),IF(D133="",I132,G133-Q133)) -> 13702.06417 | N133: 2018-03-01 | O133: =IF(D132="","",IF(D133="","",ABS(D132-D133))) -> 895 | P133: =IF(O133="",P132,AVERAGE(IF($O$132:O$156<>"",$O$132:O$156))) -> 1176.291667 | Q133: =IF(ISERROR((P133*2.66)),Q134,(P133*2.66)) -> 3128.935833 | R133: =$P133*3.27 -> 3846.47375 | W133: =IF($D$130>5,NA(),IF(C133>H133,MAX(W$131:$W132)+1,0)) -> 0 | X133: =IF($D$130>5,NA(),IF(C133<I133,MAX(W$131:$W132)+1,0)) -> 0 | Y133: =IF(OR(W133>0,X133>0),C133,NA()) ->  | AA133: =IF($D$130>5,NA(), IF(C133>G133,1,0)) -> 1 | AB133: =IFERROR(IF(AND(AB132=1,AA133=1),1,IF(SUM(AA133:AA139)>=7,1,0)),0) -> 0 | AC133: =IF(AB133=0,NA(),C133) ->  | AE133: =IF($D$130>5,NA(), IF(C133<G133,1,0)) -> 0 | AF133: =IFERROR(IF(AND(AF132=1,AE133=1),1,IF(SUM(AE133:AE139)>=7,1,0)),0) -> 0 | AG133: =IF(AF133=0,NA(),C133) ->  | AI133: =IF($D$130>5,NA(),IF(C133>C132,1,0)) -> 1 | AJ133: =IF(AND(AJ132=1,AI133=1),1,IF(SUM(AI133:AI139)>=7,1,0)) -> 0 | AK133: =IF(AJ133=0,NA(),C133) ->  | AM133: =IF($D$130>5,NA(),IF(C133<C132,1,0)) -> 0 | AN133: =IF(AND(AN132=1,AM133=1),1,IF(SUM(AM133:AM139)>=7,1,0)) -> 0 | AO133: =IF(AN133=0,NA(),C133) ->  | AR133: =IF(OR(W133>0,AB133>0,AJ133>0),C133,NA()) ->  | AS133: =IF(OR(X133>0,AF133>0,AN133>0),C133,NA()) -> 
B134: =IF(DAY(B133+31)=1,B133+31,B133+31-DAY(B133+31)+1) -> 2018-04-01 | C134: =IFERROR(IF(GETPIVOTDATA("Value",Pivots_LA!$A$6,"Month",$B134,"Delay reason",$C$21)=0,"",GETPIVOTDATA("Value",Pivots_LA!$A$6,"Month",$B134,"Delay reason",$C$21)),NA()) -> 16858 | D134: 16858 | G134: 16831 | H134: 19959.93583 | I134: 13702.06417 | N134: 2018-04-01 | O134: =IF(D133="","",IF(D134="","",ABS(D133-D134))) -> 1785 | P134: =IF(O134="",P133,AVERAGE(IF($O$132:O$156<>"",$O$132:O$156))) -> 1176.291667 | Q134: =IF(ISERROR((P134*2.66)),Q135,(P134*2.66)) -> 3128.935833 | R134: =$P134*3.27 -> 3846.47375 | W134: =IF($D$130>5,NA(),IF(C134>H134,MAX(W$131:$W133)+1,0)) -> 0 | X134: =IF($D$130>5,NA(),IF(C134<I134,MAX(W$131:$W133)+1,0)) -> 0 | AA134: 1 | AB134: 0 | AE134: 0 | AF134: 0 | AI134: 0 | AJ134: 0 | AM134: 1 | AN134: 0
B135: 2018-05-01 | C135: =IFERROR(IF(GETPIVOTDATA("Value",Pivots_LA!$A$6,"Month",$B135,"Delay reason",$C$21)=0,"",GETPIVOTDATA("Value",Pivots_LA!$A$6,"Month",$B135,"Delay reason",$C$21)),NA()) -> 16111 | D135: 16111 | G135: 16831 | H135: 19959.93583 | I135: 13702.06417 | N135: 2018-05-01 | O135: 747 | P135: =IF(O135="",P134,AVERAGE(IF($O$132:O$156<>"",$O$132:O$156))) -> 1176.291667 | Q135: =IF(ISERROR((P135*2.66)),Q136,(P135*2.66)) -> 3128.935833 | R135: =$P135*3.27 -> 3846.47375 | W135: =IF($D$130>5,NA(),IF(C135>H135,MAX(W$131:$W134)+1,0)) -> 0 | X135: =IF($D$130>5,NA(),IF(C135<I135,MAX(W$131:$W134)+1,0)) -> 0 | AA135: 0 | AB135: 0 | AE135: =IF($D$130>5,NA(), IF(C135<G135,1,0)) -> 1 | AF135: 0 | AI135: 0 | AJ135: 0 | AM135: 1 | AN135: 0
B136: 2018-06-01 | C136: =IFERROR(IF(GETPIVOTDATA("Value",Pivots_LA!$A$6,"Month",$B136,"Delay reason",$C$21)=0,"",GETPIVOTDATA("Value",Pivots_LA!$A$6,"Month",$B136,"Delay reason",$C$21)),NA()) -> 15083 | D136: 15083 | G136: 16831 | H136: 19959.93583 | I136: 13702.06417 | N136: 2018-06-01 | O136: 1028 | P136: =IF(O136="",P135,AVERAGE(IF($O$132:O$156<>"",$O$132:O$156))) -> 1176.291667 | Q136: =IF(ISERROR((P136*2.66)),Q137,(P136*2.66)) -> 3128.935833 | R136: 3846.47375 | W136: =IF($D$130>5,NA(),IF(C136>H136,MAX(W$131:$W135)+1,0)) -> 0 | X136: =IF($D$130>5,NA(),IF(C136<I136,MAX(W$131:$W135)+1,0)) -> 0 | AA136: 0 | AB136: 0 | AE136: 1 | AF136: 0 | AI136: 0 | AJ136: 0 | AM136: 1 | AN136: 0
B137: 2018-07-01 | C137: =IFERROR(IF(GETPIVOTDATA("Value",Pivots_LA!$A$6,"Month",$B137,"Delay reason",$C$21)=0,"",GETPIVOTDATA("Value",Pivots_LA!$A$6,"Month",$B137,"Delay reason",$C$21)),NA()) -> 15807 | D137: 15807 | G137: 16831 | H137: 19959.93583 | I137: 13702.06417 | N137: 2018-07-01 | O137: 724 | P137: =IF(O137="",P136,AVERAGE(IF($O$132:O$156<>"",$O$132:O$156))) -> 1176.291667 | Q137: 3128.935833 | R137: 3846.47375 | W137: =IF($D$130>5,NA(),IF(C137>H137,MAX(W$131:$W136)+1,0)) -> 0 | X137: =IF($D$130>5,NA(),IF(C137<I137,MAX(W$131:$W136)+1,0)) -> 0 | AA137: 0 | AB137: 0 | AE137: 1 | AF137: 0 | AI137: 1 | AJ137: 0 | AM137: 0 | AN137: 0
B138: 2018-08-01 | C138: =IFERROR(IF(GETPIVOTDATA("Value",Pivots_LA!$A$6,"Month",$B138,"Delay reason",$C$21)=0,"",GETPIVOTDATA("Value",Pivots_LA!$A$6,"Month",$B138,"Delay reason",$C$21)),NA()) -> 16740 | D138: 16740 | G138: 16831 | H138: 19959.93583 | I138: 13702.06417 | N138: 2018-08-01 | O138: 933 | P138: =IF(O138="",P137,AVERAGE(IF($O$132:O$156<>"",$O$132:O$156))) -> 1176.291667 | Q138: 3128.935833 | R138: 3846.47375 | W138: =IF($D$130>5,NA(),IF(C138>H138,MAX(W$131:$W137)+1,0)) -> 0 | X138: =IF($D$130>5,NA(),IF(C138<I138,MAX(W$131:$W137)+1,0)) -> 0 | Y138: =IF(OR(W138>0,X138>0),C138,NA()) ->  | AA138: 0 | AB138: 0 | AE138: 1 | AF138: 0 | AI138: 1 | AJ138: 0 | AM138: 0 | AN138: 0
B139: 2018-09-01 | C139: =IFERROR(IF(GETPIVOTDATA("Value",Pivots_LA!$A$6,"Month",$B139,"Delay reason",$C$21)=0,"",GETPIVOTDATA("Value",Pivots_LA!$A$6,"Month",$B139,"Delay reason",$C$21)),NA()) -> 17079 | D139: 17079 | G139: 16831 | H139: 19959.93583 | I139: 13702.06417 | N139: 2018-09-01 | O139: 339 | P139: =IF(O139="",P138,AVERAGE(IF($O$132:O$156<>"",$O$132:O$156))) -> 1176.291667 | Q139: 3128.935833 | R139: =$P139*3.27 -> 3846.47375 | W139: =IF($D$130>5,NA(),IF(C139>H139,MAX(W$131:$W138)+1,0)) -> 0 | X139: =IF($D$130>5,NA(),IF(C139<I139,MAX(W$131:$W138)+1,0)) -> 0 | AA139: 1 | AB139: 0 | AE139: 0 | AF139: 0 | AI139: 1 | AJ139: 0 | AM139: 0 | AN139: 0
B140: 2018-10-01 | C140: =IFERROR(IF(GETPIVOTDATA("Value",Pivots_LA!$A$6,"Month",$B140,"Delay reason",$C$21)=0,"",GETPIVOTDATA("Value",Pivots_LA!$A$6,"Month",$B140,"Delay reason",$C$21)),NA()) -> 16538 | D140: 16538 | G140: 16831 | H140: 19959.93583 | I140: 13702.06417 | N140: 2018-10-01 | O140: 541 | P140: =IF(O140="",P139,AVERAGE(IF($O$132:O$156<>"",$O$132:O$156))) -> 1176.291667 | Q140: 3128.935833 | R140: 3846.47375 | W140: =IF($D$130>5,NA(),IF(C140>H140,MAX(W$131:$W139)+1,0)) -> 0 | X140: =IF($D$130>5,NA(),IF(C140<I140,MAX(W$131:$W139)+1,0)) -> 0 | AA140: 0 | AB140: 0 | AE140: 1 | AF140: 1 | AG140: 16538 | AI140: 0 | AJ140: 0 | AM140: 1 | AN140: 0 | AS140: 16538
B141: 2018-11-01 | C141: =IFERROR(IF(GETPIVOTDATA("Value",Pivots_LA!$A$6,"Month",$B141,"Delay reason",$C$21)=0,"",GETPIVOTDATA("Value",Pivots_LA!$A$6,"Month",$B141,"Delay reason",$C$21)),NA()) -> 13739 | D141: 13739 | G141: 16831 | H141: 19959.93583 | I141: 13702.06417 | N141: 2018-11-01 | O141: 2799 | P141: =IF(O141="",P140,AVERAGE(IF($O$132:O$156<>"",$O$132:O$156))) -> 1176.291667 | Q141: 3128.935833 | R141: 3846.47375 | W141: =IF($D$130>5,NA(),IF(C141>H141,MAX(W$131:$W140)+1,0)) -> 0 | X141: =IF($D$130>5,NA(),IF(C141<I141,MAX(W$131:$W140)+1,0)) -> 0 | AA141: 0 | AB141: 0 | AE141: 1 | AF141: 1 | AG141: 13739 | AI141: 0 | AJ141: 0 | AM141: 1 | AN141: 0 | AS141: 13739
B142: 2018-12-01 | C142: =IFERROR(IF(GETPIVOTDATA("Value",Pivots_LA!$A$6,"Month",$B142,"Delay reason",$C$21)=0,"",GETPIVOTDATA("Value",Pivots_LA!$A$6,"Month",$B142,"Delay reason",$C$21)),NA()) -> 13983 | D142: 13983 | G142: 16831 | H142: 19959.93583 | I142: 13702.06417 | N142: 2018-12-01 | O142: 244 | P142: =IF(O142="",P141,AVERAGE(IF($O$132:O$156<>"",$O$132:O$156))) -> 1176.291667 | Q142: 3128.935833 | R142: 3846.47375 | W142: =IF($D$130>5,NA(),IF(C142>H142,MAX(W$131:$W141)+1,0)) -> 0 | X142: =IF($D$130>5,NA(),IF(C142<I142,MAX(W$131:$W141)+1,0)) -> 0 | AA142: 0 | AB142: 0 | AE142: 1 | AF142: 1 | AG142: 13983 | AI142: 1 | AJ142: 0 | AM142: 0 | AN142: 0 | AS142: 13983
B143: 2019-01-01 | C143: =IFERROR(IF(GETPIVOTDATA("Value",Pivots_LA!$A$6,"Month",$B143,"Delay reason",$C$21)=0,"",GETPIVOTDATA("Value",Pivots_LA!$A$6,"Month",$B143,"Delay reason",$C$21)),NA()) -> 15811 | D143: 15811 | G143: 16831 | H143: 19959.93583 | I143: 13702.06417 | N143: 2019-01-01 | O143: 1828 | P143: =IF(O143="",P142,AVERAGE(IF($O$132:O$156<>"",$O$132:O$156))) -> 1176.291667 | Q143: 3128.935833 | R143: 3846.47375 | W143: =IF($D$130>5,NA(),IF(C143>H143,MAX(W$131:$W142)+1,0)) -> 0 | X143: =IF($D$130>5,NA(),IF(C143<I143,MAX(W$131:$W142)+1,0)) -> 0 | AA143: 0 | AB143: 0 | AE143: 1 | AF143: 1 | AG143: 15811 | AI143: 1 | AJ143: 0 | AM143: 0 | AN143: 0 | AS143: 15811
B144: 2019-02-01 | C144: =IFERROR(IF(GETPIVOTDATA("Value",Pivots_LA!$A$6,"Month",$B144,"Delay reason",$C$21)=0,"",GETPIVOTDATA("Value",Pivots_LA!$A$6,"Month",$B144,"Delay reason",$C$21)),NA()) -> 14266 | D144: 14266 | G144: 16831 | H144: 19959.93583 | I144: 13702.06417 | N144: 2019-02-01 | O144: 1545 | P144: =IF(O144="",P143,AVERAGE(IF($O$132:O$156<>"",$O$132:O$156))) -> 1176.291667 | Q144: 3128.935833 | R144: 3846.47375 | W144: =IF($D$130>5,NA(),IF(C144>H144,MAX(W$131:$W143)+1,0)) -> 0 | X144: =IF($D$130>5,NA(),IF(C144<I144,MAX(W$131:$W143)+1,0)) -> 0 | AA144: 0 | AB144: 0 | AE144: 1 | AF144: 1 | AG144: 14266 | AI144: 0 | AJ144: 0 | AM144: 1 | AN144: 0 | AS144: 14266
B145: 2019-03-01 | C145: =IFERROR(IF(GETPIVOTDATA("Value",Pivots_LA!$A$6,"Month",$B145,"Delay reason",$C$21)=0,"",GETPIVOTDATA("Value",Pivots_LA!$A$6,"Month",$B145,"Delay reason",$C$21)),NA()) -> 15422 | D145: 15422 | G145: 16831 | H145: 19959.93583 | I145: 13702.06417 | N145: 2019-03-01 | O145: 1156 | P145: =IF(O145="",P144,AVERAGE(IF($O$132:O$156<>"",$O$132:O$156))) -> 1176.291667 | Q145: 3128.935833 | R145: 3846.47375 | W145: =IF($D$130>5,NA(),IF(C145>H145,MAX(W$131:$W144)+1,0)) -> 0 | X145: =IF($D$130>5,NA(),IF(C145<I145,MAX(W$131:$W144)+1,0)) -> 0 | AA145: 0 | AB145: 0 | AE145: 1 | AF145: 1 | AG145: 15422 | AI145: 1 | AJ145: 0 | AM145: 0 | AN145: 0 | AS145: =IF(OR(X145>0,AF145>0,AN145>0),C145,NA()) -> 15422
B146: 2019-04-01 | C146: =IFERROR(IF(GETPIVOTDATA("Value",Pivots_LA!$A$6,"Month",$B146,"Delay reason",$C$21)=0,"",GETPIVOTDATA("Value",Pivots_LA!$A$6,"Month",$B146,"Delay reason",$C$21)),NA()) -> 15076 | D146: 15076 | G146: 16831 | H146: 19959.93583 | I146: 13702.06417 | N146: 2019-04-01 | O146: 346 | P146: =IF(O146="",P145,AVERAGE(IF($O$132:O$156<>"",$O$132:O$156))) -> 1176.291667 | Q146: 3128.935833 | R146: 3846.47375 | W146: =IF($D$130>5,NA(),IF(C146>H146,MAX(W$131:$W145)+1,0)) -> 0 | X146: =IF($D$130>5,NA(),IF(C146<I146,MAX(W$131:$W145)+1,0)) -> 0 | AA146: 0 | AB146: 0 | AE146: 1 | AF146: 1 | AG146: 15076 | AI146: 0 | AJ146: 0 | AM146: 1 | AN146: 0 | AS146: 15076
B147: 2019-05-01 | C147: =IFERROR(IF(GETPIVOTDATA("Value",Pivots_LA!$A$6,"Month",$B147,"Delay reason",$C$21)=0,"",GETPIVOTDATA("Value",Pivots_LA!$A$6,"Month",$B147,"Delay reason",$C$21)),NA()) -> 17379 | D147: 17379 | G147: 16831 | H147: 19959.93583 | I147: 13702.06417 | N147: 2019-05-01 | O147: 2303 | P147: =IF(O147="",P146,AVERAGE(IF($O$132:O$156<>"",$O$132:O$156))) -> 1176.291667 | Q147: 3128.935833 | R147: 3846.47375 | W147: =IF($D$130>5,NA(),IF(C147>H147,MAX(W$131:$W146)+1,0)) -> 0 | X147: =IF($D$130>5,NA(),IF(C147<I147,MAX(W$131:$W146)+1,0)) -> 0 | AA147: 1 | AB147: 0 | AE147: 0 | AF147: 0 | AI147: 1 | AJ147: 0 | AM147: 0 | AN147: 0
B148: 2019-06-01 | C148: =IFERROR(IF(GETPIVOTDATA("Value",Pivots_LA!$A$6,"Month",$B148,"Delay reason",$C$21)=0,"",GETPIVOTDATA("Value",Pivots_LA!$A$6,"Month",$B148,"Delay reason",$C$21)),NA()) -> 15461 | D148: 15461 | G148: 16831 | H148: 19959.93583 | I148: 13702.06417 | N148: 2019-06-01 | O148: 1918 | P148: =IF(O148="",P147,AVERAGE(IF($O$132:O$156<>"",$O$132:O$156))) -> 1176.291667 | Q148: 3128.935833 | R148: 3846.47375 | W148: =IF($D$130>5,NA(),IF(C148>H148,MAX(W$131:$W147)+1,0)) -> 0 | X148: =IF($D$130>5,NA(),IF(C148<I148,MAX(W$131:$W147)+1,0)) -> 0 | AA148: 0 | AB148: 0 | AE148: 1 | AF148: 0 | AI148: 0 | AJ148: 0 | AM148: 1 | AN148: 0
B149: 2019-07-01 | C149: =IFERROR(IF(GETPIVOTDATA("Value",Pivots_LA!$A$6,"Month",$B149,"Delay reason",$C$21)=0,"",GETPIVOTDATA("Value",Pivots_LA!$A$6,"Month",$B149,"Delay reason",$C$21)),NA()) -> 16350 | D149: 16350 | G149: 16831 | H149: 19959.93583 | I149: 13702.06417 | N149: 2019-07-01 | O149: 889 | P149: =IF(O149="",P148,AVERAGE(IF($O$132:O$156<>"",$O$132:O$156))) -> 1176.291667 | Q149: 3128.935833 | R149: 3846.47375 | W149: =IF($D$130>5,NA(),IF(C149>H149,MAX(W$131:$W148)+1,0)) -> 0 | X149: =IF($D$130>5,NA(),IF(C149<I149,MAX(W$131:$W148)+1,0)) -> 0 | AA149: 0 | AB149: 0 | AE149: 1 | AF149: =IFERROR(IF(AND(AF148=1,AE149=1),1,IF(SUM(AE149:AE155)>=7,1,0)),0) -> 0 | AI149: 1 | AJ149: 0 | AM149: 0 | AN149: 0
B150: 2019-08-01 | C150: =IFERROR(IF(GETPIVOTDATA("Value",Pivots_LA!$A$6,"Month",$B150,"Delay reason",$C$21)=0,"",GETPIVOTDATA("Value",Pivots_LA!$A$6,"Month",$B150,"Delay reason",$C$21)),NA()) -> 17697 | D150: 17697 | G150: 16831 | H150: 19959.93583 | I150: 13702.06417 | N150: 2019-08-01 | O150: 1347 | P150: =IF(O150="",P149,AVERAGE(IF($O$132:O$156<>"",$O$132:O$156))) -> 1176.291667 | Q150: 3128.935833 | R150: 3846.47375 | W150: =IF($D$130>5,NA(),IF(C150>H150,MAX(W$131:$W149)+1,0)) -> 0 | X150: =IF($D$130>5,NA(),IF(C150<I150,MAX(W$131:$W149)+1,0)) -> 0 | AA150: 1 | AB150: 1 | AC150: 17697 | AE150: 0 | AF150: =IFERROR(IF(AND(AF149=1,AE150=1),1,IF(SUM(AE150:AE156)>=7,1,0)),0) -> 0 | AI150: 1 | AJ150: 0 | AM150: 0 | AN150: 0 | AR150: 17697
B151: 2019-09-01 | C151: =IFERROR(IF(GETPIVOTDATA("Value",Pivots_LA!$A$6,"Month",$B151,"Delay reason",$C$21)=0,"",GETPIVOTDATA("Value",Pivots_LA!$A$6,"Month",$B151,"Delay reason",$C$21)),NA()) -> 19480 | D151: 19480 | G151: 16831 | H151: 19959.93583 | I151: 13702.06417 | N151: 2019-09-01 | O151: 1783 | P151: =IF(O151="",P150,AVERAGE(IF($O$132:O$156<>"",$O$132:O$156))) -> 1176.291667 | Q151: 3128.935833 | R151: 3846.47375 | W151: =IF($D$130>5,NA(),IF(C151>H151,MAX(W$131:$W150)+1,0)) -> 0 | X151: =IF($D$130>5,NA(),IF(C151<I151,MAX(W$131:$W150)+1,0)) -> 0 | AA151: 1 | AB151: =IFERROR(IF(AND(AB150=1,AA151=1),1,IF(SUM(AA151:AA156)>=7,1,0)),0) -> 1 | AC151: 19480 | AE151: 0 | AF151: =IFERROR(IF(AND(AF150=1,AE151=1),1,IF(SUM(AE151:AE156)>=7,1,0)),0) -> 0 | AI151: 1 | AJ151: =IF(AND(AJ150=1,AI151=1),1,IF(SUM(AI151:AI156)>=7,1,0)) -> 0 | AM151: 0 | AN151: 0 | AR151: 19480
B152: 2019-10-01 | C152: =IFERROR(IF(GETPIVOTDATA("Value",Pivots_LA!$A$6,"Month",$B152,"Delay reason",$C$21)=0,"",GETPIVOTDATA("Value",Pivots_LA!$A$6,"Month",$B152,"Delay reason",$C$21)),NA()) -> 18437 | D152: 18437 | G152: 16831 | H152: 19959.93583 | I152: 13702.06417 | N152: 2019-10-01 | O152: 1043 | P152: =IF(O152="",P151,AVERAGE(IF($O$132:O$156<>"",$O$132:O$156))) -> 1176.291667 | Q152: 3128.935833 | R152: 3846.47375 | W152: =IF($D$130>5,NA(),IF(C152>H152,MAX(W$131:$W151)+1,0)) -> 0 | X152: =IF($D$130>5,NA(),IF(C152<I152,MAX(W$131:$W151)+1,0)) -> 0 | AA152: 1 | AB152: =IFERROR(IF(AND(AB151=1,AA152=1),1,IF(SUM(AA152:AA156)>=7,1,0)),0) -> 1 | AC152: 18437 | AE152: 0 | AF152: =IFERROR(IF(AND(AF151=1,AE152=1),1,IF(SUM(AE152:AE156)>=7,1,0)),0) -> 0 | AI152: 0 | AJ152: =IF(AND(AJ151=1,AI152=1),1,IF(SUM(AI152:AI156)>=7,1,0)) -> 0 | AM152: 1 | AN152: =IF(AND(AN151=1,AM152=1),1,IF(SUM(AM152:AM156)>=7,1,0)) -> 0 | AR152: 18437
B153: 2019-11-01 | C153: =IFERROR(IF(GETPIVOTDATA("Value",Pivots_LA!$A$6,"Month",$B153,"Delay reason",$C$21)=0,"",GETPIVOTDATA("Value",Pivots_LA!$A$6,"Month",$B153,"Delay reason",$C$21)),NA()) -> 17952 | D153: 17952 | G153: 16831 | H153: 19959.93583 | I153: 13702.06417 | N153: 2019-11-01 | O153: 485 | P153: =IF(O153="",P152,AVERAGE(IF($O$132:O$156<>"",$O$132:O$156))) -> 1176.291667 | Q153: 3128.935833 | R153: 3846.47375 | W153: =IF($D$130>5,NA(),IF(C153>H153,MAX(W$131:$W152)+1,0)) -> 0 | X153: =IF($D$130>5,NA(),IF(C153<I153,MAX(W$131:$W152)+1,0)) -> 0 | AA153: 1 | AB153: =IFERROR(IF(AND(AB152=1,AA153=1),1,IF(SUM(AA153:AA159)>=7,1,0)),0) -> 1 | AC153: 17952 | AE153: 0 | AF153: =IFERROR(IF(AND(AF152=1,AE153=1),1,IF(SUM(AE153:AE156)>=7,1,0)),0) -> 0 | AI153: 0 | AJ153: =IF(AND(AJ152=1,AI153=1),1,IF(SUM(AI153:AI156)>=7,1,0)) -> 0 | AM153: 1 | AN153: =IF(AND(AN152=1,AM153=1),1,IF(SUM(AM153:AM156)>=7,1,0)) -> 0 | AR153: 17952
B154: 2019-12-01 | C154: =IFERROR(IF(GETPIVOTDATA("Value",Pivots_LA!$A$6,"Month",$B154,"Delay reason",$C$21)=0,"",GETPIVOTDATA("Value",Pivots_LA!$A$6,"Month",$B154,"Delay reason",$C$21)),NA()) -> 18232 | D154: 18232 | G154: 16831 | H154: 19959.93583 | I154: 13702.06417 | N154: 2019-12-01 | O154: 280 | P154: =IF(O154="",P153,AVERAGE(IF($O$132:O$156<>"",$O$132:O$156))) -> 1176.291667 | Q154: 3128.935833 | R154: 3846.47375 | W154: =IF($D$130>5,NA(),IF(C154>H154,MAX(W$131:$W153)+1,0)) -> 0 | X154: =IF($D$130>5,NA(),IF(C154<I154,MAX(W$131:$W153)+1,0)) -> 0 | AA154: 1 | AB154: =IFERROR(IF(AND(AB153=1,AA154=1),1,IF(SUM(AA154:AA156)>=7,1,0)),0) -> 1 | AC154: 18232 | AE154: 0 | AF154: =IFERROR(IF(AND(AF153=1,AE154=1),1,IF(SUM(AE154:AE156)>=7,1,0)),0) -> 0 | AI154: 1 | AJ154: =IF(AND(AJ153=1,AI154=1),1,IF(SUM(AI154:AI156)>=7,1,0)) -> 0 | AM154: 0 | AN154: =IF(AND(AN153=1,AM154=1),1,IF(SUM(AM154:AM156)>=7,1,0)) -> 0 | AR154: 18232
B155: 2020-01-01 | C155: =IFERROR(IF(GETPIVOTDATA("Value",Pivots_LA!$A$6,"Month",$B155,"Delay reason",$C$21)=0,"",GETPIVOTDATA("Value",Pivots_LA!$A$6,"Month",$B155,"Delay reason",$C$21)),NA()) -> 20796 | D155: 20796 | G155: 16831 | H155: 19959.93583 | I155: 13702.06417 | N155: =B155 -> 2020-01-01 | O155: 2564 | P155: =IF(O155="",P154,AVERAGE(IF($O$132:O$156<>"",$O$132:O$156))) -> 1176.291667 | Q155: 3128.935833 | R155: 3846.47375 | W155: =IF($D$130>5,NA(),IF(C155>H155,MAX(W$131:$W154)+1,0)) -> 1 | X155: =IF($D$130>5,NA(),IF(C155<I155,MAX(W$131:$W154)+1,0)) -> 0 | Y155: 20796 | AA155: 1 | AB155: =IFERROR(IF(AND(AB154=1,AA155=1),1,IF(SUM(AA155:AA156)>=7,1,0)),0) -> 1 | AC155: 20796 | AE155: 0 | AF155: =IFERROR(IF(AND(AF154=1,AE155=1),1,IF(SUM(AE155:AE156)>=7,1,0)),0) -> 0 | AI155: 1 | AJ155: =IF(AND(AJ154=1,AI155=1),1,IF(SUM(AI155:AI156)>=7,1,0)) -> 0 | AM155: 0 | AN155: =IF(AND(AN154=1,AM155=1),1,IF(SUM(AM155:AM156)>=7,1,0)) -> 0 | AR155: 20796
B156: 2020-02-01 | C156: =IFERROR(IF(GETPIVOTDATA("Value",Pivots_LA!$A$6,"Month",$B156,"Delay reason",$C$21)=0,"",GETPIVOTDATA("Value",Pivots_LA!$A$6,"Month",$B156,"Delay reason",$C$21)),NA()) -> 20087 | D156: 20087 | G156: 16831 | H156: 19959.93583 | I156: 13702.06417 | N156: =B156 -> 2020-02-01 | O156: =IF(D155="","",IF(D156="","",ABS(D155-D156))) -> 709 | P156: =IF(O156="",P155,AVERAGE(IF($O$132:O$156<>"",$O$132:O$156))) -> 1176.291667 | Q156: =IF(ISERROR((P156*2.66)),Q157,(P156*2.66)) -> 3128.935833 | R156: =$P156*3.27 -> 3846.47375 | W156: =IF($D$130>5,NA(),IF(C156>H156,MAX(W$131:$W155)+1,0)) -> 2 | X156: =IF($D$130>5,NA(),IF(C156<I156,MAX(W$131:$W155)+1,0)) -> 0 | Y156: 20087 | AA156: 1 | AB156: =IFERROR(IF(AND(AB155=1,AA156=1),1,IF(SUM(AA156)>=7,1,0)),0) -> 1 | AC156: 20087 | AE156: 0 | AF156: =IFERROR(IF(AND(AF155=1,AE156=1),1,IF(SUM(AE156)>=7,1,0)),0) -> 0 | AI156: 0 | AJ156: =IF(AND(AJ155=1,AI156=1),1,IF(SUM(AI156)>=7,1,0)) -> 0 | AM156: 1 | AN156: =IF(AND(AN155=1,AM156=1),1,IF(SUM(AM156)>=7,1,0)) -> 0 | AR156: =IF(OR(W156>0,AB156>0,AJ156>0),C156,NA()) -> 20087
B158: =C22 -> A) Awaiting completion of assessment | D158: Count IF data point is zero
B159: =B35 -> 0 | C159: =ROW() -> 159 | D159: =COUNTIF(D161:D185,0) -> 0 | H159: Upper | I159: Lower | O159: Difference | Q159: Sigma | W159: > 3 | X159: < 3 | AA159: 7 points above/below mean | AI159: Trend up/down | AR159: chart 5
B160: ID (Week no.) | C160: Plot data | D160: Data | G160: Mean | H160: Control limits | I160: control limit (-3) | N160: Date | O160: For. Roll avg | P160: Cumul. Moving Avg. | Q160: 2.66* MR | R160: 3.27*MR | W160: Count | X160: Count | Y160: Above/below 3 sigma | AA160: 7 points > mean | AB160: Count of 7 point | AC160: 7 points above mean | AE160: 7 points <mean | AF160: Count of 7point | AG160: 7 points below mean | AI160: Trend up | AM160: Trend Down | AR160: Concern | AS160: Improvement
B161: =$D$9 -> 2018-02-01 | C161: =IFERROR(IF(GETPIVOTDATA("Value",Pivots_LA!$A$6,"Month",$B161,"Delay reason",$C$22)=0,"",GETPIVOTDATA("Value",Pivots_LA!$A$6,"Month",$B161,"Delay reason",$C$22)),NA()) -> 17748 | D161: =IFERROR(IF(C161="",0,C161),"") -> 17748 | G161: =AVERAGE($D$161:$D$185) -> 16831 | H161: =IF($D$159>5,NA(),IF(D161="",H160,G161+Q161)) -> 19959.93583 | I161: =IF($D$159>5,NA(),IF(D161="",I160,G161-Q161)) -> 13702.06417 | N161: =B161 -> 2018-02-01 | P161: =IF(O161="",P160,AVERAGE(IF($O$161:O$185<>"",$O$161:O$185))) -> Cumul. Moving Avg. | Q161: =Q162 -> 3128.935833 | R161: =R162 -> 3846.47375 | W161: =IF($D$159>5,NA(),IF(C161>H161,MAX(W160:$W$160)+1,0)) -> 0 | X161: =IF($D$159>5,NA(),IF(C161<I161,MAX(W160:$W$160)+1,0)) -> 0 | Y161: =IF(OR(W161>0,X161>0),C161,NA()) ->  | AA161: =IF($D$159>5,NA(), IF(C161>G161,1,0)) -> 1 | AB161: =IFERROR(IF(AND(AB160=1,AA161=1),1,IF(SUM(AA161:AA167)>=7,1,0)),0) -> 0 | AC161: =IF(AB161=0,NA(),C161) ->  | AE161: =IF($D$159>5,NA(), IF(C161<G161,1,0)) -> 0 | AF161: =IFERROR(IF(AND(AF160=1,AE161=1),1,IF(SUM(AE161:AE167)>=7,1,0)),0) -> 0 | AG161: =IF(AF161=0,NA(),C161) ->  | AI161: =IF($D$159>5,NA(),IF(C161>C160,1,0)) -> 0 | AJ161: =IF(AND(AJ160=1,AI161=1),1,IF(SUM(AI161:AI167)>=7,1,0)) -> 0 | AK161: =IF(AJ161=0,NA(),C161) ->  | AM161: =IF($D$159>5,NA(),IF(C161<C160,1,0)) -> 1 | AN161: =IF(AND(AN160=1,AM161=1),1,IF(SUM(AM161:AM167)>=7,1,0)) -> 0 | AO161: =IF(AN161=0,NA(),C161) ->  | AR161: =IF(OR(W161>0,AB161>0,AJ161>0),C161,NA()) ->  | AS161: =IF(OR(X161>0,AF161>0,AN161>0),C161,NA()) -> 
B162: =IF(DAY(B161+31)=1,B161+31,B161+31-DAY(B161+31)+1) -> 2018-03-01 | C162: =IFERROR(IF(GETPIVOTDATA("Value",Pivots_LA!$A$6,"Month",$B162,"Delay reason",$C$22)=0,"",GETPIVOTDATA("Value",Pivots_LA!$A$6,"Month",$B162,"Delay reason",$C$22)),NA()) -> 18643 | D162: =IFERROR(IF(C162="",0,C162),"") -> 18643 | G162: =AVERAGE($D$161:$D$185) -> 16831 | H162: =IF($D$159>5,NA(),IF(D162="",H161,G162+Q162)) -> 19959.93583 | I162: =IF($D$159>5,NA(),IF(D162="",I161,G162-Q162)) -> 13702.06417 | N162: 2018-03-01 | O162: =IF(D161="","",IF(D162="","",ABS(D161-D162))) -> 895 | P162: =IF(O162="",P161,AVERAGE(IF($O$161:O$185<>"",$O$161:O$185))) -> 1176.291667 | Q162: =IF(ISERROR((P162*2.66)),Q163,(P162*2.66)) -> 3128.935833 | R162: =$P162*3.27 -> 3846.47375 | W162: =IF($D$159>5,NA(),IF(C162>H162,MAX(W$160:$W161)+1,0)) -> 0 | X162: =IF($D$159>5,NA(),IF(C162<I162,MAX(W$160:$W161)+1,0)) -> 0 | Y162: =IF(OR(W162>0,X162>0),C162,NA()) ->  | AA162: =IF($D$159>5,NA(), IF(C162>G162,1,0)) -> 1 | AB162: =IFERROR(IF(AND(AB161=1,AA162=1),1,IF(SUM(AA162:AA168)>=7,1,0)),0) -> 0 | AC162: =IF(AB162=0,NA(),C162) ->  | AE162: =IF($D$159>5,NA(), IF(C162<G162,1,0)) -> 0 | AF162: =IFERROR(IF(AND(AF161=1,AE162=1),1,IF(SUM(AE162:AE168)>=7,1,0)),0) -> 0 | AG162: =IF(AF162=0,NA(),C162) ->  | AI162: =IF($D$159>5,NA(),IF(C162>C161,1,0)) -> 1 | AJ162: =IF(AND(AJ161=1,AI162=1),1,IF(SUM(AI162:AI168)>=7,1,0)) -> 0 | AK162: =IF(AJ162=0,NA(),C162) ->  | AM162: =IF($D$159>5,NA(),IF(C162<C161,1,0)) -> 0 | AN162: =IF(AND(AN161=1,AM162=1),1,IF(SUM(AM162:AM168)>=7,1,0)) -> 0 | AO162: =IF(AN162=0,NA(),C162) ->  | AR162: =IF(OR(W162>0,AB162>0,AJ162>0),C162,NA()) ->  | AS162: =IF(OR(X162>0,AF162>0,AN162>0),C162,NA()) -> 
B163: =IF(DAY(B162+31)=1,B162+31,B162+31-DAY(B162+31)+1) -> 2018-04-01 | C163: =IFERROR(IF(GETPIVOTDATA("Value",Pivots_LA!$A$6,"Month",$B163,"Delay reason",$C$22)=0,"",GETPIVOTDATA("Value",Pivots_LA!$A$6,"Month",$B163,"Delay reason",$C$22)),NA()) -> 16858 | D163: 16858 | G163: 16831 | H163: 19959.93583 | I163: 13702.06417 | N163: 2018-04-01 | O163: =IF(D162="","",IF(D163="","",ABS(D162-D163))) -> 1785 | P163: =IF(O163="",P162,AVERAGE(IF($O$161:O$185<>"",$O$161:O$185))) -> 1176.291667 | Q163: =IF(ISERROR((P163*2.66)),Q164,(P163*2.66)) -> 3128.935833 | R163: =$P163*3.27 -> 3846.47375 | W163: =IF($D$159>5,NA(),IF(C163>H163,MAX(W$160:$W162)+1,0)) -> 0 | X163: =IF($D$159>5,NA(),IF(C163<I163,MAX(W$160:$W162)+1,0)) -> 0 | AA163: 1 | AB163: 0 | AE163: 0 | AF163: 0 | AI163: 0 | AJ163: 0 | AM163: 1 | AN163: 0
B164: 2018-05-01 | C164: =IFERROR(IF(GETPIVOTDATA("Value",Pivots_LA!$A$6,"Month",$B164,"Delay reason",$C$22)=0,"",GETPIVOTDATA("Value",Pivots_LA!$A$6,"Month",$B164,"Delay reason",$C$22)),NA()) -> 16111 | D164: 16111 | G164: 16831 | H164: 19959.93583 | I164: 13702.06417 | N164: 2018-05-01 | O164: 747 | P164: =IF(O164="",P163,AVERAGE(IF($O$161:O$185<>"",$O$161:O$185))) -> 1176.291667 | Q164: =IF(ISERROR((P164*2.66)),Q165,(P164*2.66)) -> 3128.935833 | R164: =$P164*3.27 -> 3846.47375 | W164: =IF($D$159>5,NA(),IF(C164>H164,MAX(W$160:$W163)+1,0)) -> 0 | X164: =IF($D$159>5,NA(),IF(C164<I164,MAX(W$160:$W163)+1,0)) -> 0 | AA164: 0 | AB164: 0 | AE164: 1 | AF164: 0 | AI164: 0 | AJ164: 0 | AM164: 1 | AN164: 0
B165: 2018-06-01 | C165: =IFERROR(IF(GETPIVOTDATA("Value",Pivots_LA!$A$6,"Month",$B165,"Delay reason",$C$22)=0,"",GETPIVOTDATA("Value",Pivots_LA!$A$6,"Month",$B165,"Delay reason",$C$22)),NA()) -> 15083 | D165: 15083 | G165: 16831 | H165: 19959.93583 | I165: 13702.06417 | N165: 2018-06-01 | O165: 1028 | P165: =IF(O165="",P164,AVERAGE(IF($O$161:O$185<>"",$O$161:O$185))) -> 1176.291667 | Q165: =IF(ISERROR((P165*2.66)),Q166,(P165*2.66)) -> 3128.935833 | R165: 3846.47375 | W165: =IF($D$159>5,NA(),IF(C165>H165,MAX(W$160:$W164)+1,0)) -> 0 | X165: =IF($D$159>5,NA(),IF(C165<I165,MAX(W$160:$W164)+1,0)) -> 0 | AA165: 0 | AB165: 0 | AE165: 1 | AF165: 0 | AI165: 0 | AJ165: 0 | AM165: 1 | AN165: 0
B166: 2018-07-01 | C166: =IFERROR(IF(GETPIVOTDATA("Value",Pivots_LA!$A$6,"Month",$B166,"Delay reason",$C$22)=0,"",GETPIVOTDATA("Value",Pivots_LA!$A$6,"Month",$B166,"Delay reason",$C$22)),NA()) -> 15807 | D166: 15807 | G166: 16831 | H166: 19959.93583 | I166: 13702.06417 | N166: 2018-07-01 | O166: 724 | P166: =IF(O166="",P165,AVERAGE(IF($O$161:O$185<>"",$O$161:O$185))) -> 1176.291667 | Q166: 3128.935833 | R166: 3846.47375 | W166: =IF($D$159>5,NA(),IF(C166>H166,MAX(W$160:$W165)+1,0)) -> 0 | X166: =IF($D$159>5,NA(),IF(C166<I166,MAX(W$160:$W165)+1,0)) -> 0 | AA166: 0 | AB166: 0 | AE166: 1 | AF166: 0 | AI166: 1 | AJ166: 0 | AM166: 0 | AN166: 0
B167: 2018-08-01 | C167: =IFERROR(IF(GETPIVOTDATA("Value",Pivots_LA!$A$6,"Month",$B167,"Delay reason",$C$22)=0,"",GETPIVOTDATA("Value",Pivots_LA!$A$6,"Month",$B167,"Delay reason",$C$22)),NA()) -> 16740 | D167: 16740 | G167: 16831 | H167: 19959.93583 | I167: 13702.06417 | N167: 2018-08-01 | O167: 933 | P167: =IF(O167="",P166,AVERAGE(IF($O$161:O$185<>"",$O$161:O$185))) -> 1176.291667 | Q167: 3128.935833 | R167: 3846.47375 | W167: =IF($D$159>5,NA(),IF(C167>H167,MAX(W$160:$W166)+1,0)) -> 0 | X167: =IF($D$159>5,NA(),IF(C167<I167,MAX(W$160:$W166)+1,0)) -> 0 | AA167: 0 | AB167: 0 | AE167: 1 | AF167: 0 | AI167: 1 | AJ167: 0 | AM167: 0 | AN167: 0
B168: 2018-09-01 | C168: =IFERROR(IF(GETPIVOTDATA("Value",Pivots_LA!$A$6,"Month",$B168,"Delay reason",$C$22)=0,"",GETPIVOTDATA("Value",Pivots_LA!$A$6,"Month",$B168,"Delay reason",$C$22)),NA()) -> 17079 | D168: 17079 | G168: 16831 | H168: 19959.93583 | I168: 13702.06417 | N168: 2018-09-01 | O168: 339 | P168: =IF(O168="",P167,AVERAGE(IF($O$161:O$185<>"",$O$161:O$185))) -> 1176.291667 | Q168: 3128.935833 | R168: 3846.47375 | W168: =IF($D$159>5,NA(),IF(C168>H168,MAX(W$160:$W167)+1,0)) -> 0 | X168: =IF($D$159>5,NA(),IF(C168<I168,MAX(W$160:$W167)+1,0)) -> 0 | AA168: 1 | AB168: 0 | AE168: 0 | AF168: 0 | AI168: 1 | AJ168: 0 | AM168: 0 | AN168: 0
B169: 2018-10-01 | C169: =IFERROR(IF(GETPIVOTDATA("Value",Pivots_LA!$A$6,"Month",$B169,"Delay reason",$C$22)=0,"",GETPIVOTDATA("Value",Pivots_LA!$A$6,"Month",$B169,"Delay reason",$C$22)),NA()) -> 16538 | D169: 16538 | G169: 16831 | H169: 19959.93583 | I169: 13702.06417 | N169: 2018-10-01 | O169: 541 | P169: =IF(O169="",P168,AVERAGE(IF($O$161:O$185<>"",$O$161:O$185))) -> 1176.291667 | Q169: 3128.935833 | R169: 3846.47375 | W169: =IF($D$159>5,NA(),IF(C169>H169,MAX(W$160:$W168)+1,0)) -> 0 | X169: =IF($D$159>5,NA(),IF(C169<I169,MAX(W$160:$W168)+1,0)) -> 0 | AA169: 0 | AB169: 0 | AE169: 1 | AF169: 1 | AG169: 16538 | AI169: 0 | AJ169: 0 | AM169: 1 | AN169: 0 | AS169: 16538
B170: 2018-11-01 | C170: =IFERROR(IF(GETPIVOTDATA("Value",Pivots_LA!$A$6,"Month",$B170,"Delay reason",$C$22)=0,"",GETPIVOTDATA("Value",Pivots_LA!$A$6,"Month",$B170,"Delay reason",$C$22)),NA()) -> 13739 | D170: 13739 | G170: 16831 | H170: 19959.93583 | I170: 13702.06417 | N170: 2018-11-01 | O170: 2799 | P170: =IF(O170="",P169,AVERAGE(IF($O$161:O$185<>"",$O$161:O$185))) -> 1176.291667 | Q170: 3128.935833 | R170: 3846.47375 | W170: =IF($D$159>5,NA(),IF(C170>H170,MAX(W$160:$W169)+1,0)) -> 0 | X170: =IF($D$159>5,NA(),IF(C170<I170,MAX(W$160:$W169)+1,0)) -> 0 | AA170: 0 | AB170: 0 | AE170: 1 | AF170: 1 | AG170: 13739 | AI170: 0 | AJ170: 0 | AM170: 1 | AN170: 0 | AS170: 13739
B171: 2018-12-01 | C171: =IFERROR(IF(GETPIVOTDATA("Value",Pivots_LA!$A$6,"Month",$B171,"Delay reason",$C$22)=0,"",GETPIVOTDATA("Value",Pivots_LA!$A$6,"Month",$B171,"Delay reason",$C$22)),NA()) -> 13983 | D171: 13983 | G171: 16831 | H171: 19959.93583 | I171: 13702.06417 | N171: 2018-12-01 | O171: 244 | P171: =IF(O171="",P170,AVERAGE(IF($O$161:O$185<>"",$O$161:O$185))) -> 1176.291667 | Q171: 3128.935833 | R171: 3846.47375 | W171: =IF($D$159>5,NA(),IF(C171>H171,MAX(W$160:$W170)+1,0)) -> 0 | X171: =IF($D$159>5,NA(),IF(C171<I171,MAX(W$160:$W170)+1,0)) -> 0 | AA171: 0 | AB171: 0 | AE171: 1 | AF171: 1 | AG171: 13983 | AI171: 1 | AJ171: 0 | AM171: 0 | AN171: 0 | AS171: 13983
B172: 2019-01-01 | C172: =IFERROR(IF(GETPIVOTDATA("Value",Pivots_LA!$A$6,"Month",$B172,"Delay reason",$C$22)=0,"",GETPIVOTDATA("Value",Pivots_LA!$A$6,"Month",$B172,"Delay reason",$C$22)),NA()) -> 15811 | D172: 15811 | G172: 16831 | H172: 19959.93583 | I172: 13702.06417 | N172: 2019-01-01 | O172: 1828 | P172: =IF(O172="",P171,AVERAGE(IF($O$161:O$185<>"",$O$161:O$185))) -> 1176.291667 | Q172: 3128.935833 | R172: 3846.47375 | W172: =IF($D$159>5,NA(),IF(C172>H172,MAX(W$160:$W171)+1,0)) -> 0 | X172: =IF($D$159>5,NA(),IF(C172<I172,MAX(W$160:$W171)+1,0)) -> 0 | AA172: 0 | AB172: 0 | AE172: 1 | AF172: 1 | AG172: 15811 | AI172: 1 | AJ172: 0 | AM172: 0 | AN172: 0 | AS172: 15811
B173: 2019-02-01 | C173: =IFERROR(IF(GETPIVOTDATA("Value",Pivots_LA!$A$6,"Month",$B173,"Delay reason",$C$22)=0,"",GETPIVOTDATA("Value",Pivots_LA!$A$6,"Month",$B173,"Delay reason",$C$22)),NA()) -> 14266 | D173: 14266 | G173: 16831 | H173: 19959.93583 | I173: 13702.06417 | N173: 2019-02-01 | O173: 1545 | P173: =IF(O173="",P172,AVERAGE(IF($O$161:O$185<>"",$O$161:O$185))) -> 1176.291667 | Q173: 3128.935833 | R173: 3846.47375 | W173: =IF($D$159>5,NA(),IF(C173>H173,MAX(W$160:$W172)+1,0)) -> 0 | X173: =IF($D$159>5,NA(),IF(C173<I173,MAX(W$160:$W172)+1,0)) -> 0 | AA173: 0 | AB173: 0 | AE173: 1 | AF173: 1 | AG173: 14266 | AI173: 0 | AJ173: 0 | AM173: 1 | AN173: 0 | AS173: 14266
B174: 2019-03-01 | C174: =IFERROR(IF(GETPIVOTDATA("Value",Pivots_LA!$A$6,"Month",$B174,"Delay reason",$C$22)=0,"",GETPIVOTDATA("Value",Pivots_LA!$A$6,"Month",$B174,"Delay reason",$C$22)),NA()) -> 15422 | D174: 15422 | G174: 16831 | H174: 19959.93583 | I174: 13702.06417 | N174: 2019-03-01 | O174: 1156 | P174: =IF(O174="",P173,AVERAGE(IF($O$161:O$185<>"",$O$161:O$185))) -> 1176.291667 | Q174: 3128.935833 | R174: 3846.47375 | W174: =IF($D$159>5,NA(),IF(C174>H174,MAX(W$160:$W173)+1,0)) -> 0 | X174: =IF($D$159>5,NA(),IF(C174<I174,MAX(W$160:$W173)+1,0)) -> 0 | AA174: 0 | AB174: 0 | AE174: 1 | AF174: 1 | AG174: 15422 | AI174: 1 | AJ174: 0 | AM174: 0 | AN174: 0 | AS174: 15422
B175: 2019-04-01 | C175: =IFERROR(IF(GETPIVOTDATA("Value",Pivots_LA!$A$6,"Month",$B175,"Delay reason",$C$22)=0,"",GETPIVOTDATA("Value",Pivots_LA!$A$6,"Month",$B175,"Delay reason",$C$22)),NA()) -> 15076 | D175: 15076 | G175: 16831 | H175: 19959.93583 | I175: 13702.06417 | N175: 2019-04-01 | O175: 346 | P175: =IF(O175="",P174,AVERAGE(IF($O$161:O$185<>"",$O$161:O$185))) -> 1176.291667 | Q175: 3128.935833 | R175: 3846.47375 | W175: =IF($D$159>5,NA(),IF(C175>H175,MAX(W$160:$W174)+1,0)) -> 0 | X175: =IF($D$159>5,NA(),IF(C175<I175,MAX(W$160:$W174)+1,0)) -> 0 | AA175: 0 | AB175: 0 | AE175: 1 | AF175: 1 | AG175: 15076 | AI175: 0 | AJ175: 0 | AM175: 1 | AN175: 0 | AS175: 15076
B176: 2019-05-01 | C176: =IFERROR(IF(GETPIVOTDATA("Value",Pivots_LA!$A$6,"Month",$B176,"Delay reason",$C$22)=0,"",GETPIVOTDATA("Value",Pivots_LA!$A$6,"Month",$B176,"Delay reason",$C$22)),NA()) -> 17379 | D176: 17379 | G176: 16831 | H176: 19959.93583 | I176: 13702.06417 | N176: 2019-05-01 | O176: 2303 | P176: =IF(O176="",P175,AVERAGE(IF($O$161:O$185<>"",$O$161:O$185))) -> 1176.291667 | Q176: 3128.935833 | R176: 3846.47375 | W176: =IF($D$159>5,NA(),IF(C176>H176,MAX(W$160:$W175)+1,0)) -> 0 | X176: =IF($D$159>5,NA(),IF(C176<I176,MAX(W$160:$W175)+1,0)) -> 0 | AA176: 1 | AB176: 0 | AE176: 0 | AF176: 0 | AI176: 1 | AJ176: 0 | AM176: 0 | AN176: 0
B177: 2019-06-01 | C177: =IFERROR(IF(GETPIVOTDATA("Value",Pivots_LA!$A$6,"Month",$B177,"Delay reason",$C$22)=0,"",GETPIVOTDATA("Value",Pivots_LA!$A$6,"Month",$B177,"Delay reason",$C$22)),NA()) -> 15461 | D177: 15461 | G177: 16831 | H177: 19959.93583 | I177: 13702.06417 | N177: 2019-06-01 | O177: 1918 | P177: =IF(O177="",P176,AVERAGE(IF($O$161:O$185<>"",$O$161:O$185))) -> 1176.291667 | Q177: 3128.935833 | R177: 3846.47375 | W177: =IF($D$159>5,NA(),IF(C177>H177,MAX(W$160:$W176)+1,0)) -> 0 | X177: =IF($D$159>5,NA(),IF(C177<I177,MAX(W$160:$W176)+1,0)) -> 0 | AA177: 0 | AB177: 0 | AE177: 1 | AF177: 0 | AI177: 0 | AJ177: 0 | AM177: 1 | AN177: 0
B178: 2019-07-01 | C178: =IFERROR(IF(GETPIVOTDATA("Value",Pivots_LA!$A$6,"Month",$B178,"Delay reason",$C$22)=0,"",GETPIVOTDATA("Value",Pivots_LA!$A$6,"Month",$B178,"Delay reason",$C$22)),NA()) -> 16350 | D178: 16350 | G178: 16831 | H178: 19959.93583 | I178: 13702.06417 | N178: 2019-07-01 | O178: 889 | P178: =IF(O178="",P177,AVERAGE(IF($O$161:O$185<>"",$O$161:O$185))) -> 1176.291667 | Q178: 3128.935833 | R178: 3846.47375 | W178: =IF($D$159>5,NA(),IF(C178>H178,MAX(W$160:$W177)+1,0)) -> 0 | X178: =IF($D$159>5,NA(),IF(C178<I178,MAX(W$160:$W177)+1,0)) -> 0 | AA178: 0 | AB178: 0 | AE178: 1 | AF178: =IFERROR(IF(AND(AF177=1,AE178=1),1,IF(SUM(AE178:AE184)>=7,1,0)),0) -> 0 | AI178: 1 | AJ178: 0 | AM178: 0 | AN178: 0
B179: 2019-08-01 | C179: =IFERROR(IF(GETPIVOTDATA("Value",Pivots_LA!$A$6,"Month",$B179,"Delay reason",$C$22)=0,"",GETPIVOTDATA("Value",Pivots_LA!$A$6,"Month",$B179,"Delay reason",$C$22)),NA()) -> 17697 | D179: 17697 | G179: 16831 | H179: 19959.93583 | I179: 13702.06417 | N179: 2019-08-01 | O179: 1347 | P179: =IF(O179="",P178,AVERAGE(IF($O$161:O$185<>"",$O$161:O$185))) -> 1176.291667 | Q179: 3128.935833 | R179: 3846.47375 | W179: =IF($D$159>5,NA(),IF(C179>H179,MAX(W$160:$W178)+1,0)) -> 0 | X179: =IF($D$159>5,NA(),IF(C179<I179,MAX(W$160:$W178)+1,0)) -> 0 | AA179: 1 | AB179: 1 | AC179: 17697 | AE179: 0 | AF179: =IFERROR(IF(AND(AF178=1,AE179=1),1,IF(SUM(AE179:AE185)>=7,1,0)),0) -> 0 | AI179: 1 | AJ179: =IF(AND(AJ178=1,AI179=1),1,IF(SUM(AI179:AI185)>=7,1,0)) -> 0 | AM179: 0 | AN179: =IF(AND(AN178=1,AM179=1),1,IF(SUM(AM179:AM185)>=7,1,0)) -> 0 | AR179: 17697
B180: 2019-09-01 | C180: =IFERROR(IF(GETPIVOTDATA("Value",Pivots_LA!$A$6,"Month",$B180,"Delay reason",$C$22)=0,"",GETPIVOTDATA("Value",Pivots_LA!$A$6,"Month",$B180,"Delay reason",$C$22)),NA()) -> 19480 | D180: 19480 | G180: 16831 | H180: 19959.93583 | I180: 13702.06417 | N180: 2019-09-01 | O180: 1783 | P180: =IF(O180="",P179,AVERAGE(IF($O$161:O$185<>"",$O$161:O$185))) -> 1176.291667 | Q180: 3128.935833 | R180: 3846.47375 | W180: =IF($D$159>5,NA(),IF(C180>H180,MAX(W$160:$W179)+1,0)) -> 0 | X180: =IF($D$159>5,NA(),IF(C180<I180,MAX(W$160:$W179)+1,0)) -> 0 | AA180: 1 | AB180: =IFERROR(IF(AND(AB179=1,AA180=1),1,IF(SUM(AA180:AA185)>=7,1,0)),0) -> 1 | AC180: 19480 | AE180: 0 | AF180: =IFERROR(IF(AND(AF179=1,AE180=1),1,IF(SUM(AE180:AE185)>=7,1,0)),0) -> 0 | AI180: 1 | AJ180: =IF(AND(AJ179=1,AI180=1),1,IF(SUM(AI180:AI185)>=7,1,0)) -> 0 | AM180: 0 | AN180: =IF(AND(AN179=1,AM180=1),1,IF(SUM(AM180:AM185)>=7,1,0)) -> 0 | AR180: 19480
B181: 2019-10-01 | C181: =IFERROR(IF(GETPIVOTDATA("Value",Pivots_LA!$A$6,"Month",$B181,"Delay reason",$C$22)=0,"",GETPIVOTDATA("Value",Pivots_LA!$A$6,"Month",$B181,"Delay reason",$C$22)),NA()) -> 18437 | D181: 18437 | G181: 16831 | H181: 19959.93583 | I181: 13702.06417 | N181: 2019-10-01 | O181: 1043 | P181: =IF(O181="",P180,AVERAGE(IF($O$161:O$185<>"",$O$161:O$185))) -> 1176.291667 | Q181: 3128.935833 | R181: 3846.47375 | W181: =IF($D$159>5,NA(),IF(C181>H181,MAX(W$160:$W180)+1,0)) -> 0 | X181: =IF($D$159>5,NA(),IF(C181<I181,MAX(W$160:$W180)+1,0)) -> 0 | AA181: 1 | AB181: =IFERROR(IF(AND(AB180=1,AA181=1),1,IF(SUM(AA181:AA185)>=7,1,0)),0) -> 1 | AC181: 18437 | AE181: 0 | AF181: =IFERROR(IF(AND(AF180=1,AE181=1),1,IF(SUM(AE181:AE185)>=7,1,0)),0) -> 0 | AI181: 0 | AJ181: =IF(AND(AJ180=1,AI181=1),1,IF(SUM(AI181:AI185)>=7,1,0)) -> 0 | AM181: 1 | AN181: =IF(AND(AN180=1,AM181=1),1,IF(SUM(AM181:AM185)>=7,1,0)) -> 0 | AR181: 18437
B182: 2019-11-01 | C182: =IFERROR(IF(GETPIVOTDATA("Value",Pivots_LA!$A$6,"Month",$B182,"Delay reason",$C$22)=0,"",GETPIVOTDATA("Value",Pivots_LA!$A$6,"Month",$B182,"Delay reason",$C$22)),NA()) -> 17952 | D182: 17952 | G182: 16831 | H182: 19959.93583 | I182: 13702.06417 | N182: 2019-11-01 | O182: 485 | P182: =IF(O182="",P181,AVERAGE(IF($O$161:O$185<>"",$O$161:O$185))) -> 1176.291667 | Q182: 3128.935833 | R182: 3846.47375 | W182: =IF($D$159>5,NA(),IF(C182>H182,MAX(W$160:$W181)+1,0)) -> 0 | X182: =IF($D$159>5,NA(),IF(C182<I182,MAX(W$160:$W181)+1,0)) -> 0 | AA182: 1 | AB182: =IFERROR(IF(AND(AB181=1,AA182=1),1,IF(SUM(AA182:AA188)>=7,1,0)),0) -> 1 | AC182: 17952 | AE182: 0 | AF182: =IFERROR(IF(AND(AF181=1,AE182=1),1,IF(SUM(AE182:AE185)>=7,1,0)),0) -> 0 | AI182: 0 | AJ182: =IF(AND(AJ181=1,AI182=1),1,IF(SUM(AI182:AI185)>=7,1,0)) -> 0 | AM182: 1 | AN182: =IF(AND(AN181=1,AM182=1),1,IF(SUM(AM182:AM185)>=7,1,0)) -> 0 | AR182: 17952
B183: 2019-12-01 | C183: =IFERROR(IF(GETPIVOTDATA("Value",Pivots_LA!$A$6,"Month",$B183,"Delay reason",$C$22)=0,"",GETPIVOTDATA("Value",Pivots_LA!$A$6,"Month",$B183,"Delay reason",$C$22)),NA()) -> 18232 | D183: 18232 | G183: 16831 | H183: 19959.93583 | I183: 13702.06417 | N183: 2019-12-01 | O183: 280 | P183: =IF(O183="",P182,AVERAGE(IF($O$161:O$185<>"",$O$161:O$185))) -> 1176.291667 | Q183: 3128.935833 | R183: 3846.47375 | W183: =IF($D$159>5,NA(),IF(C183>H183,MAX(W$160:$W182)+1,0)) -> 0 | X183: =IF($D$159>5,NA(),IF(C183<I183,MAX(W$160:$W182)+1,0)) -> 0 | AA183: 1 | AB183: =IFERROR(IF(AND(AB182=1,AA183=1),1,IF(SUM(AA183:AA185)>=7,1,0)),0) -> 1 | AC183: 18232 | AE183: 0 | AF183: =IFERROR(IF(AND(AF182=1,AE183=1),1,IF(SUM(AE183:AE185)>=7,1,0)),0) -> 0 | AI183: 1 | AJ183: =IF(AND(AJ182=1,AI183=1),1,IF(SUM(AI183:AI185)>=7,1,0)) -> 0 | AM183: 0 | AN183: =IF(AND(AN182=1,AM183=1),1,IF(SUM(AM183:AM185)>=7,1,0)) -> 0 | AR183: 18232
B184: 2020-01-01 | C184: =IFERROR(IF(GETPIVOTDATA("Value",Pivots_LA!$A$6,"Month",$B184,"Delay reason",$C$22)=0,"",GETPIVOTDATA("Value",Pivots_LA!$A$6,"Month",$B184,"Delay reason",$C$22)),NA()) -> 20796 | D184: 20796 | G184: 16831 | H184: 19959.93583 | I184: 13702.06417 | N184: =B184 -> 2020-01-01 | O184: 2564 | P184: =IF(O184="",P183,AVERAGE(IF($O$161:O$185<>"",$O$161:O$185))) -> 1176.291667 | Q184: 3128.935833 | R184: 3846.47375 | W184: =IF($D$159>5,NA(),IF(C184>H184,MAX(W$160:$W183)+1,0)) -> 1 | X184: =IF($D$159>5,NA(),IF(C184<I184,MAX(W$160:$W183)+1,0)) -> 0 | Y184: 20796 | AA184: 1 | AB184: =IFERROR(IF(AND(AB183=1,AA184=1),1,IF(SUM(AA184:AA185)>=7,1,0)),0) -> 1 | AC184: 20796 | AE184: 0 | AF184: =IFERROR(IF(AND(AF183=1,AE184=1),1,IF(SUM(AE184:AE185)>=7,1,0)),0) -> 0 | AI184: 1 | AJ184: =IF(AND(AJ183=1,AI184=1),1,IF(SUM(AI184:AI185)>=7,1,0)) -> 0 | AM184: 0 | AN184: =IF(AND(AN183=1,AM184=1),1,IF(SUM(AM184:AM185)>=7,1,0)) -> 0 | AR184: 20796
